Workbook

Sheet Navi
B2: Tool zum Regensburger Modell
B4: Inhaltsübersicht mit Navigation | D4: Summary | E4: Anleitung zum Tool | G4: Cockpit | H4: Impressum | I4: Glossar
B6: Eingabe der klimapolitischen Ausgangsdaten | C6: Rahmendaten | D6: Ausgangsdaten | E6: Politische Festlegungen auf der Basis wissenschaftlicher Erkenntnisse.
B8: Paramteter für die globalen Szenarien berechnen | C8: Startwerte (Vorgabewerte) | D8: Zielwertsuche
B10: Grafiken Welt (Szenarien 1 - 7): | E10: Welt | F10: RS_t
B12: Emissionspfade (Referenzwerte) | C12: für ein wählbares Land | D12: Land | E12: Grafiken Land
B14: Vier-Länder-Beispiel (ohne Emissionshandel): | C14: Szenario wählbar | D14: Bsp.länder | E14: Em.pfade | F14: pro Kopf
B16: Vier-Länder-Beispiel (mit Emissionshandel): | C16: Emissionshandel simulieren | D16: Bsp.länder mEH | E16: Em.pfade mEH | F16: pro Kopf mEH
B18: Berechnung globaler Pfade, die mit dem 2°C-Ziel kompatibel sind: | C18: Ansatz beim jährl. Reduktionssatz | D18: Szenario 1 | E18: Szenario 2 | F18: Szenario 3 | G18: Szenario 4
C19: Funktionen für globalen Pfad | D19: Szenario 5 | E19: Szenario 6
C20: freie Eingabe / RCP2.6 | D20: Szenario 7
B21: IPCC Szenarien für mit dem 2°-Ziel kompatible globale Emissionspfade: | C21: RCP2.6-Szenario für CO2 | D21: RCP2.6
C22: LIMITS-Szenarien für CO2 | D22: LIMITS
B24: Datenbanken | C24: Zum Teil weitere Spezifzierungen möglich. | D24: Details Ausgangsdaten | E24: Daten Länder | F24: Output Länder | G24: Wikipedia-capita | H24: EDGAR | I24: UN-MF | J24: UN-IR
C26: In den folgenden Registern gilt: Bei gelb hinterlegten Zellen ist eine Eingabe möglich.
B28: Anregungen und Kommentare an: | C28: klima-retten@email.de
B30: Unter folgendem Link können Sie die jeweils aktuelle Version des Tools herunterladen: | E30: http://www.klima-retten.info/downloads.html
B32: Stand Tool: | C32: 2015-11-30

Sheet Summary

Sheet Anleitung
X1: Englisch | Y1: Deutsch
B2: Unter dem Link: | X2: CR_t-1 | Y2: VS_t-1 | Z2: Veränderungssätze
X3: TA | Y3: ZM | Z3: Zielmenge
B4: www.klima-retten.info/downloads.html | X4: P | Y4: B | Z4: Bevölkerung
B6: können Sie folgende Informationen herunterladen:
I7: Seitenzahl
B8: ● Hintergrundpapier zum Regensburger Modell | I8: 29
C9: > Executive Summary, ausführliche Anleitung zum Tool, Hintergrund Regensburger Modell
B10: ● Flyer | I10: 2

Sheet Cockpit
B2: Cockpit: Übersicht über die derzeitigen Eingabewerte
B4: Register "Ausgangsdaten" | G4: Wo kann eine Änderung im Register "Ausgangsdaten" vorgenommen werden? | I4: Register "Zielwertsuche"
J5: ='S1'!$A$1 -> Szenario 1 | K5: ='S2'!$A$1 -> Szenario 2 | L5: ='S3'!$A$1 -> Szenario 3 | M5: ='S4'!$A$1 -> Szenario 4 | N5: ='S5'!$A$1 -> Szenario 5 | O5: ='S6'!$A$1 -> Szenario 6 | P5: ='S7'!$A$1 -> Szenario 7
B6: Inhalt | C6: derzeitige Eingabe | J6: =Zielwertsuche!C6 -> RSt konstant | K6: =Zielwertsuche!D6 -> RSt exp | L6: =Zielwertsuche!E6 -> RSt lin | M6: =Zielwertsuche!F6 -> RSt quadr | N6: =Zielwertsuche!G6 -> Polynom | O6: =Zielwertsuche!H6 -> Gerade | P6: =Zielwertsuche!I6 -> freie Eingabe
B7: Welche CO2-Emissionen werden betrachtet? | C7: =IF(Ausgangsdaten!K14=Ausgangsdaten!B121,"alle anthropogenen CO2-Emissionen","nur CO2-Emissionen aus fossilen Quellen und Zementherstellung") -> nur CO2-Emissionen aus fossilen Quellen und Zementherstellung | G7: I. a) | I7: Wird das Budget 2020 - 2050 eingehalten? | J7: =IF(Zielwertsuche!C15=Zielwertsuche!C16,"ja","nein") -> ja | K7: =IF(Zielwertsuche!D15=Zielwertsuche!D16,"ja","nein") -> ja | L7: =IF(Zielwertsuche!E15=Zielwertsuche!E16,"ja","nein") -> ja | M7: =IF(Zielwertsuche!F15=Zielwertsuche!F16,"ja","nein") -> ja | N7: =IF(Zielwertsuche!G15=Zielwertsuche!G16,"ja","nein") -> ja | O7: =IF(Zielwertsuche!H15=Zielwertsuche!H16,"ja","nein") -> ja | P7: =IF(Zielwertsuche!I15=Zielwertsuche!I16,"ja","nein") -> nein
B8: Reduktion der Emissionen in 2050 gegenüber 1990: | C8: =Ausgangsdaten!H14 -> 0.85 | G8: I. a) | I8: Wird die Zielmenge 2050 eingehalten? | J8: =IF(Zielwertsuche!C18=Zielwertsuche!C19,"ja","nein") -> nein | K8: =IF(Zielwertsuche!D18=Zielwertsuche!D19,"ja","nein") -> ja | L8: =IF(Zielwertsuche!E18=Zielwertsuche!E19,"ja","nein") -> ja | M8: =IF(Zielwertsuche!F18=Zielwertsuche!F19,"ja","nein") -> ja | N8: =IF(Zielwertsuche!G18=Zielwertsuche!G19,"ja","nein") -> ja | O8: =IF(Zielwertsuche!H18=Zielwertsuche!H19,"ja","nein") -> ja | P8: =IF(Zielwertsuche!I18=Zielwertsuche!I19,"ja","nein") -> nein
B9: Zielmenge 2050 (ZM): | C9: =Ausgangsdaten!H16 -> 3.363 | D9: Mrd. t | I9: Besteht noch Optimierungsbedarf? | K9: =IF(AND(Zielwertsuche!D28<>"ja",Zielwertsuche!D30<>"ja",Zielwertsuche!D31<>"ja",Zielwertsuche!D29<>"ja"),"nein","ja") -> nein | L9: =IF(AND(Zielwertsuche!E28<>"ja",Zielwertsuche!E30<>"ja",Zielwertsuche!E31<>"ja",Zielwertsuche!E29<>"ja"),"nein","ja") -> nein | M9: =IF(AND(Zielwertsuche!F28<>"ja",Zielwertsuche!F30<>"ja",Zielwertsuche!F31<>"ja",Zielwertsuche!F29<>"ja"),"nein","ja") -> nein | N9: =IF(AND(Zielwertsuche!G28<>"ja",Zielwertsuche!G30<>"ja",Zielwertsuche!G31<>"ja",Zielwertsuche!G29<>"ja"),"nein","ja") -> nein
B10: Gesamtbudget (vereinbar mit 2°C-Ziel): | C10: =Ausgangsdaten!B26 -> 2900 | D10: Mrd. t | G10: I. ba) | I10: Makro "Anpassung RS_9050" starten? | K10: =IF(K9="nein",Zielwertsuche!O8,"") -> nein | L10: =IF(L9="nein",Zielwertsuche!P8,"") -> nein | M10: =IF(M9="nein",Zielwertsuche!Q8,"") -> nein
B11: Bis einschließlich 2011 davon bereits emittiert: | C11: =Ausgangsdaten!F26 -> 1890 | D11: Mrd. t | G11: I. ba) | I11: Bei den Szenarien 1, 6 und 7 besteht im Register "Zielwertsuche" keine Möglichkeit der Anpassung, um die Randbedingnung (Budget und Zielmenge) einzuhalten. Wird bei den anderen Szenarien ein rotes Feld angezeigt, können Sie im Register "Zielwertsuche" ein Makro (Anpassung Vorgabewerte) starten, um eine bessere Lösung zu suchen. In diesem Register finden Sie auch genauere Informationen dazu.
B12: Angenommene FOLU-Emissionen 2012 - 2100 | C12: =Ausgangsdaten!J26 -> 168.7500358 | D12: Mrd. t | G12: I. ba)
B13: Angenommene CO2-Emissionen 2012 - 2019: | C13: =IF(Ausgangsdaten!K14=Ausgangsdaten!B121,Ausgangsdaten!N36,Ausgangsdaten!N37) -> 281.3033907 | D13: Mrd. t | G13: I. bb)
B14: Netto-CO2-Emissionen 2051 - 2100: | C14: =Ausgangsdaten!L48 -> 22 | D14: Mrd. t | G14: I. bc)
B15: Budget 2020 - 2050 (BG): | C15: =Ausgangsdaten!L58 -> 537.9465736 | D15: Mrd. t | G15: I. bd)
B16: Emissionen im Basisjahr 2019 | C16: =Ausgangsdaten!L62 -> 37.39723029 | D16: Mrd. t | G16: I. bb) | I16: derzeitige Parameter | J16: ='S1'!$A$1 -> Szenario 1 | K16: ='S2'!$A$1 -> Szenario 2 | L16: ='S3'!$A$1 -> Szenario 3 | M16: ='S4'!$A$1 -> Szenario 4 | N16: ='S5'!$A$1 -> Szenario 5 | O16: ='S6'!$A$1 -> Szenario 6 | P16: ='S7'!$A$1 -> Szenario 7
B17: Gewählte Option für Bevölkerung 2050: | C17: =Ausgangsdaten!G66 -> Minimum "instant replacement" / "Prognosewerte" | G17: II. | I17: Reduktionssatz 2020 (RS20) | J17: =Zielwertsuche!C9 -> -0.0539905068 | K17: =Zielwertsuche!D9 -> -0.03716 | L17: =Zielwertsuche!E9 -> -0.0309 | M17: =Zielwertsuche!F9 -> -0.04281 | N17: =Zielwertsuche!G9 -> -0.04 | O17: =Zielwertsuche!H9 -> -0.03435707299 | P17: =Zielwertsuche!I9 -> 0.003742819578
B18: Anteil, der bei global steigenden Emissionen pro Kopf verteilt wird: | C18: =Ausgangsdaten!M82 -> 0.1 | D18: Eskalationssatz: | E18: =Ausgangsdaten!M83 -> 0.3 | G18: III. | I18: Reduktionssatz 2050 (RS50); Eingabewert S5 | J18: =Zielwertsuche!C25 -> -0.0539905068 | K18: =Zielwertsuche!D25 -> -0.128563636 | L18: =Zielwertsuche!E25 -> -0.1172001274 | M18: =Zielwertsuche!F26 -> -0.134755554 | N18: =Zielwertsuche!G10 -> -0.0903 | O18: =Zielwertsuche!H25 -> 0 | P18: =Zielwertsuche!I25 -> -0.04610886887
B20: Register "Details Ausgangsdaten"
B21: Wurde für die CO2-Emissionen 2051 - 2100 im Register "Ausgangsdaten" auf das Register "Details Ausgangsdaten" zurückgegriffen? | D21: =IF(Ausgangsdaten!F48=Ausgangsdaten!B128,"ja","nein; freie Eingabe") -> ja
B22: =IF(D21="ja","Globale Negativemissionen in den oben angegebenen Netto-Emissionen:","") -> Globale Negativemissionen in den oben angegebenen Netto-Emissionen: | D22: =IF(D21="ja",Ausgangsdaten!O44,"-") -> -25.42428 | E22: =IF(D21="ja","Mrd. t","") -> Mrd. t
B23: Besteht Optimierungsbedarf bei der Berechnung der Emissionen 2051 - 2100, weil ZM_100 nicht erreicht wird? | D23: =IF(ROUND(E23,0)<>0,"ja","nein") -> nein | E23: =IF(D21="ja",IF(Ausgangsdaten!$D$44=Ausgangsdaten!$B$124,'Details Ausgangsdaten'!M16,IF(Ausgangsdaten!$D$44=Ausgangsdaten!$B$125,'Details Ausgangsdaten'!AC16,'Details Ausgangsdaten'!AS16)),"") -> 0
B25: Register "Daten Länder"
B26: Standardveränderungssatz, wenn keine Vergangenheitswerte zur Verfügung stehen: | E26: ='Daten Länder'!R9 -> 0.015
B27: Anzahl von individuellen Hochrechnungssätzen | E27: ='Daten Länder'!V248 -> 5
B28: Obergrenze für die Hochrechnung 2019 | E28: ='Daten Länder'!U253 -> 0.035
B29: Abweichung Emissionen 2019: globaler Pfad / Summe Länder | E29: ='Daten Länder'!W255 -> 0.003960195286

Sheet Ausgangsdaten
B2: Ausgangsdaten (Randbedingungen)
B4: Eingabefelder | D4: Werte können überschrieben werden | I4: Werte aus dem Register "Details Ausgangsdaten"
B6: I. Eingabe der Ausgangsdaten zur Bestimmung globaler Emissionspfade von 2020 - 2050 (kompatibel mit dem Zwei-Grad-Ziel)
B8: I. a) Zielmenge (ZM) der weltweiten Emissionen in 2050
F10: mit FOLU | G10: ohne FOLU | H10: Tool | J10: Soll im Tool mit oder ohne FOLU-Emissionen gerechnet werden? (siehe nebenstehende Anmerkung)
G11: ohne FOLU
B12: CO2-Emissionen in 1990 in Mrd. t | F12: ='Details Ausgangsdaten'!F82 -> 28.5 | G12: ='Details Ausgangsdaten'!F75 -> 22.42 | H12: =IF($K$14=$B$121,$F12,$G12) -> 22.42
B14: Reduktion der CO2- Emissionen in 2050 gegenüber 1990 (RS9050) | F14: 0.85 | G14: 0.85 | H14: =IF($K$14=$B$121,$F14,$G14) -> 0.85 | K14: ohne FOLU
B16: Zielmenge (ZM) der weltweiten CO2-Emissionen 2050 in Mrd. t | F16: =F12*(1-F14) -> 4.275 | G16: =G12*(1-G14) -> 3.363 | H16: =IF($K$14=$B$121,$F16,$G16) -> 3.363
B18: zur Information: Reduktion der CO2- Emissionen in 2050 gegenüber 2010 | F18: =(('Details Ausgangsdaten'!J75+'Details Ausgangsdaten'!J76)-Ausgangsdaten!F16)/('Details Ausgangsdaten'!J75+'Details Ausgangsdaten'!J76) -> 0.8852040816 | G18: =('Details Ausgangsdaten'!J75-Ausgangsdaten!G16)/'Details Ausgangsdaten'!J75 -> 0.894411303 | H18: =IF($K$14=$B$121,$F18,$G18) -> 0.894411303
B20: I. b) Ermittlung eines Budgets von 2020 - 2050
B22: I. ba) Gesamtbudget und verbleibendes Budget ab 2012
B24: A | F24: B | H24: CmF = A - B | J24: D = CmF*J | K24: CoF = CmF - D | M24: Zur Information
B25: CO2-Emissionsbudget ab Industrialisierung, das mit einer Wahrscheinlichkeit von >66 % dem Zwei-Grad-Ziel kompatibel ist. in Mrd. t | F25: Emissionen bis 2011 in Mrd. t | H25: Budget ab 2012 mit FOLU in Mrd. t | J25: FOLU ab 2012 in Mrd. t | K25: Budget ab 2012 ohne FOLU in Mrd. t | M25: Budget ab 2015 mit FOLU in Mrd. t
B26: 2900 | F26: 1890 | H26: =B26-F26 -> 1010 | J26: =H26*N28 -> 168.7500358 | K26: =H26-J26 -> 841.2499642 | M26: =B26-F26-$F$36-$G$36-$H$36 -> 893.1681797
B27: Laut IPCC ist eine Bandbreite zwischen 2.550 und 3.150 Mrd. t mit dem Zwei-Grad-Ziel vereinbar. Die Bandbreite wird bestimmt durch die anderen Treibhausfaktoren. | F27: Gemäß IPCC
I28: Anteil FOLU lt. RCP2.6-Szenario 2011 - 2100: | N28: =RCP2.6!Q103 -> 0.1670792433
B29: Entwickeln sich die anderen Treibhausfaktoren gemäß dem Szenario RCP2.6, geht der IPCC von 2.900 Mrd. t aus. | N29: J | P29: Quelle: | Q29: Teilbericht 1 des Fünften Sachstandsberichts des IPCC (2013); Summary Policymakers, S. 27 | Y29: Quelle: | Z29: Umweltbundesamt Deutschland | AH29: Quelle: IPCC Fifth Assessment Synthesis Report; Summary for Policymakers, S. 10
Q30: http://www.climatechange2013.org/images/report/WG1AR5_SPM_FINAL.pdf | Z30: https://www.umweltbundesamt.de/sites/default/files/medien/376/dokumente/kernbotschaften_des_fuenften_sachstandsberichts_des_ipcc.pdf | AH30: http://www.ipcc.ch/ | AJ30: bzw. | AK30: http://www.klima-retten.info/PDF/AR5_SYR_FINAL_SPM.pdf
P31: Umrechnungsfaktor C > CO2: | S31: =5760/1570 -> 3.668789809
B32: I. bb) Emissionen 2012 - 2019
B34: Durchschnittliche jährliche Zunahme nach 2010: | D34: mit FOLU: | F34: 0.015 | G34: ohne FOLU: | I34: 0.018
C35: Jahr: | D35: 2010 | E35: =D35+1 -> 2011 | F35: 2012 | G35: 2013 | H35: 2014 | I35: 2015 | J35: 2016 | K35: 2017 | L35: 2018 | M35: 2019 | N35: Summe 2012 - 2019
B36: CO2-Emissionen gesamt (mit FOLU) in Mrd. t | D36: ='Details Ausgangsdaten'!J82 -> 37.24 | E36: =D36*(1+$F$34) -> 37.7986 | F36: 38.365579 | G36: 38.94106268 | H36: 39.52517863 | I36: 40.1180563 | J36: 40.71982715 | K36: 41.33062456 | L36: 41.95058392 | M36: 42.57984268 | N36: =SUM(F36:M36) -> 323.5307549 | O36: E
B37: CO2-Emissionen ohne FOLU in Mrd. t | D37: ='Details Ausgangsdaten'!J75 -> 31.85 | E37: =D37*(1+I34) -> 32.4233 | F37: =E37*(1+$I$34) -> 33.0069194 | G37: =F37*(1+$I$34) -> 33.60104395 | H37: 34.20586274 | I37: 34.82156827 | J37: 35.4483565 | K37: 36.08642692 | L37: 36.7359826 | M37: 37.39723029 | N37: =SUM(F37:M37) -> 281.3033907 | O37: F
B39: I. bc) Emissionen 2051 - 2100
B41: Die Emissionen 2051 - 2100 können im Register "Details Ausgangsdaten" überschlägig bestimmt werden. Sie korrelieren mit ZM; aber der wesentliche Einflussfaktor ist das Potential für Negativemissionen (siehe Textfeld rechts). | O41: Details Ausgangsdaten
B44: Potential Negativemissionen? | D44: niedrig | F44: Netto-CO2-Emissionen 2051 - 2100 in Mrd. t: | L44: =IF($D$44=$B$124,'Details Ausgangsdaten'!M7,IF($D$44=$B$125,'Details Ausgangsdaten'!AC7,'Details Ausgangsdaten'!AS7)) -> 22 | M44: darin enthaltene globale Negativemissionen: | O44: =IF($D$44=$B$124,'Details Ausgangsdaten'!L11,IF($D$44=$B$125,'Details Ausgangsdaten'!AB11,'Details Ausgangsdaten'!AR11)) -> -25.42428
B46: Netto-CO2-Emissionen von 2051 - 2100 in Mrd. t; freie Eingabe
B48: Netto CO2-Emissionen von 2051 - 2100 in Mrd. t (Grundlage im Tool) | F48: Werte aus Register "Details Ausgangsdaten" | L48: =IF(F48=B128,L44,L46) -> 22 | M48: G
B50: I. bd) Budget 2020 - 2050
B52: CO2-Budget ab 2020 in Mrd. t im Rahmen des IPCC-Budgets (Budget ab 2012 ./. Emissionen 2012 - 2019) | L52: =IF(K14=B121,H26-N36,K26-N37) -> 559.9465736 | M52: =IF(B121=K14,"H = C_mF - E","H = C_oF - F") -> H = C_oF - F
B54: CO2-Budget 2020 - 2050 in Mrd. t im Rahmen des IPCC-Budgets (Budget ab 2020 ./. Emissionen 2051 - 2100) | L54: =L52-L48 -> 537.9465736 | M54: = H - G
B56: CO2-Budget von 2020 - 2050 in Mrd. t; freie Eingabe
B58: CO2-Budget von 2020 - 2050 in Mrd. t (Grundlage im Tool) | F58: Wert im Rahmen des IPCC-Budgets | K58: BG | L58: =IF(F58=B131,L54,L56) -> 537.9465736 | M58: =IF($K$14=$B$121,"mit FOLU","ohne FOLU") -> ohne FOLU
B60: I. c) Emissionen im Basisjahr 2019
B62: CO2-Emissionen im Basisjahr 2019 in Mrd. t (siehe I. bb) | L62: =IF(K14=B121,M36,M37) -> 37.39723029 | M62: =IF($K$14=$B$121,"mit FOLU","ohne FOLU") -> ohne FOLU
B64: II. Ermittlung der globalen Pro-Kopf-Emissionen in 2050; Ausgangsbasis für die Ermittlung der Zielmenge einzelner Länder (ZMi) und damit auch Basis für die Ermittlung der nationalen Emissionspfade mit der Regensburger Formel
B66: Welche Bevölkerungszahl soll im Tool für das Jahr 2050 verwendet werden? | G66: Minimum "instant replacement" / "Prognosewerte"
B68: Ermittlung der Pro-Kopf-Emissionen 2050 Zur Ermittlung der Einwohner müssen im Vier-Länder-Beispiel die Bevölkerungszahlen eingegeben werden. | D68: Basis- jahr (BJ) 2019 | E68: Jahr 2050 | F68: relative Verände-rung gegen-über Basisjahr | H68: Minimum aus bereits determinierte Bevölkerung 2050 und Prognose | K68: Prognose Bevölkerung 2050
B69: Welt | C69: Einwohner in Mrd. | D69: ='Daten Länder'!Y252/1000 -> 6.916183482 | E69: =IF($G$66=$B$135,H69,IF($G$66=$B$136,K69,D69)) -> 8.55788468 | F69: =(E69-D69)/D69 -> 0.2373709723 | H69: ='Daten Länder'!AD252/1000 -> 8.55788468 | K69: ='Daten Länder'!AB252/1000 -> 9.550944891
C70: CO2-Emissionen in Mrd. t | D70: =L62 -> 37.39723029 | E70: =H16 -> 3.363 | F70: =(E70-D70)/D70 -> -0.9100735543
C71: CO2-Emissionen in t/Einwohner | D71: =D70/D69 -> 5.407206212 | E71: =E70/E69 -> 0.3929709415 | F71: =(E71-D71)/D71 -> -0.9273245876
B73: III. Anteil Verteilung nach Bevölkerungsschlüssel bei steigenden weltweiten Emissionen
B75: Die Regensburger Formal führt bei weltweit steigenden Emissionen nicht zu sinnvollen Ergebnissen, da Länder, die unter den Pro-Kopf-Emissionen 2050 starten (i.d.R. Entwicklungsländer) auch ihre Emissionen senken müssten. Da wir auch Szenarien anbieten, in denen die weltweiten Emissionen nach 2019 vorübergehend noch steigen können, bieten wir für diesen Zeitraum eine Alternative an: Bei der Ermittlung der nationalen Emissionspfade wird dann der globale Anstieg mit dem Anteil AKt nach dem Bevölkerungsanteil des Landes an der Weltbevölkerung verteilt und der Anteil (1-AKt) nach dem Anteil der nationalen Emissionen an den weltweiten Emissionen. AKt kann mit einem jährlichen Eskalationssatz (ESAK) eskaliert werden. Sie können hier den Startwert AK20 und den Eskalationssatz ESAK vorgeben.
L82: AK20 | M82: 0.1
L83: ESAK | M83: 0.3
B85: IV. Vier-Länder-Beispiel
B87: Anhand von vier exemplarischen Ländern (die angegebenen Länder und Werte geben nur eine Größenordnung an), die zusammen die Welt abbilden, soll veranschaulicht werden, dass die nationale Emissionspfade in Summe das globale Budget einhalten und die Pro-Kopf-Emissionen konvergieren.
B90: Vier-Länder-Beispiel Die Bevölkerungszahlen ergeben zusammen die Welt. Die Emissionen von Land D in 2019 ergeben sich retrograd aus den Emissionen der Welt. | D90: Basis- jahr 2019 | E90: Jahr 2050 | F90: relative Verände-rung gegen-über Basisjahr | H90: Minimum aus bereits determinierte Bevölkerung 2050 und Prognose | K90: Prognose Bevölkerung 2050
B91: Land A ≈ USA | C91: Einwohner in Mrd. | D91: 0.35 | E91: =IF($G$66=$B$135,H91,IF($G$66=$B$136,K91,D91)) -> 0.401 | F91: =(E91-D91)/D91 -> 0.1457142857 | H91: 0.401 | K91: 0.400853042 | O91: Folu | P91: 1.15
C92: CO2-Emissionen in Mrd. t | D92: =D93*D91 -> 6.847826087 | E92: =$E$71*E91 -> 0.1575813475 | F92: -0.9769881207
C93: CO2-Emissionen in t/Einwohner | D93: =22.5/IF($K$14=$B$122,P91,1) -> 19.56521739 | E93: =E92/E91 -> 0.3929709415 | F93: -0.9799148185
B94: Land B ≈ weitere Industrieländer | C94: Einwohner in Mrd. | D94: =1.2-D91 -> 0.85 | E94: =IF($G$66=$B$135,H94,IF($G$66=$B$136,K94,D94)) -> 0.899146958 | F94: 0.05781995059 | H94: =K94 -> 0.899146958 | K94: =1.3-K91 -> 0.899146958
C95: CO2-Emissionen in Mrd. t | D95: =D96*D94 -> 13.52608696 | E95: =$E$71*E94 -> 0.3533386266 | F95: -0.9738772471
C96: CO2-Emissionen in t/Einwohner | D96: =18.3/IF($K$14=$B$122,P91,1) -> 15.91304348 | E96: =E95/E94 -> 0.3929709415 | F96: -0.9753051048
B97: Land C ≈ Indien + China | C97: Einwohner in Mrd. | D97: ='Daten Länder'!AA261/1000 -> 2.767337793 | E97: =IF($G$66=$B$135,H97,IF($G$66=$B$136,K97,D97)) -> 3.01 | F97: 0.08768796047 | H97: =K97 -> 3.01 | K97: 3.01
C98: CO2-Emissionen in Mrd. t | D98: =D99*D97 -> 15.64147448 | E98: =$E$71*E97 -> 1.182842534 | F98: -0.9243778114
C99: CO2-Emissionen in t/Einwohner | D99: =6.5/IF($K$14=$B$122,P91,1) -> 5.652173913 | E99: =E98/E97 -> 0.3929709415 | F99: -0.9304743719
B100: Land D ≈ Entwicklungsländer + weitere Schwellenländer | C100: Einwohner in Mrd. | D100: =D69-D91-D94-D97 -> 2.948845689 | E100: =IF($G$66=$B$135,H100,IF($G$66=$B$136,K100,D100)) -> 4.247737722 | F100: 0.4404747382 | H100: =H69-H91-H94-H97 -> 4.247737722 | K100: =K69-K91-K94-K97 -> 5.240944891
C101: CO2-Emissionen in Mrd. t | D101: =D70-D92-D95-D98 -> 1.381842761 | E101: =$E$71*E100 -> 1.669237492 | F101: 0.2079793294
C102: CO2-Emissionen in t/Einwohner | D102: =D101/D100 -> 0.4686046361 | E102: =E101/E100 -> 0.3929709415 | F102: -0.1614019341
B103: Welt | C103: Einwohner in Mrd. | D103: =D91+D94+D97+D100 -> 6.916183482 | E103: =E91+E94+E97+E100 -> 8.55788468 | F103: 0.2373709723 | H103: =H91+H94+H97+H100 -> 8.55788468 | K103: =K91+K94+K97+K100 -> 9.550944891
C104: CO2-Emissionen in Mrd. t | D104: =ROUND(D92+D95+D98+D101,2) -> 37.4 | E104: =ROUND(E92+E95+E98+E101,2) -> 3.36 | F104: -0.9101604278
B120: Listen für Drop-Down-Menüs (nicht löschen):
B121: mit FOLU
B122: ohne FOLU
B124: niedrig
B125: mittel
B126: hoch
B128: Werte aus Register "Details Ausgangsdaten"
B129: Wert aus freier Eingabe
B131: Wert im Rahmen des IPCC-Budgets
B132: Wert aus freier Eingabe
B134: eingefrorene Bevölkerungszahl 2019
B135: Minimum "instant replacement" / "Prognosewerte"
B136: Prognosewerte

Sheet Zielwertsuche
A1: Bestimmung der Parameter für die globalen Szenarien
E2: Anpassungsbedarf | F2: plausibel | G2: Ziel wird eingehalten
A3: Vorgabewerte: Eingabe möglich | C3: Ermittlung durch Zielwertsuche | E3: Zielwert der Zielwertsuche | G3: Ziel wird nicht eingehalten | K3: Makros zur Bestimmung plausibler und mit dem vorgegebenen Randbedingungen kompatibler globaler Emissionspfade
C5: ='S1'!$A$1 -> Szenario 1 | D5: ='S2'!$A$1 -> Szenario 2 | E5: ='S3'!$A$1 -> Szenario 3 | F5: ='S4'!$A$1 -> Szenario 4 | G5: ='S5'!$A$1 -> Szenario 5 | H5: ='S6'!$A$1 -> Szenario 6 | I5: ='S7'!$A$1 -> Szenario 7 | O5: ='S2'!$A$1 -> Szenario 2 | P5: ='S3'!$A$1 -> Szenario 3 | Q5: ='S4'!$A$1 -> Szenario 4
A6: Kennzeichen des Szenarios | C6: RSt konstant | D6: RSt exp | E6: RSt lin | F6: RSt quadr | G6: Polynom | H6: Gerade | I6: freie Eingabe | O6: RSt exp | P6: RSt lin | Q6: RSt quadr
D7: Nur negativer RS20 möglich | E7: Auch positiver RS20 möglich (noch steigende Emissionen nach 2019) | O7: =Ausgangsdaten!H14 -> 0.85 | R7: RS_9050 Register "Ausgangsdaten": | W7: Anleitung Register "Zielwertsuche" als PDF
O8: =IF(D23>1,"ja","nein") -> nein | P8: =IF(E23>1,"ja","nein") -> nein | Q8: =IF(F23>1,"ja","nein") -> nein | R8: Muss ZM bereits vor 2050 erreicht werden bei gegebenen Randbedingungen?
A9: Reduktionssatz 2020 (RS20) | C9: =C12 -> -0.0539905068 | D9: -0.03716 | E9: -0.0309 | F9: -0.04281 | G9: -0.04 | H9: ='S6'!F14 -> -0.03435707299 | I9: ='S7'!F11 -> 0.003742819578
A10: Reduktionssatz 2050 (RS50) | G10: -0.0903 | R10: Start Makro Anpassung RS_9050:
C11: RSt konstant | D11: ES | E11: A | F11: a | G11: a | H11: a | O11: Strg + i | P11: Strg + m | Q11: Strg + q
A12: Parameter werden mit der Zielwertsuche so bestimmt, dass das Budget eingehalten wird. | C12: -0.0539905068 | D12: 0.04224082673 | E12: -0.002876670915 | F12: -8.244686486e+303 | G12: -8.244686486e+303
D13: -3.777870668e+16 | F13: -0.0001021617266 | G13: 2.226802656e-05 | H13: -1.284859371 | I13: -335544.32
A15: Szenario ∑ 2020 - 2050 | B15: Mrd. t | C15: ='S1'!P6 -> 538 | D15: ='S2'!$M$6 -> 538 | E15: ='S3'!$M$6 -> 538 | F15: ='S4'!$P$13 -> 538 | G15: ='S5'!O18 -> 538 | H15: ='S6'!P9 -> 538 | I15: ='S7'!O6 -> 751
A16: Budget ∑ 2020 - 2050 (BG) | B16: Mrd. t | C16: =ROUND(Ausgangsdaten!$L$58,0) -> 538 | D16: =ROUND(Ausgangsdaten!$L$58,0) -> 538 | E16: =ROUND(Ausgangsdaten!$L$58,0) -> 538 | F16: =ROUND(Ausgangsdaten!$L$58,0) -> 538 | G16: =ROUND(Ausgangsdaten!$L$58,0) -> 538 | H16: =ROUND(Ausgangsdaten!$L$58,0) -> 538 | I16: =ROUND(Ausgangsdaten!$L$58,0) -> 538
A18: Emissionen 2050 Szenario | B18: Mrd. t | C18: ='S1'!P8 -> 6.7 | D18: ='S2'!M8 -> 3.4 | E18: ='S3'!$M$8 -> 3.4 | F18: ='S4'!$P$15 -> 3.4 | G18: ='S5'!O20 -> 3.4 | H18: ='S6'!P11 -> 3.4 | I18: ='S7'!O8 -> 12.4
A19: Zielmenge 2050 (ZM) | B19: Mrd. t | C19: =ROUND(Ausgangsdaten!$H$16,1) -> 3.4 | D19: =ROUND(Ausgangsdaten!$H$16,1) -> 3.4 | E19: =ROUND(Ausgangsdaten!$H$16,1) -> 3.4 | F19: =ROUND(Ausgangsdaten!$H$16,1) -> 3.4 | G19: =ROUND(Ausgangsdaten!$H$16,1) -> 3.4 | H19: =ROUND(Ausgangsdaten!$H$16,1) -> 3.4 | I19: =ROUND(Ausgangsdaten!$H$16,1) -> 3.4
A21: Szenarien optimieren und plausibilisieren | C21: ='S1'!$A$1 -> Szenario 1 | D21: ='S2'!$A$1 -> Szenario 2 | E21: ='S3'!$A$1 -> Szenario 3 | F21: ='S4'!$A$1 -> Szenario 4 | G21: ='S5'!$A$1 -> Szenario 5 | H21: ='S6'!$A$1 -> Szenario 6 | I21: ='S7'!$A$1 -> Szenario 7
A22: Jahr, in dem ZM (gerundet) erreicht wird | C22: =IF(ISNA(INDEX('S1'!A11:A41,MATCH(Zielwertsuche!C19,'S1'!O11:O41,0))),"-",INDEX('S1'!A11:A41,MATCH(Zielwertsuche!C19,'S1'!O11:O41,0))) -> - | D22: =INDEX('S2'!$A$13:$A$43,MATCH(Zielwertsuche!D19,'S2'!O13:O43,0)) -> 2050 | E22: =INDEX('S3'!$A$13:$A$43,MATCH(Zielwertsuche!E19,'S3'!$O$13:$O$43,0)) -> 2050 | F22: =INDEX('S4'!A12:A42,MATCH(Zielwertsuche!F19,'S4'!R12:R42,0)) -> 2050 | G22: =INDEX('S5'!A26:A56,MATCH(Zielwertsuche!G19,'S5'!N26:N56,0)) -> 2050 | H22: =INDEX('S6'!A14:A44,MATCH(Zielwertsuche!H19,'S6'!O14:O44,0)) -> 2046 | I22: =IF(ISNA(INDEX('S7'!A11:A41,MATCH(Zielwertsuche!I19,'S7'!N11:N41,0))),"-",INDEX('S7'!A11:A41,MATCH(Zielwertsuche!I19,'S7'!N11:N41,0))) -> -
A23: Anzahl Jahre ZM vor 2051 | C23: =COUNTIF('S1'!$B$11:$B$41,Zielwertsuche!C19) -> 0 | D23: =COUNTIF('S2'!$B$13:$B$43,Zielwertsuche!D19) -> 0 | E23: =COUNTIF('S3'!$B$13:$B$43,Zielwertsuche!E19) -> 0 | F23: =COUNTIF('S4'!B12:B42,Zielwertsuche!F19) -> 0 | G23: =COUNTIF('S5'!$B$26:$B$56,Zielwertsuche!G19) -> 1 | H23: =COUNTIF('S6'!$B$14:$B$44,Zielwertsuche!H19) -> 5 | I23: =COUNTIF('S7'!$B$11:$B$41,Zielwertsuche!I19) -> 0
A24: RS50 lt. Formel | D24: ='S2'!F43 -> -0.128563636 | E24: ='S3'!F43 -> -0.1172001274 | F24: ='S4'!F42 -> -0.134755554 | G24: =G10 -> -0.0903
A25: RS50 lt. Szenario | C25: ='S1'!F41 -> -0.0539905068 | D25: ='S2'!G43 -> -0.128563636 | E25: ='S3'!G43 -> -0.1172001274 | F25: ='S4'!G42 -> -0.134755554 | G25: ='S5'!F56 -> -0.0903 | H25: ='S6'!F44 -> 0 | I25: ='S7'!F41 -> -0.04610886887
A26: Maximum RSt | C26: =MIN('S1'!F11:F41) -> -0.0539905068 | D26: =MIN('S2'!G13:G43) -> -0.128563636 | E26: =MIN('S3'!G13:G43) -> -0.1172001274 | F26: =MIN('S4'!G12:G42) -> -0.134755554 | G26: =MIN('S5'!F26:F56) -> -0.1191486517 | H26: =MIN('S6'!F14:F44) -> -0.2435407933 | I26: =MIN('S7'!F11:F41) -> -0.05496332831
A27: Jahr Maximum RSt | D27: =INDEX('S2'!$A$13:$A$43,MATCH(D26,'S2'!G13:G43,0)) -> 2050 | E27: =INDEX('S3'!$A$13:$A$43,MATCH(E26,'S3'!G13:G43,0)) -> 2050 | F27: =INDEX('S4'!A12:A42,MATCH(F26,'S4'!G12:G42,0)) -> 2050 | G27: =INDEX('S5'!$A$26:$A$56,MATCH(G26,'S5'!$F$26:$F$56,0)) -> 2047 | H27: =INDEX('S6'!A14:A44,MATCH(H26,'S6'!F14:F44,0)) -> 2045 | I27: =INDEX('S7'!A11:A41,MATCH(I26,'S7'!F11:F41,0)) -> 2040
A28: Sollte RS20 erhöht werden? | D28: =IF(AND(D23>1,D27>2020,D12>0.0006),"ja","-") -> - | E28: =IF(AND(E30="-",E23>0,E12<-0.0005),"ja","-") -> - | F28: =IF(AND(F13<-0.00001,F23>1,F30="-"),"ja","-") -> - | G28: =IF(AND(G31<>"ja",G34<>"ja",H34<>"ja",G22<2049),"ja","-") -> -
A29: Sollte RS20 leicht erhöht werden? | D29: =IF(AND(D23=1,D12>0.0006),"ja","-") -> - | E29: =IF(AND(E12<-0.0005,E23=1),"ja","-") -> - | F29: =IF(F10=1,IF(AND(F13<-0.000001,F23=1),"ja","-"),IF(AND(F13<-0.0001,F23=1),"ja","-")) -> - | G29: =IF(AND(G30="-",G23=1,ROUND(G24,2)<>ROUND(G25,2)),"ja","-") -> -
A30: Sollte RS20 gesenkt werden? | D30: =IF(AND(OR(D18>D19,ROUND(D12,4)<0),D9<-0.0002),"ja","-") -> - | E30: =IF(OR(E12>0,E18>E19),"ja","-") -> - | F30: =IF(OR(F18>F19,F13>0),"ja","-") -> - | G30: =IF(G18>G19,"ja","-") -> -
A31: Andere Kombination RS20 und RS50? | G31: =IF(AND(G34="ja",G37="ja"),"ja","-") -> -
A32: Ziel-RS50 noch nicht erreicht? | C32: Das Szenario 5 ist für sehr knappe Budgets weniger gut geeignet. Beachten Sie daher bitte, ob der Verlauf von RS_t im Register "RS_t" plausibel ist. | G32: =IF(ROUND(G25,3)>ROUND(G24,3),"ja","-") -> - | H32: Wurde RS_20 und RS_50 im Szenario 5 optimiert?
A33: Jahr Minimum RSt bis 2030 | G33: =INDEX('S5'!$A$26:$A$36,MATCH(MAX('S5'!F26:F36),'S5'!$F$26:$F$36,0)) -> 2020
A34: Sollte RS20 gesenkt werden? | G34: =IF(G33>2020,"ja","-") -> - | H34: ja
A35: Minimum RSt nach 2040 | G35: =MAX('S5'!F46:F56) -> -0.0903
A36: Jahr Minimum RSt nach 2040 | G36: =INDEX('S5'!$A$46:$A$56,MATCH(G35,'S5'!$F$46:$F$56,0)) -> 2050
A37: Sollte RS50 gesenkt werden? | G37: =IF(AND(G10<-0.0001,G36<2050,ROUND(G35,4)<>0),"ja","-") -> -
G39: Anzahl "ja" (ohne S5): | I39: =COUNTIF(D28:F30,"ja") -> 0
C40: plausibles Ergebnis | E40: Anpassungsbedarf | G40: Anzahl "ja": | I40: =COUNTIF(D28:G30,"ja") -> 0
C51: ='S1'!$A$1 -> Szenario 1 | D51: ='S2'!$A$1 -> Szenario 2 | E51: ='S3'!$A$1 -> Szenario 3 | F51: ='S4'!$A$1 -> Szenario 4 | G51: ='S5'!$A$1 -> Szenario 5 | H51: ='S6'!$A$1 -> Szenario 6 | I51: ='S7'!$A$1 -> Szenario 7
A52: Werden die Randbedingungen eingehalten? | C52: =IF(AND(C15-C16=0,C18-C19=0),"ja","nein") -> nein | D52: ja | E52: ja | F52: ja | G52: ja | H52: ja | I52: nein

Sheet Welt
M1: Et | N1: S1 | O1: ='S1'!$A$1 -> Szenario 1 | P1: S2 | Q1: ='S2'!$A$1 -> Szenario 2 | R1: S3 | S1: ='S3'!$A$1 -> Szenario 3 | T1: S4 | U1: ='S4'!$A$1 -> Szenario 4 | V1: S5 | W1: ='S5'!$A$1 -> Szenario 5 | X1: S6 | Y1: ='S6'!$A$1 -> Szenario 6 | Z1: S7 | AA1: ='S7'!A1 -> Szenario 7 | AC1: Et | AD1: =Q1 -> Szenario 2 | AE1: Szenario 3
M2: t | N2: konstRS | P2: expRS | R2: linRS | T2: quadrRS | V2: Polynom | X2: Gerade | Z2: fr. Eing. | AC2: t: 2010 - 2100 | AF2: Quelle
M3: 2019 | O3: ='S1'!B10 -> 37.39723029 | Q3: ='S2'!B12 -> 37.39723029 | S3: ='S3'!B12 -> 37.39723029 | U3: ='S4'!B11 -> 37.39723029 | W3: ='S5'!B25 -> 37.39723029 | Y3: ='S6'!B13 -> 37.39723029 | AA3: ='S7'!B10 -> 37.50324994 | AC3: 2010 | AD3: =IF(Ausgangsdaten!$K$14=Ausgangsdaten!$B$121,Ausgangsdaten!D$36,Ausgangsdaten!D$37) -> 31.85 | AE3: =AD3 -> 31.85 | AF3: "Ausgangsdaten"
M4: =M3+1 -> 2020 | O4: ='S1'!B11 -> 35.37813487 | Q4: ='S2'!B13 -> 36.00754921 | S4: ='S3'!B13 -> 36.24165587 | U4: ='S4'!B12 -> 35.79625486 | W4: ='S5'!B26 -> 35.90134108 | Y4: ='S6'!B14 -> 36.11237092 | AA4: ='S7'!B11 -> 37.64361783 | AC4: =AC3+1 -> 2011 | AD4: =IF(Ausgangsdaten!$K$14=Ausgangsdaten!$B$121,Ausgangsdaten!E$36,Ausgangsdaten!E$37) -> 32.4233 | AE4: =AD4 -> 32.4233
M5: =M4+1 -> 2021 | O5: ='S1'!B12 -> 33.46805144 | Q5: ='S2'!B14 -> 34.61298874 | S5: ='S3'!B14 -> 35.01753339 | U5: ='S4'!B13 -> 34.26016018 | W5: ='S5'!B27 -> 34.44422979 | Y5: ='S6'!B15 -> 34.82751155 | AA5: ='S7'!B12 -> 36.79440306 | AC5: =AC4+1 -> 2012 | AD5: =IF(Ausgangsdaten!$K$14=Ausgangsdaten!$B$121,Ausgangsdaten!F$36,Ausgangsdaten!F$37) -> 33.0069194 | AE5: 33.0069194
M6: 2022 | O6: ='S1'!B13 -> 31.66109438 | Q6: ='S2'!B15 -> 33.21581322 | S6: ='S3'!B15 -> 33.73402377 | U6: ='S4'!B14 -> 32.77948241 | W6: ='S5'!B28 -> 33.02089702 | Y6: ='S6'!B16 -> 33.54265217 | AA6: ='S7'!B13 -> 35.94518828 | AC6: 2013 | AD6: =IF(Ausgangsdaten!$K$14=Ausgangsdaten!$B$121,Ausgangsdaten!G$36,Ausgangsdaten!G$37) -> 33.60104395 | AE6: 33.60104395
M7: 2023 | O7: ='S1'!B14 -> 29.95169585 | Q7: ='S2'!B16 -> 31.81840002 | S7: ='S3'!B16 -> 32.40051738 | U7: ='S4'!B15 -> 31.3460535 | W7: ='S5'!B29 -> 31.62687781 | Y7: ='S6'!B17 -> 32.2577928 | AA7: ='S7'!B14 -> 35.0959735 | AC7: 2014 | AD7: =IF(Ausgangsdaten!$K$14=Ausgangsdaten!$B$121,Ausgangsdaten!H$36,Ausgangsdaten!H$37) -> 34.20586274 | AE7: 34.20586274
M8: 2024 | O8: ='S1'!B15 -> 28.33458861 | Q8: ='S2'!B17 -> 30.42323247 | S8: ='S3'!B17 -> 31.02651889 | U8: ='S4'!B16 -> 29.95289107 | W8: ='S5'!B30 -> 30.2582416 | Y8: ='S6'!B18 -> 30.97293343 | AA8: ='S7'!B15 -> 34.24675873 | AC8: 2015 | AD8: =IF(Ausgangsdaten!$K$14=Ausgangsdaten!$B$121,Ausgangsdaten!I$36,Ausgangsdaten!I$37) -> 34.82156827 | AE8: 34.82156827
M9: 2025 | O9: ='S1'!B16 -> 26.80478981 | Q9: ='S2'!B18 -> 29.03289103 | S9: ='S3'!B18 -> 29.62153403 | U9: ='S4'!B17 -> 28.59410683 | W9: ='S5'!B31 -> 28.9115923 | Y9: ='S6'!B19 -> 29.68807406 | AA9: ='S7'!B16 -> 33.39754395 | AC9: 2016 | AD9: =IF(Ausgangsdaten!$K$14=Ausgangsdaten!$B$121,Ausgangsdaten!J$36,Ausgangsdaten!J$37) -> 35.4483565 | AE9: 35.4483565
M10: 2026 | O10: ='S1'!B17 -> 25.35758562 | Q10: ='S2'!B19 -> 27.65004293 | S10: ='S3'!B19 -> 28.1949602 | U10: ='S4'!B18 -> 27.26482908 | W10: ='S5'!B32 -> 27.58406823 | Y10: ='S6'!B20 -> 28.40321469 | AA10: ='S7'!B17 -> 32.54832917 | AC10: 2017 | AD10: =IF(Ausgangsdaten!$K$14=Ausgangsdaten!$B$121,Ausgangsdaten!K$36,Ausgangsdaten!K$37) -> 36.08642692 | AE10: 36.08642692
M11: 2027 | O11: ='S1'!B18 -> 23.98851672 | Q11: ='S2'!B20 -> 26.27743 | S11: ='S3'!B20 -> 26.75598257 | U11: ='S4'!B19 -> 25.96113607 | W11: ='S5'!B33 -> 26.27334215 | Y11: ='S6'!B21 -> 27.11835532 | AA11: ='S7'!B18 -> 31.69911439 | AC11: 2018 | AD11: =IF(Ausgangsdaten!$K$14=Ausgangsdaten!$B$121,Ausgangsdaten!L$36,Ausgangsdaten!L$37) -> 36.7359826 | AE11: 36.7359826
M12: 2028 | O12: ='S1'!B19 -> 22.69336455 | Q12: ='S2'!B21 -> 24.91785477 | S12: ='S3'!B21 -> 25.31347746 | U12: ='S4'!B20 -> 24.67999682 | W12: ='S5'!B34 -> 24.97762124 | Y12: ='S6'!B22 -> 25.83349595 | AA12: ='S7'!B19 -> 30.84989962 | AC12: 2019 | AD12: =IF(Ausgangsdaten!$K$14=Ausgangsdaten!$B$121,Ausgangsdaten!M$36,Ausgangsdaten!M$37) -> 37.39723029 | AE12: 37.39723029
M13: 2029 | O13: ='S1'!B20 -> 21.4681383 | Q13: ='S2'!B22 -> 23.57416476 | S13: ='S3'!B22 -> 23.8759241 | U13: ='S4'!B21 -> 23.41921672 | W13: ='S5'!B35 -> 23.69564714 | Y13: ='S6'!B23 -> 24.54863658 | AA13: ='S7'!B20 -> 30.00068484 | AC13: 2020 | AD13: =Q4 -> 36.00754921 | AE13: =S4 -> 36.24165587 | AF13: Szenario 2 ("S2")
M14: 2030 | O14: ='S1'!B21 -> 20.30906263 | Q14: ='S2'!B23 -> 22.24923506 | S14: ='S3'!B23 -> 22.45132628 | U14: ='S4'!B22 -> 22.17738529 | W14: ='S5'!B36 -> 22.4266959 | Y14: ='S6'!B24 -> 23.26377721 | AA14: ='S7'!B21 -> 29.15147006 | AC14: 2021 | AD14: =Q5 -> 34.61298874 | AE14: =S5 -> 35.01753339
M15: 2031 | O15: ='S1'!B22 -> 19.21256605 | Q15: ='S2'!B24 -> 20.9459492 | S15: ='S3'!B24 -> 21.04714445 | U15: ='S4'!B23 -> 20.95382415 | W15: ='S5'!B37 -> 21.17057801 | Y15: ='S6'!B25 -> 21.97891784 | AA15: ='S7'!B22 -> 28.07948637 | AC15: 2022 | AD15: 33.21581322 | AE15: 33.73402377
M16: 2032 | O16: ='S1'!B23 -> 18.17526987 | Q16: ='S2'!B25 -> 19.66717835 | S16: ='S3'!B25 -> 19.67023919 | U16: ='S4'!B24 -> 19.74853318 | W16: ='S5'!B38 -> 19.92763839 | Y16: ='S6'!B26 -> 20.69405847 | AA16: ='S7'!B23 -> 27.00750268 | AC16: 2023 | AD16: 31.81840002 | AE16: 32.40051738
M17: 2033 | O17: ='S1'!B24 -> 17.19397784 | Q17: ='S2'!B26 -> 18.41575913 | S17: ='S3'!B26 -> 18.32682633 | U17: ='S4'!B25 -> 18.5621335 | W17: ='S5'!B39 -> 18.6987564 | Y17: ='S6'!B27 -> 19.4091991 | AA17: ='S7'!B24 -> 25.93551898 | AC17: 2024 | AD17: 30.42323247 | AE17: 31.02651889
M18: 2034 | O18: ='S1'!B25 -> 16.26566626 | Q18: ='S2'!B27 -> 17.19447006 | S18: ='S3'!B27 -> 17.02244392 | U18: ='S4'!B26 -> 17.395806 | W18: ='S5'!B40 -> 17.48534582 | Y18: ='S6'!B28 -> 18.12433973 | AA18: ='S7'!B25 -> 24.86353529 | AC18: 2025 | AD18: 29.03289103 | AE18: 29.62153403
M19: 2035 | O19: ='S1'!B26 -> 15.38747469 | Q19: ='S2'!B28 -> 16.00600691 | S19: ='S3'!B28 -> 15.76193087 | U19: ='S4'!B27 -> 16.25122479 | W19: ='S5'!B41 -> 16.28935487 | Y19: ='S6'!B29 -> 16.83948036 | AA19: ='S7'!B26 -> 23.79155159 | AC19: 2026 | AD19: 27.65004293 | AE19: 28.1949602
M20: 2036 | O20: ='S1'!B27 -> 14.55669714 | Q20: ='S2'!B29 -> 14.85295726 | S20: ='S3'!B29 -> 14.54941699 | U20: ='S4'!B28 -> 15.13048504 | W20: ='S5'!B42 -> 15.11326621 | Y20: ='S6'!B30 -> 15.55462098 | AA20: ='S7'!B27 -> 22.7195679 | AC20: 2027 | AD20: 26.27743 | AE20: 26.75598257
M21: 2037 | O21: ='S1'!B28 -> 13.77077368 | Q21: ='S2'!B30 -> 13.73777457 | S21: ='S3'!B30 -> 13.38832397 | U21: ='S4'!B29 -> 14.03602536 | W21: ='S5'!B43 -> 13.96009692 | Y21: ='S6'!B31 -> 14.26976161 | AA21: ='S7'!B28 -> 21.6475842 | AC21: 2028 | AD21: 24.91785477 | AE21: 25.31347746
M22: 2038 | O22: ='S1'!B29 -> 13.02728263 | Q22: ='S2'!B31 -> 12.66275207 | S22: ='S3'!B31 -> 12.28137632 | U22: ='S4'!B30 -> 12.97054507 | W22: ='S5'!B44 -> 12.83339852 | Y22: ='S6'!B32 -> 12.98490224 | AA22: ='S7'!B29 -> 20.57560051 | AC22: 2029 | AD22: 23.57416476 | AE22: 23.8759241
M23: 2039 | O23: ='S1'!B30 -> 12.32393304 | Q23: ='S2'!B32 -> 11.62999695 | S23: ='S3'!B32 -> 11.23062171 | U23: ='S4'!B31 -> 11.93691736 | W23: ='S5'!B45 -> 11.73725696 | Y23: ='S6'!B33 -> 11.70004287 | AA23: ='S7'!B30 -> 19.50361682 | AC23: 2030 | AD23: 22.24923506 | AE23: 22.45132628
M24: 2040 | O24: ='S1'!B31 -> 11.65855765 | Q24: ='S2'!B33 -> 10.64140531 | S24: ='S3'!B33 -> 10.23745944 | U24: ='S4'!B32 -> 10.93809949 | W24: ='S5'!B46 -> 10.67629262 | Y24: ='S6'!B34 -> 10.4151835 | AA24: ='S7'!B31 -> 18.43163312 | AC24: 2031 | AD24: 20.9459492 | AE24: 21.04714445
M25: 2041 | O25: ='S1'!B32 -> 11.02910621 | Q25: ='S2'!B34 -> 9.698638252 | S25: ='S3'!B34 -> 9.302676106 | U25: ='S4'!B33 -> 9.977041739 | W25: ='S5'!B47 -> 9.655660313 | Y25: ='S6'!B35 -> 9.130324131 | AA25: ='S7'!B32 -> 17.83101554 | AC25: 2032 | AD25: 19.66717835 | AE25: 19.67023919 | AH25: Emissionen mit oder ohne FOLU: | AK25: =Ausgangsdaten!K14 -> ohne FOLU
M26: 2042 | O26: ='S1'!B33 -> 10.43363918 | Q26: ='S2'!B35 -> 8.803099762 | S26: ='S3'!B35 -> 8.426487183 | U26: ='S4'!B34 -> 9.056597025 | W26: ='S5'!B48 -> 8.681049295 | Y26: ='S6'!B36 -> 7.84546476 | AA26: ='S7'!B33 -> 17.23039796 | AC26: 2033 | AD26: 18.41575913 | AE26: 18.32682633
M27: 2043 | O27: ='S1'!B34 -> 9.870321712 | Q27: ='S2'!B36 -> 7.955916824 | S27: ='S3'!B36 -> 7.608583425 | U27: ='S4'!B35 -> 8.179433422 | W27: ='S5'!B49 -> 7.758683244 | Y27: ='S6'!B37 -> 6.56060539 | AA27: ='S7'!B34 -> 16.62978038 | AC27: 2034 | AD27: 17.19447006 | AE27: 17.02244392
M28: 2044 | O28: ='S1'!B35 -> 9.33741804 | Q28: ='S2'!B37 -> 7.157922335 | S28: ='S3'!B37 -> 6.848180822 | U28: ='S4'!B36 -> 7.347951853 | W28: ='S5'!B50 -> 6.895320272 | Y28: ='S6'!B38 -> 5.275746019 | AA28: ='S7'!B35 -> 16.0291628 | AC28: 2035 | AD28: 16.00600691 | AE28: 15.76193087
M29: 2045 | O29: ='S1'!B36 -> 8.833286108 | Q29: ='S2'!B38 -> 6.409641328 | S29: ='S3'!B38 -> 6.14407297 | U29: ='S4'!B37 -> 6.564211379 | W29: ='S5'!B51 -> 6.098252927 | Y29: ='S6'!B39 -> 3.990886648 | AA29: ='S7'!B36 -> 15.42854522 | AC29: 2036 | AD29: 14.85295726 | AE29: 14.54941699
M30: 2046 | O30: ='S1'!B37 -> 8.356372514 | Q30: ='S2'!B39 -> 5.711281018 | S30: ='S3'!B39 -> 5.494684739 | U30: ='S4'!B38 -> 5.82986434 | W30: ='S5'!B52 -> 5.375308188 | Y30: ='S6'!B40 -> 3.4 | AA30: ='S7'!B37 -> 14.82792764 | AC30: 2037 | AD30: 13.73777457 | AE30: 13.38832397
M31: 2047 | O31: ='S1'!B38 -> 7.905207727 | Q31: ='S2'!B40 -> 5.062725092 | S31: ='S3'!B40 -> 4.898126186 | U31: ='S4'!B39 -> 5.146103461 | W31: ='S5'!B53 -> 4.734847465 | Y31: ='S6'!B41 -> 3.4 | AA31: ='S7'!B38 -> 14.22731006 | AC31: 2038 | AD31: 12.66275207 | AE31: 12.28137632
M32: 2048 | O32: ='S1'!B39 -> 7.478401555 | Q32: ='S2'!B41 -> 4.463532646 | S32: ='S3'!B41 -> 4.352245767 | U32: ='S4'!B40 -> 4.513622677 | W32: ='S5'!B54 -> 4.185766602 | Y32: ='S6'!B42 -> 3.4 | AA32: ='S7'!B39 -> 13.62669248 | AC32: 2039 | AD32: 11.62999695 | AE32: 11.23062171
M33: 2049 | O33: ='S1'!B40 -> 7.074638865 | Q33: ='S2'!B42 -> 3.912942061 | S33: ='S3'!B42 -> 3.854681987 | U33: ='S4'!B41 -> 3.932593003 | W33: ='S5'!B55 -> 3.737495878 | Y33: ='S6'!B43 -> 3.4 | AA33: ='S7'!B40 -> 13.0260749 | AC33: 2040 | AD33: 10.64140531 | AE33: 10.23745944
A34: Über Gruppierung oder Gruppierung aufheben der entsprechenden Spalten ab Spalte O können Szenarien ein- und ausgeblendet werden. | M34: 2050 | O34: ='S1'!B41 -> 6.692675528 | Q34: ='S2'!B43 -> 3.409880002 | S34: ='S3'!B43 -> 3.402912767 | U34: ='S4'!B42 -> 3.402654254 | W34: ='S5'!B56 -> 3.4 | Y34: ='S6'!B44 -> 3.4 | AA34: ='S7'!B41 -> 12.42545732 | AC34: 2041 | AD34: 9.698638252 | AE34: 9.302676106
AC35: 2042 | AD35: 8.803099762 | AE35: 8.426487183
E36: Ausgangsdaten | F36: Zielwertsuche | AC36: 2043 | AD36: 7.955916824 | AE36: 7.608583425
AC37: 2044 | AD37: 7.157922335 | AE37: 6.848180822
C38: =Zielwertsuche!C51 -> Szenario 1 | D38: =Zielwertsuche!D51 -> Szenario 2 | E38: =Zielwertsuche!E51 -> Szenario 3 | F38: =Zielwertsuche!F51 -> Szenario 4 | G38: =Zielwertsuche!G51 -> Szenario 5 | H38: =Zielwertsuche!H51 -> Szenario 6 | I38: =Zielwertsuche!I51 -> Szenario 7 | AC38: 2045 | AD38: 6.409641328 | AE38: 6.14407297
A39: =Zielwertsuche!A52 -> Werden die Randbedingungen eingehalten? | C39: =Zielwertsuche!C52 -> nein | D39: =Zielwertsuche!D52 -> ja | E39: =Zielwertsuche!E52 -> ja | F39: =Zielwertsuche!F52 -> ja | G39: =Zielwertsuche!G52 -> ja | H39: =Zielwertsuche!H52 -> ja | I39: =Zielwertsuche!I52 -> nein | AC39: 2046 | AD39: 5.711281018 | AE39: 5.494684739
AC40: 2047 | AD40: 5.062725092 | AE40: 4.898126186
AC41: 2048 | AD41: 4.463532646 | AE41: 4.352245767
AC42: 2049 | AD42: 3.912942061 | AE42: 3.854681987
AC43: 2050 | AD43: 3.409880002 | AE43: 3.402912767
AC44: 2051 | AD44: =IF(Ausgangsdaten!$F$48=Ausgangsdaten!$B$128,IF(Ausgangsdaten!$D$44=Ausgangsdaten!$B$124,'Details Ausgangsdaten'!C16,IF(Ausgangsdaten!$D$44=Ausgangsdaten!$B$125,'Details Ausgangsdaten'!S16,'Details Ausgangsdaten'!AI16)),"k.A.") -> 3.248658 | AE44: =AD44 -> 3.248658 | AF44: "Details Ausgangsdaten", wenn die Daten aus diesem Register im Register "Ausgangsdaten" gewählt wurden.
AC45: 2052 | AD45: =IF(Ausgangsdaten!$F$48=Ausgangsdaten!$B$128,IF(Ausgangsdaten!$D$44=Ausgangsdaten!$B$124,'Details Ausgangsdaten'!C17,IF(Ausgangsdaten!$D$44=Ausgangsdaten!$B$125,'Details Ausgangsdaten'!S17,'Details Ausgangsdaten'!AI17)),"k.A.") -> 3.134316 | AE45: =AD45 -> 3.134316
AC46: 2053 | AD46: =IF(Ausgangsdaten!$F$48=Ausgangsdaten!$B$128,IF(Ausgangsdaten!$D$44=Ausgangsdaten!$B$124,'Details Ausgangsdaten'!C18,IF(Ausgangsdaten!$D$44=Ausgangsdaten!$B$125,'Details Ausgangsdaten'!S18,'Details Ausgangsdaten'!AI18)),"k.A.") -> 3.019974 | AE46: 3.019974
B47: nicht löschen (Legende): | AC47: 2054 | AD47: =IF(Ausgangsdaten!$F$48=Ausgangsdaten!$B$128,IF(Ausgangsdaten!$D$44=Ausgangsdaten!$B$124,'Details Ausgangsdaten'!C19,IF(Ausgangsdaten!$D$44=Ausgangsdaten!$B$125,'Details Ausgangsdaten'!S19,'Details Ausgangsdaten'!AI19)),"k.A.") -> 2.905632 | AE47: 2.905632
B48: =CONCATENATE("Szenario 1: konstRS = ",TEXT('S1'!F11,"0,0%")) -> Szenario 1: konstRS = -5,4% | AC48: 2055 | AD48: =IF(Ausgangsdaten!$F$48=Ausgangsdaten!$B$128,IF(Ausgangsdaten!$D$44=Ausgangsdaten!$B$124,'Details Ausgangsdaten'!C20,IF(Ausgangsdaten!$D$44=Ausgangsdaten!$B$125,'Details Ausgangsdaten'!S20,'Details Ausgangsdaten'!AI20)),"k.A.") -> 2.79129 | AE48: 2.79129
B49: =CONCATENATE("Szenario 2: expRS mit RS_20 = ",TEXT('S2'!$F$13,"0,0%")) -> Szenario 2: expRS mit RS_20 = -3,7% | AC49: 2056 | AD49: =IF(Ausgangsdaten!$F$48=Ausgangsdaten!$B$128,IF(Ausgangsdaten!$D$44=Ausgangsdaten!$B$124,'Details Ausgangsdaten'!C21,IF(Ausgangsdaten!$D$44=Ausgangsdaten!$B$125,'Details Ausgangsdaten'!S21,'Details Ausgangsdaten'!AI21)),"k.A.") -> 2.676948 | AE49: 2.676948
B50: =CONCATENATE("Szenario 3: linRS mit RS_20 = ",TEXT('S3'!$G$13,"0,0%")) -> Szenario 3: linRS mit RS_20 = -3,1% | AC50: 2057 | AD50: =IF(Ausgangsdaten!$F$48=Ausgangsdaten!$B$128,IF(Ausgangsdaten!$D$44=Ausgangsdaten!$B$124,'Details Ausgangsdaten'!C22,IF(Ausgangsdaten!$D$44=Ausgangsdaten!$B$125,'Details Ausgangsdaten'!S22,'Details Ausgangsdaten'!AI22)),"k.A.") -> 2.562606 | AE50: 2.562606
B51: =CONCATENATE("Szenario 4: quadrRS mit RS_20 = ",TEXT('S4'!H6,"0,0%")) -> Szenario 4: quadrRS mit RS_20 = -4,3% | AC51: 2058 | AD51: =IF(Ausgangsdaten!$F$48=Ausgangsdaten!$B$128,IF(Ausgangsdaten!$D$44=Ausgangsdaten!$B$124,'Details Ausgangsdaten'!C23,IF(Ausgangsdaten!$D$44=Ausgangsdaten!$B$125,'Details Ausgangsdaten'!S23,'Details Ausgangsdaten'!AI23)),"k.A.") -> 2.448264 | AE51: 2.448264
B52: =CONCATENATE("Szenario 5: Polynom mit RS_20 = ",TEXT('S5'!H19,"0,0%"),"") -> Szenario 5: Polynom mit RS_20 = -4,0% | AC52: 2059 | AD52: =IF(Ausgangsdaten!$F$48=Ausgangsdaten!$B$128,IF(Ausgangsdaten!$D$44=Ausgangsdaten!$B$124,'Details Ausgangsdaten'!C24,IF(Ausgangsdaten!$D$44=Ausgangsdaten!$B$125,'Details Ausgangsdaten'!S24,'Details Ausgangsdaten'!AI24)),"k.A.") -> 2.333922 | AE52: 2.333922
B53: =CONCATENATE("Szenario 6: Gerade mit RS_20 = ",TEXT('S6'!F14,"0,0%")) -> Szenario 6: Gerade mit RS_20 = -3,4% | AC53: 2060 | AD53: =IF(Ausgangsdaten!$F$48=Ausgangsdaten!$B$128,IF(Ausgangsdaten!$D$44=Ausgangsdaten!$B$124,'Details Ausgangsdaten'!C25,IF(Ausgangsdaten!$D$44=Ausgangsdaten!$B$125,'Details Ausgangsdaten'!S25,'Details Ausgangsdaten'!AI25)),"k.A.") -> 2.21958 | AE53: 2.21958
B54: =CONCATENATE("Szenario 7: frei Eingabe mit RS_20 = ",TEXT('S7'!F11,"0,0%")) -> Szenario 7: frei Eingabe mit RS_20 = 0,4% | E54: Gibt Daten des IPCC-Szenarios RCP2.6 wider, wenn keine andere Eingabe erfolgt. | K54: RCP2.6 | AC54: 2061 | AD54: =IF(Ausgangsdaten!$F$48=Ausgangsdaten!$B$128,IF(Ausgangsdaten!$D$44=Ausgangsdaten!$B$124,'Details Ausgangsdaten'!C26,IF(Ausgangsdaten!$D$44=Ausgangsdaten!$B$125,'Details Ausgangsdaten'!S26,'Details Ausgangsdaten'!AI26)),"k.A.") -> 2.105238 | AE54: 2.105238
AC55: 2062 | AD55: =IF(Ausgangsdaten!$F$48=Ausgangsdaten!$B$128,IF(Ausgangsdaten!$D$44=Ausgangsdaten!$B$124,'Details Ausgangsdaten'!C27,IF(Ausgangsdaten!$D$44=Ausgangsdaten!$B$125,'Details Ausgangsdaten'!S27,'Details Ausgangsdaten'!AI27)),"k.A.") -> 1.990896 | AE55: 1.990896
AC56: 2063 | AD56: =IF(Ausgangsdaten!$F$48=Ausgangsdaten!$B$128,IF(Ausgangsdaten!$D$44=Ausgangsdaten!$B$124,'Details Ausgangsdaten'!C28,IF(Ausgangsdaten!$D$44=Ausgangsdaten!$B$125,'Details Ausgangsdaten'!S28,'Details Ausgangsdaten'!AI28)),"k.A.") -> 1.876554 | AE56: 1.876554
AC57: 2064 | AD57: =IF(Ausgangsdaten!$F$48=Ausgangsdaten!$B$128,IF(Ausgangsdaten!$D$44=Ausgangsdaten!$B$124,'Details Ausgangsdaten'!C29,IF(Ausgangsdaten!$D$44=Ausgangsdaten!$B$125,'Details Ausgangsdaten'!S29,'Details Ausgangsdaten'!AI29)),"k.A.") -> 1.762212 | AE57: 1.762212
AC58: 2065 | AD58: =IF(Ausgangsdaten!$F$48=Ausgangsdaten!$B$128,IF(Ausgangsdaten!$D$44=Ausgangsdaten!$B$124,'Details Ausgangsdaten'!C30,IF(Ausgangsdaten!$D$44=Ausgangsdaten!$B$125,'Details Ausgangsdaten'!S30,'Details Ausgangsdaten'!AI30)),"k.A.") -> 1.64787 | AE58: 1.64787
AC59: 2066 | AD59: =IF(Ausgangsdaten!$F$48=Ausgangsdaten!$B$128,IF(Ausgangsdaten!$D$44=Ausgangsdaten!$B$124,'Details Ausgangsdaten'!C31,IF(Ausgangsdaten!$D$44=Ausgangsdaten!$B$125,'Details Ausgangsdaten'!S31,'Details Ausgangsdaten'!AI31)),"k.A.") -> 1.533528 | AE59: 1.533528
AC60: 2067 | AD60: =IF(Ausgangsdaten!$F$48=Ausgangsdaten!$B$128,IF(Ausgangsdaten!$D$44=Ausgangsdaten!$B$124,'Details Ausgangsdaten'!C32,IF(Ausgangsdaten!$D$44=Ausgangsdaten!$B$125,'Details Ausgangsdaten'!S32,'Details Ausgangsdaten'!AI32)),"k.A.") -> 1.419186 | AE60: 1.419186
AC61: 2068 | AD61: =IF(Ausgangsdaten!$F$48=Ausgangsdaten!$B$128,IF(Ausgangsdaten!$D$44=Ausgangsdaten!$B$124,'Details Ausgangsdaten'!C33,IF(Ausgangsdaten!$D$44=Ausgangsdaten!$B$125,'Details Ausgangsdaten'!S33,'Details Ausgangsdaten'!AI33)),"k.A.") -> 1.304844 | AE61: 1.304844
AC62: 2069 | AD62: =IF(Ausgangsdaten!$F$48=Ausgangsdaten!$B$128,IF(Ausgangsdaten!$D$44=Ausgangsdaten!$B$124,'Details Ausgangsdaten'!C34,IF(Ausgangsdaten!$D$44=Ausgangsdaten!$B$125,'Details Ausgangsdaten'!S34,'Details Ausgangsdaten'!AI34)),"k.A.") -> 1.190502 | AE62: 1.190502
AC63: 2070 | AD63: =IF(Ausgangsdaten!$F$48=Ausgangsdaten!$B$128,IF(Ausgangsdaten!$D$44=Ausgangsdaten!$B$124,'Details Ausgangsdaten'!C35,IF(Ausgangsdaten!$D$44=Ausgangsdaten!$B$125,'Details Ausgangsdaten'!S35,'Details Ausgangsdaten'!AI35)),"k.A.") -> 1.07616 | AE63: 1.07616
AC64: 2071 | AD64: =IF(Ausgangsdaten!$F$48=Ausgangsdaten!$B$128,IF(Ausgangsdaten!$D$44=Ausgangsdaten!$B$124,'Details Ausgangsdaten'!C36,IF(Ausgangsdaten!$D$44=Ausgangsdaten!$B$125,'Details Ausgangsdaten'!S36,'Details Ausgangsdaten'!AI36)),"k.A.") -> 0.961818 | AE64: 0.961818
AC65: 2072 | AD65: =IF(Ausgangsdaten!$F$48=Ausgangsdaten!$B$128,IF(Ausgangsdaten!$D$44=Ausgangsdaten!$B$124,'Details Ausgangsdaten'!C37,IF(Ausgangsdaten!$D$44=Ausgangsdaten!$B$125,'Details Ausgangsdaten'!S37,'Details Ausgangsdaten'!AI37)),"k.A.") -> 0.847476 | AE65: 0.847476
AC66: 2073 | AD66: =IF(Ausgangsdaten!$F$48=Ausgangsdaten!$B$128,IF(Ausgangsdaten!$D$44=Ausgangsdaten!$B$124,'Details Ausgangsdaten'!C38,IF(Ausgangsdaten!$D$44=Ausgangsdaten!$B$125,'Details Ausgangsdaten'!S38,'Details Ausgangsdaten'!AI38)),"k.A.") -> 0.733134 | AE66: 0.733134
AC67: 2074 | AD67: =IF(Ausgangsdaten!$F$48=Ausgangsdaten!$B$128,IF(Ausgangsdaten!$D$44=Ausgangsdaten!$B$124,'Details Ausgangsdaten'!C39,IF(Ausgangsdaten!$D$44=Ausgangsdaten!$B$125,'Details Ausgangsdaten'!S39,'Details Ausgangsdaten'!AI39)),"k.A.") -> 0.618792 | AE67: 0.618792
AC68: 2075 | AD68: =IF(Ausgangsdaten!$F$48=Ausgangsdaten!$B$128,IF(Ausgangsdaten!$D$44=Ausgangsdaten!$B$124,'Details Ausgangsdaten'!C40,IF(Ausgangsdaten!$D$44=Ausgangsdaten!$B$125,'Details Ausgangsdaten'!S40,'Details Ausgangsdaten'!AI40)),"k.A.") -> 0.50445 | AE68: 0.50445
AC69: =AC68+1 -> 2076 | AD69: =IF(Ausgangsdaten!$F$48=Ausgangsdaten!$B$128,IF(Ausgangsdaten!$D$44=Ausgangsdaten!$B$124,'Details Ausgangsdaten'!C41,IF(Ausgangsdaten!$D$44=Ausgangsdaten!$B$125,'Details Ausgangsdaten'!S41,'Details Ausgangsdaten'!AI41)),"k.A.") -> 0.390108 | AE69: 0.390108
AC70: 2077 | AD70: =IF(Ausgangsdaten!$F$48=Ausgangsdaten!$B$128,IF(Ausgangsdaten!$D$44=Ausgangsdaten!$B$124,'Details Ausgangsdaten'!C42,IF(Ausgangsdaten!$D$44=Ausgangsdaten!$B$125,'Details Ausgangsdaten'!S42,'Details Ausgangsdaten'!AI42)),"k.A.") -> 0.275766 | AE70: 0.275766
AC71: 2078 | AD71: =IF(Ausgangsdaten!$F$48=Ausgangsdaten!$B$128,IF(Ausgangsdaten!$D$44=Ausgangsdaten!$B$124,'Details Ausgangsdaten'!C43,IF(Ausgangsdaten!$D$44=Ausgangsdaten!$B$125,'Details Ausgangsdaten'!S43,'Details Ausgangsdaten'!AI43)),"k.A.") -> 0.161424 | AE71: 0.161424
AC72: 2079 | AD72: =IF(Ausgangsdaten!$F$48=Ausgangsdaten!$B$128,IF(Ausgangsdaten!$D$44=Ausgangsdaten!$B$124,'Details Ausgangsdaten'!C44,IF(Ausgangsdaten!$D$44=Ausgangsdaten!$B$125,'Details Ausgangsdaten'!S44,'Details Ausgangsdaten'!AI44)),"k.A.") -> 0.047082 | AE72: 0.047082
AC73: 2080 | AD73: =IF(Ausgangsdaten!$F$48=Ausgangsdaten!$B$128,IF(Ausgangsdaten!$D$44=Ausgangsdaten!$B$124,'Details Ausgangsdaten'!C45,IF(Ausgangsdaten!$D$44=Ausgangsdaten!$B$125,'Details Ausgangsdaten'!S45,'Details Ausgangsdaten'!AI45)),"k.A.") -> -0.06726 | AE73: -0.06726
AC74: 2081 | AD74: =IF(Ausgangsdaten!$F$48=Ausgangsdaten!$B$128,IF(Ausgangsdaten!$D$44=Ausgangsdaten!$B$124,'Details Ausgangsdaten'!C46,IF(Ausgangsdaten!$D$44=Ausgangsdaten!$B$125,'Details Ausgangsdaten'!S46,'Details Ausgangsdaten'!AI46)),"k.A.") -> -0.181602 | AE74: -0.181602
AC75: 2082 | AD75: =IF(Ausgangsdaten!$F$48=Ausgangsdaten!$B$128,IF(Ausgangsdaten!$D$44=Ausgangsdaten!$B$124,'Details Ausgangsdaten'!C47,IF(Ausgangsdaten!$D$44=Ausgangsdaten!$B$125,'Details Ausgangsdaten'!S47,'Details Ausgangsdaten'!AI47)),"k.A.") -> -0.295944 | AE75: -0.295944
AC76: 2083 | AD76: =IF(Ausgangsdaten!$F$48=Ausgangsdaten!$B$128,IF(Ausgangsdaten!$D$44=Ausgangsdaten!$B$124,'Details Ausgangsdaten'!C48,IF(Ausgangsdaten!$D$44=Ausgangsdaten!$B$125,'Details Ausgangsdaten'!S48,'Details Ausgangsdaten'!AI48)),"k.A.") -> -0.410286 | AE76: -0.410286
AC77: 2084 | AD77: =IF(Ausgangsdaten!$F$48=Ausgangsdaten!$B$128,IF(Ausgangsdaten!$D$44=Ausgangsdaten!$B$124,'Details Ausgangsdaten'!C49,IF(Ausgangsdaten!$D$44=Ausgangsdaten!$B$125,'Details Ausgangsdaten'!S49,'Details Ausgangsdaten'!AI49)),"k.A.") -> -0.524628 | AE77: -0.524628
AC78: 2085 | AD78: =IF(Ausgangsdaten!$F$48=Ausgangsdaten!$B$128,IF(Ausgangsdaten!$D$44=Ausgangsdaten!$B$124,'Details Ausgangsdaten'!C50,IF(Ausgangsdaten!$D$44=Ausgangsdaten!$B$125,'Details Ausgangsdaten'!S50,'Details Ausgangsdaten'!AI50)),"k.A.") -> -0.63897 | AE78: -0.63897
AC79: 2086 | AD79: =IF(Ausgangsdaten!$F$48=Ausgangsdaten!$B$128,IF(Ausgangsdaten!$D$44=Ausgangsdaten!$B$124,'Details Ausgangsdaten'!C51,IF(Ausgangsdaten!$D$44=Ausgangsdaten!$B$125,'Details Ausgangsdaten'!S51,'Details Ausgangsdaten'!AI51)),"k.A.") -> -0.753312 | AE79: -0.753312
AC80: 2087 | AD80: =IF(Ausgangsdaten!$F$48=Ausgangsdaten!$B$128,IF(Ausgangsdaten!$D$44=Ausgangsdaten!$B$124,'Details Ausgangsdaten'!C52,IF(Ausgangsdaten!$D$44=Ausgangsdaten!$B$125,'Details Ausgangsdaten'!S52,'Details Ausgangsdaten'!AI52)),"k.A.") -> -0.867654 | AE80: -0.867654
AC81: 2088 | AD81: =IF(Ausgangsdaten!$F$48=Ausgangsdaten!$B$128,IF(Ausgangsdaten!$D$44=Ausgangsdaten!$B$124,'Details Ausgangsdaten'!C53,IF(Ausgangsdaten!$D$44=Ausgangsdaten!$B$125,'Details Ausgangsdaten'!S53,'Details Ausgangsdaten'!AI53)),"k.A.") -> -0.981996 | AE81: -0.981996
AC82: 2089 | AD82: =IF(Ausgangsdaten!$F$48=Ausgangsdaten!$B$128,IF(Ausgangsdaten!$D$44=Ausgangsdaten!$B$124,'Details Ausgangsdaten'!C54,IF(Ausgangsdaten!$D$44=Ausgangsdaten!$B$125,'Details Ausgangsdaten'!S54,'Details Ausgangsdaten'!AI54)),"k.A.") -> -1.096338 | AE82: -1.096338
AC83: 2090 | AD83: =IF(Ausgangsdaten!$F$48=Ausgangsdaten!$B$128,IF(Ausgangsdaten!$D$44=Ausgangsdaten!$B$124,'Details Ausgangsdaten'!C55,IF(Ausgangsdaten!$D$44=Ausgangsdaten!$B$125,'Details Ausgangsdaten'!S55,'Details Ausgangsdaten'!AI55)),"k.A.") -> -1.21068 | AE83: -1.21068
AC84: 2091 | AD84: =IF(Ausgangsdaten!$F$48=Ausgangsdaten!$B$128,IF(Ausgangsdaten!$D$44=Ausgangsdaten!$B$124,'Details Ausgangsdaten'!C56,IF(Ausgangsdaten!$D$44=Ausgangsdaten!$B$125,'Details Ausgangsdaten'!S56,'Details Ausgangsdaten'!AI56)),"k.A.") -> -1.325022 | AE84: -1.325022
AC85: 2092 | AD85: =IF(Ausgangsdaten!$F$48=Ausgangsdaten!$B$128,IF(Ausgangsdaten!$D$44=Ausgangsdaten!$B$124,'Details Ausgangsdaten'!C57,IF(Ausgangsdaten!$D$44=Ausgangsdaten!$B$125,'Details Ausgangsdaten'!S57,'Details Ausgangsdaten'!AI57)),"k.A.") -> -1.439364 | AE85: -1.439364
AC86: 2093 | AD86: =IF(Ausgangsdaten!$F$48=Ausgangsdaten!$B$128,IF(Ausgangsdaten!$D$44=Ausgangsdaten!$B$124,'Details Ausgangsdaten'!C58,IF(Ausgangsdaten!$D$44=Ausgangsdaten!$B$125,'Details Ausgangsdaten'!S58,'Details Ausgangsdaten'!AI58)),"k.A.") -> -1.553706 | AE86: -1.553706
AC87: 2094 | AD87: =IF(Ausgangsdaten!$F$48=Ausgangsdaten!$B$128,IF(Ausgangsdaten!$D$44=Ausgangsdaten!$B$124,'Details Ausgangsdaten'!C59,IF(Ausgangsdaten!$D$44=Ausgangsdaten!$B$125,'Details Ausgangsdaten'!S59,'Details Ausgangsdaten'!AI59)),"k.A.") -> -1.668048 | AE87: -1.668048
AC88: 2095 | AD88: =IF(Ausgangsdaten!$F$48=Ausgangsdaten!$B$128,IF(Ausgangsdaten!$D$44=Ausgangsdaten!$B$124,'Details Ausgangsdaten'!C60,IF(Ausgangsdaten!$D$44=Ausgangsdaten!$B$125,'Details Ausgangsdaten'!S60,'Details Ausgangsdaten'!AI60)),"k.A.") -> -1.78239 | AE88: -1.78239
AC89: 2096 | AD89: =IF(Ausgangsdaten!$F$48=Ausgangsdaten!$B$128,IF(Ausgangsdaten!$D$44=Ausgangsdaten!$B$124,'Details Ausgangsdaten'!C61,IF(Ausgangsdaten!$D$44=Ausgangsdaten!$B$125,'Details Ausgangsdaten'!S61,'Details Ausgangsdaten'!AI61)),"k.A.") -> -1.896732 | AE89: -1.896732
AC90: 2097 | AD90: =IF(Ausgangsdaten!$F$48=Ausgangsdaten!$B$128,IF(Ausgangsdaten!$D$44=Ausgangsdaten!$B$124,'Details Ausgangsdaten'!C62,IF(Ausgangsdaten!$D$44=Ausgangsdaten!$B$125,'Details Ausgangsdaten'!S62,'Details Ausgangsdaten'!AI62)),"k.A.") -> -2.011074 | AE90: -2.011074
AC91: 2098 | AD91: =IF(Ausgangsdaten!$F$48=Ausgangsdaten!$B$128,IF(Ausgangsdaten!$D$44=Ausgangsdaten!$B$124,'Details Ausgangsdaten'!C63,IF(Ausgangsdaten!$D$44=Ausgangsdaten!$B$125,'Details Ausgangsdaten'!S63,'Details Ausgangsdaten'!AI63)),"k.A.") -> -2.125416 | AE91: -2.125416
AC92: 2099 | AD92: =IF(Ausgangsdaten!$F$48=Ausgangsdaten!$B$128,IF(Ausgangsdaten!$D$44=Ausgangsdaten!$B$124,'Details Ausgangsdaten'!C64,IF(Ausgangsdaten!$D$44=Ausgangsdaten!$B$125,'Details Ausgangsdaten'!S64,'Details Ausgangsdaten'!AI64)),"k.A.") -> -2.239758 | AE92: -2.239758
AC93: 2100 | AD93: =IF(Ausgangsdaten!$F$48=Ausgangsdaten!$B$128,IF(Ausgangsdaten!$D$44=Ausgangsdaten!$B$124,'Details Ausgangsdaten'!C65,IF(Ausgangsdaten!$D$44=Ausgangsdaten!$B$125,'Details Ausgangsdaten'!S65,'Details Ausgangsdaten'!AI65)),"k.A.") -> -2.3541 | AE93: -2.3541
AC94: =IF(Ausgangsdaten!F48=Ausgangsdaten!B129,"2051 - 2100","") ->  | AD94: =IF(Ausgangsdaten!$F$48=Ausgangsdaten!$B$129,Ausgangsdaten!$L$46,0) -> 0 | AE94: =IF(Ausgangsdaten!$F$48=Ausgangsdaten!$B$129,Ausgangsdaten!$L$46,0) -> 0 | AF94: freie Engabe
AC95: 2012 - 2100 | AD95: =SUM(AD5:AD94) -> 841.786772 | AE95: =SUM(AE5:AE94) -> 842.1492297 | AF95: =Ausgangsdaten!K14 -> ohne FOLU
AC96: bis 2011 | AD96: =Ausgangsdaten!$F$26 -> 1890 | AE96: =Ausgangsdaten!$F$26 -> 1890 | AF96: mit FOLU
AC97: Industr. - 2100 | AD97: =AD96+AD95 -> 2731.786772 | AE97: =AE96+AE95 -> 2732.14923 | AF97: =AF95 -> ohne FOLU | AG97: 2012 - 2100
AC98: FOLU ab 2012 | AD98: =Ausgangsdaten!$J$26 -> 168.7500358 | AE98: =Ausgangsdaten!$J$26 -> 168.7500358
AC99: Industr. - 2100 | AD99: =IF(Ausgangsdaten!$K$14=Ausgangsdaten!$B$121,Welt!AD97,Welt!AD97+Welt!AD98) -> 2900.536808 | AE99: =IF(Ausgangsdaten!$K$14=Ausgangsdaten!$B$121,Welt!AE97,Welt!AE97+Welt!AE98) -> 2900.899265 | AF99: mit FOLU
AC101: Gesamtbudget | AD101: =Ausgangsdaten!$B$26 -> 2900 | AE101: =Ausgangsdaten!$B$26 -> 2900 | AF101: mit FOLU
AC102: Potent. Neg.em. | AD102: =Ausgangsdaten!$D$44 -> niedrig | AE102: =Ausgangsdaten!$D$44 -> niedrig
AC104: 2012 - 2030 | AD104: =SUM(AD5:AD23) -> 601.0829929 | AE104: =SUM(AE5:AE23) -> 605.9368446

Sheet RS_t
M1: % Vj. | N1: =Welt!N1 -> S1 | O1: =Welt!O1 -> Szenario 1 | P1: =Welt!P1 -> S2 | Q1: =Welt!Q1 -> Szenario 2 | R1: =Welt!R1 -> S3 | S1: =Welt!S1 -> Szenario 3 | T1: =Welt!T1 -> S4 | U1: =Welt!U1 -> Szenario 4 | V1: =Welt!V1 -> S5 | W1: =Welt!W1 -> Szenario 5 | X1: =Welt!X1 -> S6 | Y1: =Welt!Y1 -> Szenario 6 | Z1: =Welt!Z1 -> S7 | AA1: =Welt!AA1 -> Szenario 7
C2: =Zielwertsuche!C51 -> Szenario 1 | D2: =Zielwertsuche!D51 -> Szenario 2 | E2: =Zielwertsuche!E51 -> Szenario 3 | F2: =Zielwertsuche!F51 -> Szenario 4 | G2: =Zielwertsuche!G51 -> Szenario 5 | H2: =Zielwertsuche!H51 -> Szenario 6 | I2: =Zielwertsuche!I51 -> Szenario 7 | M2: t | N2: RSt fix | P2: =Welt!$P$2 -> expRS | R2: =Welt!$R$2 -> linRS | T2: =Welt!T2 -> quadrRS | V2: =Welt!V2 -> Polynom | X2: =Welt!X2 -> Gerade | Z2: =Welt!Z2 -> fr. Eing.
A3: =Zielwertsuche!A52 -> Werden die Randbedingungen eingehalten? | C3: =Zielwertsuche!C52 -> nein | D3: =Zielwertsuche!D52 -> ja | E3: =Zielwertsuche!E52 -> ja | F3: =Zielwertsuche!F52 -> ja | G3: =Zielwertsuche!G52 -> ja | H3: =Zielwertsuche!H52 -> ja | I3: =Zielwertsuche!I52 -> nein | M3: 2020 | O3: ='S1'!F11 -> -0.0539905068 | Q3: ='S2'!G13 -> -0.03716 | S3: ='S3'!G13 -> -0.0309 | U3: ='S4'!G12 -> -0.04281 | W3: ='S5'!F26 -> -0.04 | Y3: ='S6'!F14 -> -0.03435707299 | AA3: ='S7'!F11 -> 0.003742819578
A4: =Cockpit!I9 -> Besteht noch Optimierungsbedarf? | D4: =Cockpit!K9 -> nein | E4: =Cockpit!L9 -> nein | F4: =Cockpit!M9 -> nein | G4: =Cockpit!N9 -> nein | M4: =M3+1 -> 2021 | O4: ='S1'!F12 -> -0.0539905068 | Q4: ='S2'!G14 -> -0.03872966912 | S4: ='S3'!G14 -> -0.03377667091 | U4: ='S4'!G13 -> -0.04291216173 | W4: ='S5'!F27 -> -0.04058654196 | Y4: ='S6'!F15 -> -0.03557947978 | AA4: ='S7'!F12 -> -0.02255932947
M5: 2022 | O5: ='S1'!F13 -> -0.0539905068 | Q5: ='S2'!G15 -> -0.04036564236 | S5: ='S3'!G15 -> -0.03665334183 | U5: ='S4'!G14 -> -0.04321864691 | W5: ='S5'!F28 -> -0.04132282166 | Y5: ='S6'!F16 -> -0.03689208082 | AA5: ='S7'!F13 -> -0.02307999876
M6: 2023 | O6: ='S1'!F14 -> -0.0539905068 | Q6: ='S2'!G16 -> -0.04207072047 | S6: ='S3'!G16 -> -0.03953001274 | U6: ='S4'!G15 -> -0.04372945554 | W6: ='S5'!F29 -> -0.04221627336 | Y6: ='S6'!F17 -> -0.03830524086 | AA6: ='S7'!F14 -> -0.02362526997
M7: 2024 | O7: ='S1'!F15 -> -0.0539905068 | Q7: ='S2'!G17 -> -0.04384782248 | S7: ='S3'!G17 -> -0.04240668366 | U7: ='S4'!G16 -> -0.04444458763 | W7: ='S5'!F30 -> -0.04327446464 | Y7: ='S6'!F18 -> -0.03983097599 | AA7: ='S7'!F15 -> -0.02419692894
M8: 2025 | O8: ='S1'!F16 -> -0.0539905068 | Q8: ='S2'!G18 -> -0.04569999075 | S8: ='S3'!G18 -> -0.04528335457 | U8: ='S4'!G17 -> -0.04536404317 | W8: ='S5'!F31 -> -0.04450520686 | Y8: ='S6'!F19 -> -0.04148329617 | AA8: ='S7'!F16 -> -0.02479693871
M9: 2026 | O9: ='S1'!F17 -> -0.0539905068 | Q9: ='S2'!G19 -> -0.04763039615 | S9: ='S3'!G19 -> -0.04816002549 | U9: ='S4'!G18 -> -0.04648782216 | W9: ='S5'!F32 -> -0.04591667101 | Y9: ='S6'!F20 -> -0.04327863667 | AA9: ='S7'!F17 -> -0.02542746192
M10: 2027 | O10: ='S1'!F18 -> -0.0539905068 | Q10: ='S2'!G20 -> -0.04964234346 | S10: ='S3'!G20 -> -0.0510366964 | U10: ='S4'!G19 -> -0.04781592461 | W10: ='S5'!F33 -> -0.04751750441 | Y10: ='S6'!F21 -> -0.04523640668 | AA10: ='S7'!F18 -> -0.02609088696
M11: 2028 | O11: ='S1'!F19 -> -0.0539905068 | Q11: ='S2'!G21 -> -0.05173927708 | S11: ='S3'!G21 -> -0.05391336732 | U11: ='S4'!G20 -> -0.04934835051 | W11: ='S5'!F34 -> -0.04931694251 | Y11: ='S6'!F22 -> -0.04737969377 | AA11: ='S7'!F19 -> -0.02678985812
M12: 2029 | O12: ='S1'!F20 -> -0.0539905068 | Q12: ='S2'!G22 -> -0.05392478692 | S12: ='S3'!G22 -> -0.05679003823 | U12: ='S4'!G21 -> -0.05108509986 | W12: ='S5'!F35 -> -0.05132490752 | Y12: ='S6'!F23 -> -0.04973617869 | AA12: ='S7'!F20 -> -0.02752731087
M13: 2030 | O13: ='S1'!F21 -> -0.0539905068 | Q13: ='S2'!G23 -> -0.0562026145 | S13: ='S3'!G23 -> -0.05966670915 | U13: ='S4'!G22 -> -0.05302617266 | W13: ='S5'!F36 -> -0.05355208205 | Y13: ='S6'!F24 -> -0.05233933732 | AA13: ='S7'!F21 -> -0.02830651305
M14: 2031 | O14: ='S1'!F22 -> -0.0539905068 | Q14: ='S2'!G24 -> -0.0585766594 | S14: ='S3'!G24 -> -0.06254338006 | U14: ='S4'!G23 -> -0.05517156892 | W14: ='S5'!F37 -> -0.05600993993 | Y14: ='S6'!F25 -> -0.05523004107 | AA14: ='S7'!F22 -> -0.0367728863
M15: 2032 | O15: ='S1'!F23 -> -0.0539905068 | Q15: ='S2'!G25 -> -0.06105098592 | S15: ='S3'!G25 -> -0.06542005098 | U15: ='S4'!G24 -> -0.05752128864 | W15: ='S5'!F38 -> -0.05871070776 | Y15: ='S6'!F26 -> -0.05845871849 | AA15: ='S7'!F23 -> -0.03817675581
M16: 2033 | O16: ='S1'!F24 -> -0.0539905068 | Q16: ='S2'!G26 -> -0.06362983004 | S16: ='S3'!G26 -> -0.06829672189 | U16: ='S4'!G25 -> -0.0600753318 | W16: ='S5'!F39 -> -0.06166721658 | Y16: ='S6'!F27 -> -0.06208832225 | AA16: ='S7'!F24 -> -0.03969207028
M17: 2034 | O17: ='S1'!F25 -> -0.0539905068 | Q17: ='S2'!G27 -> -0.06631760667 | S17: ='S3'!G27 -> -0.07117339281 | U17: ='S4'!G26 -> -0.06283369842 | W17: ='S5'!F40 -> -0.06489258181 | Y17: ='S6'!F28 -> -0.06619847446 | AA17: ='S7'!F25 -> -0.04133264868
M18: 2035 | O18: ='S1'!F26 -> -0.0539905068 | Q18: ='S2'!G28 -> -0.0691189172 | S18: ='S3'!G28 -> -0.07405006372 | U18: ='S4'!G27 -> -0.06579638849 | W18: ='S5'!F41 -> -0.06839961638 | Y18: ='S6'!F29 -> -0.07089137536 | AA18: ='S7'!F26 -> -0.04311469314
M19: 2036 | O19: ='S1'!F27 -> -0.0539905068 | Q19: ='S2'!G29 -> -0.07203855741 | S19: ='S3'!G29 -> -0.07692673464 | U19: ='S4'!G28 -> -0.06896340202 | W19: ='S5'!F42 -> -0.0721998305 | Y19: ='S6'!F30 -> -0.07630041685 | AA19: ='S7'!F27 -> -0.04505732592
M20: 2037 | O20: ='S1'!F28 -> -0.0539905068 | Q20: ='S2'!G30 -> -0.07508152563 | S20: ='S3'!G30 -> -0.07980340555 | U20: ='S4'!G29 -> -0.072334739 | W20: ='S5'!F43 -> -0.07630179168 | Y20: ='S6'!F31 -> -0.08260306516 | AA20: ='S7'!F28 -> -0.04718327827
M21: 2038 | O21: ='S1'!F29 -> -0.0539905068 | Q21: ='S2'!G31 -> -0.07825303134 | S21: ='S3'!G31 -> -0.08268007647 | U21: ='S4'!G30 -> -0.07591039943 | W21: ='S5'!F44 -> -0.08070849422 | Y21: ='S6'!F32 -> -0.09004070324 | AA21: ='S7'!F29 -> -0.04951978402
M22: 2039 | O22: ='S1'!F30 -> -0.0539905068 | Q22: ='S2'!G32 -> -0.08155850408 | S22: ='S3'!G32 -> -0.08555674738 | U22: ='S4'!G31 -> -0.07969038332 | W22: ='S5'!F45 -> -0.08541319442 | Y22: ='S6'!F33 -> -0.09895025366 | AA22: ='S7'!F30 -> -0.05209975251
M23: 2040 | O23: ='S1'!F31 -> -0.0539905068 | Q23: ='S2'!G33 -> -0.08500360272 | S23: ='S3'!G33 -> -0.0884334183 | U23: ='S4'!G32 -> -0.08367469066 | W23: ='S5'!F46 -> -0.0903928699 | Y23: ='S6'!F34 -> -0.1098166378 | AA23: ='S7'!F31 -> -0.05496332831
M24: 2041 | O24: ='S1'!F32 -> -0.0539905068 | Q24: ='S2'!G34 -> -0.08859422517 | S24: ='S3'!G34 -> -0.09131008921 | U24: ='S4'!G33 -> -0.08786332145 | W24: ='S5'!F47 -> -0.0955980077 | Y24: ='S6'!F35 -> -0.1233640646 | AA24: ='S7'!F32 -> -0.03258623778
M25: 2042 | O25: ='S1'!F33 -> -0.0539905068 | Q25: ='S2'!G35 -> -0.09233651849 | S25: ='S3'!G35 -> -0.09418676013 | U25: ='S4'!G34 -> -0.09225627569 | W25: ='S5'!F48 -> -0.1009367549 | Y25: ='S6'!F36 -> -0.1407243984 | AA25: ='S7'!F33 -> -0.03368386833
M26: 2043 | O26: ='S1'!F34 -> -0.0539905068 | Q26: ='S2'!G36 -> -0.09623688936 | S26: ='S3'!G36 -> -0.09706343104 | U26: ='S4'!G35 -> -0.09685355339 | W26: ='S5'!F49 -> -0.1062505257 | Y26: ='S6'!F37 -> -0.1637709696 | AA26: ='S7'!F34 -> -0.03485802133
M27: 2044 | O27: ='S1'!F35 -> -0.0539905068 | Q27: ='S2'!G37 -> -0.1003020151 | S27: ='S3'!G37 -> -0.09994010196 | U27: ='S4'!G36 -> -0.1016551545 | W27: ='S5'!F50 -> -0.1112769969 | Y27: ='S6'!F38 -> -0.1958446354 | AA27: ='S7'!F35 -> -0.03611698807
M28: 2045 | O28: ='S1'!F36 -> -0.0539905068 | Q28: ='S2'!G38 -> -0.1045388552 | S28: ='S3'!G38 -> -0.1028167729 | U28: ='S4'!G37 -> -0.1066610792 | W28: ='S5'!F51 -> -0.1155954058 | Y28: ='S6'!F39 -> -0.2435407933 | AA28: ='S7'!F36 -> -0.03747030254
M29: 2046 | O29: ='S1'!F37 -> -0.0539905068 | Q29: ='S2'!G39 -> -0.1089546628 | S29: ='S3'!G39 -> -0.1056934438 | U29: ='S4'!G38 -> -0.1118713272 | W29: ='S5'!F52 -> -0.1185494843 | Y29: ='S6'!F40 -> -0.1480589905 | AA29: ='S7'!F37 -> -0.03892898332
M30: 2047 | O30: ='S1'!F38 -> -0.0539905068 | Q30: ='S2'!G40 -> -0.1135569979 | S30: ='S3'!G40 -> -0.1085701147 | U30: ='S4'!G39 -> -0.1172858987 | W30: ='S5'!F53 -> -0.1191486517 | Y30: ='S6'!F41 -> 0 | AA30: ='S7'!F38 -> -0.04050583427
M31: 2048 | O31: ='S1'!F39 -> -0.0539905068 | Q31: ='S2'!G41 -> -0.1183537393 | S31: ='S3'!G41 -> -0.1114467856 | U31: ='S4'!G40 -> -0.1229047937 | W31: ='S5'!F54 -> -0.1159659031 | Y31: ='S6'!F42 -> 0 | AA31: ='S7'!F39 -> -0.04221582133
D32: Ausgangsdaten | E32: Zielwertsuche | M32: 2049 | O32: ='S1'!F40 -> -0.0539905068 | Q32: ='S2'!G42 -> -0.1233530991 | S32: ='S3'!G42 -> -0.1143234565 | U32: ='S4'!G41 -> -0.1287280121 | W32: ='S5'!F55 -> -0.1070940564 | Y32: ='S6'!F43 -> 0 | AA32: ='S7'!F40 -> -0.04407654905
M33: 2050 | O33: ='S1'!F41 -> -0.0539905068 | Q33: =IF(Q34=1,'S2'!F43,'S2'!G43) -> -0.128563636 | S33: =IF(S34=1,'S3'!F43,'S3'!G43) -> -0.1172001274 | U33: =IF(U34=1,'S4'!F42,'S4'!G42) -> -0.134755554 | W33: =IF(W34=1,'S5'!M56,'S5'!F56) -> -0.0903 | Y33: ='S6'!F44 -> 0 | AA33: ='S7'!F41 -> -0.04610886887
A34: Über Gruppierung oder Gruppierung aufheben der entsprechenden Spalten ab Spalte O können Szenarien ein- und ausgeblendet werden. | M34: Jahre MR | O34: =Zielwertsuche!C23 -> 0 | Q34: =Zielwertsuche!D23 -> 0 | S34: =Zielwertsuche!E23 -> 0 | U34: =Zielwertsuche!F23 -> 0 | W34: =Zielwertsuche!G23 -> 1 | Y34: =Zielwertsuche!H23 -> 5 | AA34: =Zielwertsuche!I23 -> 0
N37: =N1 -> S1 | O37: Szenario 1 | P37: S2 | Q37: Szenario 2 | R37: S3 | S37: Szenario 3 | T37: S4 | U37: Szenario 4 | V37: S5 | W37: Szenario 5 | X37: S6 | Y37: Szenario 6 | Z37: S7 | AA37: Szenario 7
M38: t | N38: RSt fix | P38: =Welt!$P$2 -> expRS | R38: =Welt!$R$2 -> linRS | T38: Parabel | V38: Polynom | X38: Gerade | Z38: fr. Eing.
M39: 1990 | O39: =Ausgangsdaten!$H$12 -> 22.42 | Q39: =Ausgangsdaten!$H$12 -> 22.42 | S39: =Ausgangsdaten!$H$12 -> 22.42 | U39: =Ausgangsdaten!$H$12 -> 22.42 | W39: =Ausgangsdaten!$H$12 -> 22.42 | Y39: =Ausgangsdaten!$H$12 -> 22.42 | AA39: =Ausgangsdaten!$H$12 -> 22.42
M40: 2030 | O40: =(Welt!$O$14-O39)/O39 -> -0.09415420921 | Q40: =(Welt!Q14-$S$39)/$S$39 -> -0.007616634106 | S40: =(Welt!S14-$S$39)/$S$39 -> 0.001397247284 | U40: =(Welt!U14-$S$39)/$S$39 -> -0.01082135182 | W40: =(Welt!W14-$S$39)/$S$39 -> 0.0002986575192 | Y40: =(Welt!Y14-$S$39)/$S$39 -> 0.0376350227 | AA40: =(Welt!AA14-$S$39)/$S$39 -> 0.3002439814
M41: 2050 | O41: =(Welt!O34-O39)/O39 -> -0.7014863725 | Q41: =(Welt!Q34-Q39)/Q39 -> -0.8479090097 | S41: =(Welt!S34-S39)/S39 -> -0.8482197695 | U41: =(Welt!U34-U39)/U39 -> -0.8482313 | W41: =(Welt!W34-W39)/W39 -> -0.8483496878 | Y41: =(Welt!Y34-Y39)/Y39 -> -0.8483496878 | AA41: =(Welt!AA34-AA39)/AA39 -> -0.4457869168
M43: Durchschnitt
M44: 2041 - 2050 | Q44: =AVERAGE(Q24:Q33) -> -0.1074790639 | S44: =AVERAGE(S24:S33) -> -0.1042551083 | U44: =AVERAGE(U24:U33) -> -0.110083497 | W44: =AVERAGE(W24:W33) -> -0.1080715786
N60: =N37 -> S1 | O60: Szenario 1 | P60: S2 | Q60: Szenario 2 | R60: S3 | S60: Szenario 3 | T60: S4 | U60: Szenario 4 | V60: S5 | W60: Szenario 5 | X60: S6 | Y60: Szenario 6 | Z60: S7 | AA60: Szenario 7
M61: 2010 | O61: =IF(Ausgangsdaten!$K$14=Ausgangsdaten!$B$121,Ausgangsdaten!$D$36,Ausgangsdaten!$D$37) -> 31.85 | Q61: =IF(Ausgangsdaten!$K$14=Ausgangsdaten!$B$121,Ausgangsdaten!$D$36,Ausgangsdaten!$D$37) -> 31.85 | S61: =IF(Ausgangsdaten!$K$14=Ausgangsdaten!$B$121,Ausgangsdaten!$D$36,Ausgangsdaten!$D$37) -> 31.85 | U61: =IF(Ausgangsdaten!$K$14=Ausgangsdaten!$B$121,Ausgangsdaten!$D$36,Ausgangsdaten!$D$37) -> 31.85 | W61: =IF(Ausgangsdaten!$K$14=Ausgangsdaten!$B$121,Ausgangsdaten!$D$36,Ausgangsdaten!$D$37) -> 31.85 | Y61: =IF(Ausgangsdaten!$K$14=Ausgangsdaten!$B$121,Ausgangsdaten!$D$36,Ausgangsdaten!$D$37) -> 31.85 | AA61: =IF(Ausgangsdaten!$K$14=Ausgangsdaten!$B$121,Ausgangsdaten!$D$36,Ausgangsdaten!$D$37) -> 31.85
M62: 2030 | O62: =(Welt!$O$14-O61)/O61 -> -0.3623528217 | Q62: =(Welt!$Q$14-Q61)/Q61 -> -0.3014368897 | S62: =(Welt!$S$14-S61)/S61 -> -0.2950917964 | U62: =(Welt!$U$14-U61)/U61 -> -0.3036927695 | W62: =(Welt!$W$14-W61)/W61 -> -0.2958651208 | Y62: =(Welt!$Y$14-Y61)/Y61 -> -0.2695831332 | AA62: =(Welt!$AA$14-AA61)/AA61 -> -0.08472621464
M63: 2050 | O63: =(Welt!O34-O61)/O61 -> -0.7898689002 | Q63: =(Welt!Q34-Q61)/Q61 -> -0.8929394034 | S63: =(Welt!S34-S61)/S61 -> -0.8931581549 | U63: =(Welt!U34-U61)/U61 -> -0.8931662715 | W63: =(Welt!W34-W61)/W61 -> -0.8932496075 | Y63: =(Welt!Y34-Y61)/Y61 -> -0.8932496075 | AA63: =(Welt!AA34-AA61)/AA61 -> -0.6098757512

Sheet Land
B2: CO2-Emissionspfade für ein ausgewähltes Land: kompatibel mit 2°C-Ziel und konvergierenden Pro-Kopf-Rechten bis 2050 | S2: Daten aus dem Register "Daten Länder"
B4: Wählen Sie ein Land aus der Dropdown-Liste: | P4: Im Register "Ausgangsdaten" gewählte Optionen: | S4: =Ausgangsdaten!$K$14 -> ohne FOLU | T4: =IF(S4=D91,"Bitte beachten Sie, dass die Länderdatenbank keine FOLU-Emissionen enthält. Wählen Sie daher die Option 'ohne FOLU' im Register Ausgangsdaten, wenn Sie nationale Emissionspfade in diesem Register bestimmen wollen.","") -> 
B5: EU28 | J5: =IF(L10="keine Daten","Für dieses Land liegen noch keine ausreichenden Daten vor.",IF(ABS(S13-O59)>0.01,"Siehe Text unten zu Rundungsdifferenzen","")) -> 
B7: Emissionen im Basisjahr 2019 | P7: Zielmengen 2050
B8: Jährliche Veränderung auf der Basis von Vergangenheitsdaten ohne Obergrenze (nachrichtlich): | L8: ='Daten Länder'!X5 -> -0.00798373095 | P8: Weltweit (ZM) | S8: =Ausgangsdaten!E70 -> 3.363 | T8: Mrd. t
B9: =CONCATENATE("Hochrechnungssatz: ",IF('Daten Länder'!V5<>0,"individuell im Register 'Daten Länder' einegebener Wert", IF('Daten Länder'!U5='Daten Länder'!R9,"Standardwert (kein anderer Wert verfügbar)", "auf der Basis von Vergangenheitswerten mit Obergrenze"))) -> Hochrechnungssatz: individuell im Register 'Daten Länder' einegebener Wert | L9: =IF('Daten Länder'!V5<>0,'Daten Länder'!V5,'Daten Länder'!U5) -> -0.007408821348 | P9: Gewählte Basis für Bevölkerung 2050:
B10: Hochrechnung Emissionen im Jahr 2019: | L10: =IF('Daten Länder'!W5=0,"keine Daten",'Daten Länder'!W5) -> 3478.773421 | N10: Mill. t | P10: =Ausgangsdaten!G66 -> Minimum "instant replacement" / "Prognosewerte"
B11: Basisjahr für Hochrechnung | L11: ='Daten Länder'!S5 -> 1990 | R11: B50 | S11: =Ausgangsdaten!E69 -> 8.55788468 | T11: Mrd.
B12: Basiswert für Hochrechnung | L12: ='Daten Länder'!T5 -> 4316.027646 | N12: Mill. t | R12: Bi50 | S12: =IF(P10=Ausgangsdaten!B134,'Daten Länder'!AA5,IF(P10=Ausgangsdaten!B135,'Daten Länder'!AD5,'Daten Länder'!AB5)) -> 526 | T12: Mill.
B13: Falls Sie diese Hochrechnung nicht für zutreffend halten, können Sie hier einen der beiden Werte vorgeben: | I13: Veränderungssatz p.a.: | N13: =IF(OR(B5="China",B5="India"),'Daten Länder'!V259,"") ->  | R13: ZM / B50 = | S13: =S8/S11 -> 0.3929709415 | T13: t pro Kopf
I14: Eingabe Emissionen 2019 | N14: Mill. t | P14: Land | R14: ZMi = | S14: =S13*S12 -> 206.7027152 | T14: Mill. t
B15: Emissionen 2019 (Grundlage für die Berechnungen in diesem Tool) | L15: =IF(L13<>0,L12*(1+L13)^(2019-L11),IF(L14<>0,L14,L10)) -> 3478.773421 | N15: Mill. t
P16: Szenario hält Randbeingungen ein | T16: Szenario hält Randbeingungen nicht ein
P17: Werden die Randbedingungen (Budget / Zielmenge) nicht eingehalten, sollte als Erstes im Register "Zielwertsuche" die Zielwertsuche durchgeführt werden. Dann können andere Vorgabewerte im Register "Zielwertsuche" probiert werden. Führt dies nicht zum Ziel, müssten im Register "Ausgangsdaten" Anpassungen vorgenommen werden, wenn man das Szenario dennoch verwenden will.
B20: Für einen schnellen Überblick über die Ergebnisse: | H20: Grafiken Land
D22: =B5 -> EU28 | E22: Welt | F22: =Bsp.länder!AL2 -> Szenario 1 konstRS | N22: =Bsp.länder!AM2 -> Szenario 2 expRS | V22: =Bsp.länder!AN2 -> Szenario 3 linRS | AD22: =Bsp.länder!AO2 -> Szenario 4 quadrRS | AL22: =Bsp.länder!AP2 -> Szenario 5 Polynom | AT22: =Bsp.länder!AQ2 -> Szenario 6 Gerade | BB22: =Bsp.länder!AR2 -> Szenario 7 freie Eingabe
F23: =B5 -> EU28 | J23: Welt | N23: =$B$5 -> EU28 | R23: Welt | V23: =$B$5 -> EU28 | Z23: Welt | AD23: =$B$5 -> EU28 | AH23: Welt | AL23: =$B$5 -> EU28 | AP23: Welt | AT23: =$B$5 -> EU28 | AX23: Welt | BB23: =$B$5 -> EU28 | BF23: Welt
B24: Jahr t | C24: Anteil Verteilung steigender Emissionen (VSt-1 > 0) pro Kopf | D24: Ein- woh- ner Bit | E24: Ein- woh- ner Bt | F24: Emisio-nen Eit | G24: Pro-Kopf | H24: Ver-änd. ggü. 1990 | I24: Veränd. ggü. Vorj. RSit | J24: Emissio-nen Et | K24: VSt | L24: Veränd. ggü. Vorj. RSt | M24: abs. Veränd. ggü. Vorj. | N24: Emisio-nen Eit | O24: Pro-Kopf | P24: Ver-änd. ggü. 1990 | Q24: Veränd. ggü. Vorj. RSit | R24: Emissio-nen Et | S24: VSt | T24: Veränd. ggü. Vorj. RSt | U24: abs. Veränd. ggü. Vorj. | V24: Emisio-nen Eit | W24: Pro-Kopf | X24: Ver-änd. ggü. 1990 | Y24: Veränd. ggü. Vorj. RSit | Z24: Emissio-nen Et | AA24: VSt | AB24: Veränd. ggü. Vorj. RSt | AC24: abs. Veränd. ggü. Vorj. | AD24: Emisio-nen Eit | AE24: Pro-Kopf | AF24: Ver-änd. ggü. 1990 | AG24: Veränd. ggü. Vorj. RSit | AH24: Emissio-nen Et | AI24: VSt | AJ24: Veränd. ggü. Vorj. RSt | AK24: abs. Veränd. ggü. Vorj. | AL24: Emisio-nen Eit | AM24: Pro-Kopf | AN24: Ver-änd. ggü. 1990 | AO24: Veränd. ggü. Vorj. RSit | AP24: Emissio-nen Et | AQ24: VSt | AR24: Veränd. ggü. Vorj. RSt | AS24: abs. Veränd. ggü. Vorj. | AT24: Emisio-nen Eit | AU24: Pro-Kopf | AV24: Ver-änd. ggü. 1990 | AW24: Veränd. ggü. Vorj. RSit | AX24: Emissio-nen Et | AY24: VSt | AZ24: Veränd. ggü. Vorj. RSt | BA24: abs. Veränd. ggü. Vorj. | BB24: Emisio-nen Eit | BC24: Pro-Kopf | BD24: Ver-änd. ggü. 1990 | BE24: Veränd. ggü. Vorj. RSit | BF24: Emissio-nen Et | BG24: VSt | BH24: Veränd. ggü. Vorj. RSt | BI24: abs. Veränd. ggü. Vorj.
C25: AKt % | D25: Mill. | E25: Mrd. | F25: Mill. t | G25: t | H25: % | I25: % | J25: Mrd. t | K25: % | L25: % | M25: Mrd. t | N25: Mill. t | O25: t | P25: % | Q25: % | R25: Mrd. t | S25: % | T25: % | U25: Mrd. t | V25: Mill. t | W25: t | X25: % | Y25: % | Z25: Mrd. t | AA25: % | AB25: % | AC25: Mrd. t | AD25: Mill. t | AE25: t | AF25: % | AG25: % | AH25: Mrd. t | AI25: % | AJ25: % | AK25: Mrd. t | AL25: Mill. t | AM25: t | AN25: % | AO25: % | AP25: Mrd. t | AQ25: % | AR25: % | AS25: Mrd. t | AT25: Mill. t | AU25: t | AV25: % | AW25: % | AX25: Mrd. t | AY25: % | AZ25: % | BA25: Mrd. t | BB25: Mill. t | BC25: t | BD25: % | BE25: % | BF25: Mrd. t | BG25: % | BH25: % | BI25: Mrd. t
B26: 1990 | F26: ='Daten Länder'!$P$5 -> 4316.027646 | J26: =Ausgangsdaten!$H$12 -> 22.42 | N26: ='Daten Länder'!$P$5 -> 4316.027646 | R26: =Ausgangsdaten!$H$12 -> 22.42 | V26: ='Daten Länder'!$P$5 -> 4316.027646 | Z26: =Ausgangsdaten!$H$12 -> 22.42 | AD26: ='Daten Länder'!$P$5 -> 4316.027646 | AH26: =Ausgangsdaten!$H$12 -> 22.42 | AL26: ='Daten Länder'!$P$5 -> 4316.027646 | AP26: =Ausgangsdaten!$H$12 -> 22.42 | AT26: ='Daten Länder'!$P$5 -> 4316.027646 | AX26: =Ausgangsdaten!$H$12 -> 22.42 | BB26: ='Daten Länder'!$P$5 -> 4316.027646 | BF26: =Ausgangsdaten!$H$12 -> 22.42
B27: 2010 | D27: ='Daten Länder'!Y5 -> keine Daten | F27: ='Daten Länder'!$Q$5 -> 3799.040911 | G27: =IF(AND($D$27<>"keine Daten",F27<>"keine Daten"),F27/$D$27,"") ->  | H27: =IF(AND(F$26<>"keine Daten",F$27<>"keine Daten"),(F27-F$26)/F$26*100,"") -> -11.9782999 | N27: ='Daten Länder'!$Q$5 -> 3799.040911 | O27: =IF(AND($D$27<>"keine Daten",N27<>"keine Daten"),N27/$D$27,"") ->  | P27: =IF(AND(N$26<>"keine Daten",N$27<>"keine Daten"),(N27-N$26)/N$26*100,"") -> -11.9782999 | V27: ='Daten Länder'!$Q$5 -> 3799.040911 | W27: =IF(AND($D$27<>"keine Daten",V27<>"keine Daten"),V27/$D$27,"") ->  | X27: =IF(AND(V$26<>"keine Daten",V$27<>"keine Daten"),(V27-V$26)/V$26*100,"") -> -11.9782999 | AD27: ='Daten Länder'!$Q$5 -> 3799.040911 | AE27: =IF(AND($D$27<>"keine Daten",AD27<>"keine Daten"),AD27/$D$27,"") ->  | AF27: =IF(AND(AD$26<>"keine Daten",AD$27<>"keine Daten"),(AD27-AD$26)/AD$26*100,"") -> -11.9782999 | AL27: ='Daten Länder'!$Q$5 -> 3799.040911 | AM27: =IF(AND($D$27<>"keine Daten",AL27<>"keine Daten"),AL27/$D$27,"") ->  | AN27: =IF(AND(AL$26<>"keine Daten",AL$27<>"keine Daten"),(AL27-AL$26)/AL$26*100,"") -> -11.9782999 | AT27: ='Daten Länder'!$Q$5 -> 3799.040911 | AU27: =IF(AND($D$27<>"keine Daten",AT27<>"keine Daten"),AT27/$D$27,"") ->  | AV27: =IF(AND(AT$26<>"keine Daten",AT$27<>"keine Daten"),(AT27-AT$26)/AT$26*100,"") -> -11.9782999 | BB27: ='Daten Länder'!$Q$5 -> 3799.040911 | BC27: =IF(AND($D$27<>"keine Daten",BB27<>"keine Daten"),BB27/$D$27,"") ->  | BD27: =IF(AND(BB$26<>"keine Daten",BB$27<>"keine Daten"),(BB27-BB$26)/BB$26*100,"") -> -11.9782999
B28: 2019 | D28: ='Daten Länder'!$AA$5 -> 508 | E28: =Ausgangsdaten!$D$69 -> 6.916183482 | F28: =$L$15 -> 3478.773421 | G28: =F28/$D28 -> 6.847979175 | H28: =IF(F$26<>"keine Daten",(F28-F$26)/F$26*100,0) -> -19.39872248 | J28: =Ausgangsdaten!$D$70 -> 37.39723029 | K28: ='S1'!D10*100 -> -5.938999734 | N28: =$L$15 -> 3478.773421 | O28: =N28/$D28 -> 6.847979175 | P28: =IF(N$26<>"keine Daten",(N28-N$26)/N$26*100,0) -> -19.39872248 | R28: =Ausgangsdaten!$D$70 -> 37.39723029 | S28: ='S2'!D12*100 -> -4.087630274 | V28: =$L$15 -> 3478.773421 | W28: =V28/$D28 -> 6.847979175 | X28: =IF(V$26<>"keine Daten",(V28-V$26)/V$26*100,0) -> -19.39872248 | Z28: =Ausgangsdaten!$D$70 -> 37.39723029 | AA28: ='S3'!D12*100 -> -3.399025174 | AD28: =$L$15 -> 3478.773421 | AE28: =AD28/$D28 -> 6.847979175 | AF28: =IF(AD$26<>"keine Daten",(AD28-AD$26)/AD$26*100,0) -> -19.39872248 | AH28: =Ausgangsdaten!$D$70 -> 37.39723029 | AI28: ='S4'!D11*100 -> -4.709134877 | AL28: =$L$15 -> 3478.773421 | AM28: =AL28/$D28 -> 6.847979175 | AN28: =IF(AL$26<>"keine Daten",(AL28-AL$26)/AL$26*100,0) -> -19.39872248 | AP28: =Ausgangsdaten!$D$70 -> 37.39723029 | AQ28: ='S5'!D25*100 -> -4.400032588 | AT28: =$L$15 -> 3478.773421 | AU28: =AT28/$D28 -> 6.847979175 | AV28: =IF(AT$26<>"keine Daten",(AT28-AT$26)/AT$26*100,0) -> -19.39872248 | AX28: =Ausgangsdaten!$D$70 -> 37.39723029 | AY28: ='S6'!D13*100 -> -3.77930602 | BB28: =$L$15 -> 3478.773421 | BC28: =BB28/$D28 -> 6.847979175 | BD28: =IF(BB$26<>"keine Daten",(BB28-BB$26)/BB$26*100,0) -> -19.39872248 | BF28: =Ausgangsdaten!$D$70 -> 37.39723029 | BG28: ='S7'!D10*100 -> 0.411150763
B29: =B28+1 -> 2020 | C29: =Ausgangsdaten!M82 -> 0.1 | D29: =D$28*(D$59/D$28)^(($B29-2019)/31) -> 508.5709154 | E29: 6.963865504 | F29: =IF(K28>0,F28+$C29/100*($D29/E29*M29)+(1-$C29/100)*(F28*L29/100),F28+K28/100*(F28-$S$14)) -> 3284.44515 | G29: 6.458185182 | H29: -23.90120222 | I29: =(F29-F28)/F28*100 -> -5.586114615 | J29: =J28+K28/100*(J28-$S$8) -> 35.37593744 | K29: ='S1'!D11*100 -> -5.973092049 | L29: =(J29/J28-1)*100 -> -5.404926597 | M29: =J29-J28 -> -2.021292846 | N29: =IF(S28>0,N28+$C29/100*($D29/R29*U29)+(1-$C29/100)*(N28*U29/100),N28+S28/100*(N28-$S$14)) -> 3345.023268 | O29: 6.577299579 | P29: =IF(N$26<>"keine Daten",(N29-N$26)/N$26*100,0) -> -22.49764036 | Q29: =(N29-N28)/N28*100 -> -3.844750335 | R29: =R28+S28/100*(R28-$S$8) -> 36.00603679 | S29: ='S2'!D13*100 -> -4.27680246 | T29: =(R29/R28-1)*100 -> -3.720044212 | U29: =R29-R28 -> -1.391193501 | V29: =IF(AA28>0,V28+$C29/100*($D29/Z29*AC29)+(1-$C29/100)*(V28*AC29/100),V28+AA28/100*(V28-$S$14)) -> 3367.554914 | W29: 6.621603422 | X29: =IF(V$26<>"keine Daten",(V29-V$26)/V$26*100,0) -> -21.97559445 | Y29: =(V29-V28)/V28*100 -> -3.197060962 | Z29: =Z28+AA28/100*(Z28-$S$8) -> 36.24039823 | AA29: ='S3'!D13*100 -> -3.727347027 | AB29: =(Z29/Z28-1)*100 -> -3.093362921 | AC29: =Z29-Z28 -> -1.156832055 | AD29: =IF(AI28>0,AD28+$C29/100*($D29/AH29*AK29)+(1-$C29/100)*(AD28*AK29/100),AD28+AI28/100*(AD28-$S$14)) -> 3324.687198 | AE29: 6.537312884 | AF29: =IF(AD$26<>"keine Daten",(AD29-AD$26)/AD$26*100,0) -> -22.96881598 | AG29: =(AD29-AD28)/AD28*100 -> -4.429326206 | AH29: =AH28+AI28/100*(AH28-$S$8) -> 35.79451248 | AI29: ='S4'!D12*100 -> -4.741581039 | AJ29: =(AH29/AH28-1)*100 -> -4.285659115 | AK29: =AH29-AH28 -> -1.602717808 | AL29: =IF(AQ28>0,AL28+$C29/100*($D29/AP29*AS29)+(1-$C29/100)*(AL28*AS29/100),AL28+AQ28/100*(AL28-$S$14)) -> 3334.801243 | AM29: 6.557200072 | AN29: =IF(AL$26<>"keine Daten",(AL29-AL$26)/AL$26*100,0) -> -22.73447908 | AO29: =(AL29-AL28)/AL28*100 -> -4.138590242 | AP29: =AP28+AQ28/100*(AP28-$S$8) -> 35.89971306 | AQ29: ='S5'!D26*100 -> -4.483234346 | AR29: =(AP29/AP28-1)*100 -> -4.004353296 | AS29: =AP29-AP28 -> -1.497517224 | AT29: =IF(AY28>0,AT28+$C29/100*($D29/AX29*BA29)+(1-$C29/100)*(AT28*BA29/100),AT28+AY28/100*(AT28-$S$14)) -> 3355.111856 | AU29: 6.59713671 | AV29: =IF(AT$26<>"keine Daten",(AT29-AT$26)/AT$26*100,0) -> -22.26389331 | AW29: =(AT29-AT28)/AT28*100 -> -3.554746176 | AX29: =AX28+AY28/100*(AX28-$S$8) -> 36.11097257 | AY29: ='S6'!D14*100 -> -3.927747622 | AZ29: =(AX29/AX28-1)*100 -> -3.439446462 | BA29: =AX29-AX28 -> -1.286257714 | BB29: =IF(BG28>0,BB28+$C29/100*($D29/BF29*BI29)+(1-$C29/100)*(BB28*BI29/100),BB28+BG28/100*(BB28-$S$14)) -> 3483.638366 | BC29: 6.849857631 | BD29: =IF(BB$26<>"keine Daten",(BB29-BB$26)/BB$26*100,0) -> -19.28600436 | BE29: =(BB29-BB28)/BB28*100 -> 0.1398465635 | BF29: =BF28+BG28/100*(BF28-$S$8) -> 37.53716228 | BG29: ='S7'!D11*100 -> -2.477244667 | BH29: =(BF29/BF28-1)*100 -> 0.3741774362 | BI29: =BF29-BF28 -> 0.1399319975
B30: =B29+1 -> 2021 | C30: =IF(C29*(1+Ausgangsdaten!$M$83)<1,C29*(1+Ausgangsdaten!$M$83),1) -> 0.13 | D30: 509.1424725 | E30: 7.011876259 | F30: 3100.608762 | G30: 6.089864682 | H30: -28.1605908 | I30: =(F30-F29)/F29*100 -> -5.597182485 | J30: 33.46377522 | K30: ='S1'!D12*100 -> -6.009558227 | L30: =(J30/J29-1)*100 -> -5.405262332 | M30: =J30-J29 -> -1.912162221 | N30: 3210.803497 | O30: 6.306296706 | P30: -25.60743904 | Q30: -4.012521285 | R30: 34.60995859 | S30: ='S2'!D14*100 -> -4.476263187 | T30: =(R30/R29-1)*100 -> -3.877344815 | U30: =R30-R29 -> -1.3960782 | V30: 3249.738983 | W30: 6.38276938 | X30: =IF(V$26<>"keine Daten",(V30-V$26)/V$26*100,0) -> -24.70532513 | Y30: =(V30-V29)/V29*100 -> -3.498560037 | Z30: 35.01494351 | AA30: ='S3'!D14*100 -> -4.059486885 | AB30: =(Z30/Z29-1)*100 -> -3.381460429 | AC30: =Z30-Z29 -> -1.225454726 | AD30: 3176.845437 | AE30: 6.239600129 | AF30: =IF(AD$26<>"keine Daten",(AD30-AD$26)/AD$26*100,0) -> -26.39422873 | AG30: =(AD30-AD29)/AD29*100 -> -4.446787088 | AH30: 34.25674603 | AI30: ='S4'!D13*100 -> -4.798023591 | AJ30: =(AH30/AH29-1)*100 -> -4.296095518 | AK30: =AH30-AH29 -> -1.537766446 | AL30: 3194.561256 | AM30: 6.274395535 | AN30: =IF(AL$26<>"keine Daten",(AL30-AL$26)/AL$26*100,0) -> -25.98376289 | AO30: =(AL30-AL29)/AL29*100 -> -4.205347706 | AP30: 34.44101597 | AQ30: ='S5'!D27*100 -> -4.584854494 | AR30: =(AP30/AP29-1)*100 -> -4.063255582 | AS30: =AP30-AP29 -> -1.458697095 | AT30: 3231.45029 | AU30: 6.3468488 | AV30: =IF(AT$26<>"keine Daten",(AT30-AT$26)/AT$26*100,0) -> -25.12906414 | AW30: =(AT30-AT29)/AT29*100 -> -3.685765794 | AX30: 34.82471486 | AY30: ='S6'!D15*100 -> -4.08832678 | AZ30: =(AX30/AX29-1)*100 -> -3.561958104 | BA30: =AX30-AX29 -> -1.286257714 | BB30: 3402.460652 | BC30: 6.682727991 | BD30: =IF(BB$26<>"keine Daten",(BB30-BB$26)/BB$26*100,0) -> -21.16684759 | BE30: =(BB30-BB29)/BB29*100 -> -2.33025662 | BF30: 36.69058467 | BG30: ='S7'!D12*100 -> -2.540170915 | BH30: =(BF30/BF29-1)*100 -> -2.255305306 | BI30: =BF30-BF29 -> -0.8465776126
B31: 2022 | C31: =IF(C30*(1+Ausgangsdaten!$M$83)<1,C30*(1+Ausgangsdaten!$M$83),1) -> 0.169 | D31: 509.7146719 | E31: 7.060218012 | F31: 2926.697793 | G31: 5.74183549 | H31: -32.19001283 | I31: -5.608929803 | J31: 31.65485161 | K31: ='S1'!D13*100 -> -6.048592841 | L31: -5.405617273 | M31: -1.808923614 | N31: 3076.33204 | O31: 6.035400214 | P31: -28.72306916 | Q31: -4.188093651 | R31: 33.21126248 | S31: ='S2'!D15*100 -> -4.68681898 | T31: -4.041311118 | U31: -1.398696104 | V31: 3126.207325 | W31: 6.133249635 | X31: -27.56748608 | Y31: -3.80127939 | Z31: 33.73003701 | AA31: ='S3'!D15*100 -> -4.396074849 | AB31: -3.669594656 | AC31: -1.284906496 | AD31: 3034.337288 | AE31: 5.953011471 | AF31: -29.69606459 | AG31: -4.485838273 | AH31: 32.77445681 | AI31: ='S4'!D14*100 -> -4.879013519 | AJ31: -4.326999481 | AK31: -1.482289223 | AL31: 3057.572289 | AM31: 5.998595799 | AN31: -29.15772233 | AO31: -4.288193452 | AP31: 33.01613416 | AQ31: ='S5'!D28*100 -> -4.70620189 | AR31: -4.137165446 | AS31: -1.424881812 | AT31: 3107.788725 | AU31: 6.097114517 | AV31: -27.99423497 | AW31: -3.826813165 | AX31: 33.53845714 | AY31: ='S6'!D16*100 -> -4.262595618 | AZ31: -3.693519729 | BA31: -1.286257714 | BB31: 3321.282939 | BC31: 6.515964954 | BD31: -23.04769081 | BE31: -2.38585312 | BF31: 35.84400706 | BG31: ='S7'!D13*100 -> -2.606377355 | BH31: -2.307342933 | BI31: -0.8465776126
B32: 2023 | C32: =IF(C31*(1+Ausgangsdaten!$M$83)<1,C31*(1+Ausgangsdaten!$M$83),1) -> 0.2197 | D32: 510.2875144 | E32: 7.108893047 | F32: 2762.176365 | G32: 5.412980501 | H32: -36.00188433 | I32: -5.621401292 | J32: 29.9435927 | K32: ='S1'!D14*100 -> -6.090410374 | L32: -5.405992523 | M32: -1.711258911 | N32: 2941.837708 | O32: 5.765059159 | P32: -31.83922927 | Q32: -4.371905572 | R32: 31.81232845 | S32: ='S2'!D16*100 -> -4.909381087 | T32: -4.212227801 | U32: -1.398934031 | V32: 2997.863717 | W32: 5.874852182 | X32: -30.54113728 | Y32: -4.105409351 | Z32: 32.39507933 | AA32: ='S3'!D16*100 -> -4.737841305 | AB32: -3.957771158 | AC32: -1.334957676 | AD32: 2896.376615 | AE32: 5.675969985 | AF32: -32.89253793 | AG32: -4.546649235 | AH32: 31.33946786 | AI32: ='S4'!D15*100 -> -4.985184837 | AJ32: -4.378376009 | AK32: -1.434988954 | AL32: 2923.404611 | AM32: 5.728936196 | AN32: -32.26631404 | AO32: -4.388045975 | AP32: 31.6205978 | AQ32: ='S5'!D29*100 -> -4.848698516 | AR32: -4.226831504 | AS32: -1.39553636 | AT32: 2984.12716 | AU32: 5.847932932 | AV32: -30.8594058 | AW32: -3.979085326 | AX32: 32.25219943 | AY32: ='S6'!D17*100 -> -4.452382687 | AZ32: -3.835172585 | BA32: -1.286257714 | BB32: 3240.105225 | BC32: 6.349567908 | BD32: -24.92853404 | BE32: -2.444167364 | BF32: 34.99742945 | BG32: ='S7'!D14*100 -> -2.676127332 | BH32: -2.361838651 | BI32: -0.8465776126
B33: 2024 | C33: =IF(C32*(1+Ausgangsdaten!$M$83)<1,C32*(1+Ausgangsdaten!$M$83),1) -> 0.28561 | D33: 510.8610006 | E33: 7.15790366 | F33: 2606.537533 | G33: 5.102244113 | H33: -39.60795095 | I33: -5.634644994 | J33: 28.32472552 | K33: ='S1'!D15*100 -> -6.1352478 | L33: -5.406389245 | M33: -1.618867175 | N33: 2807.559508 | O33: 5.495740534 | P33: -34.95038173 | Q33: -4.564432622 | R33: 30.4156425 | S33: ='S2'!D17*100 -> -5.144985686 | T33: -4.390392085 | U33: -1.39668595 | V33: 2865.622938 | W33: 5.609398515 | X33: -33.6050838 | Y33: -4.411167128 | Z33: 31.01958549 | AA33: ='S3'!D17*100 -> -5.08563841 | AB33: -4.245996227 | AC33: -1.375493846 | AD33: 2762.2914 | AE33: 5.407129134 | AF33: -35.99921904 | AG33: -4.629412305 | AH33: 29.94478922 | AI33: ='S4'!D16*100 -> -5.117274198 | AJ33: -4.450230744 | AK33: -1.394678633 | AL33: 2791.679927 | AM33: 5.464656577 | AN33: -35.31830294 | AO33: -4.505865661 | AP33: 30.25047207 | AQ33: ='S5'!D30*100 -> -5.013914618 | AR33: -4.333016516 | AS33: -1.370125725 | AT33: 2860.465595 | AU33: 5.599303121 | AV33: -33.72457663 | AW33: -4.143977736 | AX33: 30.96594172 | AY33: ='S6'!D18*100 -> -4.65985737 | AZ33: -3.988124025 | BA33: -1.286257714 | BB33: 3158.927511 | BC33: 6.183536241 | BD33: -26.80937727 | BE33: -2.505403621 | BF33: 34.15085183 | BG33: ='S7'!D15*100 -> -2.749713157 | BH33: -2.418970839 | BI33: -0.8465776126
B34: 2025 | C34: =IF(C33*(1+Ausgangsdaten!$M$83)<1,C33*(1+Ausgangsdaten!$M$83),1) -> 0.371293 | D34: 511.4351314 | E34: 7.207252166 | F34: 2459.30172 | G34: 4.808628835 | H34: -43.01932421 | I34: -5.648712554 | J34: 26.7932618 | K34: ='S1'!D16*100 -> -6.183367586 | L34: -5.406808672 | M34: -1.531463716 | N34: 2673.745798 | O34: 5.227927521 | P34: -38.0507722 | Q34: -4.766193177 | R34: 29.02378792 | S34: ='S2'!D18*100 -> -5.394819099 | T34: -4.576114361 | U34: -1.391854584 | V34: 2730.39987 | W34: 5.338702218 | X34: -36.73812834 | Y34: -4.718801848 | Z34: 29.61307155 | AA34: ='S3'!D18*100 -> -5.440466726 | AB34: -4.534277014 | AC34: -1.406513935 | AD34: 2631.51492 | AE34: 5.145354236 | AF34: -39.02923856 | AG34: -4.734347736 | AH34: 28.58452618 | AI34: ='S4'!D17*100 -> -5.276145577 | AJ34: -4.542570098 | AK34: -1.360263041 | AL34: 2662.071377 | AM34: 5.205100732 | AN34: -38.32126216 | AO34: -4.642672286 | AP34: 28.90235718 | AQ34: ='S5'!D31*100 -> -5.203611192 | AR34: -4.45650861 | AS34: -1.348114892 | AT34: 2736.80403 | AU34: 5.351224157 | AV34: -36.58974746 | AW34: -4.323127163 | AX34: 29.679684 | AY34: ='S6'!D19*100 -> -4.887613173 | AZ34: -4.153782002 | BA34: -1.286257714 | BB34: 3077.749798 | BC34: 6.017869342 | BD34: -28.69022049 | BE34: -2.569787162 | BF34: 33.30427422 | BG34: ='S7'!D16*100 -> -2.827460202 | BH34: -2.478935567 | BI34: -0.8465776126
B35: 2026 | C35: =IF(C34*(1+Ausgangsdaten!$M$83)<1,C34*(1+Ausgangsdaten!$M$83),1) -> 0.4826809 | D35: 512.0099074 | E35: 7.256940893 | F35: 2320.015243 | G35: 4.531192092 | H35: -46.24651569 | I35: -5.663659549 | J35: 25.34448259 | K35: ='S1'!D17*100 -> -6.235061189 | L35: -5.407252108 | M35: -1.448779214 | N35: 2540.653287 | O35: 4.962117432 | P35: -41.13445289 | Q35: -4.977754861 | R35: 27.63943483 | S35: ='S2'!D19*100 -> -5.660249475 | T35: -4.769718865 | U35: -1.384353088 | V35: 2593.098966 | W35: 5.064548418 | X35: -39.91931519 | Y35: -5.02860059 | Z35: 28.18494514 | AA35: ='S3'!D19*100 -> -5.803508504 | AB35: -4.822621678 | AC35: -1.428126408 | AD35: 2503.578298 | AE35: 4.889706745 | AF35: -41.99346012 | AG35: -4.861709919 | AH35: 27.25380174 | AI35: ='S4'!D18*100 -> -5.462821491 | AJ35: -4.655401421 | AK35: -1.330724438 | AL35: 2534.303538 | AM35: 4.949715819 | AN35: -41.2815731 | AO35: -4.799564714 | AP35: 27.57338833 | AQ35: ='S5'!D32*100 -> -5.419791539 | AR35: -4.598133087 | AS35: -1.328968848 | AT35: 2613.142465 | AU35: 5.103695118 | AV35: -39.45491829 | AW35: -4.518466203 | AX35: 28.39342629 | AY35: ='S6'!D20*100 -> -5.1387767 | AZ35: -4.333798547 | BA35: -1.286257714 | BB35: 2996.572084 | BC35: 5.852566602 | BD35: -30.57106372 | BE35: -2.637567021 | BF35: 32.45769661 | BG35: ='S7'!D17*100 -> -2.909731708 | BH35: -2.541948841 | BI35: -0.8465776126
B36: 2027 | C36: =IF(C35*(1+Ausgangsdaten!$M$83)<1,C35*(1+Ausgangsdaten!$M$83),1) -> 0.62748517 | D36: 512.5853293 | E36: 7.306972188 | F36: 2188.248914 | G36: 4.269043199 | H36: -49.29946947 | I36: -5.67954584 | J36: 23.9739237 | K36: ='S1'!D18*100 -> -6.290653148 | L36: -5.40772093 | M36: -1.37055889 | N36: 2408.545862 | O36: 4.698819346 | P36: -44.19530968 | Q36: -5.199742352 | R36: 26.26532805 | S36: ='S2'!D20*100 -> -5.942866973 | T36: -4.971544402 | U36: -1.374106775 | V36: 2454.604257 | W36: 4.788674424 | X36: -43.12816186 | Y36: -5.34089563 | Z36: 26.74440145 | AA36: ='S3'!D20*100 -> -6.17616969 | AB36: -5.111039564 | AC36: -1.440543697 | AD36: 2378.104085 | AE36: 4.639430644 | AF36: -44.90062901 | AG36: -5.011795039 | AH36: 25.94868989 | AI36: ='S4'!D19*100 -> -5.678522741 | AJ36: -4.788733198 | AK36: -1.305111852 | AL36: 2408.152426 | AM36: 4.698051793 | AN36: -44.20442538 | AO36: -4.977742823 | AP36: 26.26123575 | AQ36: ='S5'!D33*100 -> -5.66476423 | AR36: -4.758764366 | AS36: -1.312152578 | AT36: 2489.4809 | AU36: 4.856715082 | AV36: -42.32008912 | AW36: -4.732293275 | AX36: 27.10716858 | AY36: ='S6'!D21*100 -> -5.417152047 | AZ36: -4.53012504 | BA36: -1.286257714 | BB36: 2915.39437 | BC36: 5.687627412 | BD36: -32.45190695 | BE36: -2.709019218 | BF36: 31.611119 | BG36: ='S7'!D18*100 -> -2.996934461 | BH36: -2.608249202 | BI36: -0.8465776126
B37: 2028 | C37: =IF(C36*(1+Ausgangsdaten!$M$83)<1,C36*(1+Ausgangsdaten!$M$83),1) -> 0.815730721 | D37: 513.161398 | E37: 7.357348412 | F37: 2063.596716 | G37: 4.021340506 | H37: -52.18759273 | I37: -5.696435974 | J37: 22.67736198 | K37: ='S1'!D19*100 -> -6.350505895 | L37: -5.408216597 | M37: -1.296561721 | N37: 2277.693253 | O37: 4.438551422 | P37: -47.22709307 | Q37: -5.432846899 | R37: 24.90427316 | S37: ='S2'!D21*100 -> -6.244535171 | T37: -5.181945138 | U37: -1.36105489 | V37: 2315.770043 | W37: 4.51275184 | X37: -46.34487466 | Y37: -5.656073205 | Z37: 25.30032642 | AA37: ='S3'!D21*100 -> -6.560133395 | AB37: -5.399541403 | AC37: -1.444075029 | AD37: 2254.800564 | AE37: 4.393940333 | AF37: -47.75750414 | AG37: -5.184950539 | AH37: 24.66615635 | AI37: ='S4'!D20*100 -> -5.92471941 | AJ37: -4.942575298 | AK37: -1.282533537 | AL37: 2283.44549 | AM37: 4.449760833 | AN37: -47.09381687 | AO37: -5.178531658 | AP37: 24.96410468 | AQ37: ='S5'!D34*100 -> -5.941220703 | AR37: -4.93933751 | AS37: -1.297131068 | AT37: 2365.819334 | AU37: 4.610283127 | AV37: -45.18525995 | AW37: -4.967363484 | AX37: 25.82091086 | AY37: ='S6'!D22*100 -> -5.727414816 | AZ37: -4.745083244 | BA37: -1.286257714 | BB37: 2834.216657 | BC37: 5.523051164 | BD37: -34.33275017 | BE37: -2.784450518 | BF37: 30.76454138 | BG37: ='S7'!D19*100 -> -3.089525515 | BH37: -2.678100743 | BI37: -0.8465776126
B38: 2029 | C38: =IF(C37*(1+Ausgangsdaten!$M$83)<1,C37*(1+Ausgangsdaten!$M$83),1) -> 1 | D38: 513.7381141 | E38: 7.408071944 | F38: 1945.674553 | G38: 3.787288697 | H38: -54.91978475 | I38: -5.714399624 | J38: 21.45080228 | K38: ='S1'!D20*100 -> -6.415025432 | L38: -5.408740652 | M38: -1.226559696 | N38: 2148.36952 | O38: 4.181837908 | P38: -50.22345322 | Q38: -5.677837977 | R38: 23.55912078 | S38: ='S2'!D22*100 -> -6.567457488 | T38: -5.401291457 | U38: -1.345152379 | V38: 2177.412413 | W38: 4.238370394 | X38: -49.55054527 | Y38: -5.974584156 | Z38: 23.86120854 | AA38: ='S3'!D22*100 -> -6.957428695 | AB38: -5.688139562 | AC38: -1.439117876 | AD38: 2133.456513 | AE38: 4.152809486 | AF38: -50.56897943 | AG38: -5.381586856 | AH38: 23.40400411 | AI38: ='S4'!D21*100 -> -6.203196892 | AJ38: -5.116939264 | AK38: -1.262152239 | AL38: 2160.061618 | AM38: 4.204596776 | AN38: -49.9525537 | AO38: -5.403407798 | AP38: 23.68073538 | AQ38: ='S5'!D35*100 -> -6.252331996 | AR38: -5.140858524 | AS38: -1.283369303 | AT38: 2242.157769 | AU38: 4.364398334 | AV38: -48.05043078 | AW38: -5.227007969 | AX38: 24.53465315 | AY38: ='S6'!D23*100 -> -6.075376849 | AZ38: -4.981457551 | BA38: -1.286257714 | BB38: 2753.038943 | BC38: 5.358837251 | BD38: -36.2135934 | BE38: -2.864202828 | BF38: 29.91796377 | BG38: ='S7'!D20*100 -> -3.188020213 | BH38: -2.751796629 | BI38: -0.8465776126
B39: 2030 | C39: =IF(C38*(1+Ausgangsdaten!$M$83)<1,C38*(1+Ausgangsdaten!$M$83),1) -> 1 | D39: 514.3154783 | E39: 7.459145177 | F39: 1834.119067 | G39: 3.566136243 | H39: -57.50446434 | I39: -5.733512086 | J39: 20.29046517 | K39: ='S1'!D21*100 -> -6.484668063 | L39: -5.409294726 | M39: -1.160337117 | N39: 2020.851378 | O39: 3.929205835 | P39: -53.17797882 | Q39: -5.935577692 | R39: 22.23274914 | S39: ='S2'!D23*100 -> -6.914263947 | T39: -5.62997091 | U39: -1.326371647 | V39: 2040.301691 | W39: 3.967023699 | X39: -52.72732571 | Y39: -6.296956938 | Z39: 22.4350603 | AA39: ='S3'!D23*100 -> -7.370520098 | AB39: -5.976848325 | AC39: -1.426148243 | AD39: 2013.936182 | AE39: 3.915760398 | AF39: -53.33820015 | AG39: -5.602192076 | AH39: 22.16082117 | AI39: ='S4'!D22*100 -> -6.516142275 | AJ39: -5.311838685 | AK39: -1.243182944 | AL39: 2037.931135 | AM39: 3.962414551 | AN39: -52.78225021 | AO39: -5.654027767 | AP39: 22.41040311 | AQ39: ='S5'!D36*100 -> -6.60187085 | AR39: -5.364412252 | AS39: -1.27033227 | AT39: 2118.496204 | AU39: 4.119059787 | AV39: -50.91560161 | AW39: -5.515292761 | AX39: 23.24839543 | AY39: ='S6'!D24*100 -> -6.468353713 | AZ39: -5.242616255 | BA39: -1.286257714 | BB39: 2671.861229 | BC39: 5.194985067 | BD39: -38.09443663 | BE39: -2.948658385 | BF39: 29.07138616 | BG39: ='S7'!D21*100 -> -4.156833234 | BH39: -2.829663205 | BI39: -0.8465776126
B40: 2031 | C40: =IF(C39*(1+Ausgangsdaten!$M$83)<1,C39*(1+Ausgangsdaten!$M$83),1) -> 1 | D40: 514.8934913 | E40: 7.510570522 | F40: 1728.586519 | G40: 3.357172984 | H40: -59.94959577 | I40: -5.753854824 | J40: 19.19277524 | K40: ='S1'!D22*100 -> -6.559948429 | L40: -5.409880545 | M40: -1.097689928 | N40: 1895.416351 | O40: 3.681181416 | P40: -56.08423979 | Q40: -6.207038692 | R40: 20.92804488 | S40: ='S2'!D24*100 -> -7.288125796 | T40: -5.868389255 | U40: -1.304704262 | V40: 1905.15591 | W40: 3.700097092 | X40: -55.85857955 | Y40: -6.623813607 | Z40: 21.02935026 | AA40: ='S3'!D24*100 -> -7.802425298 | AB40: -6.26568424 | AC40: -1.405710037 | AD40: 1896.174278 | AE40: 3.682653422 | AF40: -56.06667905 | AG40: -5.847350328 | AH40: 20.9359284 | AI40: ='S4'!D23*100 -> -6.866258638 | AJ40: -5.527289637 | AK40: -1.224892772 | AL40: 1917.035799 | AM40: 3.72316961 | AN40: -55.58332901 | AO40: -5.93225812 | AP40: 21.15291816 | AQ40: ='S5'!D37*100 -> -6.994367983 | AR40: -5.611166151 | AS40: -1.257484954 | AT40: 1994.834639 | AU40: 3.874266567 | AV40: -53.78077244 | AW40: -5.837233264 | AX40: 21.96213772 | AY40: ='S6'!D25*100 -> -6.915684659 | AZ40: -5.532673073 | BA40: -1.286257714 | BB40: 2569.388701 | BC40: 4.990136298 | BD40: -40.46866907 | BE40: -3.8352489 | BF40: 28.00273142 | BG40: ='S7'!D22*100 -> -4.337120084 | BH40: -3.675967613 | BI40: -1.06865474
B41: 2032 | C41: =IF(C40*(1+Ausgangsdaten!$M$83)<1,C40*(1+Ausgangsdaten!$M$83),1) -> 1 | D41: 515.472154 | E41: 7.562350407 | F41: 1628.751726 | G41: 3.15972786 | H41: -62.26271332 | I41: -5.775516098 | J41: 18.15435015 | K41: ='S1'!D23*100 -> -6.641449126 | L41: -5.410499936 | M41: -1.038425092 | N41: 1772.340777 | O41: 3.438286168 | P41: -58.93583353 | Q41: -6.493326601 | R41: 19.64788231 | S41: ='S2'!D25*100 -> -7.692908929 | T41: -6.116971625 | U41: -1.280162567 | V41: 1772.635368 | W41: 3.438857666 | X41: -58.92900802 | Y41: -6.955889596 | Z41: 19.65094648 | AA41: ='S3'!D25*100 -> -8.256872194 | AB41: -6.554666525 | AC41: -1.378403782 | AD41: 1780.170791 | AE41: 3.453476151 | AF41: -58.7544164 | AG41: -6.117765042 | AH41: 19.72932568 | AI41: ='S4'!D24*100 -> -7.256918222 | AJ41: -5.763311238 | AK41: -1.206602714 | AL41: 1797.40881 | AM41: 3.486917374 | AN41: -58.35502093 | AO41: -6.240206348 | AP41: 19.90862582 | AQ41: ='S5'!D38*100 -> -7.435315098 | AR41: -5.882367296 | AS41: -1.24429234 | AT41: 1871.173074 | AU41: 3.63001776 | AV41: -56.64594327 | AW41: -6.199088522 | AX41: 20.67588001 | AY41: ='S6'!D26*100 -> -7.42948437 | AZ41: -5.856705437 | BA41: -1.286257714 | BB41: 2466.916173 | BC41: 4.785740904 | BD41: -42.8429015 | BE41: -3.988206547 | BF41: 26.93407668 | BG41: ='S7'!D23*100 -> -4.533754459 | BH41: -3.816251793 | BI41: -1.06865474
B42: 2033 | C42: =IF(C41*(1+Ausgangsdaten!$M$83)<1,C41*(1+Ausgangsdaten!$M$83),1) -> 1 | D42: 516.051467 | E42: 7.614487277 | F42: 1534.307064 | G42: 2.973166753 | H42: -64.45094447 | I42: -5.798591651 | J42: 17.17199015 | K42: ='S1'!D24*100 -> -6.729832311 | L42: -5.411154831 | M42: -0.9823599951 | N42: 1651.897667 | O42: 3.201032789 | P42: -61.72643452 | Q42: -6.795708355 | R42: 18.39510114 | S42: ='S2'!D26*100 -> -8.133382134 | T42: -6.376163831 | U42: -1.252781165 | V42: 1643.33831 | W42: 3.184446544 | X42: -61.92475013 | Y42: -7.294058334 | Z42: 18.30607156 | AA42: ='S3'!D26*100 -> -8.738511325 | AB42: -6.84381755 | AC42: -1.344874924 | AD42: 1665.985499 | AE42: 3.228332067 | AF42: -61.40002716 | AG42: -6.414288566 | AH42: 18.54163481 | AI42: ='S4'!D25*100 -> -7.692370592 | AJ42: -6.019926326 | AK42: -1.187690871 | AL42: 1679.134799 | AM42: 3.253812665 | AN42: -61.09536506 | AO42: -6.580250957 | AP42: 18.6784064 | AQ42: ='S5'!D39*100 -> -7.931432776 | AR42: -6.179328627 | AS42: -1.230219414 | AT42: 1747.511509 | AU42: 3.386312452 | AV42: -59.5111141 | AW42: -6.608772158 | AX42: 19.38962229 | AY42: ='S6'!D27*100 -> -8.02575671 | AZ42: -6.22105426 | BA42: -1.286257714 | BB42: 2364.443644 | BC42: 4.581798125 | BD42: -45.21713394 | BE42: -4.153871523 | BF42: 25.86542194 | BG42: ='S7'!D24*100 -> -4.749065424 | BH42: -3.967667994 | BI42: -1.06865474
B43: 2034 | C43: =IF(C42*(1+Ausgangsdaten!$M$83)<1,C42*(1+Ausgangsdaten!$M$83),1) -> 1 | D43: 516.6314311 | E43: 7.666983593 | F43: 1444.961518 | G43: 2.796890454 | H43: -66.52103192 | I43: -5.823185497 | J43: 16.24266827 | K43: ='S1'!D25*100 -> -6.825853766 | L43: -5.411847275 | M43: -0.9293218811 | N43: 1534.354439 | O43: 2.969920811 | P43: -64.44984683 | Q43: -7.115648285 | R43: 17.17248291 | S43: ='S2'!D27*100 -> -8.615504236 | T43: -6.646433848 | U43: -1.222618229 | V43: 1517.797746 | W43: 2.937873414 | X43: -64.83345634 | Y43: -7.639362107 | Z43: 17.00026956 | AA43: ='S3'!D27*100 -> -9.2532079 | AB43: -7.133163422 | AC43: -1.305802 | AD43: 1553.732059 | AE43: 3.007428441 | AF43: -64.00087796 | AG43: -6.737960191 | AH43: 17.37403797 | AI43: ='S4'!D26*100 -> -8.178029974 | AJ43: -6.297162318 | AK43: -1.167596841 | AL43: 1562.349838 | AM43: 3.024109151 | AN43: -63.80120873 | AO43: -6.955067632 | AP43: 17.46367524 | AQ43: ='S5'!D40*100 -> -8.491030051 | AR43: -6.503398294 | AS43: -1.214731163 | AT43: 1623.849944 | AU43: 3.143149731 | AV43: -62.37628493 | AW43: -7.07643781 | AX43: 18.10336458 | AY43: ='S6'!D28*100 -> -8.726091591 | AZ43: -6.633743013 | BA43: -1.286257714 | BB43: 2261.971116 | BC43: 4.378307202 | BD43: -47.59136638 | BE43: -4.333895995 | BF43: 24.7967672 | BG43: ='S7'!D25*100 -> -4.985846538 | BH43: -4.131596006 | BI43: -1.06865474
B44: 2035 | C44: =IF(C43*(1+Ausgangsdaten!$M$83)<1,C43*(1+Ausgangsdaten!$M$83),1) -> 1 | D44: 517.212047 | E44: 7.719841832 | F44: 1360.439783 | G44: 2.630332744 | H44: -68.47935429 | I44: -5.849410802 | J44: 15.36352095 | K44: ='S1'!D26*100 -> -6.930380071 | L44: -5.41257943 | M44: -0.8791473217 | N44: 1419.970548 | O44: 2.745432085 | P44: -67.10005901 | Q44: -7.454854471 | R44: 15.98272633 | S44: ='S2'!D28*100 -> -9.146827031 | T44: -6.928273514 | U44: -1.189756585 | V44: 1396.479397 | W44: 2.700013284 | X44: -67.64433614 | Y44: -7.993051069 | Z44: 15.73838465 | AA44: ='S3'!D28*100 -> -9.808450526 | AB44: -7.422734679 | AC44: -1.261884904 | AD44: 1443.571596 | AE44: 2.791063364 | AF44: -66.55323565 | AG44: -7.090055383 | AH44: 16.22821109 | AI44: ='S4'!D27*100 -> -8.72087888 | AJ44: -6.595052266 | AK44: -1.145826885 | AL44: 1447.241434 | AM44: 2.798158787 | AN44: -66.46820751 | AO44: -7.367645951 | AP44: 16.26638267 | AQ44: ='S5'!D41*100 -> -9.124495929 | AR44: -6.855902641 | AS44: -1.197292572 | AT44: 1500.188379 | AU44: 2.900528685 | AV44: -65.24145576 | AW44: -7.615332046 | AX44: 16.81710686 | AY44: ='S6'!D29*100 -> -9.560335197 | AZ44: -7.105075459 | BA44: -1.286257714 | BB44: 2159.498587 | BC44: 4.175267378 | BD44: -49.96559882 | BE44: -4.530231517 | BF44: 23.72811246 | BG44: ='S7'!D26*100 -> -5.247477725 | BH44: -4.309653477 | BI44: -1.06865474
B45: 2036 | C45: =IF(C44*(1+Ausgangsdaten!$M$83)<1,C44*(1+Ausgangsdaten!$M$83),1) -> 1 | D45: 517.7933153 | E45: 7.77306449 | F45: 1280.481419 | G45: 2.472958575 | H45: -70.33194585 | I45: -5.877390886 | J45: 14.53183924 | K45: ='S1'!D27*100 -> -7.044409705 | L45: -5.413353586 | M45: -0.8316817123 | N45: 1308.995038 | O45: 2.528026144 | P45: -69.67130089 | Q45: -7.815338864 | R45: 14.82842179 | S45: ='S2'!D29*100 -> -9.73707197 | T45: -7.222200489 | U45: -1.154304539 | V45: 1279.78074 | W45: 2.471605373 | X45: -70.3481802 | Y45: -8.356632934 | Z45: 14.52455117 | AA45: ='S3'!D29*100 -> -10.41393488 | AB45: -7.712567127 | AC45: -1.213833481 | AD45: 1335.705759 | AE45: 2.579611825 | AF45: -69.0524281 | AG45: -7.472150137 | AH45: 15.10625161 | AI45: ='S4'!D28*100 -> -9.330046307 | AJ45: -6.913636201 | AK45: -1.121959477 | AL45: 1334.048529 | AM45: 2.576411262 | AN45: -69.09082521 | AO45: -7.821286914 | AP45: 15.08901404 | AQ45: ='S5'!D42*100 -> -9.844984901 | AR45: -7.238048252 | AS45: -1.177368626 | AT45: 1376.526813 | AU45: 2.658448405 | AV45: -68.10662659 | AW45: -8.243069131 | AX45: 15.53084915 | AY45: ='S6'!D30*100 -> -10.57095382 | AZ45: -7.648507703 | BA45: -1.286257714 | BB45: 2057.026059 | BC45: 3.972677897 | BD45: -52.33983126 | BE45: -4.745200066 | BF45: 22.65945772 | BG45: ='S7'!D27*100 -> -5.53808764 | BH45: -4.503749473 | BI45: -1.06865474
B46: 2037 | C46: =IF(C45*(1+Ausgangsdaten!$M$83)<1,C45*(1+Ausgangsdaten!$M$83),1) -> 1 | D46: 518.375237 | E46: 7.826654079 | F46: 1204.840048 | G46: 2.324262353 | H46: -72.08451505 | I46: -5.907260355 | J46: 13.74506044 | K46: ='S1'!D28*100 -> -7.169099172 | L46: -5.414172166 | M46: -0.7867787951 | N46: 1201.664041 | O46: 2.318135504 | P46: -72.15810138 | Q46: -8.199496077 | R46: 13.71202542 | S46: ='S2'!D30*100 -> -10.39897414 | T46: -7.52876056 | U46: -1.116396371 | V46: 1168.031093 | W46: 2.253254033 | X46: -72.93735839 | Y46: -8.731936901 | Z46: 13.3621945 | AA46: ='S3'!D30*100 -> -11.08241636 | AB46: -8.002702848 | AC46: -1.16235667 | AD46: 1230.369252 | AE46: 2.373510855 | AF46: -71.49301735 | AG46: -7.886205931 | AH46: 14.0106008 | AI46: ='S4'!D29*100 -> -10.01765467 | AJ46: -7.252962823 | AK46: -1.095650813 | AL46: 1223.061504 | AM46: 2.359413445 | AN46: -71.66233388 | AO46: -8.319564299 | AP46: 13.93458973 | AQ46: ='S5'!D43*100 -> -10.66939451 | AR46: -7.650760406 | AS46: -1.154424312 | AT46: 1252.865248 | AU46: 2.416907983 | AV46: -70.97179742 | AW46: -8.983592905 | AX46: 14.24459144 | AY46: ='S6'!D31*100 -> -11.82049263 | AZ46: -8.281953559 | BA46: -1.286257714 | BB46: 1954.553531 | BC46: 3.770538003 | BD46: -54.71406369 | BE46: -4.981586303 | BF46: 21.59080298 | BG46: ='S7'!D28*100 -> -5.862773155 | BH46: -4.716153198 | BI46: -1.06865474
B47: 2038 | C47: =IF(C46*(1+Ausgangsdaten!$M$83)<1,C46*(1+Ausgangsdaten!$M$83),1) -> 1 | D47: 518.9578126 | E47: 7.880613129 | F47: 1133.282593 | G47: 2.18376632 | H47: -73.74246215 | I47: -5.939166396 | J47: 13.00076023 | K47: ='S1'!D29*100 -> -7.305795607 | L47: -5.415037732 | M47: -0.7443002092 | N47: 1098.19827 | O47: 2.116160975 | P47: -74.55534671 | Q47: -8.610207797 | R47: 12.63583294 | S47: ='S2'!D31*100 -> -11.14954938 | T47: -7.848530352 | U47: -1.076192477 | V47: 1061.49268 | W47: 2.045431544 | X47: -75.40579516 | Y47: -9.121196692 | Z47: 12.25404213 | AA47: ='S3'!D31*100 -> -11.8309885 | AB47: -8.293191415 | AC47: -1.108152367 | AD47: 1127.821873 | AE47: 2.173243848 | AF47: -73.86898403 | AG47: -8.334683145 | AH47: 12.94396092 | AI47: ='S4'!D30*100 -> -10.80009238 | AJ47: -7.613091647 | AK47: -1.066639879 | AL47: 1114.622175 | AM47: 2.147808835 | AN47: -74.17481382 | AO47: -8.866220422 | AP47: 12.80666511 | AQ47: ='S5'!D44*100 -> -11.61979493 | AR47: -8.094422846 | AS47: -1.127924615 | AT47: 1129.203683 | AU47: 2.17590651 | AV47: -73.83696825 | AW47: -9.870300522 | AX47: 12.95833372 | AY47: ='S6'!D32*100 -> -13.40503365 | AZ47: -9.029797167 | BA47: -1.286257714 | BB47: 1852.081002 | BC47: 3.568846941 | BD47: -57.08829613 | BE47: -5.24275886 | BF47: 20.52214824 | BG47: ='S7'!D29*100 -> -6.227900855 | BH47: -4.949583121 | BI47: -1.06865474
B48: 2039 | C48: =IF(C47*(1+Ausgangsdaten!$M$83)<1,C47*(1+Ausgangsdaten!$M$83),1) -> 1 | D48: 519.541043 | E48: 7.934944188 | F48: 1065.588561 | G48: 2.05101902 | H48: -75.31089585 | I48: -5.973270252 | J48: 12.29664517 | K48: ='S1'!D30*100 -> -7.456077804 | L48: -5.415952999 | M48: -0.7041150637 | N48: 998.8005333 | O48: 1.922467044 | P48: -76.85833791 | Q48: -9.050982857 | R48: 11.60195385 | S48: ='S2'!D32*100 -> -12.01205354 | T48: -8.182120585 | U48: -1.033879088 | V48: 960.3625775 | W48: 1.848482599 | X48: -77.74892433 | Y48: -9.527159665 | Z48: 11.20214396 | AA48: ='S3'!D32*100 -> -12.68305767 | AB48: -8.584091365 | AC48: -1.051898173 | AD48: 1028.340153 | AE48: 1.979324189 | AF48: -76.17392107 | AG48: -8.820694326 | AH48: 11.90920829 | AI48: ='S4'!D31*100 -> -11.69998286 | AJ48: -7.994095752 | AK48: -1.03475263 | AL48: 1009.123796 | AM48: 1.942337009 | AN48: -76.61915357 | AO48: -9.464945316 | AP48: 11.70933059 | AQ48: ='S5'!D45*100 -> -12.72558045 | AR48: -8.568464235 | AS48: -1.09733452 | AT48: 1005.542118 | AU48: 1.935443083 | AV48: -76.70213908 | AW48: -10.95121872 | AX48: 11.67207601 | AY48: ='S6'!D33*100 -> -15.48015342 | AZ48: -9.926104247 | BA48: -1.286257714 | BB48: 1749.608474 | BC48: 3.36760396 | BD48: -59.46252857 | BE48: -5.532831894 | BF48: 19.4534935 | BG48: ='S7'!D30*100 -> -6.641528676 | BH48: -5.207323948 | BI48: -1.06865474
B49: 2040 | C49: =IF(C48*(1+Ausgangsdaten!$M$83)<1,C48*(1+Ausgangsdaten!$M$83),1) -> 1 | D49: 520.1249288 | E49: 7.989649819 | F49: 1001.549364 | G49: 1.925593849 | H49: -76.79464902 | I49: -6.009748908 | J49: 11.63054563 | K49: ='S1'!D31*100 -> -7.621808345 | L49: -5.416920838 | M49: -0.6660995346 | N49: 903.6533193 | O49: 1.737377444 | P49: -79.06284683 | Q49: -9.5261477 | R49: 10.61228631 | S49: ='S2'!D33*100 -> -13.01911739 | T49: -8.53018001 | U49: -0.9896675484 | V49: 864.7754625 | W49: 1.662630292 | X49: -79.9636255 | Y49: -9.953231958 | Z49: 10.20790081 | AA49: ='S3'!D33*100 -> -13.67150099 | AB49: -8.87547199 | AC49: -0.9942431495 | AD49: 932.2087141 | AE49: 1.792278475 | AF49: -78.40123394 | AG49: -9.348214119 | AH49: 10.90930338 | AI49: ='S4'!D32*100 -> -12.74933759 | AJ49: -8.3960653 | AK49: -0.9999049047 | AL49: 907.0110555 | AM49: 1.743833078 | AN49: -78.98504991 | AO49: -10.11895077 | AP49: 10.64721158 | AQ49: ='S5'!D46*100 -> -14.02681774 | AR49: -9.070706524 | AS49: -1.062119014 | AT49: 881.8805528 | AU49: 1.695516796 | AV49: -79.56730991 | AW49: -12.29799955 | AX49: 10.38581829 | AY49: ='S6'!D34*100 -> -18.31540644 | AZ49: -11.01995663 | BA49: -1.286257714 | BB49: 1647.135945 | BC49: 3.166808307 | BD49: -61.83676101 | BE49: -5.856883408 | BF49: 18.38483876 | BG49: ='S7'!D31*100 -> -3.98587964 | BH49: -5.493382152 | BI49: -1.06865474
B50: 2041 | C50: =IF(C49*(1+Ausgangsdaten!$M$83)<1,C49*(1+Ausgangsdaten!$M$83),1) -> 1 | D50: 520.7094708 | E50: 8.044732606 | F50: 940.9676756 | G50: 1.807087691 | H50: -78.1982936 | I50: -6.048797032 | J50: 11.00040915 | K50: ='S1'!D32*100 -> -7.805200471 | L50: -5.41794429 | M50: -0.6301364831 | N50: 812.916502 | O50: 1.561170955 | P50: -81.16516926 | Q50: -10.04110928 | R50: 9.668493211 | S50: ='S2'!D34*100 -> -14.21796989 | T50: -8.893400225 | U50: -0.9437930942 | V50: 774.8070404 | W50: 1.487983384 | X50: -82.04814464 | Y50: -10.40367425 | Z50: 9.272100129 | AA50: ='S3'!D34*100 -> -14.84392684 | AB50: -9.167415507 | AC50: -0.9358006819 | AD50: 839.7115051 | AE50: 1.612629599 | AF50: -80.54434369 | AG50: -9.922371203 | AH50: 9.947199691 | AI50: ='S4'!D33*100 -> -13.99481332 | AJ50: -8.81911209 | AK50: -0.9621036937 | AL50: 808.780081 | AM50: 1.553227138 | AN50: -81.26100787 | AO50: -10.83018492 | AP50: 9.625468498 | AQ50: ='S5'!D47*100 -> -15.57966656 | AR50: -9.596344307 | AS50: -1.021743082 | AT50: 758.2189877 | AU50: 1.456126747 | AV50: -82.43248075 | AW50: -14.02248465 | AX50: 9.09956058 | AY50: ='S6'!D35*100 -> -22.42210635 | AZ50: -12.3847508 | BA50: -1.286257714 | BB50: 1589.722011 | BC50: 3.052992311 | BD50: -63.16701048 | BE50: -3.485682831 | BF50: 17.78608635 | BG50: ='S7'!D32*100 -> -4.151347349 | BH50: -3.256772716 | BI50: -0.5987524127
B51: 2042 | C51: =IF(C50*(1+Ausgangsdaten!$M$83)<1,C50*(1+Ausgangsdaten!$M$83),1) -> 1 | D51: 521.2946698 | E51: 8.100195148 | F51: 883.6568234 | G51: 1.695119622 | H51: -79.5261547 | I51: -6.090629214 | J51: 10.40429406 | K51: ='S1'!D33*100 -> -8.008904818 | L51: -5.419026573 | M51: -0.5961150951 | N51: 726.7252083 | O51: 1.394077573 | P51: -83.16217439 | Q51: -10.60272408 | R51: 8.771980085 | S51: ='S2'!D35*100 -> -15.67957238 | T51: -9.27252165 | U51: -0.8965131263 | V51: 690.47805 | W51: 1.324544619 | X51: -84.00200122 | Y51: -10.88386992 | Z51: 8.394957629 | AA51: ='S3'!D35*100 -> -16.27187592 | AB51: -9.460019716 | AC51: -0.8771425003 | AD51: 751.1231066 | AE51: 1.440880082 | AF51: -82.59688843 | AG51: -10.54986122 | AH51: 9.025753235 | AI51: ='S4'!D34*100 -> -15.50691343 | AJ51: -9.263375462 | AK51: -0.9214464553 | AL51: 714.978435 | AM51: 1.371543728 | AN51: -83.4343407 | AO51: -11.59791744 | AP51: 8.649796788 | AQ51: ='S5'!D48*100 -> -17.46558307 | AR51: -10.13635555 | AS51: -0.9756717106 | AT51: 634.5574226 | AU51: 1.217272033 | AV51: -85.29765158 | AW51: -16.30947881 | AX51: 7.813302866 | AY51: ='S6'!D36*100 -> -28.90270062 | AZ51: -14.13538272 | BA51: -1.286257714 | BB51: 1532.308076 | BC51: 2.93942786 | BD51: -64.49725995 | BE51: -3.611570732 | BF51: 17.18733393 | BG51: ='S7'!D33*100 -> -4.331148362 | BH51: -3.366409007 | BI51: -0.5987524127
B52: 2043 | C52: =IF(C51*(1+Ausgangsdaten!$M$83)<1,C51*(1+Ausgangsdaten!$M$83),1) -> 1 | D52: 521.8805264 | E52: 8.156040063 | F52: 829.4402132 | G52: 1.589329686 | H52: -80.7823239 | I52: -6.135482548 | J52: 9.840363518 | K52: ='S1'!D34*100 -> -8.236123261 | L52: -5.420171094 | M52: -0.563930539 | N52: 645.1879051 | O52: 1.23627511 | P52: -85.05134911 | Q52: -11.21982591 | R52: 7.923875138 | S52: ='S2'!D36*100 -> -17.51556318 | T52: -9.668341003 | U52: -0.8481049474 | V52: 611.7587278 | W52: 1.172219879 | X52: -85.82588487 | Y52: -11.40069872 | Z52: 7.576163727 | AA52: ='S3'!D36*100 -> -18.06789902 | AB52: -9.753401244 | AC52: -0.8187939018 | AD52: 666.7003079 | AE52: 1.277496044 | AF52: -84.5529185 | AG52: -11.23954223 | AH52: 8.147634994 | AI52: ='S4'!D35*100 -> -17.39707399 | AJ52: -9.729030019 | AK52: -0.8781182417 | AL52: 626.2051169 | AM52: 1.19990129 | AN52: -85.49116993 | AO52: -12.41622316 | AP52: 7.726426903 | AQ52: ='S5'!D49*100 -> -19.80788516 | AR52: -10.67504714 | AS52: -0.9233698845 | AT52: 510.8958574 | AU52: 0.9789517553 | AV52: -88.16282241 | AW52: -19.48784472 | AX52: 6.527045152 | AY52: ='S6'!D37*100 -> -40.65231854 | AZ52: -16.46240695 | BA52: -1.286257714 | BB52: 1474.894141 | BC52: 2.826114534 | BD52: -65.82750942 | BE52: -3.746892401 | BF52: 16.58858152 | BG52: ='S7'!D34*100 -> -4.527229383 | BH52: -3.483684061 | BI52: -0.5987524127
B53: 2044 | C53: =IF(C52*(1+Ausgangsdaten!$M$83)<1,C52*(1+Ausgangsdaten!$M$83),1) -> 1 | D53: 522.4670415 | E53: 8.212269989 | F53: 778.1507853 | G53: 1.489377747 | H53: -81.9706719 | I53: -6.18361964 | J53: 9.306879874 | K53: ='S1'!D35*100 -> -8.490760274 | L53: -5.42138146 | M53: -0.5334836434 | N53: 568.3847546 | O53: 1.087886334 | P53: -86.8308361 | Q53: -11.90399725 | R53: 7.125012171 | S53: ='S2'!D37*100 -> -19.91209343 | T53: -10.08172078 | U53: -0.7988629662 | V53: 538.5736165 | W53: 1.030827925 | X53: -87.52154387 | Y53: -11.96306779 | Z53: 6.81493356 | AA53: ='S3'!D37*100 -> -20.41969051 | AB53: -10.04769954 | AC53: -0.7612301676 | AD53: 586.6741863 | AE53: 1.12289224 | AF53: -86.40707997 | AG53: -12.00331252 | AH53: 7.315248504 | AI53: ='S4'!D36*100 -> -19.85182452 | AJ53: -10.21629578 | AK53: -0.8323864899 | AL53: 543.110563 | AM53: 1.039511624 | AN53: -87.4164253 | AO53: -13.26954247 | AP53: 6.862124313 | AQ53: ='S5'!D50*100 -> -22.80384293 | AR53: -11.18631679 | AS53: -0.8643025899 | AT53: 387.2342923 | AU53: 0.7411650143 | AV53: -91.02799324 | AW53: -24.20484788 | AX53: 5.240787438 | AY53: ='S6'!D38*100 -> -68.49857911 | AZ53: -19.7065852 | BA53: -1.286257714 | BB53: 1417.480206 | BC53: 2.713051912 | BD53: -67.15775888 | BE53: -3.892749538 | BF53: 15.98982911 | BG53: ='S7'!D35*100 -> -4.741906361 | BH53: -3.609425025 | BI53: -0.5987524127
B54: 2045 | C54: =IF(C53*(1+Ausgangsdaten!$M$83)<1,C53*(1+Ausgangsdaten!$M$83),1) -> 1 | D54: 523.0542157 | E54: 8.268887578 | F54: 729.6304996 | G54: 1.394942394 | H54: -83.09486038 | I54: -6.235332102 | J54: 8.802199283 | K54: ='S1'!D36*100 -> -8.777627098 | L54: -5.422661492 | M54: -0.5046805911 | N54: 496.366289 | O54: 0.9489767488 | P54: -88.49946456 | Q54: -12.67072437 | R54: 6.375916793 | S54: ='S2'!D38*100 -> -23.2041042 | T54: -10.51360139 | U54: -0.7490953784 | V54: 470.8066055 | W54: 0.9001105266 | X54: -89.09166845 | Y54: -12.58268301 | Z54: 6.11005941 | AA54: ='S3'!D38*100 -> -23.66512255 | AB54: -10.34308175 | AC54: -0.7048741496 | AD54: 511.2429167 | AE54: 0.9774185951 | AF54: -88.15478123 | AG54: -12.85743799 | AH54: 6.530655066 | AI54: ='S4'!D37*100 -> -23.20790084 | AJ54: -10.7254516 | AK54: -0.7845934377 | AL54: 466.3966457 | AM54: 0.8916793551 | AN54: -89.1938448 | AO54: -14.12491718 | AP54: 6.064189501 | AQ54: ='S5'!D51*100 -> -26.79306793 | AR54: -11.62810197 | AS54: -0.7979348124 | AT54: 263.5727272 | AU54: 0.5039109126 | AV54: -93.89316407 | AW54: -31.93455941 | AX54: 3.954529724 | AY54: ='S6'!D39*100 -> -100 | AZ54: -24.54321472 | BA54: -1.286257714 | BB54: 1360.066271 | BC54: 2.600239574 | BD54: -68.48800835 | BE54: -4.050422335 | BF54: 15.3910767 | BG54: ='S7'!D36*100 -> -4.977956392 | BH54: -3.744582938 | BI54: -0.5987524127
B55: 2046 | C55: =IF(C54*(1+Ausgangsdaten!$M$83)<1,C54*(1+Ausgangsdaten!$M$83),1) -> 1 | D55: 523.6420498 | E55: 8.325895505 | F55: 683.7298487 | G55: 1.305719907 | H55: -84.15835336 | I55: -6.290944653 | J55: 8.324766653 | K55: ='S1'!D37*100 -> -9.102721513 | L55: -5.424015236 | M55: -0.4774326302 | N55: 429.1524515 | O55: 0.8195530739 | P55: -90.05677241 | Q55: -13.54117695 | R55: 5.676796441 | S55: ='S2'!D39*100 -> -28.06045311 | T55: -10.96501687 | U55: -0.6991203521 | V55: 408.3060962 | W55: 0.7797427582 | X55: -90.53977106 | Y55: -13.27519804 | Z55: 5.459964434 | AA55: ='S3'!D39*100 -> -28.47963425 | AB55: -10.63974885 | AC55: -0.6500949758 | AD55: 440.5655287 | AE55: 0.8413486443 | AF55: -89.79233766 | AG55: -13.8246195 | AH55: 5.79550882 | AI55: ='S4'!D38*100 -> -28.13987873 | AJ55: -11.25685309 | AK55: -0.7351462465 | AL55: 396.8166745 | AM55: 0.7578013926 | AN55: -90.80597468 | AO55: -14.91862599 | AP55: 5.340457963 | AQ55: ='S5'!D52*100 -> -32.42333156 | AR55: -11.93451388 | AS55: -0.7237315378 | AT55: 206.7027152 | AU55: 0.3947404822 | AV55: -95.21081114 | AW55: -21.57659199 | AX55: 3.363 | AY55: ='S6'!D40*100 -> -100 | AZ55: -14.95828241 | BA55: -0.5915297243 | BB55: 1302.652336 | BC55: 2.487677101 | BD55: -69.81825782 | BE55: -4.221407153 | BF55: 14.79232428 | BG55: ='S7'!D37*100 -> -5.23873851 | BH55: -3.890256832 | BI55: -0.5987524127
B56: 2047 | C56: =IF(C55*(1+Ausgangsdaten!$M$83)<1,C55*(1+Ausgangsdaten!$M$83),1) -> 1 | D56: 524.2305445 | E56: 8.383296459 | F56: 640.3073972 | G56: 1.221423291 | H56: -85.16442781 | I56: -6.35081993 | J56: 7.873110852 | K56: ='S1'!D38*100 -> -9.473618031 | L56: -5.425446975 | M56: -0.4516558005 | N56: 366.7320476 | O56: 0.699562533 | P56: -91.50301903 | Q56: -14.54504192 | R56: 5.027534676 | S56: ='S2'!D40*100 -> -36.03677173 | T56: -11.4371155 | U56: -0.6492617654 | V56: 350.8901907 | W56: 0.6693432772 | X56: -91.87006619 | Y56: -14.06197607 | Z56: 4.862756633 | AA56: ='S3'!D40*100 -> -36.43754605 | AB56: -10.93794307 | AC56: -0.5972078013 | AD56: 374.7568166 | AE56: 0.7148702427 | AF56: -91.31708952 | AG56: -14.93732664 | AH56: 5.111003788 | AI56: ='S4'!D39*100 -> -36.22241168 | AJ56: -11.81095661 | AK56: -0.6845050319 | AL56: 335.1753952 | AM56: 0.6393663984 | AN56: -92.23416941 | AO56: -15.53394384 | AP56: 4.699300211 | AQ56: ='S5'!D53*100 -> -41.13435256 | AR56: -12.00566985 | AS56: -0.6411577518 | AT56: 206.7027152 | AU56: 0.3942973514 | AV56: -95.21081114 | AW56: 0 | AX56: 3.363 | AY56: ='S6'!D41*100 -> -100 | AZ56: 0 | BA56: 0 | BB56: 1245.238401 | BC56: 2.375364073 | BD56: -71.14850729 | BE56: -4.40746416 | BF56: 14.19357187 | BG56: ='S7'!D38*100 -> -5.528354549 | BH56: -4.047723679 | BI56: -0.5987524127
B57: 2048 | C57: =IF(C56*(1+Ausgangsdaten!$M$83)<1,C56*(1+Ausgangsdaten!$M$83),1) -> 1 | D57: 524.8197007 | E57: 8.441093151 | F57: 599.2293459 | G57: 1.141781349 | H57: -86.11618379 | I57: -6.41536417 | J57: 7.445840178 | K57: ='S1'!D39*100 -> -9.900022952 | L57: -5.426961248 | M57: -0.427270675 | N57: 309.0626424 | O57: 0.5888929893 | P57: -92.83918761 | Q57: -15.72521561 | R57: 4.427690114 | S57: ='S2'!D41*100 -> -51.769975 | T57: -11.93118696 | U57: -0.5998445614 | V57: 298.3518129 | W57: 0.5684844005 | X57: -93.08735167 | Y57: -14.97288302 | Z57: 4.316282119 | AA57: ='S3'!D41*100 -> -52.2516137 | AB57: -11.23795729 | AC57: -0.5464745137 | AD57: 313.8835682 | AE57: 0.5980788598 | AF57: -92.7274894 | AG57: -16.24339992 | AH57: 4.477834659 | AI57: ='S4'!D40*100 -> -52.17473445 | AJ57: -12.38835177 | AK57: -0.6331691282 | AL57: 282.3289901 | AM57: 0.5379542531 | AN57: -93.45859171 | AO57: -15.76679132 | AP57: 4.149621771 | AQ57: ='S5'!D54*100 -> -57.04883909 | AR57: -11.69702754 | AS57: -0.5496784401 | AT57: 206.7027152 | AU57: 0.3938547181 | AV57: -95.21081114 | AW57: 0 | AX57: 3.363 | AY57: ='S6'!D42*100 -> -100 | AZ57: 0 | BA57: 0 | BB57: 1187.824467 | BC57: 2.263300073 | BD57: -72.47875676 | BE57: -4.610678147 | BF57: 13.59481946 | BG57: ='S7'!D39*100 -> -5.851866475 | BH57: -4.218475928 | BI57: -0.5987524127
B58: 2049 | C58: =IF(C57*(1+Ausgangsdaten!$M$83)<1,C57*(1+Ausgangsdaten!$M$83),1) -> 1 | D58: 525.4095189 | E58: 8.499288309 | F58: 560.3691193 | G58: 1.066537813 | H58: -87.01655399 | I58: -6.485033951 | J58: 7.041638063 | K58: ='S1'!D40*100 -> -10.39458167 | L58: -5.428562862 | M58: -0.4042021147 | N58: 256.0709337 | O58: 0.4873739901 | P58: -94.06697652 | Q58: -17.14594436 | R58: 3.876500308 | S58: ='S2'!D42*100 -> -98.07385613 | T58: -12.4486988 | U58: -0.5511898059 | V58: 250.4636804 | W58: 0.4767018324 | X58: -94.19689351 | Y58: -16.05089375 | Z58: 3.818176829 | AA58: ='S3'!D42*100 -> -99.35938362 | AB58: -11.54014674 | AC58: -0.4981052904 | AD58: 257.9622428 | AE58: 0.4909736757 | AF58: -94.02315592 | AG58: -17.81594549 | AH58: 3.896172636 | AI58: ='S4'!D41*100 -> -99.5016356 | AJ58: -12.98980573 | AK58: -0.5816620231 | AL58: 239.1850782 | AM58: 0.4552355251 | AN58: -94.45821255 | AO58: -15.28143172 | AP58: 3.700863183 | AQ58: ='S5'!D55*100 -> -100 | AR58: -10.81444559 | AS58: -0.4487585885 | AT58: 206.7027152 | AU58: 0.3934125816 | AV58: -95.21081114 | AW58: 0 | AX58: 3.363 | AY58: ='S6'!D43*100 -> -100 | AZ58: 0 | BA58: 0 | BB58: 1130.410532 | BC58: 2.151484682 | BD58: -73.80900623 | BE58: -4.83353698 | BF58: 12.99606705 | BG58: ='S7'!D40*100 -> -6.215594783 | BH58: -4.404268954 | BI58: -0.5987524127
B59: 2050 | C59: =IF(C58*(1+Ausgangsdaten!$M$83)<1,C58*(1+Ausgangsdaten!$M$83),1) -> 1 | D59: =$S$12 -> 526 | E59: =Ausgangsdaten!E69 -> 8.55788468 | F59: 523.6069761 | G59: 0.995450525 | H59: -87.86831274 | I59: -6.560344232 | J59: 6.659259025 | L59: -5.430256912 | M59: -0.3823790377 | N59: 207.6536181 | O59: 0.3947787417 | P59: -95.18877924 | Q59: -18.90777483 | R59: 3.372890755 | T59: -12.99134563 | U59: -0.5036095534 | V59: 206.9830551 | W59: 0.3935039071 | X59: -95.20431582 | Y59: -17.36005205 | Z59: 3.365915937 | AB59: -11.84494359 | AC59: -0.4522608915 | AD59: 206.9581745 | AE59: 0.3934566055 | AF59: -95.20489229 | AG59: -19.77191225 | AH59: 3.365657143 | AJ59: -13.6163241 | AK59: -0.5305154937 | AL59: 206.7027152 | AM59: 0.3929709415 | AN59: -95.21081114 | AO59: -13.58043036 | AP59: 3.363 | AR59: -9.129307568 | AS59: -0.3378631826 | AT59: 206.7027152 | AU59: 0.3929709415 | AV59: -95.21081114 | AW59: 0 | AX59: 3.363 | AZ59: 0 | BA59: 0 | BB59: 1072.996597 | BC59: 2.039917485 | BD59: -75.1392557 | BE59: -5.079033965 | BF59: 12.39731463 | BH59: -4.607181623 | BI59: -0.5987524127
B60: ∑ | F60: =SUM(F29:F59) -> 48043.29909 | J60: =SUM(J29:J59) -> 537.3220961 | N60: =SUM(N29:N59) -> 48054.95846 | R60: =SUM(R29:R59) -> 537.4433703 | V60: =SUM(V29:V59) -> 48089.84328 | Z60: =SUM(Z29:Z59) -> 537.8062225 | AD60: =SUM(AD29:AD59) -> 48053.58683 | AH60: =SUM(AH29:AH59) -> 537.4291033 | AL60: =SUM(AL29:AL59) -> 47998.70234 | AP60: =SUM(AP29:AP59) -> 536.858226 | AT60: =SUM(AT29:AT59) -> 48076.41315 | AX60: =SUM(AX29:AX59) -> 537.6665299 | BB60: =SUM(BB29:BB59) -> 68251.46404 | BF60: =SUM(BF29:BF59) -> 749.2018722
B62: Hält das Szenario die Randbedingungen ein? | H62: =Zielwertsuche!C52 -> nein | P62: =Zielwertsuche!D52 -> ja | X62: =Zielwertsuche!E52 -> ja | AF62: =Zielwertsuche!F52 -> ja | AN62: =Zielwertsuche!G52 -> ja | AV62: =Zielwertsuche!H52 -> ja | BD62: =Zielwertsuche!I52 -> nein
B64: Budget Ausgangsdaten (BG): | E64: =Ausgangsdaten!L58 -> 537.9465736 | F64: Mrd. t | H64: Budget des ausgewählten Landes, wenn der Emissionspfad durchgehend mit der Regensburger Formel ermittelt wurde (BGi): | U64: =(31*S14/1000+(J60-31*S8)*(F28-S14)/1000/(J28-S8))*1000 -> 48043.29909 | V64: Mill. t
R78: genaue Ermittlung 2050: | V78: =D59*S13 -> 206.7027152 | W78: =V78/D59 -> 0.3929709415 | X78: =IF(V$26<>"keine Daten",(V78-V$26)/V$26*100,0) -> -95.21081114
B90: drop-down-list
B91: ='Daten Länder'!B14 -> Afghanistan | D91: =Ausgangsdaten!B121 -> mit FOLU
B92: ='Daten Länder'!B15 -> Albania | D92: =Ausgangsdaten!B122 -> ohne FOLU
B93: ='Daten Länder'!B16 -> Algeria
B94: ='Daten Länder'!B17 -> American Samoa
B95: ='Daten Länder'!B18 -> Andorra
B96: ='Daten Länder'!B19 -> Angola
B97: ='Daten Länder'!B20 -> Anguilla
B98: ='Daten Länder'!B21 -> Antigua and Barbuda
B99: ='Daten Länder'!B22 -> Argentina
B100: ='Daten Länder'!B23 -> Armenia
B101: ='Daten Länder'!B24 -> Aruba
B102: ='Daten Länder'!B25 -> Australia
B103: ='Daten Länder'!B26 -> Austria
B104: ='Daten Länder'!B27 -> Azerbaijan
B105: ='Daten Länder'!B28 -> Bahamas
B106: ='Daten Länder'!B29 -> Bahrain
B107: ='Daten Länder'!B30 -> Bangladesh
B108: ='Daten Länder'!B31 -> Barbados
B109: ='Daten Länder'!B32 -> Belarus
B110: ='Daten Länder'!B33 -> Belgium
B111: ='Daten Länder'!B34 -> Belize
B112: ='Daten Länder'!B35 -> Benin
B113: ='Daten Länder'!B36 -> Bermuda
B114: ='Daten Länder'!B37 -> Bhutan
B115: ='Daten Länder'!B38 -> Bolivia
B116: ='Daten Länder'!B39 -> Bosnia and Herzegovina
B117: ='Daten Länder'!B40 -> Botswana
B118: ='Daten Länder'!B41 -> Brazil
B119: ='Daten Länder'!B42 -> British Virgin Islands
B120: ='Daten Länder'!B43 -> Brunei Darussalam
B121: ='Daten Länder'!B44 -> Bulgaria
B122: ='Daten Länder'!B45 -> Burkina Faso
B123: ='Daten Länder'!B46 -> Burundi
B124: ='Daten Länder'!B47 -> Cambodia
B125: ='Daten Länder'!B48 -> Cameroon
B126: ='Daten Länder'!B49 -> Canada
B127: ='Daten Länder'!B50 -> Cape Verde
B128: ='Daten Länder'!B51 -> Cayman Islands
B129: ='Daten Länder'!B52 -> Central African Republic
B130: ='Daten Länder'!B53 -> Chad
B131: ='Daten Länder'!B54 -> Channel Islands
B132: ='Daten Länder'!B55 -> Chile
B133: ='Daten Länder'!B56 -> China
B134: ='Daten Länder'!B57 -> China, Hong Kong SAR
B135: ='Daten Länder'!B58 -> China, Macao SAR
B136: ='Daten Länder'!B59 -> Colombia
B137: ='Daten Länder'!B60 -> Comoros
B138: ='Daten Länder'!B61 -> Congo
B139: ='Daten Länder'!B62 -> Cook Islands
B140: ='Daten Länder'!B63 -> Costa Rica
B141: ='Daten Länder'!B64 -> Cote d'Ivoire
B142: ='Daten Länder'!B65 -> Croatia
B143: ='Daten Länder'!B66 -> Cuba
B144: ='Daten Länder'!B67 -> Curaçao
B145: ='Daten Länder'!B68 -> Cyprus
B146: ='Daten Länder'!B69 -> Czech Republic
B147: ='Daten Länder'!B70 -> Dem. Rep. of the Congo
B148: ='Daten Länder'!B71 -> Denmark
B149: ='Daten Länder'!B72 -> Djibouti
B150: ='Daten Länder'!B73 -> Dominica
B151: ='Daten Länder'!B74 -> Dominican Republic
B152: ='Daten Länder'!B75 -> Ecuador
B153: ='Daten Länder'!B76 -> Egypt
B154: ='Daten Länder'!B77 -> El Salvador
B155: ='Daten Länder'!B78 -> Equatorial Guinea
B156: ='Daten Länder'!B79 -> Eritrea
B157: ='Daten Länder'!B80 -> Estonia
B158: ='Daten Länder'!B81 -> Ethiopia
B159: ='Daten Länder'!B82 -> EU28
B160: ='Daten Länder'!B83 -> Faeroe Islands
B161: ='Daten Länder'!B84 -> Falkland Islands (Malvinas)
B162: ='Daten Länder'!B85 -> Fiji
B163: ='Daten Länder'!B86 -> Finland
B164: ='Daten Länder'!B87 -> France
B165: ='Daten Länder'!B88 -> French Guiana
B166: ='Daten Länder'!B89 -> French Polynesia
B167: ='Daten Länder'!B90 -> Gabon
B168: ='Daten Länder'!B91 -> Gambia
B169: ='Daten Länder'!B92 -> Georgia
B170: ='Daten Länder'!B93 -> Germany
B171: ='Daten Länder'!B94 -> Ghana
B172: ='Daten Länder'!B95 -> Gibraltar
B173: ='Daten Länder'!B96 -> Greece
B174: ='Daten Länder'!B97 -> Greenland
B175: ='Daten Länder'!B98 -> Grenada
B176: ='Daten Länder'!B99 -> Guadeloupe
B177: ='Daten Länder'!B100 -> Guam
B178: ='Daten Länder'!B101 -> Guatemala
B179: ='Daten Länder'!B102 -> Guinea
B180: ='Daten Länder'!B103 -> Guinea-Bissau
B181: ='Daten Länder'!B104 -> Guyana
B182: ='Daten Länder'!B105 -> Haiti
B183: ='Daten Länder'!B106 -> Holy See
B184: ='Daten Länder'!B107 -> Honduras
B185: ='Daten Länder'!B108 -> Hungary
B186: ='Daten Länder'!B109 -> Iceland
B187: ='Daten Länder'!B110 -> India
B188: ='Daten Länder'!B111 -> Indonesia
B189: ='Daten Länder'!B112 -> Iran (Islamic Republic of)
B190: ='Daten Länder'!B113 -> Iraq
B191: ='Daten Länder'!B114 -> Ireland
B192: ='Daten Länder'!B115 -> Isle of Man
B193: ='Daten Länder'!B116 -> Israel
B194: ='Daten Länder'!B117 -> Italy
B195: ='Daten Länder'!B118 -> Jamaica
B196: ='Daten Länder'!B119 -> Japan
B197: ='Daten Länder'!B120 -> Jordan
B198: ='Daten Länder'!B121 -> Kazakhstan
B199: ='Daten Länder'!B122 -> Kenya
B200: ='Daten Länder'!B123 -> Kiribati
B201: ='Daten Länder'!B124 -> Korea, Dem. People's Rep.
B202: ='Daten Länder'!B125 -> Korea, Republic of
B203: ='Daten Länder'!B126 -> Kuwait
B204: ='Daten Länder'!B127 -> Kyrgyzstan
B205: ='Daten Länder'!B128 -> Lao People's Dem. Rep.
B206: ='Daten Länder'!B129 -> Latvia
B207: ='Daten Länder'!B130 -> Lebanon
B208: ='Daten Länder'!B131 -> Lesotho
B209: ='Daten Länder'!B132 -> Liberia
B210: ='Daten Länder'!B133 -> Libyan Arab Jamahiriya
B211: ='Daten Länder'!B134 -> Liechtenstein
B212: ='Daten Länder'!B135 -> Lithuania
B213: ='Daten Länder'!B136 -> Luxembourg
B214: ='Daten Länder'!B137 -> Macedonia
B215: ='Daten Länder'!B138 -> Madagascar
B216: ='Daten Länder'!B139 -> Malawi
B217: ='Daten Länder'!B140 -> Malaysia
B218: ='Daten Länder'!B141 -> Maldives
B219: ='Daten Länder'!B142 -> Mali
B220: ='Daten Länder'!B143 -> Malta
B221: ='Daten Länder'!B144 -> Marshall Islands
B222: ='Daten Länder'!B145 -> Martinique
B223: ='Daten Länder'!B146 -> Mauritania
B224: ='Daten Länder'!B147 -> Mauritius
B225: ='Daten Länder'!B148 -> Mayotte
B226: ='Daten Länder'!B149 -> Mexico
B227: ='Daten Länder'!B150 -> Micronesia, Federated States of
B228: ='Daten Länder'!B151 -> Monaco
B229: ='Daten Länder'!B152 -> Mongolia
B230: ='Daten Länder'!B153 -> Montenegro
B231: ='Daten Länder'!B154 -> Montserrat
B232: ='Daten Länder'!B155 -> Morocco
... 92 more rows

Sheet Grafiken Land
B2: =Land!B5 -> EU28 | E2: → im Register "Land" ausgewähltes Land | O2: E_i_t | P2: S1 | Q2: =Bsp.länder!AL2 -> Szenario 1 konstRS | R2: S2 | S2: =Bsp.länder!AM2 -> Szenario 2 expRS | T2: S3 | U2: =Bsp.länder!AN2 -> Szenario 3 linRS | V2: S4 | W2: =Bsp.länder!AO2 -> Szenario 4 quadrRS | X2: S5 | Y2: =Bsp.länder!AP2 -> Szenario 5 Polynom | Z2: S6 | AA2: =Bsp.länder!AQ2 -> Szenario 6 Gerade | AB2: S7 | AC2: =Bsp.länder!AR2 -> Szenario 7 freie Eingabe
O3: 2019 | Q3: =Land!F28 -> 3478.773421 | S3: =Land!N28 -> 3478.773421 | U3: =Land!V28 -> 3478.773421 | W3: =Land!AD28 -> 3478.773421 | Y3: =Land!AL28 -> 3478.773421 | AA3: =Land!AT28 -> 3478.773421 | AC3: =Land!BB28 -> 3478.773421
O4: =O3+1 -> 2020 | Q4: =Land!F29 -> 3284.44515 | S4: =Land!N29 -> 3345.023268 | U4: =Land!V29 -> 3367.554914 | W4: =Land!AD29 -> 3324.687198 | Y4: =Land!AL29 -> 3334.801243 | AA4: =Land!AT29 -> 3355.111856 | AC4: =Land!BB29 -> 3483.638366
O5: =O4+1 -> 2021 | Q5: =Land!F30 -> 3100.608762 | S5: =Land!N30 -> 3210.803497 | U5: =Land!V30 -> 3249.738983 | W5: =Land!AD30 -> 3176.845437 | Y5: =Land!AL30 -> 3194.561256 | AA5: =Land!AT30 -> 3231.45029 | AC5: =Land!BB30 -> 3402.460652
O6: 2022 | Q6: =Land!F31 -> 2926.697793 | S6: =Land!N31 -> 3076.33204 | U6: =Land!V31 -> 3126.207325 | W6: =Land!AD31 -> 3034.337288 | Y6: =Land!AL31 -> 3057.572289 | AA6: =Land!AT31 -> 3107.788725 | AC6: =Land!BB31 -> 3321.282939
O7: 2023 | Q7: =Land!F32 -> 2762.176365 | S7: =Land!N32 -> 2941.837708 | U7: =Land!V32 -> 2997.863717 | W7: =Land!AD32 -> 2896.376615 | Y7: =Land!AL32 -> 2923.404611 | AA7: =Land!AT32 -> 2984.12716 | AC7: =Land!BB32 -> 3240.105225
O8: 2024 | Q8: =Land!F33 -> 2606.537533 | S8: =Land!N33 -> 2807.559508 | U8: =Land!V33 -> 2865.622938 | W8: =Land!AD33 -> 2762.2914 | Y8: =Land!AL33 -> 2791.679927 | AA8: =Land!AT33 -> 2860.465595 | AC8: =Land!BB33 -> 3158.927511
O9: 2025 | Q9: =Land!F34 -> 2459.30172 | S9: =Land!N34 -> 2673.745798 | U9: =Land!V34 -> 2730.39987 | W9: =Land!AD34 -> 2631.51492 | Y9: =Land!AL34 -> 2662.071377 | AA9: =Land!AT34 -> 2736.80403 | AC9: =Land!BB34 -> 3077.749798
O10: 2026 | Q10: =Land!F35 -> 2320.015243 | S10: =Land!N35 -> 2540.653287 | U10: =Land!V35 -> 2593.098966 | W10: =Land!AD35 -> 2503.578298 | Y10: =Land!AL35 -> 2534.303538 | AA10: =Land!AT35 -> 2613.142465 | AC10: =Land!BB35 -> 2996.572084
O11: 2027 | Q11: =Land!F36 -> 2188.248914 | S11: =Land!N36 -> 2408.545862 | U11: =Land!V36 -> 2454.604257 | W11: =Land!AD36 -> 2378.104085 | Y11: =Land!AL36 -> 2408.152426 | AA11: =Land!AT36 -> 2489.4809 | AC11: =Land!BB36 -> 2915.39437
O12: 2028 | Q12: =Land!F37 -> 2063.596716 | S12: =Land!N37 -> 2277.693253 | U12: =Land!V37 -> 2315.770043 | W12: =Land!AD37 -> 2254.800564 | Y12: =Land!AL37 -> 2283.44549 | AA12: =Land!AT37 -> 2365.819334 | AC12: =Land!BB37 -> 2834.216657
O13: 2029 | Q13: =Land!F38 -> 1945.674553 | S13: =Land!N38 -> 2148.36952 | U13: =Land!V38 -> 2177.412413 | W13: =Land!AD38 -> 2133.456513 | Y13: =Land!AL38 -> 2160.061618 | AA13: =Land!AT38 -> 2242.157769 | AC13: =Land!BB38 -> 2753.038943
O14: 2030 | Q14: =Land!F39 -> 1834.119067 | S14: =Land!N39 -> 2020.851378 | U14: =Land!V39 -> 2040.301691 | W14: =Land!AD39 -> 2013.936182 | Y14: =Land!AL39 -> 2037.931135 | AA14: =Land!AT39 -> 2118.496204 | AC14: =Land!BB39 -> 2671.861229
O15: 2031 | Q15: =Land!F40 -> 1728.586519 | S15: =Land!N40 -> 1895.416351 | U15: =Land!V40 -> 1905.15591 | W15: =Land!AD40 -> 1896.174278 | Y15: =Land!AL40 -> 1917.035799 | AA15: =Land!AT40 -> 1994.834639 | AC15: =Land!BB40 -> 2569.388701
O16: 2032 | Q16: =Land!F41 -> 1628.751726 | S16: =Land!N41 -> 1772.340777 | U16: =Land!V41 -> 1772.635368 | W16: =Land!AD41 -> 1780.170791 | Y16: =Land!AL41 -> 1797.40881 | AA16: =Land!AT41 -> 1871.173074 | AC16: =Land!BB41 -> 2466.916173
O17: 2033 | Q17: =Land!F42 -> 1534.307064 | S17: =Land!N42 -> 1651.897667 | U17: =Land!V42 -> 1643.33831 | W17: =Land!AD42 -> 1665.985499 | Y17: =Land!AL42 -> 1679.134799 | AA17: =Land!AT42 -> 1747.511509 | AC17: =Land!BB42 -> 2364.443644
O18: 2034 | Q18: =Land!F43 -> 1444.961518 | S18: =Land!N43 -> 1534.354439 | U18: =Land!V43 -> 1517.797746 | W18: =Land!AD43 -> 1553.732059 | Y18: =Land!AL43 -> 1562.349838 | AA18: =Land!AT43 -> 1623.849944 | AC18: =Land!BB43 -> 2261.971116
O19: 2035 | Q19: =Land!F44 -> 1360.439783 | S19: =Land!N44 -> 1419.970548 | U19: =Land!V44 -> 1396.479397 | W19: =Land!AD44 -> 1443.571596 | Y19: =Land!AL44 -> 1447.241434 | AA19: =Land!AT44 -> 1500.188379 | AC19: =Land!BB44 -> 2159.498587
O20: 2036 | Q20: =Land!F45 -> 1280.481419 | S20: =Land!N45 -> 1308.995038 | U20: =Land!V45 -> 1279.78074 | W20: =Land!AD45 -> 1335.705759 | Y20: =Land!AL45 -> 1334.048529 | AA20: =Land!AT45 -> 1376.526813 | AC20: =Land!BB45 -> 2057.026059
O21: 2037 | Q21: =Land!F46 -> 1204.840048 | S21: =Land!N46 -> 1201.664041 | U21: =Land!V46 -> 1168.031093 | W21: =Land!AD46 -> 1230.369252 | Y21: =Land!AL46 -> 1223.061504 | AA21: =Land!AT46 -> 1252.865248 | AC21: =Land!BB46 -> 1954.553531
O22: 2038 | Q22: =Land!F47 -> 1133.282593 | S22: =Land!N47 -> 1098.19827 | U22: =Land!V47 -> 1061.49268 | W22: =Land!AD47 -> 1127.821873 | Y22: =Land!AL47 -> 1114.622175 | AA22: =Land!AT47 -> 1129.203683 | AC22: =Land!BB47 -> 1852.081002
O23: 2039 | Q23: =Land!F48 -> 1065.588561 | S23: =Land!N48 -> 998.8005333 | U23: =Land!V48 -> 960.3625775 | W23: =Land!AD48 -> 1028.340153 | Y23: =Land!AL48 -> 1009.123796 | AA23: =Land!AT48 -> 1005.542118 | AC23: =Land!BB48 -> 1749.608474
O24: 2040 | Q24: =Land!F49 -> 1001.549364 | S24: =Land!N49 -> 903.6533193 | U24: =Land!V49 -> 864.7754625 | W24: =Land!AD49 -> 932.2087141 | Y24: =Land!AL49 -> 907.0110555 | AA24: =Land!AT49 -> 881.8805528 | AC24: =Land!BB49 -> 1647.135945
O25: 2041 | Q25: =Land!F50 -> 940.9676756 | S25: =Land!N50 -> 812.916502 | U25: =Land!V50 -> 774.8070404 | W25: =Land!AD50 -> 839.7115051 | Y25: =Land!AL50 -> 808.780081 | AA25: =Land!AT50 -> 758.2189877 | AC25: =Land!BB50 -> 1589.722011
O26: 2042 | Q26: =Land!F51 -> 883.6568234 | S26: =Land!N51 -> 726.7252083 | U26: =Land!V51 -> 690.47805 | W26: =Land!AD51 -> 751.1231066 | Y26: =Land!AL51 -> 714.978435 | AA26: =Land!AT51 -> 634.5574226 | AC26: =Land!BB51 -> 1532.308076
O27: 2043 | Q27: =Land!F52 -> 829.4402132 | S27: =Land!N52 -> 645.1879051 | U27: =Land!V52 -> 611.7587278 | W27: =Land!AD52 -> 666.7003079 | Y27: =Land!AL52 -> 626.2051169 | AA27: =Land!AT52 -> 510.8958574 | AC27: =Land!BB52 -> 1474.894141
O28: 2044 | Q28: =Land!F53 -> 778.1507853 | S28: =Land!N53 -> 568.3847546 | U28: =Land!V53 -> 538.5736165 | W28: =Land!AD53 -> 586.6741863 | Y28: =Land!AL53 -> 543.110563 | AA28: =Land!AT53 -> 387.2342923 | AC28: =Land!BB53 -> 1417.480206
O29: 2045 | Q29: =Land!F54 -> 729.6304996 | S29: =Land!N54 -> 496.366289 | U29: =Land!V54 -> 470.8066055 | W29: =Land!AD54 -> 511.2429167 | Y29: =Land!AL54 -> 466.3966457 | AA29: =Land!AT54 -> 263.5727272 | AC29: =Land!BB54 -> 1360.066271
O30: 2046 | Q30: =Land!F55 -> 683.7298487 | S30: =Land!N55 -> 429.1524515 | U30: =Land!V55 -> 408.3060962 | W30: =Land!AD55 -> 440.5655287 | Y30: =Land!AL55 -> 396.8166745 | AA30: =Land!AT55 -> 206.7027152 | AC30: =Land!BB55 -> 1302.652336
O31: 2047 | Q31: =Land!F56 -> 640.3073972 | S31: =Land!N56 -> 366.7320476 | U31: =Land!V56 -> 350.8901907 | W31: =Land!AD56 -> 374.7568166 | Y31: =Land!AL56 -> 335.1753952 | AA31: =Land!AT56 -> 206.7027152 | AC31: =Land!BB56 -> 1245.238401
O32: 2048 | Q32: =Land!F57 -> 599.2293459 | S32: =Land!N57 -> 309.0626424 | U32: =Land!V57 -> 298.3518129 | W32: =Land!AD57 -> 313.8835682 | Y32: =Land!AL57 -> 282.3289901 | AA32: =Land!AT57 -> 206.7027152 | AC32: =Land!BB57 -> 1187.824467
O33: 2049 | Q33: =Land!F58 -> 560.3691193 | S33: =Land!N58 -> 256.0709337 | U33: =Land!V58 -> 250.4636804 | W33: =Land!AD58 -> 257.9622428 | Y33: =Land!AL58 -> 239.1850782 | AA33: =Land!AT58 -> 206.7027152 | AC33: =Land!BB58 -> 1130.410532
O34: 2050 | Q34: =Land!F59 -> 523.6069761 | S34: =Land!N59 -> 207.6536181 | U34: =Land!V59 -> 206.9830551 | W34: =Land!AD59 -> 206.9581745 | Y34: =Land!AL59 -> 206.7027152 | AA34: =Land!AT59 -> 206.7027152 | AC34: =Land!BB59 -> 1072.996597
O35: RS_t
O36: =O4 -> 2020 | Q36: =Land!I29 -> -5.586114615 | S36: =Land!Q29 -> -3.844750335 | U36: =Land!Y29 -> -3.197060962 | W36: =Land!AG29 -> -4.429326206 | Y36: =Land!AO29 -> -4.138590242 | AA36: =Land!AW29 -> -3.554746176 | AC36: =Land!BE29 -> 0.1398465635
O37: 2021 | Q37: =Land!I30 -> -5.597182485 | S37: =Land!Q30 -> -4.012521285 | U37: =Land!Y30 -> -3.498560037 | W37: =Land!AG30 -> -4.446787088 | Y37: =Land!AO30 -> -4.205347706 | AA37: =Land!AW30 -> -3.685765794 | AC37: =Land!BE30 -> -2.33025662
O38: 2022 | Q38: =Land!I31 -> -5.608929803 | S38: =Land!Q31 -> -4.188093651 | U38: =Land!Y31 -> -3.80127939 | W38: =Land!AG31 -> -4.485838273 | Y38: =Land!AO31 -> -4.288193452 | AA38: =Land!AW31 -> -3.826813165 | AC38: =Land!BE31 -> -2.38585312
O39: 2023 | Q39: =Land!I32 -> -5.621401292 | S39: =Land!Q32 -> -4.371905572 | U39: =Land!Y32 -> -4.105409351 | W39: =Land!AG32 -> -4.546649235 | Y39: =Land!AO32 -> -4.388045975 | AA39: =Land!AW32 -> -3.979085326 | AC39: =Land!BE32 -> -2.444167364
O40: 2024 | Q40: =Land!I33 -> -5.634644994 | S40: =Land!Q33 -> -4.564432622 | U40: =Land!Y33 -> -4.411167128 | W40: =Land!AG33 -> -4.629412305 | Y40: =Land!AO33 -> -4.505865661 | AA40: =Land!AW33 -> -4.143977736 | AC40: =Land!BE33 -> -2.505403621
O41: 2025 | Q41: =Land!I34 -> -5.648712554 | S41: =Land!Q34 -> -4.766193177 | U41: =Land!Y34 -> -4.718801848 | W41: =Land!AG34 -> -4.734347736 | Y41: =Land!AO34 -> -4.642672286 | AA41: =Land!AW34 -> -4.323127163 | AC41: =Land!BE34 -> -2.569787162
O42: 2026 | Q42: =Land!I35 -> -5.663659549 | S42: =Land!Q35 -> -4.977754861 | U42: =Land!Y35 -> -5.02860059 | W42: =Land!AG35 -> -4.861709919 | Y42: =Land!AO35 -> -4.799564714 | AA42: =Land!AW35 -> -4.518466203 | AC42: =Land!BE35 -> -2.637567021
O43: 2027 | Q43: =Land!I36 -> -5.67954584 | S43: =Land!Q36 -> -5.199742352 | U43: =Land!Y36 -> -5.34089563 | W43: =Land!AG36 -> -5.011795039 | Y43: =Land!AO36 -> -4.977742823 | AA43: =Land!AW36 -> -4.732293275 | AC43: =Land!BE36 -> -2.709019218
O44: 2028 | Q44: =Land!I37 -> -5.696435974 | S44: =Land!Q37 -> -5.432846899 | U44: =Land!Y37 -> -5.656073205 | W44: =Land!AG37 -> -5.184950539 | Y44: =Land!AO37 -> -5.178531658 | AA44: =Land!AW37 -> -4.967363484 | AC44: =Land!BE37 -> -2.784450518
O45: 2029 | Q45: =Land!I38 -> -5.714399624 | S45: =Land!Q38 -> -5.677837977 | U45: =Land!Y38 -> -5.974584156 | W45: =Land!AG38 -> -5.381586856 | Y45: =Land!AO38 -> -5.403407798 | AA45: =Land!AW38 -> -5.227007969 | AC45: =Land!BE38 -> -2.864202828
O46: 2030 | Q46: =Land!I39 -> -5.733512086 | S46: =Land!Q39 -> -5.935577692 | U46: =Land!Y39 -> -6.296956938 | W46: =Land!AG39 -> -5.602192076 | Y46: =Land!AO39 -> -5.654027767 | AA46: =Land!AW39 -> -5.515292761 | AC46: =Land!BE39 -> -2.948658385
O47: 2031 | Q47: =Land!I40 -> -5.753854824 | S47: =Land!Q40 -> -6.207038692 | U47: =Land!Y40 -> -6.623813607 | W47: =Land!AG40 -> -5.847350328 | Y47: =Land!AO40 -> -5.93225812 | AA47: =Land!AW40 -> -5.837233264 | AC47: =Land!BE40 -> -3.8352489
O48: 2032 | Q48: =Land!I41 -> -5.775516098 | S48: =Land!Q41 -> -6.493326601 | U48: =Land!Y41 -> -6.955889596 | W48: =Land!AG41 -> -6.117765042 | Y48: =Land!AO41 -> -6.240206348 | AA48: =Land!AW41 -> -6.199088522 | AC48: =Land!BE41 -> -3.988206547
O49: 2033 | Q49: =Land!I42 -> -5.798591651 | S49: =Land!Q42 -> -6.795708355 | U49: =Land!Y42 -> -7.294058334 | W49: =Land!AG42 -> -6.414288566 | Y49: =Land!AO42 -> -6.580250957 | AA49: =Land!AW42 -> -6.608772158 | AC49: =Land!BE42 -> -4.153871523
O50: 2034 | Q50: =Land!I43 -> -5.823185497 | S50: =Land!Q43 -> -7.115648285 | U50: =Land!Y43 -> -7.639362107 | W50: =Land!AG43 -> -6.737960191 | Y50: =Land!AO43 -> -6.955067632 | AA50: =Land!AW43 -> -7.07643781 | AC50: =Land!BE43 -> -4.333895995
O51: 2035 | Q51: =Land!I44 -> -5.849410802 | S51: =Land!Q44 -> -7.454854471 | U51: =Land!Y44 -> -7.993051069 | W51: =Land!AG44 -> -7.090055383 | Y51: =Land!AO44 -> -7.367645951 | AA51: =Land!AW44 -> -7.615332046 | AC51: =Land!BE44 -> -4.530231517
O52: 2036 | Q52: =Land!I45 -> -5.877390886 | S52: =Land!Q45 -> -7.815338864 | U52: =Land!Y45 -> -8.356632934 | W52: =Land!AG45 -> -7.472150137 | Y52: =Land!AO45 -> -7.821286914 | AA52: =Land!AW45 -> -8.243069131 | AC52: =Land!BE45 -> -4.745200066
O53: 2037 | Q53: =Land!I46 -> -5.907260355 | S53: =Land!Q46 -> -8.199496077 | U53: =Land!Y46 -> -8.731936901 | W53: =Land!AG46 -> -7.886205931 | Y53: =Land!AO46 -> -8.319564299 | AA53: =Land!AW46 -> -8.983592905 | AC53: =Land!BE46 -> -4.981586303
O54: 2038 | Q54: =Land!I47 -> -5.939166396 | S54: =Land!Q47 -> -8.610207797 | U54: =Land!Y47 -> -9.121196692 | W54: =Land!AG47 -> -8.334683145 | Y54: =Land!AO47 -> -8.866220422 | AA54: =Land!AW47 -> -9.870300522 | AC54: =Land!BE47 -> -5.24275886
O55: 2039 | Q55: =Land!I48 -> -5.973270252 | S55: =Land!Q48 -> -9.050982857 | U55: =Land!Y48 -> -9.527159665 | W55: =Land!AG48 -> -8.820694326 | Y55: =Land!AO48 -> -9.464945316 | AA55: =Land!AW48 -> -10.95121872 | AC55: =Land!BE48 -> -5.532831894
O56: 2040 | Q56: =Land!I49 -> -6.009748908 | S56: =Land!Q49 -> -9.5261477 | U56: =Land!Y49 -> -9.953231958 | W56: =Land!AG49 -> -9.348214119 | Y56: =Land!AO49 -> -10.11895077 | AA56: =Land!AW49 -> -12.29799955 | AC56: =Land!BE49 -> -5.856883408
O57: 2041 | Q57: =Land!I50 -> -6.048797032 | S57: =Land!Q50 -> -10.04110928 | U57: =Land!Y50 -> -10.40367425 | W57: =Land!AG50 -> -9.922371203 | Y57: =Land!AO50 -> -10.83018492 | AA57: =Land!AW50 -> -14.02248465 | AC57: =Land!BE50 -> -3.485682831
O58: 2042 | Q58: =Land!I51 -> -6.090629214 | S58: =Land!Q51 -> -10.60272408 | U58: =Land!Y51 -> -10.88386992 | W58: =Land!AG51 -> -10.54986122 | Y58: =Land!AO51 -> -11.59791744 | AA58: =Land!AW51 -> -16.30947881 | AC58: =Land!BE51 -> -3.611570732
O59: 2043 | Q59: =Land!I52 -> -6.135482548 | S59: =Land!Q52 -> -11.21982591 | U59: =Land!Y52 -> -11.40069872 | W59: =Land!AG52 -> -11.23954223 | Y59: =Land!AO52 -> -12.41622316 | AA59: =Land!AW52 -> -19.48784472 | AC59: =Land!BE52 -> -3.746892401
O60: 2044 | Q60: =Land!I53 -> -6.18361964 | S60: =Land!Q53 -> -11.90399725 | U60: =Land!Y53 -> -11.96306779 | W60: =Land!AG53 -> -12.00331252 | Y60: =Land!AO53 -> -13.26954247 | AA60: =Land!AW53 -> -24.20484788 | AC60: =Land!BE53 -> -3.892749538
O61: 2045 | Q61: =Land!I54 -> -6.235332102 | S61: =Land!Q54 -> -12.67072437 | U61: =Land!Y54 -> -12.58268301 | W61: =Land!AG54 -> -12.85743799 | Y61: =Land!AO54 -> -14.12491718 | AA61: =Land!AW54 -> -31.93455941 | AC61: =Land!BE54 -> -4.050422335
O62: 2046 | Q62: =Land!I55 -> -6.290944653 | S62: =Land!Q55 -> -13.54117695 | U62: =Land!Y55 -> -13.27519804 | W62: =Land!AG55 -> -13.8246195 | Y62: =Land!AO55 -> -14.91862599 | AA62: =Land!AW55 -> -21.57659199 | AC62: =Land!BE55 -> -4.221407153
O63: 2047 | Q63: =Land!I56 -> -6.35081993 | S63: =Land!Q56 -> -14.54504192 | U63: =Land!Y56 -> -14.06197607 | W63: =Land!AG56 -> -14.93732664 | Y63: =Land!AO56 -> -15.53394384 | AA63: =Land!AW56 -> 0 | AC63: =Land!BE56 -> -4.40746416
O64: 2048 | Q64: =Land!I57 -> -6.41536417 | S64: =Land!Q57 -> -15.72521561 | U64: =Land!Y57 -> -14.97288302 | W64: =Land!AG57 -> -16.24339992 | Y64: =Land!AO57 -> -15.76679132 | AA64: =Land!AW57 -> 0 | AC64: =Land!BE57 -> -4.610678147
O65: 2049 | Q65: =Land!I58 -> -6.485033951 | S65: =Land!Q58 -> -17.14594436 | U65: =Land!Y58 -> -16.05089375 | W65: =Land!AG58 -> -17.81594549 | Y65: =Land!AO58 -> -15.28143172 | AA65: =Land!AW58 -> 0 | AC65: =Land!BE58 -> -4.83353698
O66: 2050 | Q66: =Land!I59 -> -6.560344232 | S66: =Land!Q59 -> -18.90777483 | U66: =Land!Y59 -> -17.36005205 | W66: =Land!AG59 -> -19.77191225 | Y66: =Land!AO59 -> -13.58043036 | AA66: =Land!AW59 -> 0 | AC66: =Land!BE59 -> -5.079033965
O67: RS_90 | AD67: S1 | AE67: S2 | AF67: S3 | AG67: S4 | AH67: S5 | AI67: S6 | AJ67: S7 | AK67: Mittelwert
O68: 2030 | Q68: =Land!H39 -> -57.50446434 | S68: =Land!P39 -> -53.17797882 | U68: =Land!X39 -> -52.72732571 | W68: =Land!AF39 -> -53.33820015 | Y68: =Land!AN39 -> -52.78225021 | AA68: =Land!AV39 -> -50.91560161 | AC68: =Land!BD39 -> -38.09443663 | AD68: =IF(E$72<>"nein",Q68,0) -> 0 | AE68: =IF(F$72<>"nein",S68,0) -> -53.17797882 | AF68: =IF(G$72<>"nein",U68,0) -> -52.72732571 | AG68: =IF(H$72<>"nein",W68,0) -> -53.33820015 | AH68: =IF(I$72<>"nein",Y68,0) -> -52.78225021 | AI68: =IF(J$72<>"nein",AA68,0) -> -50.91560161 | AJ68: =IF(K$72<>"nein",AC68,0) -> 0 | AK68: =IFERROR(SUM(AD68:AJ68)/COUNTIF(AD68:AJ68,"<>0")/100,"no Data") -> -0.525882713
O69: 2050 | Q69: =Land!H59 -> -87.86831274 | S69: =Land!P59 -> -95.18877924 | U69: =Land!X59 -> -95.20431582 | W69: =Land!AF59 -> -95.20489229 | Y69: =Land!AN59 -> -95.21081114 | AA69: =Land!AV59 -> -95.21081114 | AC69: =Land!BD59 -> -75.1392557 | AD69: =IF(E$72<>"nein",Q69,0) -> 0 | AE69: =IF(F$72<>"nein",S69,0) -> -95.18877924 | AF69: =IF(G$72<>"nein",U69,0) -> -95.20431582 | AG69: =IF(H$72<>"nein",W69,0) -> -95.20489229 | AH69: =IF(I$72<>"nein",Y69,0) -> -95.21081114 | AI69: =IF(J$72<>"nein",AA69,0) -> -95.21081114 | AJ69: =IF(K$72<>"nein",AC69,0) -> 0 | AK69: =IFERROR(SUM(AD69:AJ69)/COUNTIF(AD69:AJ69,"<>0")/100,"no Data") -> -0.9520392192
O70: RS_10
E71: =Zielwertsuche!C51 -> Szenario 1 | F71: =Zielwertsuche!D51 -> Szenario 2 | G71: =Zielwertsuche!E51 -> Szenario 3 | H71: =Zielwertsuche!F51 -> Szenario 4 | I71: =Zielwertsuche!G51 -> Szenario 5 | J71: =Zielwertsuche!H51 -> Szenario 6 | K71: =Zielwertsuche!I51 -> Szenario 7 | O71: 2030 | Q71: =(Land!F39-Land!F$27)/Land!F$27*100 -> -51.72152366 | S71: =(Land!N39-Land!N$27)/Land!N$27*100 -> -46.8062749 | U71: =(Land!V39-Land!V$27)/Land!V$27*100 -> -46.29429535 | W71: =(Land!AD39-Land!AD$27)/Land!AD$27*100 -> -46.9882997 | Y71: =(Land!AL39-Land!AL$27)/Land!AL$27*100 -> -46.35669416 | AA71: =(Land!AT39-Land!AT$27)/Land!AT$27*100 -> -44.23602551 | AC71: =(Land!BB39-Land!BB$27)/Land!BB$27*100 -> -29.67011169 | AD71: =IF(E$72<>"nein",Q71,0) -> 0 | AE71: =IF(F$72<>"nein",S71,0) -> -46.8062749 | AF71: =IF(G$72<>"nein",U71,0) -> -46.29429535 | AG71: =IF(H$72<>"nein",W71,0) -> -46.9882997 | AH71: =IF(I$72<>"nein",Y71,0) -> -46.35669416 | AI71: =IF(J$72<>"nein",AA71,0) -> -44.23602551 | AJ71: =IF(K$72<>"nein",AC71,0) -> 0 | AK71: =IFERROR(SUM(AD71:AJ71)/COUNTIF(AD71:AJ71,"<>0")/100,"no Data") -> -0.4613631793
B72: =Zielwertsuche!A52 -> Werden die Randbedingungen eingehalten? | E72: =Zielwertsuche!C52 -> nein | F72: =Zielwertsuche!D52 -> ja | G72: =Zielwertsuche!E52 -> ja | H72: =Zielwertsuche!F52 -> ja | I72: =Zielwertsuche!G52 -> ja | J72: =Zielwertsuche!H52 -> ja | K72: =Zielwertsuche!I52 -> nein | O72: 2050 | Q72: =(Land!F59-Land!F$27)/Land!F$27*100 -> -86.21739043 | S72: =(Land!N59-Land!N$27)/Land!N$27*100 -> -94.53405154 | U72: =(Land!V59-Land!V$27)/Land!V$27*100 -> -94.55170239 | W72: =(Land!AD59-Land!AD$27)/Land!AD$27*100 -> -94.55235731 | Y72: =(Land!AL59-Land!AL$27)/Land!AL$27*100 -> -94.55908162 | AA72: =(Land!AT59-Land!AT$27)/Land!AT$27*100 -> -94.55908162 | AC72: =(Land!BB59-Land!BB$27)/Land!BB$27*100 -> -71.75611892 | AD72: =IF(E$72<>"nein",Q72,0) -> 0 | AE72: =IF(F$72<>"nein",S72,0) -> -94.53405154 | AF72: =IF(G$72<>"nein",U72,0) -> -94.55170239 | AG72: =IF(H$72<>"nein",W72,0) -> -94.55235731 | AH72: =IF(I$72<>"nein",Y72,0) -> -94.55908162 | AI72: =IF(J$72<>"nein",AA72,0) -> -94.55908162 | AJ72: =IF(K$72<>"nein",AC72,0) -> 0 | AK72: =IFERROR(SUM(AD72:AJ72)/COUNTIF(AD72:AJ72,"<>0")/100,"no Data") -> -0.945512549
B73: Wurde durchweg die Regensburger Formel verwendet? | E73: ja | F73: ja | G73: =IF(Land!AA28>0,"nein","ja") -> ja | H73: =IF(Land!AI28>0,"nein","ja") -> ja | I73: =IF(Land!AQ28>0,"nein","ja") -> ja | J73: ja | K73: =IF(Land!BG28>0,"nein","ja") -> nein | O73: Summe | Q73: =SUM(Q4:Q34) -> 48043.29909 | S73: =SUM(S4:S34) -> 48054.95846 | U73: =SUM(U4:U34) -> 48089.84328 | W73: =SUM(W4:W34) -> 48053.58683 | Y73: =SUM(Y4:Y34) -> 47998.70234 | AA73: =SUM(AA4:AA34) -> 48076.41315 | AC73: =SUM(AC4:AC34) -> 68251.46404
AD74: Pro-Kopf-Emissionen 2019 (Hochrechnung) | AK74: =Land!G28 -> 6.847979175

Sheet Bsp.länder
A2: Beispielländer - CO2-Konten | AL2: Szenario 1 konstRS | AM2: Szenario 2 expRS | AN2: Szenario 3 linRS | AO2: Szenario 4 quadrRS | AP2: Szenario 5 Polynom | AQ2: Szenario 6 Gerade | AR2: Szenario 7 freie Eingabe
A3: - ohne Emissionshandel | I3: Werte aus | M3: =HLOOKUP($I$4,AL2:AR7,5,FALSE) -> Reduktionssatz 2020 (RS_20) | U3: =HLOOKUP($I$4,$AL$2:$AR$7,2,FALSE) -> -0.04281 | V3: Hält das Szenario die Randbedingungen ein? | Z3: =HLOOKUP(LEFT(I4,10),Zielwertsuche!C51:I52,2,FALSE) -> ja | AL3: ='S1'!F11 -> -0.0539905068 | AM3: ='S2'!$F$13 -> -0.03716 | AN3: ='S3'!$G$13 -> -0.0309 | AO3: ='S4'!H6 -> -0.04281 | AP3: ='S5'!H19 -> -0.04 | AQ3: ='S6'!F14 -> -0.03435707299 | AR3: ='S7'!F11 -> 0.003742819578
A4: (siehe Formeln unten) | I4: Szenario 4 quadrRS | M4: =HLOOKUP($I$4,$AL$2:$AR$7,6,FALSE) -> - | U4: =HLOOKUP($I$4,$AL$2:$AR$4,3,FALSE) -> - | AL4: - | AM4: =Zielwertsuche!D12 -> 0.04224082673 | AN4: ='S3'!H8 -> -0.002876670915 | AO4: - | AP4: ='S5'!H20 -> -0.0903 | AQ4: - | AR4: -
AL5: RS_20 = | AM5: RS_20 = | AN5: RS_20 = | AO5: RS_20 = | AP5: RS_20 = | AQ5: RS_20 = | AR5: RS_20 =
B6: Land A | G6: Land B | L6: Land C | Q6: Land D | V6: Welt | AB6: Anteil Verteilung steigender Emissionen (VSt-1 > 0) pro Kopf (AKt). Rest wird prozentual verteilt. | AC6: Jährliche Eskalation von AKt | AL6: Reduktionssatz 2020 (RS_20) | AM6: Reduktionssatz 2020 (RS_20) | AN6: Reduktionssatz 2020 (RS_20) | AO6: Reduktionssatz 2020 (RS_20) | AP6: Reduktionssatz 2020 (RS_20) | AQ6: Reduktionssatz 2020 (RS_20) | AR6: Reduktionssatz 2020 (RS_20)
A7: ZM: | B7: ZMA: | C7: =Ausgangsdaten!E92 -> 0.1575813475 | D7: Mrd. t | G7: ZMB: | H7: =Ausgangsdaten!E95 -> 0.3533386266 | I7: Mrd. t | L7: ZMC: | M7: =Ausgangsdaten!E98 -> 1.182842534 | N7: Mrd. t | Q7: ZMD: | R7: =Ausgangsdaten!E101 -> 1.669237492 | S7: Mrd. t | V7: ZM: | W7: =R7+M7+H7+C7 -> 3.363 | X7: Mrd. t | AL7: - | AM7: Eskalationssatz (ES) | AN7: jährlicher Abschlag auf RS_t | AO7: - | AP7: Zielwert RS_50 | AQ7: - | AR7: =IF('S7'!B11=RCP2.6!G21,"RCP2.6-Szenario IPCC","-") -> RCP2.6-Szenario IPCC
A8: Jahr t | B8: Ein- woh- ner Bit | C8: Eit | D8: Pro-Kopf | E8: Basis für VSt | F8: Ver-änd. ggü. Vorj. RSit | G8: Ein- woh- ner Bit | H8: Eit | I8: Pro-Kopf | J8: Basis für VSt | K8: Ver-änd. ggü. Vorj. RSit | L8: Ein- woh- ner Bit | M8: Eit | N8: Pro-Kopf | O8: Basis für VSt | P8: Ver-änd. ggü. Vorj. RSit | Q8: Ein- woh- ner Bit | R8: Eit | S8: Pro-Kopf | T8: Basis für VSt | U8: Ver-änd. ggü. Vorj. RSit | V8: Ein- woh- ner Bt | W8: Et | X8: Pro-Kopf | Y8: VSt | Z8: Veränd. ggü. Vorj. RSt | AA8: abs. Veränd. ggü. Vorj. | AL8: VS_t | AS8: relative Veränderung gegenüber Vorjahr (RS_t) | AZ8: absolute Veränderung gegenüber Vorjahr
B9: Mrd. | C9: Mrd. t | D9: t | E9: Mrd. t | F9: % | G9: Mrd. | H9: Mrd. t | I9: t | J9: Mrd. t | K9: % | L9: Mrd. | M9: Mrd. t | N9: t | O9: Mrd. t | P9: % | Q9: Mrd | R9: Mrd. t | S9: t | T9: Mrd. t | U9: % | V9: Mrd | W9: Mrd. t | X9: t | Y9: % | Z9: % | AA9: Mrd. t | AB9: Kt % | AC9: % | AL9: =AL2 -> Szenario 1 konstRS | AM9: Szenario 2 expRS | AN9: Szenario 3 linRS | AO9: Szenario 4 quadrRS | AP9: Szenario 5 Polynom | AQ9: Szenario 6 Gerade | AR9: Szenario 7 freie Eingabe | AS9: =AL2 -> Szenario 1 konstRS | AT9: Szenario 2 expRS | AU9: Szenario 3 linRS | AV9: Szenario 4 quadrRS | AW9: Szenario 5 Polynom | AX9: Szenario 6 Gerade | AY9: Szenario 7 freie Eingabe | AZ9: =AS9 -> Szenario 1 konstRS | BA9: Szenario 2 expRS | BB9: Szenario 3 linRS | BC9: Szenario 4 quadrRS | BD9: Szenario 5 Polynom | BE9: Szenario 6 Gerade | BF9: Szenario 7 freie Eingabe
A10: 2019 | B10: =Ausgangsdaten!$D$91 -> 0.35 | C10: =Ausgangsdaten!D92 -> 6.847826087 | D10: =C10/B10 -> 19.56521739 | E10: =C10-$C$7 -> 6.690244739 | G10: =Ausgangsdaten!D94 -> 0.85 | H10: =Ausgangsdaten!D95 -> 13.52608696 | I10: =H10/G10 -> 15.91304348 | J10: =H10-$H$7 -> 13.17274833 | L10: =Ausgangsdaten!D97 -> 2.767337793 | M10: =Ausgangsdaten!D98 -> 15.64147448 | N10: =M10/L10 -> 5.652173913 | O10: =M10-$M$7 -> 14.45863195 | Q10: =Ausgangsdaten!D100 -> 2.948845689 | R10: =Ausgangsdaten!D101 -> 1.381842761 | S10: =R10/Q10 -> 0.4686046361 | T10: =R10-$R$7 -> -0.2873947308 | V10: =B10+G10+L10+Q10 -> 6.916183482 | W10: =R10+M10+H10+C10 -> 37.39723029 | X10: =W10/V10 -> 5.407206212 | Y10: =HLOOKUP($I$4,$AL$9:$AR$41,ROW(Y10)-ROW($Y$10)+2,FALSE) -> -4.709134877 | AL10: ='S1'!D10*100 -> -5.938999734 | AM10: ='S2'!$D12*100 -> -4.087630274 | AN10: ='S3'!$D12*100 -> -3.399025174 | AO10: ='S4'!D11*100 -> -4.709134877 | AP10: ='S5'!D25*100 -> -4.400032588 | AQ10: ='S6'!D13*100 -> -3.77930602 | AR10: ='S7'!D10*100 -> 0.411150763
A11: =A10+1 -> 2020 | B11: =B$10*(B$41/B$10)^(($A11-2019)/31) -> 0.3515391776 | C11: =IF( $Y10>0, C10+$AB11/100*(B11/$V11*$AA11)+(1-$AB11/100)*(C10*$Z11/100), C10+E10*$Y10/100) -> 6.532773439 | D11: =C11/B11 -> 18.58334392 | E11: 6.375192091 | F11: =(C11-C10)/C10*100 -> -4.600768833 | G11: =G$10*(G$41/G$10)^(($A11-2019)/31) -> 0.8515426439 | H11: =IF($Y10>0,H10+$AB11/100*(G11/$V11*$AA11)+(1-$AB11/100)*(H10*$Z11/100),H10+J10*$Y10/100) -> 12.90576447 | I11: =H11/G11 -> 15.15574653 | J11: 12.55242584 | K11: =(H11-H10)/H10*100 -> -4.58611931 | L11: =L$10*(L$41/L$10)^(($A11-2019)/31) -> 2.774851415 | M11: =IF($Y10>0,M10+$AB11/100*(L11/$V11*$AA11)+(1-$AB11/100)*(M10*$Z11/100),M10+O10*$Y10/100) -> 14.960598 | N11: =M11/L11 -> 5.39149517 | O11: 13.77775547 | P11: =(M11-M10)/M10*100 -> -4.353019791 | Q11: =Q$10*(Q$41/Q$10)^(($A11-2019)/31) -> 2.983768551 | R11: =IF($Y10>0,R10+$AB11/100*(Q11/$V11*$AA11)+(1-$AB11/100)*(R10*$Z11/100),R10+T10*$Y10/100) -> 1.395376567 | S11: =R11/Q11 -> 0.4676557657 | T11: -0.2738609253 | U11: =(R11-R10)/R10*100 -> 0.9794027139 | V11: =B11+G11+L11+Q11 -> 6.961701788 | W11: 35.79451248 | X11: =W11/V11 -> 5.141632544 | Y11: -4.741581039 | Z11: =HLOOKUP($I$4,$AS$9:$AY$41,ROW(Z11)-ROW($Z$11)+3,FALSE) -> -4.281 | AA11: =HLOOKUP($I$4,$AZ$9:$BF$41,ROW(AA11)-ROW($Z$11)+3,FALSE) -> -1.600975429 | AB11: =Ausgangsdaten!M82*100 -> 10 | AC11: =Ausgangsdaten!M83*100 -> 30 | AL11: ='S1'!D11*100 -> -5.973092049 | AM11: ='S2'!$D13*100 -> -4.27680246 | AN11: ='S3'!$D13*100 -> -3.727347027 | AO11: ='S4'!D12*100 -> -4.741581039 | AP11: ='S5'!D26*100 -> -4.483234346 | AQ11: ='S6'!D14*100 -> -3.927747622 | AR11: ='S7'!D11*100 -> -2.477244667 | AS11: ='S1'!F11*100 -> -5.39905068 | AT11: ='S2'!F13*100 -> -3.716 | AU11: ='S3'!G13*100 -> -3.09 | AV11: ='S4'!F12*100 -> -4.281 | AW11: ='S5'!F26*100 -> -4 | AX11: ='S6'!F14*100 -> -3.435707299 | AY11: ='S7'!F11*100 -> 0.3742819578 | AZ11: ='S1'!E11 -> -2.019095416 | BA11: ='S2'!E13 -> -1.389681077 | BB11: ='S3'!E13 -> -1.155574416 | BC11: ='S4'!E12 -> -1.600975429 | BD11: ='S5'!E26 -> -1.495889211 | BE11: ='S6'!E14 -> -1.284859371 | BF11: ='S7'!E11 -> 0.1403678981
A12: =A11+1 -> 2021 | B12: =B$10*(B$41/B$10)^(($A12-2019)/31) -> 0.3530851239 | C12: =IF($Y11>0,C11+$AB12/100*(B12/$V12*$AA12)+(1-$AB12/100)*(C11*$Z12/100),C11+E11*$Y11/100) -> 6.230488539 | D12: 17.64585398 | E12: 6.072907192 | F12: -4.627206228 | G12: =G$10*(G$41/G$10)^(($A12-2019)/31) -> 0.8530880876 | H12: =IF($Y11>0,H11+$AB12/100*(G12/$V12*$AA12)+(1-$AB12/100)*(H11*$Z12/100),H11+J11*$Y11/100) -> 12.31058103 | I12: 14.43060946 | J12: 11.9572424 | K12: -4.611764341 | L12: =L$10*(L$41/L$10)^(($A12-2019)/31) -> 2.782385438 | M12: =IF($Y11>0,M11+$AB12/100*(L12/$V12*$AA12)+(1-$AB12/100)*(M11*$Z12/100),M11+O11*$Y11/100) -> 14.30731456 | N12: 5.142103738 | O12: 13.12447203 | P12: -4.366693369 | Q12: =Q$10*(Q$41/Q$10)^(($A12-2019)/31) -> 3.019105001 | R12: =IF($Y11>0,R11+$AB12/100*(Q12/$V12*$AA12)+(1-$AB12/100)*(R11*$Z12/100),R11+T11*$Y11/100) -> 1.408361904 | S12: 0.4664832471 | T12: -0.2608755876 | U12: 0.9305973756 | V12: 7.007663651 | W12: 34.25674603 | X12: 4.888468931 | Y12: -4.798023591 | Z12: -4.291216173 | AA12: -1.536094678 | AB12: =IF(AB11*(1+$AC$11/100)<100,AB11*(1+$AC$11/100),100) -> 13 | AL12: ='S1'!D12*100 -> -6.009558227 | AM12: ='S2'!$D14*100 -> -4.476263187 | AN12: ='S3'!$D14*100 -> -4.059486885 | AO12: ='S4'!D13*100 -> -4.798023591 | AP12: ='S5'!D27*100 -> -4.584854494 | AQ12: ='S6'!D15*100 -> -4.08832678 | AR12: ='S7'!D12*100 -> -2.540170915 | AS12: ='S1'!F12*100 -> -5.39905068 | AT12: ='S2'!F14*100 -> -3.872966912 | AU12: ='S3'!G14*100 -> -3.377667091 | AV12: ='S4'!F13*100 -> -4.291216173 | AW12: ='S5'!F27*100 -> -4.058654196 | AX12: ='S6'!F15*100 -> -3.557947978 | AY12: ='S7'!F12*100 -> -2.255932947 | AZ12: ='S1'!E12 -> -1.910083431 | BA12: ='S2'!E14 -> -1.394560467 | BB12: ='S3'!E14 -> -1.224122484 | BC12: ='S4'!E13 -> -1.536094678 | BD12: ='S5'!E27 -> -1.457111286 | BE12: ='S6'!E15 -> -1.284859371 | BF12: ='S7'!E12 -> -0.8492147771
A13: 2022 | B13: 0.3546378688 | C13: 5.939109019 | D13: 16.74696794 | E13: 5.781527672 | F13: -4.676672109 | G13: 0.854636336 | H13: 11.73686972 | I13: 13.73317424 | J13: 11.38353109 | K13: -4.66031059 | L13: 2.789939916 | M13: 13.6775993 | N13: 4.902470916 | O13: 12.49475676 | P13: -4.40135192 | Q13: 3.054859937 | R13: 1.420878777 | S13: 0.4651207603 | T13: -0.2483587154 | U13: 0.888753963 | V13: 7.054074058 | W13: 32.77445681 | X13: 4.646174188 | Y13: -4.879013519 | Z13: -4.321864691 | AA13: -1.480677766 | AB13: =IF(AB12*(1+$AC$11/100)<100,AB12*(1+$AC$11/100),100) -> 16.9 | AL13: ='S1'!D13*100 -> -6.048592841 | AM13: ='S2'!$D15*100 -> -4.68681898 | AN13: ='S3'!$D15*100 -> -4.396074849 | AO13: ='S4'!D14*100 -> -4.879013519 | AP13: ='S5'!D28*100 -> -4.70620189 | AQ13: ='S6'!D16*100 -> -4.262595618 | AR13: ='S7'!D13*100 -> -2.606377355 | AS13: ='S1'!F13*100 -> -5.39905068 | AT13: ='S2'!F15*100 -> -4.036564236 | AU13: ='S3'!G15*100 -> -3.665334183 | AV13: ='S4'!F14*100 -> -4.321864691 | AW13: ='S5'!F28*100 -> -4.132282166 | AX13: ='S6'!F16*100 -> -3.689208082 | AY13: ='S7'!F13*100 -> -2.307999876 | AZ13: ='S1'!E13 -> -1.806957059 | BA13: ='S2'!E15 -> -1.397175525 | BB13: ='S3'!E15 -> -1.283509621 | BC13: ='S4'!E14 -> -1.480677766 | BD13: ='S5'!E28 -> -1.423332765 | BE13: ='S6'!E16 -> -1.284859371 | BF13: ='S7'!E13 -> -0.8492147771
A14: 2023 | B14: 0.3561974421 | C14: 5.657027503 | D14: 15.88171849 | E14: 5.499446155 | F14: -4.749559501 | G14: 0.8561873943 | H14: 11.18146569 | I14: 13.05960093 | J14: 10.82812707 | K14: -4.732130749 | L14: 2.797514906 | M14: 13.06797843 | N14: 4.671281071 | O14: 11.88513589 | P14: -4.457075094 | Q14: 3.091038314 | R14: 1.432996232 | S14: 0.4635970461 | T14: -0.2362412601 | U14: 0.8528141527 | V14: 7.100938056 | W14: 31.33946786 | X14: 4.413426452 | Y14: -4.985184837 | Z14: -4.372945554 | AA14: -1.433428919 | AB14: 21.97 | AL14: ='S1'!D14*100 -> -6.090410374 | AM14: ='S2'!$D16*100 -> -4.909381087 | AN14: ='S3'!$D16*100 -> -4.737841305 | AO14: ='S4'!D15*100 -> -4.985184837 | AP14: ='S5'!D29*100 -> -4.848698516 | AQ14: ='S6'!D17*100 -> -4.452382687 | AR14: ='S7'!D14*100 -> -2.676127332 | AS14: ='S1'!F14*100 -> -5.39905068 | AT14: ='S2'!F16*100 -> -4.207072047 | AU14: ='S3'!G16*100 -> -3.953001274 | AV14: ='S4'!F15*100 -> -4.372945554 | AW14: ='S5'!F29*100 -> -4.221627336 | AX14: ='S6'!F17*100 -> -3.830524086 | AY14: ='S7'!F14*100 -> -2.362526997 | AZ14: ='S1'!E14 -> -1.709398532 | BA14: ='S2'!E16 -> -1.397413193 | BB14: ='S3'!E16 -> -1.333506389 | BC14: ='S4'!E15 -> -1.433428919 | BD14: ='S5'!E29 -> -1.394019215 | BE14: ='S6'!E17 -> -1.284859371 | BF14: ='S7'!E14 -> -0.8492147771
A15: 2024 | B15: 0.3577638738 | C15: 5.382869947 | D15: 15.04587338 | E15: 5.225288599 | F15: -4.846318242 | G15: 0.8577412676 | H15: 10.64166355 | I15: 12.40661252 | J15: 10.28832492 | K15: -4.827651074 | L15: 2.805110462 | M15: 12.47548243 | N15: 4.447412179 | O15: 11.2926399 | P15: -4.533952942 | Q15: 3.127645148 | R15: 1.444773295 | S15: 0.4619364495 | T15: -0.2244641966 | U15: 0.8218488796 | V15: 7.148260752 | W15: 29.94478922 | X15: 4.189101414 | Y15: -5.117274198 | Z15: -4.444458763 | AA15: -1.393162421 | AB15: 28.561 | AL15: ='S1'!D15*100 -> -6.1352478 | AM15: ='S2'!$D17*100 -> -5.144985686 | AN15: ='S3'!$D17*100 -> -5.08563841 | AO15: ='S4'!D16*100 -> -5.117274198 | AP15: ='S5'!D30*100 -> -5.013914618 | AQ15: ='S6'!D18*100 -> -4.65985737 | AR15: ='S7'!D15*100 -> -2.749713157 | AS15: ='S1'!F15*100 -> -5.39905068 | AT15: ='S2'!F17*100 -> -4.384782248 | AU15: ='S3'!G17*100 -> -4.240668366 | AV15: ='S4'!F16*100 -> -4.444458763 | AW15: ='S5'!F30*100 -> -4.327446464 | AX15: ='S6'!F18*100 -> -3.983097599 | AY15: ='S7'!F15*100 -> -2.419692894 | AZ15: ='S1'!E15 -> -1.617107239 | BA15: ='S2'!E17 -> -1.395167556 | BB15: ='S3'!E17 -> -1.373998491 | BC15: ='S4'!E16 -> -1.393162421 | BD15: ='S5'!E30 -> -1.368636205 | BE15: ='S6'!E18 -> -1.284859371 | BF15: ='S7'!E15 -> -0.8492147771
A16: 2025 | B16: 0.3593371942 | C16: 5.115477602 | D16: 14.23587005 | E16: 4.957896254 | F16: -4.967468058 | G16: 0.859297961 | H16: 10.11518175 | I16: 11.77144857 | J16: 9.761843123 | K16: -4.947363673 | L16: 2.812726641 | M16: 11.89760709 | N16: 4.229919435 | O16: 10.71476455 | P16: -4.632088185 | Q16: 3.164685513 | R16: 1.456259744 | S16: 0.4601593863 | T16: -0.2129777482 | U16: 0.7950346572 | V16: 7.19604731 | W16: 28.58452618 | X16: 3.972253787 | Y16: -5.276145577 | Z16: -4.536404317 | AA16: -1.358784244 | AB16: 37.1293 | AL16: ='S1'!D16*100 -> -6.183367586 | AM16: ='S2'!$D18*100 -> -5.394819099 | AN16: ='S3'!$D18*100 -> -5.440466726 | AO16: ='S4'!D17*100 -> -5.276145577 | AP16: ='S5'!D31*100 -> -5.203611192 | AQ16: ='S6'!D19*100 -> -4.887613173 | AR16: ='S7'!D16*100 -> -2.827460202 | AS16: ='S1'!F16*100 -> -5.39905068 | AT16: ='S2'!F18*100 -> -4.569999075 | AU16: ='S3'!G18*100 -> -4.528335457 | AV16: ='S4'!F17*100 -> -4.536404317 | AW16: ='S5'!F31*100 -> -4.450520686 | AX16: ='S6'!F19*100 -> -4.148329617 | AY16: ='S7'!F16*100 -> -2.479693871 | AZ16: ='S1'!E16 -> -1.529798799 | BA16: ='S2'!E18 -> -1.390341443 | BB16: ='S3'!E18 -> -1.404984856 | BC16: ='S4'!E17 -> -1.358784244 | BD16: ='S5'!E31 -> -1.346649302 | BE16: ='S6'!E19 -> -1.284859371 | BF16: ='S7'!E16 -> -0.8492147771
A17: 2026 | B17: 0.3609174335 | C17: 4.853891778 | D17: 13.44875954 | E17: 4.69631043 | F17: -5.113614882 | G17: 0.8608574795 | H17: 9.600132696 | I17: 11.15182585 | J17: 9.246794069 | K17: -5.091841816 | L17: 2.820363499 | M17: 11.33228051 | N17: 4.018021263 | O17: 10.14943798 | P17: -4.751598972 | Q17: 3.202164543 | R17: 1.46749676 | S17: 0.4582827459 | T17: -0.2017407321 | U17: 0.7716354235 | V17: 7.244302956 | W17: 27.25380174 | X17: 3.762101324 | Y17: -5.462821491 | Z17: -4.648782216 | AA17: -1.329277753 | AB17: 48.26809 | AL17: ='S1'!D17*100 -> -6.235061189 | AM17: ='S2'!$D19*100 -> -5.660249475 | AN17: ='S3'!$D19*100 -> -5.803508504 | AO17: ='S4'!D18*100 -> -5.462821491 | AP17: ='S5'!D32*100 -> -5.419791539 | AQ17: ='S6'!D20*100 -> -5.1387767 | AR17: ='S7'!D17*100 -> -2.909731708 | AS17: ='S1'!F17*100 -> -5.39905068 | AT17: ='S2'!F19*100 -> -4.763039615 | AU17: ='S3'!G19*100 -> -4.816002549 | AV17: ='S4'!F18*100 -> -4.648782216 | AW17: ='S5'!F32*100 -> -4.591667101 | AX17: ='S6'!F20*100 -> -4.327863667 | AY17: ='S7'!F17*100 -> -2.542746192 | AZ17: ='S1'!E17 -> -1.447204187 | BA17: ='S2'!E19 -> -1.382848101 | BB17: ='S3'!E19 -> -1.426573834 | BC17: ='S4'!E18 -> -1.329277753 | BD17: ='S5'!E32 -> -1.327524072 | BE17: ='S6'!E20 -> -1.284859371 | BF17: ='S7'!E17 -> -0.8492147771
A18: 2027 | B18: 0.3625046221 | C18: 4.597340722 | D18: 12.68215753 | E18: 4.439759375 | F18: -5.285471271 | G18: 0.8624198284 | H18: 9.094996842 | I18: 10.54590414 | J18: 8.741658215 | K18: -5.261759078 | L18: 2.828021092 | M18: 10.77783483 | N18: 3.811087145 | O18: 9.594992297 | P18: -4.892622261 | Q18: 3.240087434 | R18: 1.478517496 | S18: 0.4563202463 | T18: -0.1907199961 | U18: 0.750988784 | V18: 7.293032976 | W18: 25.94868989 | X18: 3.558010772 | Y18: -5.678522741 | Z18: -4.781592461 | AA18: -1.303693012 | AB18: 62.748517 | AL18: ='S1'!D18*100 -> -6.290653148 | AM18: ='S2'!$D20*100 -> -5.942866973 | AN18: ='S3'!$D20*100 -> -6.17616969 | AO18: ='S4'!D19*100 -> -5.678522741 | AP18: ='S5'!D33*100 -> -5.66476423 | AQ18: ='S6'!D21*100 -> -5.417152047 | AR18: ='S7'!D18*100 -> -2.996934461 | AS18: ='S1'!F18*100 -> -5.39905068 | AT18: ='S2'!F20*100 -> -4.964234346 | AU18: ='S3'!G20*100 -> -5.10366964 | AV18: ='S4'!F19*100 -> -4.781592461 | AW18: ='S5'!F33*100 -> -4.751750441 | AX18: ='S6'!F21*100 -> -4.523640668 | AY18: ='S7'!F18*100 -> -2.609088696 | AZ18: ='S1'!E18 -> -1.369068899 | BA18: ='S2'!E20 -> -1.372612927 | BB18: ='S3'!E20 -> -1.438977624 | BC18: ='S4'!E19 -> -1.303693012 | BD18: ='S5'!E33 -> -1.310726084 | BE18: ='S6'!E21 -> -1.284859371 | BF18: ='S7'!E18 -> -0.8492147771
A19: 2028 | B19: 0.3640987906 | C19: 4.345227977 | D19: 11.93420052 | E19: 4.187646629 | F19: -5.483882117 | G19: 0.8639850128 | H19: 8.598599792 | I19: 9.952255728 | J19: 8.245261166 | K19: -5.457913381 | L19: 2.835699476 | M19: 10.23298101 | N19: 3.608626759 | O19: 9.050138477 | P19: -5.055317957 | Q19: 3.27845944 | R19: 1.489347574 | S19: 0.4542827512 | T19: -0.1798899177 | U19: 0.7324957857 | V19: 7.34224272 | W19: 24.66615635 | X19: 3.359485282 | Y19: -5.92471941 | Z19: -4.934835051 | AA19: -1.281139242 | AB19: 81.5730721 | AL19: ='S1'!D19*100 -> -6.350505895 | AM19: ='S2'!$D21*100 -> -6.244535171 | AN19: ='S3'!$D21*100 -> -6.560133395 | AO19: ='S4'!D20*100 -> -5.92471941 | AP19: ='S5'!D34*100 -> -5.941220703 | AQ19: ='S6'!D22*100 -> -5.727414816 | AR19: ='S7'!D19*100 -> -3.089525515 | AS19: ='S1'!F19*100 -> -5.39905068 | AT19: ='S2'!F21*100 -> -5.173927708 | AU19: ='S3'!G21*100 -> -5.391336732 | AV19: ='S4'!F20*100 -> -4.934835051 | AW19: ='S5'!F34*100 -> -4.931694251 | AX19: ='S6'!F22*100 -> -4.737969377 | AY19: ='S7'!F19*100 -> -2.678985812 | AZ19: ='S1'!E19 -> -1.295152175 | BA19: ='S2'!E21 -> -1.359575232 | BB19: ='S3'!E21 -> -1.442505116 | BC19: ='S4'!E20 -> -1.281139242 | BD19: ='S5'!E34 -> -1.295720904 | BE19: ='S6'!E22 -> -1.284859371 | BF19: ='S7'!E19 -> -0.8492147771
A20: 2029 | B20: 0.3656999698 | C20: 4.097121664 | D20: 11.20350561 | E20: 3.939540316 | F20: -5.709857204 | G20: 0.8655530378 | H20: 8.110091204 | I20: 9.369837375 | J20: 7.756752577 | K20: -5.68125742 | L20: 2.843398708 | M20: 9.6967857 | N20: 3.410279984 | O20: 8.513943166 | P20: -5.239873996 | Q20: 3.317285883 | R20: 1.500005547 | S20: 0.452178558 | T20: -0.1692319449 | U20: 0.7156135382 | V20: 7.391937598 | W20: 23.40400411 | X20: 3.166152826 | Y20: -6.203196892 | Z20: -5.108509986 | AA20: -1.260780102 | AB20: 100 | AL20: ='S1'!D20*100 -> -6.415025432 | AM20: ='S2'!$D22*100 -> -6.567457488 | AN20: ='S3'!$D22*100 -> -6.957428695 | AO20: ='S4'!D21*100 -> -6.203196892 | AP20: ='S5'!D35*100 -> -6.252331996 | AQ20: ='S6'!D23*100 -> -6.075376849 | AR20: ='S7'!D20*100 -> -3.188020213 | AS20: ='S1'!F20*100 -> -5.39905068 | AT20: ='S2'!F22*100 -> -5.392478692 | AU20: ='S3'!G22*100 -> -5.679003823 | AV20: ='S4'!F21*100 -> -5.108509986 | AW20: ='S5'!F35*100 -> -5.132490752 | AX20: ='S6'!F23*100 -> -4.973617869 | AY20: ='S7'!F20*100 -> -2.752731087 | AZ20: ='S1'!E20 -> -1.225226253 | BA20: ='S2'!E22 -> -1.343690009 | BB20: ='S3'!E22 -> -1.437553353 | BC20: ='S4'!E21 -> -1.260780102 | BD20: ='S5'!E35 -> -1.2819741 | BE20: ='S6'!E23 -> -1.284859371 | BF20: ='S7'!E20 -> -0.8492147771
A21: 2030 | B21: 0.3673081903 | C21: 3.852744221 | D21: 10.48913235 | E21: 3.695162874 | F21: -5.964612782 | G21: 0.8671239086 | H21: 7.628924569 | I21: 8.797963582 | J21: 7.275585942 | K21: -5.932937407 | L21: 2.851118844 | M21: 9.168649042 | N21: 3.215807388 | O21: 7.985806508 | P21: -5.44651263 | Q21: 3.356572143 | R21: 1.510503338 | S21: 0.4500136668 | T21: -0.1587341541 | U21: 0.6998501282 | V21: 7.442123085 | W21: 22.16082117 | X21: 2.977755261 | Y21: -6.516142275 | Z21: -5.302617266 | AA21: -1.24183143 | AB21: 100 | AL21: ='S1'!D21*100 -> -6.484668063 | AM21: ='S2'!$D23*100 -> -6.914263947 | AN21: ='S3'!$D23*100 -> -7.370520098 | AO21: ='S4'!D22*100 -> -6.516142275 | AP21: ='S5'!D36*100 -> -6.60187085 | AQ21: ='S6'!D24*100 -> -6.468353713 | AR21: ='S7'!D21*100 -> -4.156833234 | AS21: ='S1'!F21*100 -> -5.39905068 | AT21: ='S2'!F23*100 -> -5.62026145 | AU21: ='S3'!G23*100 -> -5.966670915 | AV21: ='S4'!F22*100 -> -5.302617266 | AW21: ='S5'!F36*100 -> -5.355208205 | AX21: ='S6'!F24*100 -> -5.233933732 | AY21: ='S7'!F21*100 -> -2.830651305 | AZ21: ='S1'!E21 -> -1.159075667 | BA21: ='S2'!E23 -> -1.324929694 | BB21: ='S3'!E23 -> -1.424597819 | BC21: ='S4'!E22 -> -1.24183143 | BD21: ='S5'!E36 -> -1.26895124 | BE21: ='S6'!E24 -> -1.284859371 | BF21: ='S7'!E21 -> -0.8492147771
A22: 2031 | B22: 0.3689234833 | C22: 3.611962151 | D22: 9.790545507 | E22: 3.454380804 | F22: -6.249625107 | G22: 0.8686976302 | H22: 7.154837037 | I22: 8.236280138 | J22: 6.801498411 | K22: -6.214342888 | L22: 2.858859941 | M22: 8.648282528 | N22: 3.025080874 | O22: 7.465439994 | P22: -5.675498228 | Q22: 3.396323665 | R22: 1.520846681 | S22: 0.4477920337 | T22: -0.1483908108 | U22: 0.6847613681 | V22: 7.49280472 | W22: 20.9359284 | X22: 2.794137734 | Y22: -6.866258638 | Z22: -5.517156892 | AA22: -1.223561141 | AB22: 100 | AL22: ='S1'!D22*100 -> -6.559948429 | AM22: ='S2'!$D24*100 -> -7.288125796 | AN22: ='S3'!$D24*100 -> -7.802425298 | AO22: ='S4'!D23*100 -> -6.866258638 | AP22: ='S5'!D37*100 -> -6.994367983 | AQ22: ='S6'!D25*100 -> -6.915684659 | AR22: ='S7'!D22*100 -> -4.337120084 | AS22: ='S1'!F22*100 -> -5.39905068 | AT22: ='S2'!F24*100 -> -5.85766594 | AU22: ='S3'!G24*100 -> -6.254338006 | AV22: ='S4'!F23*100 -> -5.517156892 | AW22: ='S5'!F37*100 -> -5.600993993 | AX22: ='S6'!F25*100 -> -5.523004107 | AY22: ='S7'!F22*100 -> -3.67728863 | AZ22: ='S1'!E22 -> -1.096496584 | BA22: ='S2'!E24 -> -1.303285864 | BB22: ='S3'!E24 -> -1.404181833 | BC22: ='S4'!E23 -> -1.223561141 | BD22: ='S5'!E37 -> -1.25611789 | BE22: ='S6'!E25 -> -1.284859371 | BF22: ='S7'!E22 -> -1.071983694
A23: 2032 | B23: 0.3705458797 | C23: 3.374775431 | D23: 9.107577809 | E23: 3.217194083 | F23: -6.566700048 | G23: 0.870274208 | H23: 6.687828565 | I23: 7.684737182 | J23: 6.334489939 | K23: -6.527171334 | L23: 2.866622056 | M23: 8.13568611 | N23: 2.838074204 | O23: 6.952843576 | P23: -5.927147 | Q23: 3.436545961 | R23: 1.531035578 | S23: 0.445515816 | T23: -0.1382019139 | U23: 0.6699489824 | V23: 7.543988105 | W23: 19.72932568 | X23: 2.615238175 | Y23: -7.256918222 | Z23: -5.752128864 | AA23: -1.205290967 | AB23: 100 | AL23: ='S1'!D23*100 -> -6.641449126 | AM23: ='S2'!$D25*100 -> -7.692908929 | AN23: ='S3'!$D25*100 -> -8.256872194 | AO23: ='S4'!D24*100 -> -7.256918222 | AP23: ='S5'!D38*100 -> -7.435315098 | AQ23: ='S6'!D26*100 -> -7.42948437 | AR23: ='S7'!D23*100 -> -4.533754459 | AS23: ='S1'!F23*100 -> -5.39905068 | AT23: ='S2'!F25*100 -> -6.105098592 | AU23: ='S3'!G25*100 -> -6.542005098 | AV23: ='S4'!F24*100 -> -5.752128864 | AW23: ='S5'!F38*100 -> -5.871070776 | AX23: ='S6'!F26*100 -> -5.845871849 | AY23: ='S7'!F23*100 -> -3.817675581 | AZ23: ='S1'!E23 -> -1.037296178 | BA23: ='S2'!E25 -> -1.27877085 | BB23: ='S3'!E25 -> -1.376905263 | BC23: ='S4'!E24 -> -1.205290967 | BD23: ='S5'!E38 -> -1.242939619 | BE23: ='S6'!E26 -> -1.284859371 | BF23: ='S7'!E23 -> -1.071983694
A24: 2033 | B24: 0.3721754109 | C24: 3.141306287 | D24: 8.440391804 | E24: 2.98372494 | F24: -6.918064578 | G24: 0.8718536471 | H24: 6.228139811 | I24: 7.143561114 | J24: 5.874801184 | K24: -6.873512832 | L24: 2.874405246 | M24: 7.631123938 | N24: 2.654853191 | O24: 6.448281404 | P24: -6.201839225 | Q24: 3.477244605 | R24: 1.541064778 | S24: 0.4431856119 | T24: -0.1281727141 | U24: 0.6550598836 | V24: 7.595678909 | W24: 18.54163481 | X24: 2.441076701 | Y24: -7.692370592 | Z24: -6.00753318 | AA24: -1.186399684 | AB24: 100 | AL24: ='S1'!D24*100 -> -6.729832311 | AM24: ='S2'!$D26*100 -> -8.133382134 | AN24: ='S3'!$D26*100 -> -8.738511325 | AO24: ='S4'!D25*100 -> -7.692370592 | AP24: ='S5'!D39*100 -> -7.931432776 | AQ24: ='S6'!D27*100 -> -8.02575671 | AR24: ='S7'!D24*100 -> -4.749065424 | AS24: ='S1'!F24*100 -> -5.39905068 | AT24: ='S2'!F26*100 -> -6.362983004 | AU24: ='S3'!G26*100 -> -6.829672189 | AV24: ='S4'!F25*100 -> -6.00753318 | AW24: ='S5'!F39*100 -> -6.166721658 | AX24: ='S6'!F27*100 -> -6.208832225 | AY24: ='S7'!F24*100 -> -3.969207028 | AZ24: ='S1'!E24 -> -0.9812920315 | BA24: ='S2'!E26 -> -1.251419216 | BB24: ='S3'!E26 -> -1.343412855 | BC24: ='S4'!E25 -> -1.186399684 | BD24: ='S5'!E39 -> -1.228881993 | BE24: ='S6'!E27 -> -1.284859371 | BF24: ='S7'!E24 -> -1.071983694
A25: 2034 | B25: 0.3738121081 | C25: 2.911787107 | D25: 7.789440321 | E25: 2.75420576 | F25: -7.30648841 | G25: 0.8734359527 | H25: 5.776228332 | I25: 6.613224833 | J25: 5.422889705 | K25: -7.255962331 | L25: 2.882209568 | M25: 7.135098235 | N25: 2.475565384 | O25: 5.952255701 | P25: -6.500034679 | Q25: 3.518425239 | R25: 1.550924298 | S25: 0.4408006971 | T25: -0.1183131939 | U25: 0.6397862247 | V25: 7.647882867 | W25: 17.37403797 | X25: 2.271744779 | Y25: -8.178029974 | Z25: -6.283369842 | AA25: -1.166327498 | AB25: 100 | AL25: ='S1'!D25*100 -> -6.825853766 | AM25: ='S2'!$D27*100 -> -8.615504236 | AN25: ='S3'!$D27*100 -> -9.2532079 | AO25: ='S4'!D26*100 -> -8.178029974 | AP25: ='S5'!D40*100 -> -8.491030051 | AQ25: ='S6'!D28*100 -> -8.726091591 | AR25: ='S7'!D25*100 -> -4.985846538 | AS25: ='S1'!F25*100 -> -5.39905068 | AT25: ='S2'!F27*100 -> -6.631760667 | AU25: ='S3'!G27*100 -> -7.117339281 | AV25: ='S4'!F26*100 -> -6.283369842 | AW25: ='S5'!F40*100 -> -6.489258181 | AX25: ='S6'!F28*100 -> -6.619847446 | AY25: ='S7'!F25*100 -> -4.133264868 | AZ25: ='S1'!E25 -> -0.9283115774 | BA25: ='S2'!E27 -> -1.221289071 | BB25: ='S3'!E27 -> -1.30438241 | BC25: ='S4'!E26 -> -1.166327498 | BD25: ='S5'!E40 -> -1.213410579 | BE25: ='S6'!E28 -> -1.284859371 | BF25: ='S7'!E25 -> -1.071983694
A26: 2035 | B26: 0.375456003 | C26: 2.686547335 | D26: 7.155425172 | E26: 2.528965987 | F26: -7.735447829 | G26: 0.87502113 | H26: 5.332742787 | I26: 6.094416013 | J26: 4.97940416 | K26: -7.677770338 | L26: 2.890035079 | M26: 6.64832098 | N26: 2.300429163 | O26: 5.465478446 | P26: -6.82229227 | Q26: 3.56009357 | R26: 1.560599986 | S26: 0.438359261 | T26: -0.1086375054 | U26: 0.6238659405 | V26: 7.700605783 | W26: 16.22821109 | X26: 2.107394086 | Y26: -8.72087888 | Z26: -6.579638849 | AA26: -1.14458121 | AB26: 100 | AL26: ='S1'!D26*100 -> -6.930380071 | AM26: ='S2'!$D28*100 -> -9.146827031 | AN26: ='S3'!$D28*100 -> -9.808450526 | AO26: ='S4'!D27*100 -> -8.72087888 | AP26: ='S5'!D41*100 -> -9.124495929 | AQ26: ='S6'!D29*100 -> -9.560335197 | AR26: ='S7'!D26*100 -> -5.247477725 | AS26: ='S1'!F26*100 -> -5.39905068 | AT26: ='S2'!F28*100 -> -6.91189172 | AU26: ='S3'!G28*100 -> -7.405006372 | AV26: ='S4'!F27*100 -> -6.579638849 | AW26: ='S5'!F41*100 -> -6.839961638 | AX26: ='S6'!F29*100 -> -7.089137536 | AY26: ='S7'!F26*100 -> -4.311469314 | AZ26: ='S1'!E26 -> -0.8781915648 | BA26: ='S2'!E28 -> -1.188463153 | BB26: ='S3'!E28 -> -1.260513057 | BC26: ='S4'!E27 -> -1.14458121 | BD26: ='S5'!E41 -> -1.195990946 | BE26: ='S6'!E29 -> -1.284859371 | BF26: ='S7'!E26 -> -1.071983694
A27: 2036 | B27: 0.3771071272 | C27: 2.465999274 | D27: 6.539253958 | E27: 2.308417927 | F27: -8.209349517 | G27: 0.8766091841 | H27: 4.898494981 | I27: 5.588003262 | J27: 4.545156354 | K27: -8.143048017 | L27: 2.897881838 | M27: 6.171683224 | N27: 2.12972218 | O27: 4.98884069 | P27: -7.169295178 | Q27: 3.602255375 | R27: 1.570074132 | S27: 0.4358586408 | T27: -0.09916336016 | U27: 0.6070835159 | V27: 7.753853525 | W27: 15.10625161 | X27: 1.948225042 | Y27: -9.330046307 | Z27: -6.896340202 | AA27: -1.120739749 | AB27: 100 | AL27: ='S1'!D27*100 -> -7.044409705 | AM27: ='S2'!$D29*100 -> -9.73707197 | AN27: ='S3'!$D29*100 -> -10.41393488 | AO27: ='S4'!D28*100 -> -9.330046307 | AP27: ='S5'!D42*100 -> -9.844984901 | AQ27: ='S6'!D30*100 -> -10.57095382 | AR27: ='S7'!D27*100 -> -5.53808764 | AS27: ='S1'!F27*100 -> -5.39905068 | AT27: ='S2'!F29*100 -> -7.203855741 | AU27: ='S3'!G29*100 -> -7.692673464 | AV27: ='S4'!F28*100 -> -6.896340202 | AW27: ='S5'!F42*100 -> -7.21998305 | AX27: ='S6'!F30*100 -> -7.630041685 | AY27: ='S7'!F27*100 -> -4.505732592 | AZ27: ='S1'!E27 -> -0.8307775572 | BA27: ='S2'!E29 -> -1.153049648 | BB27: ='S3'!E29 -> -1.212513873 | BC27: ='S4'!E28 -> -1.120739749 | BD27: ='S5'!E42 -> -1.176088661 | BE27: ='S6'!E30 -> -1.284859371 | BF27: ='S7'!E27 -> -1.071983694
A28: 2037 | B28: 0.3787655124 | C28: 2.250622813 | D28: 5.941995084 | E28: 2.093041465 | F28: -8.733841237 | G28: 0.8782001204 | H28: 4.474429788 | I28: 5.095000199 | J28: 4.121091162 | K28: -8.65705067 | L28: 2.905749902 | M28: 5.706222078 | N28: 1.963769172 | O28: 4.523379544 | P28: -7.541883303 | Q28: 3.644916498 | R28: 1.579326119 | S28: 0.4332955556 | T28: -0.08991137274 | U28: 0.589270738 | V28: 7.807632033 | W28: 14.0106008 | X28: 1.794475039 | Y28: -10.01765467 | Z28: -7.2334739 | AA28: -1.094459687 | AB28: 100 | AL28: ='S1'!D28*100 -> -7.169099172 | AM28: ='S2'!$D30*100 -> -10.39897414 | AN28: ='S3'!$D30*100 -> -11.08241636 | AO28: ='S4'!D29*100 -> -10.01765467 | AP28: ='S5'!D43*100 -> -10.66939451 | AQ28: ='S6'!D31*100 -> -11.82049263 | AR28: ='S7'!D28*100 -> -5.862773155 | AS28: ='S1'!F28*100 -> -5.39905068 | AT28: ='S2'!F30*100 -> -7.508152563 | AU28: ='S3'!G30*100 -> -7.980340555 | AV28: ='S4'!F29*100 -> -7.2334739 | AW28: ='S5'!F43*100 -> -7.630179168 | AX28: ='S6'!F31*100 -> -8.260306516 | AY28: ='S7'!F28*100 -> -4.718327827 | AZ28: ='S1'!E28 -> -0.7859234558 | BA28: ='S2'!E30 -> -1.115182691 | BB28: ='S3'!E30 -> -1.161093025 | BC28: ='S4'!E29 -> -1.094459687 | BD28: ='S5'!E43 -> -1.15316929 | BE28: ='S6'!E31 -> -1.284859371 | BF28: ='S7'!E28 -> -1.071983694
A29: 2038 | B29: 0.3804311907 | C29: 2.040949147 | D29: 5.364831267 | E29: 1.883367799 | F29: -9.316250816 | G29: 0.8797939441 | H29: 4.061593107 | I29: 4.616527693 | J29: 3.70825448 | K29: -9.226576366 | L29: 2.913639328 | M29: 5.253085535 | N29: 1.802929239 | O29: 4.070243002 | P29: -7.941095459 | Q29: 3.688082852 | R29: 1.58833313 | S29: 0.4306663363 | T29: -0.08090436191 | U29: 0.5703072168 | V29: 7.861947315 | W29: 12.94396092 | X29: 1.646406469 | Y29: -10.80009238 | Z29: -7.591039943 | AA29: -1.065480291 | AB29: 100 | AL29: ='S1'!D29*100 -> -7.305795607 | AM29: ='S2'!$D31*100 -> -11.14954938 | AN29: ='S3'!$D31*100 -> -11.8309885 | AO29: ='S4'!D30*100 -> -10.80009238 | AP29: ='S5'!D44*100 -> -11.61979493 | AQ29: ='S6'!D32*100 -> -13.40503365 | AR29: ='S7'!D29*100 -> -6.227900855 | AS29: ='S1'!F29*100 -> -5.39905068 | AT29: ='S2'!F31*100 -> -7.825303134 | AU29: ='S3'!G31*100 -> -8.268007647 | AV29: ='S4'!F30*100 -> -7.591039943 | AW29: ='S5'!F44*100 -> -8.070849422 | AX29: ='S6'!F32*100 -> -9.004070324 | AY29: ='S7'!F29*100 -> -4.951978402 | AZ29: ='S1'!E29 -> -0.7434910501 | BA29: ='S2'!E31 -> -1.075022504 | BB29: ='S3'!E31 -> -1.106947649 | BC29: ='S4'!E30 -> -1.065480291 | BD29: ='S5'!E44 -> -1.126698402 | BE29: ='S6'!E32 -> -1.284859371 | BF29: ='S7'!E29 -> -1.071983694
A30: 2039 | B30: 0.382104194 | C30: 1.837543684 | D30: 4.80901208 | E30: 1.679962337 | F30: -9.966219023 | G30: 0.8813906603 | H30: 3.661098197 | I30: 4.153774668 | J30: 3.307759571 | K30: -9.860537452 | L30: 2.921550175 | M30: 4.813495531 | N30: 1.647582702 | O30: 3.630652997 | P30: -8.368224755 | Q30: 3.73176042 | R30: 1.597070876 | S30: 0.4279671511 | T30: -0.07216661608 | U30: 0.550120479 | V30: 7.916805449 | W30: 11.90920829 | X30: 1.504294676 | Y30: -11.69998286 | Z30: -7.969038332 | AA30: -1.033627708 | AB30: 100 | AL30: ='S1'!D30*100 -> -7.456077804 | AM30: ='S2'!$D32*100 -> -12.01205354 | AN30: ='S3'!$D32*100 -> -12.68305767 | AO30: ='S4'!D31*100 -> -11.69998286 | AP30: ='S5'!D45*100 -> -12.72558045 | AQ30: ='S6'!D33*100 -> -15.48015342 | AR30: ='S7'!D30*100 -> -6.641528676 | AS30: ='S1'!F30*100 -> -5.39905068 | AT30: ='S2'!F32*100 -> -8.155850408 | AU30: ='S3'!G32*100 -> -8.555674738 | AV30: ='S4'!F31*100 -> -7.969038332 | AW30: ='S5'!F45*100 -> -8.541319442 | AX30: ='S6'!F33*100 -> -9.895025366 | AY30: ='S7'!F30*100 -> -5.209975251 | AZ30: ='S1'!E30 -> -0.7033495915 | BA30: ='S2'!E32 -> -1.032755116 | BB30: ='S3'!E32 -> -1.050754611 | BC30: ='S4'!E31 -> -1.033627708 | BD30: ='S5'!E45 -> -1.096141563 | BE30: ='S6'!E33 -> -1.284859371 | BF30: ='S7'!E30 -> -1.071983694
A31: 2040 | B31: 0.3837845546 | C31: 1.640988379 | D31: 4.275806203 | E31: 1.483407032 | F31: -10.69663307 | G31: 0.8829902743 | H31: 3.274090895 | I31: 3.707958049 | J31: 2.920752268 | K31: -10.57079821 | L31: 2.9294825 | M31: 4.388709753 | N31: 1.498117757 | O31: 3.205867219 | P31: -8.824891921 | Q31: 3.775955257 | R31: 1.605514358 | S31: 0.4251942219 | T31: -0.06372313437 | U31: 0.5286854727 | V31: 7.972212587 | W31: 10.90930338 | X31: 1.368416016 | Y31: -12.74933759 | Z31: -8.367469066 | AA31: -0.9988178673 | AB31: 100 | AL31: ='S1'!D31*100 -> -7.621808345 | AM31: ='S2'!$D33*100 -> -13.01911739 | AN31: ='S3'!$D33*100 -> -13.67150099 | AO31: ='S4'!D32*100 -> -12.74933759 | AP31: ='S5'!D46*100 -> -14.02681774 | AQ31: ='S6'!D34*100 -> -18.31540644 | AR31: ='S7'!D31*100 -> -3.98587964 | AS31: ='S1'!F31*100 -> -5.39905068 | AT31: ='S2'!F33*100 -> -8.500360272 | AU31: ='S3'!G33*100 -> -8.84334183 | AV31: ='S4'!F32*100 -> -8.367469066 | AW31: ='S5'!F46*100 -> -9.03928699 | AX31: ='S6'!F34*100 -> -10.98166378 | AY31: ='S7'!F31*100 -> -5.496332831 | AZ31: ='S1'!E31 -> -0.6653753906 | BA31: ='S2'!E33 -> -0.9885916404 | BB31: ='S3'!E33 -> -0.9931622672 | BC31: ='S4'!E32 -> -0.9988178673 | BD31: ='S5'!E46 -> -1.060964341 | BE31: ='S6'!E34 -> -1.284859371 | BF31: ='S7'!E31 -> -1.071983694
A32: 2041 | B32: 0.3854723048 | C32: 1.451863809 | D32: 3.766454271 | E32: 1.294282461 | F32: -11.52504019 | G32: 0.8845927915 | H32: 2.901714328 | I32: 3.280282584 | J32: 2.548375701 | K32: -11.37343399 | L32: 2.937436363 | M32: 3.979982919 | N32: 1.354917154 | O32: 2.797140385 | P32: -9.313143437 | Q32: 3.820673489 | R32: 1.613638635 | S32: 0.422344029 | T32: -0.05559885685 | U32: 0.5060233491 | V32: 8.028174949 | W32: 9.947199691 | X32: 1.239036239 | Y32: -13.99481332 | Z32: -8.786332145 | AA32: -0.9610577515 | AB32: 100 | AL32: ='S1'!D32*100 -> -7.805200471 | AM32: ='S2'!$D34*100 -> -14.21796989 | AN32: ='S3'!$D34*100 -> -14.84392684 | AO32: ='S4'!D33*100 -> -13.99481332 | AP32: ='S5'!D47*100 -> -15.57966656 | AQ32: ='S6'!D35*100 -> -22.42210635 | AR32: ='S7'!D32*100 -> -4.151347349 | AS32: ='S1'!F32*100 -> -5.39905068 | AT32: ='S2'!F34*100 -> -8.859422517 | AU32: ='S3'!G34*100 -> -9.131008921 | AV32: ='S4'!F33*100 -> -8.786332145 | AW32: ='S5'!F47*100 -> -9.55980077 | AX32: ='S6'!F35*100 -> -12.33640646 | AY32: ='S7'!F32*100 -> -3.258623778 | AZ32: ='S1'!E32 -> -0.6294514361 | BA32: ='S2'!E34 -> -0.9427670582 | BB32: ='S3'!E34 -> -0.9347833348 | BC32: ='S4'!E33 -> -0.9610577515 | BD32: ='S5'!E47 -> -1.020632304 | BE32: ='S6'!E35 -> -1.284859371 | BF32: ='S7'!E32 -> -0.6006175796
A33: 2042 | B33: 0.3871674771 | C33: 1.270731395 | D33: 3.282123292 | E33: 1.113150047 | F33: -12.47585436 | G33: 0.886198217 | H33: 2.545073906 | I33: 2.871901407 | J33: 2.191735279 | K33: -12.29067998 | L33: 2.945411822 | M33: 3.588528344 | N33: 1.218345196 | O33: 2.40568581 | P33: -9.835584301 | Q33: 3.865921314 | R33: 1.621419591 | S33: 0.4194135005 | T33: -0.04781790063 | U33: 0.4821994253 | V33: 8.08469883 | W33: 9.025753235 | X33: 1.116399439 | Y33: -15.50691343 | Z33: -9.225627569 | AA33: -0.9204447133 | AB33: 100 | AL33: ='S1'!D33*100 -> -8.008904818 | AM33: ='S2'!$D35*100 -> -15.67957238 | AN33: ='S3'!$D35*100 -> -16.27187592 | AO33: ='S4'!D34*100 -> -15.50691343 | AP33: ='S5'!D48*100 -> -17.46558307 | AQ33: ='S6'!D36*100 -> -28.90270062 | AR33: ='S7'!D33*100 -> -4.331148362 | AS33: ='S1'!F33*100 -> -5.39905068 | AT33: ='S2'!F35*100 -> -9.233651849 | AU33: ='S3'!G35*100 -> -9.418676013 | AV33: ='S4'!F34*100 -> -9.225627569 | AW33: ='S5'!F48*100 -> -10.09367549 | AX33: ='S6'!F36*100 -> -14.07243984 | AY33: ='S7'!F33*100 -> -3.368386833 | AZ33: ='S1'!E33 -> -0.595467034 | BA33: ='S2'!E35 -> -0.8955384903 | BB33: ='S3'!E35 -> -0.8761889229 | BC33: ='S4'!E34 -> -0.9204447133 | BD33: ='S5'!E48 -> -0.9746110181 | BE33: ='S6'!E36 -> -1.284859371 | BF33: ='S7'!E33 -> -0.6006175796
A34: 2043 | B34: 0.3888701043 | C34: 1.09811618 | D34: 2.823863723 | E34: 0.9405348329 | F34: -13.58392614 | G34: 0.8878065562 | H34: 2.205203414 | I34: 2.483878271 | J34: 1.851864787 | K34: -13.35405198 | L34: 2.953408934 | M34: 3.215480728 | N34: 1.088735356 | O34: 2.032638194 | P34: -10.39555996 | Q34: 3.911705004 | R34: 1.628834672 | S34: 0.416400181 | T34: -0.04040282018 | U34: 0.45732027 | V34: 8.141790599 | W34: 8.147634994 | X34: 1.000717827 | Y34: -17.39707399 | Z34: -9.685355339 | AA34: -0.8771636036 | AB34: 100 | AL34: ='S1'!D34*100 -> -8.236123261 | AM34: ='S2'!$D36*100 -> -17.51556318 | AN34: ='S3'!$D36*100 -> -18.06789902 | AO34: ='S4'!D35*100 -> -17.39707399 | AP34: ='S5'!D49*100 -> -19.80788516 | AQ34: ='S6'!D37*100 -> -40.65231854 | AR34: ='S7'!D34*100 -> -4.527229383 | AS34: ='S1'!F34*100 -> -5.39905068 | AT34: ='S2'!F36*100 -> -9.623688936 | AU34: ='S3'!G36*100 -> -9.706343104 | AV34: ='S4'!F35*100 -> -9.685355339 | AW34: ='S5'!F49*100 -> -10.62505257 | AX34: ='S6'!F37*100 -> -16.37709696 | AY34: ='S7'!F34*100 -> -3.485802133 | AZ34: ='S1'!E34 -> -0.5633174671 | BA34: ='S2'!E36 -> -0.8471829379 | BB34: ='S3'!E36 -> -0.8179037576 | BC34: ='S4'!E35 -> -0.8771636036 | BD34: ='S5'!E49 -> -0.9223660515 | BE34: ='S6'!E37 -> -1.284859371 | BF34: ='S7'!E34 -> -0.6006175796
A35: 2044 | B35: 0.390580219 | C35: 0.9344906397 | D35: 2.392570321 | E35: 0.7769092922 | F35: -14.90056732 | G35: 0.8894178143 | H35: 1.883033127 | I35: 2.117152475 | J35: 1.5296945 | K35: -14.60954963 | L35: 2.96142776 | M35: 2.861861157 | N35: 0.9663788515 | O35: 1.679018623 | P35: -10.99740911 | Q35: 3.958030906 | R35: 1.63586358 | S35: 0.4133023766 | T35: -0.03337391166 | U35: 0.4315298932 | V35: 8.199456699 | W35: 7.315248504 | X35: 0.8921625874 | Y35: -19.85182452 | Z35: -10.16551545 | AA35: -0.8314815686 | AB35: 100 | AL35: ='S1'!D35*100 -> -8.490760274 | AM35: ='S2'!$D37*100 -> -19.91209343 | AN35: ='S3'!$D37*100 -> -20.41969051 | AO35: ='S4'!D36*100 -> -19.85182452 | AP35: ='S5'!D50*100 -> -22.80384293 | AQ35: ='S6'!D38*100 -> -68.49857911 | AR35: ='S7'!D35*100 -> -4.741906361 | AS35: ='S1'!F35*100 -> -5.39905068 | AT35: ='S2'!F37*100 -> -10.03020151 | AU35: ='S3'!G37*100 -> -9.994010196 | AV35: ='S4'!F36*100 -> -10.16551545 | AW35: ='S5'!F50*100 -> -11.12769969 | AX35: ='S6'!F38*100 -> -19.58446354 | AY35: ='S7'!F35*100 -> -3.611698807 | AZ35: ='S1'!E35 -> -0.5329036715 | BA35: ='S2'!E37 -> -0.7979944897 | BB35: ='S3'!E37 -> -0.7604026032 | BC35: ='S4'!E36 -> -0.8314815686 | BD35: ='S5'!E50 -> -0.8633629713 | BE35: ='S6'!E38 -> -1.284859371 | BF35: ='S7'!E35 -> -0.6006175796
A36: 2045 | B36: 0.3922978542 | C36: 0.7802599703 | D36: 1.988947842 | E36: 0.6226786228 | F36: -16.50424979 | G36: 0.8910319967 | H36: 1.579360859 | I36: 1.772507457 | J36: 1.226022232 | K36: -16.12676185 | L36: 2.969468358 | M36: 2.528545326 | N36: 0.8515144875 | O36: 1.345702793 | P36: -11.64682046 | Q36: 4.00490544 | R36: 1.642488911 | S36: 0.4101192738 | T36: -0.02674858128 | U36: 0.4050050664 | V36: 8.257703648 | W36: 6.530655066 | X36: 0.7908560714 | Y36: -23.20790084 | Z36: -10.66610792 | AA36: -0.7837404742 | AB36: 100 | AL36: ='S1'!D36*100 -> -8.777627098 | AM36: ='S2'!$D38*100 -> -23.2041042 | AN36: ='S3'!$D38*100 -> -23.66512255 | AO36: ='S4'!D37*100 -> -23.20790084 | AP36: ='S5'!D51*100 -> -26.79306793 | AQ36: ='S6'!D39*100 -> -100 | AR36: ='S7'!D36*100 -> -4.977956392 | AS36: ='S1'!F36*100 -> -5.39905068 | AT36: ='S2'!F38*100 -> -10.45388552 | AU36: ='S3'!G38*100 -> -10.28167729 | AV36: ='S4'!F37*100 -> -10.66610792 | AW36: ='S5'!F51*100 -> -11.55954058 | AX36: ='S6'!F39*100 -> -24.35407933 | AY36: ='S7'!F36*100 -> -3.747030254 | AZ36: ='S1'!E36 -> -0.5041319322 | BA36: ='S2'!E38 -> -0.7482810063 | BB36: ='S3'!E38 -> -0.7041078521 | BC36: ='S4'!E37 -> -0.7837404742 | BD36: ='S5'!E51 -> -0.7970673449 | BE36: ='S6'!E39 -> -1.284859371 | BF36: ='S7'!E36 -> -0.6006175796
A37: 2046 | B37: 0.3940230429 | C37: 0.635749333 | D37: 1.613482624 | E37: 0.4781679855 | F37: -18.52083188 | G37: 0.8926491086 | H37: 1.294826835 | I37: 1.450544029 | J37: 0.9414882082 | K37: -18.01577026 | L37: 2.977530786 | M37: 2.216235957 | N37: 0.7443200813 | O37: 1.033393423 | P37: -12.35134551 | Q37: 4.052335104 | R37: 1.648696695 | S37: 0.406851026 | T37: -0.02054079706 | U37: 0.3779498405 | V37: 8.316538042 | W37: 5.79550882 | X37: 0.6968655455 | Y37: -28.13987873 | Z37: -11.18713272 | AA37: -0.7343470391 | AB37: 100 | AL37: ='S1'!D37*100 -> -9.102721513 | AM37: ='S2'!$D39*100 -> -28.06045311 | AN37: ='S3'!$D39*100 -> -28.47963425 | AO37: ='S4'!D38*100 -> -28.13987873 | AP37: ='S5'!D52*100 -> -32.42333156 | AQ37: ='S6'!D40*100 -> -100 | AR37: ='S7'!D37*100 -> -5.23873851 | AS37: ='S1'!F37*100 -> -5.39905068 | AT37: ='S2'!F39*100 -> -10.89546628 | AU37: ='S3'!G39*100 -> -10.56934438 | AV37: ='S4'!F38*100 -> -11.18713272 | AW37: ='S5'!F52*100 -> -11.85494843 | AX37: ='S6'!F40*100 -> -14.80589905 | AY37: ='S7'!F37*100 -> -3.892898332 | AZ37: ='S1'!E37 -> -0.4769135937 | BA37: ='S2'!E39 -> -0.6983603099 | BB37: ='S3'!E39 -> -0.649388231 | BC37: ='S4'!E38 -> -0.7343470391 | BD37: ='S5'!E52 -> -0.7229447397 | BE37: ='S6'!E40 -> -0.5908866482 | BF37: ='S7'!E37 -> -0.6006175796
A38: 2047 | B38: 0.3957558184 | C38: 0.5011934418 | D38: 1.266420905 | E38: 0.3436120942 | F38: -21.16492842 | G38: 0.8942691553 | H38: 1.029893195 | I38: 1.151659082 | J38: 0.6765545682 | K38: -20.46093214 | L38: 2.985615105 | M38: 1.925440301 | N38: 0.644905734 | O38: 0.7425977669 | P38: -13.12115053 | Q38: 4.100326473 | R38: 1.65447685 | S38: 0.4034988095 | T38: -0.01476064168 | U38: 0.3505893716 | V38: 8.375966552 | W38: 5.111003788 | X38: 0.6101986864 | Y38: -36.22241168 | Z38: -11.72858987 | AA38: -0.6837608785 | AB38: 100 | AL38: ='S1'!D38*100 -> -9.473618031 | AM38: ='S2'!$D40*100 -> -36.03677173 | AN38: ='S3'!$D40*100 -> -36.43754605 | AO38: ='S4'!D39*100 -> -36.22241168 | AP38: ='S5'!D53*100 -> -41.13435256 | AQ38: ='S6'!D41*100 -> -100 | AR38: ='S7'!D38*100 -> -5.528354549 | AS38: ='S1'!F38*100 -> -5.39905068 | AT38: ='S2'!F40*100 -> -11.35569979 | AU38: ='S3'!G40*100 -> -10.85701147 | AV38: ='S4'!F39*100 -> -11.72858987 | AW38: ='S5'!F53*100 -> -11.91486517 | AX38: ='S6'!F41*100 -> 0 | AY38: ='S7'!F38*100 -> -4.050583427 | AZ38: ='S1'!E38 -> -0.4511647871 | BA38: ='S2'!E40 -> -0.6485559265 | BB38: ='S3'!E40 -> -0.5965585523 | BC38: ='S4'!E39 -> -0.6837608785 | BD38: ='S5'!E53 -> -0.640460723 | BE38: ='S6'!E41 -> 0 | BF38: ='S7'!E38 -> -0.6006175796
A39: 2048 | B39: 0.3974962141 | C39: 0.3767288544 | D39: 0.9477545724 | E39: 0.2191475069 | F39: -24.83364246 | G39: 0.8958921422 | H39: 0.7848288138 | I39: 0.8760304693 | J39: 0.4314901872 | K39: -23.79512576 | L39: 2.993721374 | M39: 1.656453481 | N39: 0.5533091672 | O39: 0.4736109466 | P39: -13.97014595 | Q39: 4.148886198 | R39: 1.659823511 | S39: 0.4000648442 | T39: -0.009413981282 | U39: 0.3231632038 | V39: 8.435995929 | W39: 4.477834659 | X39: 0.5308009507 | Y39: -52.17473445 | Z39: -12.29047937 | AA39: -0.6324807842 | AB39: 100 | AL39: ='S1'!D39*100 -> -9.900022952 | AM39: ='S2'!$D41*100 -> -51.769975 | AN39: ='S3'!$D41*100 -> -52.2516137 | AO39: ='S4'!D40*100 -> -52.17473445 | AP39: ='S5'!D54*100 -> -57.04883909 | AQ39: ='S6'!D42*100 -> -100 | AR39: ='S7'!D39*100 -> -5.851866475 | AS39: ='S1'!F39*100 -> -5.39905068 | AT39: ='S2'!F41*100 -> -11.83537393 | AU39: ='S3'!G41*100 -> -11.14467856 | AV39: ='S4'!F40*100 -> -12.29047937 | AW39: ='S5'!F54*100 -> -11.59659031 | AX39: ='S6'!F42*100 -> 0 | AY39: ='S7'!F39*100 -> -4.221582133 | AZ39: ='S1'!E39 -> -0.4268061716 | BA39: ='S2'!E41 -> -0.5991924459 | BB39: ='S3'!E41 -> -0.545880419 | BC39: ='S4'!E40 -> -0.6324807842 | BD39: ='S5'!E54 -> -0.5490808622 | BE39: ='S6'!E42 -> 0 | BF39: ='S7'!E39 -> -0.6006175796
A40: 2049 | B40: 0.3992442634 | C40: 0.2623892246 | D40: 0.6572147648 | E40: 0.1048078771 | F40: -30.35064302 | G40: 0.8975180747 | H40: 0.5596999545 | I40: 0.6236085604 | J40: 0.2063613278 | K40: -28.68509099 | L40: 3.001849653 | M40: 1.409348227 | N40: 0.4694932758 | O40: 0.2265056929 | P40: -14.91772975 | Q40: 4.198021011 | R40: 1.66473523 | S40: 0.3965523817 | T40: -0.004502261547 | U40: 0.2959181927 | V40: 8.496633001 | W40: 3.896172636 | X40: 0.4585548929 | Y40: -99.5016356 | Z40: -12.87280121 | AA40: -0.5810296746 | AB40: 100 | AL40: ='S1'!D40*100 -> -10.39458167 | AM40: ='S2'!$D42*100 -> -98.07385613 | AN40: ='S3'!$D42*100 -> -99.35938362 | AO40: ='S4'!D41*100 -> -99.5016356 | AP40: ='S5'!D55*100 -> -100 | AQ40: ='S6'!D43*100 -> -100 | AR40: ='S7'!D40*100 -> -6.215594783 | AS40: ='S1'!F40*100 -> -5.39905068 | AT40: ='S2'!F42*100 -> -12.33530991 | AU40: ='S3'!G42*100 -> -11.43234565 | AV40: ='S4'!F41*100 -> -12.87280121 | AW40: ='S5'!F55*100 -> -10.70940564 | AX40: ='S6'!F43*100 -> 0 | AY40: ='S7'!F40*100 -> -4.407654905 | AZ40: ='S1'!E40 -> -0.4037626901 | BA40: ='S2'!E42 -> -0.550590585 | BB40: ='S3'!E42 -> -0.4975637798 | BC40: ='S4'!E41 -> -0.5810296746 | BD40: ='S5'!E55 -> -0.4482707247 | BE40: ='S6'!E43 -> 0 | BF40: ='S7'!E40 -> -0.6006175796
A41: 2050 | B41: =Ausgangsdaten!E91 -> 0.401 | C41: 0.1581036727 | D41: 0.394273498 | E41: 0.0005223251502 | F41: -39.74460159 | G41: =Ausgangsdaten!E94 -> 0.899146958 | H41: 0.354367058 | I41: 0.3941147272 | J41: 0.001028431398 | K41: -36.68624498 | L41: =Ausgangsdaten!E97 -> 3.01 | M41: 1.183971358 | N41: 0.393345966 | O41: 0.001128823742 | P41: -15.99156723 | Q41: =Ausgangsdaten!E100 -> 4.247737722 | R41: 1.669215054 | S41: 0.3929656592 | T41: -2.243766884e-05 | U41: 0.2691012839 | V41: 8.55788468 | W41: 3.365657143 | X41: 0.3932814321 | Y41: 0 | Z41: -13.4755554 | AA41: -0.5299387486 | AB41: 100 | AS41: ='S1'!F41*100 -> -5.39905068 | AT41: ='S2'!F43*100 -> -12.8563636 | AU41: ='S3'!G43*100 -> -11.72001274 | AV41: ='S4'!F42*100 -> -13.4755554 | AW41: ='S5'!F56*100 -> -9.03 | AX41: ='S6'!F44*100 -> 0 | AY41: ='S7'!F41*100 -> -4.610886887 | AZ41: ='S1'!E41 -> -0.3819633378 | BA41: ='S2'!E43 -> -0.5030620589 | BB41: ='S3'!E43 -> -0.4517692202 | BC41: ='S4'!E42 -> -0.5299387486 | BD41: ='S5'!E56 -> -0.3374958778 | BE41: ='S6'!E44 -> 0 | BF41: ='S7'!E41 -> -0.6006175796
A42: ∑ | C42: =SUM(C11:C41) -> 90.03618054 | H42: =SUM(H11:H41) -> 178.6117563 | M42: =SUM(M11:M41) -> 220.6926666 | R42: =SUM(R11:R41) -> 48.0884999 | W42: =SUM(W11:W41) -> 537.4291033
T44: Ausgangsdaten | W44: =ROUND(Ausgangsdaten!L58,0) -> 538
T45: Summe Länder | W45: =C42+H42+M42+R42 -> 537.4291033
T46: Kontrollsumme | W46: =W42-W45 -> 0
W48: per capita
U49: A | W49: =ROUND(D41,2) -> 0.39
U50: B | W50: =ROUND(I41,2) -> 0.39
U51: C | W51: =ROUND(N41,2) -> 0.39
U52: D | W52: =ROUND(S41,2) -> 0.39
U53: global | V53: =ROUND(Ausgangsdaten!E71,2) -> 0.39 | W53: =ROUND(X41,2) -> 0.39

Sheet Em.pfade
B2: gewähltes Szenario: | D2: =Bsp.länder!I4 -> Szenario 4 quadrRS
C33: Szenario kann im Register "Bsp.länder" gewählt werden.
D35: Ausgangsdaten | E35: Zielwertsuche

Sheet pro Kopf
B2: gewähltes Szenario: | D2: =Bsp.länder!I4 -> Szenario 4 quadrRS
D31: Ausgangsdaten | E31: Zielwertsuche

Sheet Bsp.länder mEH
A2: Beispielländer - CO2 - Konten - mit Emissionshandel | P2: Werte aus | U2: =Bsp.länder!M3 -> Reduktionssatz 2020 (RS_20) | AC2: =Bsp.länder!U3 -> -0.04281
A3: (siehe Formeln unten) | P3: =Bsp.länder!I4 -> Szenario 4 quadrRS | U3: =Bsp.länder!M4 -> - | AC3: =Bsp.länder!U4 -> -
B5: Land A | H5: Land B | N5: Land C | T5: Land D | Z5: Welt | AF5: Anteil Verteilung steigender Emissionen (VSt-1 > 0) pro Kopf (AKt). Rest wird prozentual verteilt.
A6: Jahr t | B6: Ein- woh- ner Bit | C6: ZEit | D6: Pro-Kopf | E6: Han-del Hit | F6: ZMit mit Han-del | G6: Basis für VSt | H6: Ein- woh- ner Bit | I6: ZEit | J6: Pro-Kopf | K6: Han-del Hit | L6: ZMit mit Han-del | M6: Basis für VSt | N6: Ein- woh- ner Bit | O6: ZEit | P6: Pro-Kopf | Q6: Han-del Hit | R6: ZMit mit Han-del | S6: Basis für VSt | T6: Ein- woh- ner Bit | U6: ZEit | V6: Pro-Kopf | W6: Han-del Hit | X6: ZMit mit Han-del | Y6: Basis für VSt | Z6: Ein- woh- ner Bt | AA6: ZEt | AB6: Pro-Kopf | AC6: VSt | AD6: Veränd. ggü. Vorj. RSt | AE6: abs. Veränd. ggü. Vorj.
B7: Mrd. | C7: Mrd. t | D7: t | E7: Mrd. t | F7: Mrd. t | G7: Mrd. t | H7: Mrd. | I7: Mrd. t | J7: t | K7: Mrd. t | L7: Mrd. t | M7: Mrd. t | N7: Mrd. | O7: Mrd. t | P7: t | Q7: Mrd. t | R7: Mrd. t | S7: Mrd. t | T7: Mrd. | U7: Mrd. t | V7: t | W7: Mrd. t | X7: Mrd. t | Y7: Mrd. t | Z7: Mrd. | AA7: Mrd. t | AB7: t | AC7: % | AD7: % | AE7: Mrd. t
A8: 2019 | B8: =Ausgangsdaten!$D$91 -> 0.35 | C8: =Ausgangsdaten!D92 -> 6.847826087 | D8: =C8/B8 -> 19.56521739 | F8: =Ausgangsdaten!E92 -> 0.1575813475 | G8: =C8-F8 -> 6.690244739 | H8: =Ausgangsdaten!D94 -> 0.85 | I8: =Ausgangsdaten!D95 -> 13.52608696 | J8: =I8/H8 -> 15.91304348 | L8: =Ausgangsdaten!E95 -> 0.3533386266 | M8: =I8-L8 -> 13.17274833 | N8: =Ausgangsdaten!D97 -> 2.767337793 | O8: =Ausgangsdaten!D98 -> 15.64147448 | P8: =O8/N8 -> 5.652173913 | R8: =Ausgangsdaten!E98 -> 1.182842534 | S8: =O8-R8 -> 14.45863195 | T8: =Ausgangsdaten!D100 -> 2.948845689 | U8: =Ausgangsdaten!D101 -> 1.381842761 | V8: =U8/T8 -> 0.4686046361 | X8: =Ausgangsdaten!E101 -> 1.669237492 | Y8: =U8-X8 -> -0.2873947308 | Z8: =B8+H8+N8+T8 -> 6.916183482 | AA8: =U8+O8+I8+C8 -> 37.39723029 | AB8: =AA8/Z8 -> 5.407206212 | AC8: =Bsp.länder!Y10 -> -4.709134877 | AF8: %
A9: 2020 | B9: =B10 -> 0.3515391776 | C9: =C10-E10 -> 6.532773439 | D9: 18.58334392 | F9: =F10-E10 -> 0.1575813475 | G9: =G10 -> 6.375192091 | H9: =H10 -> 0.8515426439 | I9: =I10-K10 -> 12.90576447 | J9: 15.15574653 | L9: =L10-K10 -> 0.3533386266 | M9: =M10 -> 12.55242584 | N9: =N10 -> 2.774851415 | O9: =O10-Q10 -> 14.960598 | P9: 5.39149517 | R9: =R10-Q10 -> 1.182842534 | S9: =S10 -> 13.77775547 | T9: =T10 -> 2.983768551 | U9: =U10-W10 -> 1.395376567 | V9: 0.4676557657 | X9: =X10-W10 -> 1.669237492 | Y9: =Y10 -> -0.2738609253 | Z9: 6.961701788 | AA9: 35.79451248 | AB9: 5.141632544 | AC9: -4.741581039 | AD9: -4.281 | AH9: ohne Handel für Grafik
A10: 2020 | B10: =B$8*(B$70/B$8)^(($A10-2019)/31) -> 0.3515391776 | C10: =IF($AC8>0,C8+E10+$AF10/100*(B10/$Z10*$AE10)+(1-$AF10/100)*(C8*$AD10/100), C8+E10+G8*$AC8/100) -> 6.532773439 | D10: 18.58334392 | F10: =F8+E10 -> 0.1575813475 | G10: =C10-F10 -> 6.375192091 | H10: =H$8*(H$70/H$8)^(($A10-2019)/31) -> 0.8515426439 | I10: =IF($AC8>0,I8+K10+$AF10/100*(H10/$Z10*$AE10)+(1-$AF10/100)*(I8*$AD10/100), I8+K10+M8*$AC8/100) -> 12.90576447 | J10: 15.15574653 | L10: =L8+K10 -> 0.3533386266 | M10: =I10-L10 -> 12.55242584 | N10: =N$8*(N$70/N$8)^(($A10-2019)/31) -> 2.774851415 | O10: =IF($AC8>0,O8+Q10+$AF10/100*(N10/$Z10*$AE10)+(1-$AF10/100)*(O8*$AD10/100), O8+Q10+S8*$AC8/100) -> 14.960598 | P10: 5.39149517 | R10: =R8+Q10 -> 1.182842534 | S10: =O10-R10 -> 13.77775547 | T10: =T$8*(T$70/T$8)^(($A10-2019)/31) -> 2.983768551 | U10: =IF($AC8>0,U8+W10+$AF10/100*(T10/$Z10*$AE10)+(1-$AF10/100)*(U8*$AD10/100), U8+W10+Y8*$AC8/100) -> 1.395376567 | V10: 0.4676557657 | X10: =X8+W10 -> 1.669237492 | Y10: =U10-X10 -> -0.2738609253 | Z10: =B10+H10+N10+T10 -> 6.961701788 | AA10: =U10+O10+I10+C10 -> 35.79451248 | AB10: =AA10/Z10 -> 5.141632544 | AC10: =Bsp.länder!Y11 -> -4.741581039 | AD10: =Bsp.länder!Z11 -> -4.281 | AE10: =Bsp.länder!AA11 -> -1.600975429 | AF10: =Bsp.länder!AB11 -> 10 | AG10: =E10+K10+Q10+W10 -> 0 | AH10: mit Handel
A11: 2021 | B11: =B12 -> 0.3530851239 | C11: =C12-E12 -> 6.230488539 | D11: 17.64585398 | F11: =F12-E12 -> 0.1575813475 | G11: =G12 -> 6.072907192 | H11: =H12 -> 0.8530880876 | I11: =I12-K12 -> 12.31058103 | J11: 14.43060946 | L11: =L12-K12 -> 0.3533386266 | M11: =M12 -> 11.9572424 | N11: =N12 -> 2.782385438 | O11: =O12-Q12 -> 14.30731456 | P11: 5.142103738 | R11: =R12-Q12 -> 1.182842534 | S11: =S12 -> 13.12447203 | T11: =T12 -> 3.019105001 | U11: =U12-W12 -> 1.408361904 | V11: 0.4664832471 | X11: =X12-W12 -> 1.669237492 | Y11: =Y12 -> -0.2608755876 | Z11: 7.007663651 | AA11: 34.25674603 | AB11: 4.888468931 | AC11: -4.798023591 | AD11: -4.291216173 | AG11: =E11+K11+Q11+W11 -> 0 | AH11: ohne Handel für Grafik
A12: 2021 | B12: =B$8*(B$70/B$8)^(($A12-2019)/31) -> 0.3530851239 | C12: =IF($AC10>0,C10+E12+$AF12/100*(B12/$Z12*$AE12)+(1-$AF12/100)*(C10*$AD12/100), C10+E12+G10*$AC10/100) -> 6.230488539 | D12: 17.64585398 | F12: =F10+E12 -> 0.1575813475 | G12: =C12-F12 -> 6.072907192 | H12: =H$8*(H$70/H$8)^(($A12-2019)/31) -> 0.8530880876 | I12: =IF($AC10>0,I10+K12+$AF12/100*(H12/$Z12*$AE12)+(1-$AF12/100)*(I10*$AD12/100), I10+K12+M10*$AC10/100) -> 12.31058103 | J12: 14.43060946 | L12: =L10+K12 -> 0.3533386266 | M12: =I12-L12 -> 11.9572424 | N12: =N$8*(N$70/N$8)^(($A12-2019)/31) -> 2.782385438 | O12: =IF($AC10>0,O10+Q12+$AF12/100*(N12/$Z12*$AE12)+(1-$AF12/100)*(O10*$AD12/100), O10+Q12+S10*$AC10/100) -> 14.30731456 | P12: 5.142103738 | R12: =R10+Q12 -> 1.182842534 | S12: =O12-R12 -> 13.12447203 | T12: =T$8*(T$70/T$8)^(($A12-2019)/31) -> 3.019105001 | U12: =IF($AC10>0,U10+W12+$AF12/100*(T12/$Z12*$AE12)+(1-$AF12/100)*(U10*$AD12/100), U10+W12+Y10*$AC10/100) -> 1.408361904 | V12: 0.4664832471 | X12: =X10+W12 -> 1.669237492 | Y12: =U12-X12 -> -0.2608755876 | Z12: =B12+H12+N12+T12 -> 7.007663651 | AA12: =U12+O12+I12+C12 -> 34.25674603 | AB12: =AA12/Z12 -> 4.888468931 | AC12: =Bsp.länder!Y12 -> -4.798023591 | AD12: =Bsp.länder!Z12 -> -4.291216173 | AE12: =Bsp.länder!AA12 -> -1.536094678 | AF12: =Bsp.länder!AB12 -> 13 | AG12: 0 | AH12: mit Handel
A13: 2022 | B13: =B14 -> 0.3546378688 | C13: =C14-E14 -> 5.939109019 | D13: 16.74696794 | F13: =F14-E14 -> 0.1575813475 | G13: =G14 -> 5.781527672 | H13: =H14 -> 0.854636336 | I13: =I14-K14 -> 11.73686972 | J13: 13.73317424 | L13: =L14-K14 -> 0.3533386266 | M13: =M14 -> 11.38353109 | N13: =N14 -> 2.789939916 | O13: =O14-Q14 -> 13.6775993 | P13: 4.902470916 | R13: =R14-Q14 -> 1.182842534 | S13: =S14 -> 12.49475676 | T13: =T14 -> 3.054859937 | U13: =U14-W14 -> 1.420878777 | V13: 0.4651207603 | X13: =X14-W14 -> 1.669237492 | Y13: =Y14 -> -0.2483587154 | Z13: 7.054074058 | AA13: 32.77445681 | AB13: 4.646174188 | AC13: -4.879013519 | AD13: -4.321864691 | AG13: 0 | AH13: ohne Handel für Grafik
A14: 2022 | B14: =B$8*(B$70/B$8)^(($A14-2019)/31) -> 0.3546378688 | C14: =IF($AC12>0,C12+E14+$AF14/100*(B14/$Z14*$AE14)+(1-$AF14/100)*(C12*$AD14/100), C12+E14+G12*$AC12/100) -> 6.239109019 | D14: 17.59290129 | E14: 0.3 | F14: =F12+E14 -> 0.4575813475 | G14: =C14-F14 -> 5.781527672 | H14: =H$8*(H$70/H$8)^(($A14-2019)/31) -> 0.854636336 | I14: =IF($AC12>0,I12+K14+$AF14/100*(H14/$Z14*$AE14)+(1-$AF14/100)*(I12*$AD14/100), I12+K14+M12*$AC12/100) -> 11.43686972 | J14: 13.38214774 | K14: =-E14 -> -0.3 | L14: =L12+K14 -> 0.05333862664 | M14: =I14-L14 -> 11.38353109 | N14: =N$8*(N$70/N$8)^(($A14-2019)/31) -> 2.789939916 | O14: =IF($AC12>0,O12+Q14+$AF14/100*(N14/$Z14*$AE14)+(1-$AF14/100)*(O12*$AD14/100), O12+Q14+S12*$AC12/100) -> 13.6775993 | P14: 4.902470916 | R14: =R12+Q14 -> 1.182842534 | S14: =O14-R14 -> 12.49475676 | T14: =T$8*(T$70/T$8)^(($A14-2019)/31) -> 3.054859937 | U14: =IF($AC12>0,U12+W14+$AF14/100*(T14/$Z14*$AE14)+(1-$AF14/100)*(U12*$AD14/100), U12+W14+Y12*$AC12/100) -> 1.420878777 | V14: 0.4651207603 | X14: =X12+W14 -> 1.669237492 | Y14: =U14-X14 -> -0.2483587154 | Z14: =B14+H14+N14+T14 -> 7.054074058 | AA14: =U14+O14+I14+C14 -> 32.77445681 | AB14: =AA14/Z14 -> 4.646174188 | AC14: =Bsp.länder!Y13 -> -4.879013519 | AD14: =Bsp.länder!Z13 -> -4.321864691 | AE14: =Bsp.länder!AA13 -> -1.480677766 | AF14: =Bsp.länder!AB13 -> 16.9 | AG14: 0 | AH14: mit Handel
A15: 2023 | B15: =B16 -> 0.3561974421 | C15: =C16-E16 -> 5.957027503 | D15: 16.72394801 | F15: =F16-E16 -> 0.4575813475 | G15: =G16 -> 5.499446155 | H15: =H16 -> 0.8561873943 | I15: =I16-K16 -> 10.88146569 | J15: 12.70921035 | L15: =L16-K16 -> 0.05333862664 | M15: =M16 -> 10.82812707 | N15: =N16 -> 2.797514906 | O15: =O16-Q16 -> 13.06797843 | P15: 4.671281071 | R15: =R16-Q16 -> 1.182842534 | S15: =S16 -> 11.88513589 | T15: =T16 -> 3.091038314 | U15: =U16-W16 -> 1.432996232 | V15: 0.4635970461 | X15: =X16-W16 -> 1.669237492 | Y15: =Y16 -> -0.2362412601 | Z15: 7.100938056 | AA15: 31.33946786 | AB15: 4.413426452 | AC15: -4.985184837 | AD15: -4.372945554 | AG15: 0 | AH15: ohne Handel für Grafik
A16: 2023 | B16: =B$8*(B$70/B$8)^(($A16-2019)/31) -> 0.3561974421 | C16: =IF($AC14>0,C14+E16+$AF16/100*(B16/$Z16*$AE16)+(1-$AF16/100)*(C14*$AD16/100), C14+E16+G14*$AC14/100) -> 5.957027503 | D16: 16.72394801 | F16: =F14+E16 -> 0.4575813475 | G16: =C16-F16 -> 5.499446155 | H16: =H$8*(H$70/H$8)^(($A16-2019)/31) -> 0.8561873943 | I16: =IF($AC14>0,I14+K16+$AF16/100*(H16/$Z16*$AE16)+(1-$AF16/100)*(I14*$AD16/100), I14+K16+M14*$AC14/100) -> 10.88146569 | J16: 12.70921035 | L16: =L14+K16 -> 0.05333862664 | M16: =I16-L16 -> 10.82812707 | N16: =N$8*(N$70/N$8)^(($A16-2019)/31) -> 2.797514906 | O16: =IF($AC14>0,O14+Q16+$AF16/100*(N16/$Z16*$AE16)+(1-$AF16/100)*(O14*$AD16/100), O14+Q16+S14*$AC14/100) -> 13.06797843 | P16: 4.671281071 | R16: =R14+Q16 -> 1.182842534 | S16: =O16-R16 -> 11.88513589 | T16: =T$8*(T$70/T$8)^(($A16-2019)/31) -> 3.091038314 | U16: =IF($AC14>0,U14+W16+$AF16/100*(T16/$Z16*$AE16)+(1-$AF16/100)*(U14*$AD16/100), U14+W16+Y14*$AC14/100) -> 1.432996232 | V16: 0.4635970461 | X16: =X14+W16 -> 1.669237492 | Y16: =U16-X16 -> -0.2362412601 | Z16: =B16+H16+N16+T16 -> 7.100938056 | AA16: =U16+O16+I16+C16 -> 31.33946786 | AB16: =AA16/Z16 -> 4.413426452 | AC16: =Bsp.länder!Y14 -> -4.985184837 | AD16: =Bsp.länder!Z14 -> -4.372945554 | AE16: =Bsp.länder!AA14 -> -1.433428919 | AF16: =Bsp.länder!AB14 -> 21.97 | AG16: 0 | AH16: mit Handel
A17: 2024 | B17: =B18 -> 0.3577638738 | C17: =C18-E18 -> 5.682869947 | D17: 15.88441529 | F17: =F18-E18 -> 0.4575813475 | G17: =G18 -> 5.225288599 | H17: =H18 -> 0.8577412676 | I17: =I18-K18 -> 10.34166355 | J17: 12.0568567 | L17: =L18-K18 -> 0.05333862664 | M17: =M18 -> 10.28832492 | N17: =N18 -> 2.805110462 | O17: =O18-Q18 -> 12.47548243 | P17: 4.447412179 | R17: =R18-Q18 -> 1.182842534 | S17: =S18 -> 11.2926399 | T17: =T18 -> 3.127645148 | U17: =U18-W18 -> 1.444773295 | V17: 0.4619364495 | X17: =X18-W18 -> 1.669237492 | Y17: =Y18 -> -0.2244641966 | Z17: 7.148260752 | AA17: 29.94478922 | AB17: 4.189101414 | AC17: -5.117274198 | AD17: -4.444458763 | AG17: 0 | AH17: ohne Handel für Grafik
A18: 2024 | B18: =B$8*(B$70/B$8)^(($A18-2019)/31) -> 0.3577638738 | C18: =IF($AC16>0,C16+E18+$AF18/100*(B18/$Z18*$AE18)+(1-$AF18/100)*(C16*$AD18/100), C16+E18+G16*$AC16/100) -> 5.682869947 | D18: 15.88441529 | F18: =F16+E18 -> 0.4575813475 | G18: =C18-F18 -> 5.225288599 | H18: =H$8*(H$70/H$8)^(($A18-2019)/31) -> 0.8577412676 | I18: =IF($AC16>0,I16+K18+$AF18/100*(H18/$Z18*$AE18)+(1-$AF18/100)*(I16*$AD18/100), I16+K18+M16*$AC16/100) -> 10.34166355 | J18: 12.0568567 | L18: =L16+K18 -> 0.05333862664 | M18: =I18-L18 -> 10.28832492 | N18: =N$8*(N$70/N$8)^(($A18-2019)/31) -> 2.805110462 | O18: =IF($AC16>0,O16+Q18+$AF18/100*(N18/$Z18*$AE18)+(1-$AF18/100)*(O16*$AD18/100), O16+Q18+S16*$AC16/100) -> 12.47548243 | P18: 4.447412179 | R18: =R16+Q18 -> 1.182842534 | S18: =O18-R18 -> 11.2926399 | T18: =T$8*(T$70/T$8)^(($A18-2019)/31) -> 3.127645148 | U18: =IF($AC16>0,U16+W18+$AF18/100*(T18/$Z18*$AE18)+(1-$AF18/100)*(U16*$AD18/100), U16+W18+Y16*$AC16/100) -> 1.444773295 | V18: 0.4619364495 | X18: =X16+W18 -> 1.669237492 | Y18: =U18-X18 -> -0.2244641966 | Z18: =B18+H18+N18+T18 -> 7.148260752 | AA18: =U18+O18+I18+C18 -> 29.94478922 | AB18: =AA18/Z18 -> 4.189101414 | AC18: =Bsp.länder!Y15 -> -5.117274198 | AD18: =Bsp.länder!Z15 -> -4.444458763 | AE18: =Bsp.länder!AA15 -> -1.393162421 | AF18: =Bsp.länder!AB15 -> 28.561 | AG18: 0 | AH18: mit Handel
A19: 2025 | B19: =B20 -> 0.3593371942 | C19: =C20-E20 -> 5.415477602 | D19: 15.07074049 | F19: =F20-E20 -> 0.4575813475 | G19: =G20 -> 4.957896254 | H19: =H20 -> 0.859297961 | I19: =I20-K20 -> 9.81518175 | J19: 11.42232636 | L19: =L20-K20 -> 0.05333862664 | M19: =M20 -> 9.761843123 | N19: =N20 -> 2.812726641 | O19: =O20-Q20 -> 11.89760709 | P19: 4.229919435 | R19: =R20-Q20 -> 1.182842534 | S19: =S20 -> 10.71476455 | T19: =T20 -> 3.164685513 | U19: =U20-W20 -> 1.456259744 | V19: 0.4601593863 | X19: =X20-W20 -> 1.669237492 | Y19: =Y20 -> -0.2129777482 | Z19: 7.19604731 | AA19: 28.58452618 | AB19: 3.972253787 | AC19: -5.276145577 | AD19: -4.536404317 | AG19: 0 | AH19: ohne Handel für Grafik
A20: 2025 | B20: =B$8*(B$70/B$8)^(($A20-2019)/31) -> 0.3593371942 | C20: =IF($AC18>0,C18+E20+$AF20/100*(B20/$Z20*$AE20)+(1-$AF20/100)*(C18*$AD20/100), C18+E20+G18*$AC18/100) -> 5.415477602 | D20: 15.07074049 | F20: =F18+E20 -> 0.4575813475 | G20: =C20-F20 -> 4.957896254 | H20: =H$8*(H$70/H$8)^(($A20-2019)/31) -> 0.859297961 | I20: =IF($AC18>0,I18+K20+$AF20/100*(H20/$Z20*$AE20)+(1-$AF20/100)*(I18*$AD20/100), I18+K20+M18*$AC18/100) -> 9.81518175 | J20: 11.42232636 | L20: =L18+K20 -> 0.05333862664 | M20: =I20-L20 -> 9.761843123 | N20: =N$8*(N$70/N$8)^(($A20-2019)/31) -> 2.812726641 | O20: =IF($AC18>0,O18+Q20+$AF20/100*(N20/$Z20*$AE20)+(1-$AF20/100)*(O18*$AD20/100), O18+Q20+S18*$AC18/100) -> 11.89760709 | P20: 4.229919435 | R20: =R18+Q20 -> 1.182842534 | S20: =O20-R20 -> 10.71476455 | T20: =T$8*(T$70/T$8)^(($A20-2019)/31) -> 3.164685513 | U20: =IF($AC18>0,U18+W20+$AF20/100*(T20/$Z20*$AE20)+(1-$AF20/100)*(U18*$AD20/100), U18+W20+Y18*$AC18/100) -> 1.456259744 | V20: 0.4601593863 | X20: =X18+W20 -> 1.669237492 | Y20: =U20-X20 -> -0.2129777482 | Z20: =B20+H20+N20+T20 -> 7.19604731 | AA20: =U20+O20+I20+C20 -> 28.58452618 | AB20: =AA20/Z20 -> 3.972253787 | AC20: =Bsp.länder!Y16 -> -5.276145577 | AD20: =Bsp.länder!Z16 -> -4.536404317 | AE20: =Bsp.länder!AA16 -> -1.358784244 | AF20: =Bsp.länder!AB16 -> 37.1293 | AG20: 0 | AH20: mit Handel
A21: 2026 | B21: =B22 -> 0.3609174335 | C21: =C22-E22 -> 5.153891778 | D21: 14.27997459 | F21: =F22-E22 -> 0.4575813475 | G21: =G22 -> 4.69631043 | H21: =H22 -> 0.8608574795 | I21: =I22-K22 -> 9.300132696 | J21: 10.80333611 | L21: =L22-K22 -> 0.05333862664 | M21: =M22 -> 9.246794069 | N21: =N22 -> 2.820363499 | O21: =O22-Q22 -> 11.33228051 | P21: 4.018021263 | R21: =R22-Q22 -> 1.182842534 | S21: =S22 -> 10.14943798 | T21: =T22 -> 3.202164543 | U21: =U22-W22 -> 1.46749676 | V21: 0.4582827459 | X21: =X22-W22 -> 1.669237492 | Y21: =Y22 -> -0.2017407321 | Z21: 7.244302956 | AA21: 27.25380174 | AB21: 3.762101324 | AC21: -5.462821491 | AD21: -4.648782216 | AG21: 0 | AH21: ohne Handel für Grafik
A22: 2026 | B22: =B$8*(B$70/B$8)^(($A22-2019)/31) -> 0.3609174335 | C22: =IF($AC20>0,C20+E22+$AF22/100*(B22/$Z22*$AE22)+(1-$AF22/100)*(C20*$AD22/100), C20+E22+G20*$AC20/100) -> 5.153891778 | D22: 14.27997459 | F22: =F20+E22 -> 0.4575813475 | G22: =C22-F22 -> 4.69631043 | H22: =H$8*(H$70/H$8)^(($A22-2019)/31) -> 0.8608574795 | I22: =IF($AC20>0,I20+K22+$AF22/100*(H22/$Z22*$AE22)+(1-$AF22/100)*(I20*$AD22/100), I20+K22+M20*$AC20/100) -> 9.300132696 | J22: 10.80333611 | L22: =L20+K22 -> 0.05333862664 | M22: =I22-L22 -> 9.246794069 | N22: =N$8*(N$70/N$8)^(($A22-2019)/31) -> 2.820363499 | O22: =IF($AC20>0,O20+Q22+$AF22/100*(N22/$Z22*$AE22)+(1-$AF22/100)*(O20*$AD22/100), O20+Q22+S20*$AC20/100) -> 11.33228051 | P22: 4.018021263 | R22: =R20+Q22 -> 1.182842534 | S22: =O22-R22 -> 10.14943798 | T22: =T$8*(T$70/T$8)^(($A22-2019)/31) -> 3.202164543 | U22: =IF($AC20>0,U20+W22+$AF22/100*(T22/$Z22*$AE22)+(1-$AF22/100)*(U20*$AD22/100), U20+W22+Y20*$AC20/100) -> 1.46749676 | V22: 0.4582827459 | X22: =X20+W22 -> 1.669237492 | Y22: =U22-X22 -> -0.2017407321 | Z22: =B22+H22+N22+T22 -> 7.244302956 | AA22: =U22+O22+I22+C22 -> 27.25380174 | AB22: =AA22/Z22 -> 3.762101324 | AC22: =Bsp.länder!Y17 -> -5.462821491 | AD22: =Bsp.länder!Z17 -> -4.648782216 | AE22: =Bsp.länder!AA17 -> -1.329277753 | AF22: =Bsp.länder!AB17 -> 48.26809 | AG22: 0 | AH22: mit Handel
A23: 2027 | B23: =B24 -> 0.3625046221 | C23: =C24-E24 -> 4.897340722 | D23: 13.50973318 | F23: =F24-E24 -> 0.4575813475 | G23: =G24 -> 4.439759375 | H23: =H24 -> 0.8624198284 | I23: =I24-K24 -> 8.794996842 | J23: 10.19804572 | L23: =L24-K24 -> 0.05333862664 | M23: =M24 -> 8.741658215 | N23: =N24 -> 2.828021092 | O23: =O24-Q24 -> 10.77783483 | P23: 3.811087145 | R23: =R24-Q24 -> 1.182842534 | S23: =S24 -> 9.594992297 | T23: =T24 -> 3.240087434 | U23: =U24-W24 -> 1.478517496 | V23: 0.4563202463 | X23: =X24-W24 -> 1.669237492 | Y23: =Y24 -> -0.1907199961 | Z23: 7.293032976 | AA23: 25.94868989 | AB23: 3.558010772 | AC23: -5.678522741 | AD23: -4.781592461 | AG23: 0 | AH23: ohne Handel für Grafik
A24: 2027 | B24: =B$8*(B$70/B$8)^(($A24-2019)/31) -> 0.3625046221 | C24: =IF($AC22>0,C22+E24+$AF24/100*(B24/$Z24*$AE24)+(1-$AF24/100)*(C22*$AD24/100), C22+E24+G22*$AC22/100) -> 4.897340722 | D24: 13.50973318 | F24: =F22+E24 -> 0.4575813475 | G24: =C24-F24 -> 4.439759375 | H24: =H$8*(H$70/H$8)^(($A24-2019)/31) -> 0.8624198284 | I24: =IF($AC22>0,I22+K24+$AF24/100*(H24/$Z24*$AE24)+(1-$AF24/100)*(I22*$AD24/100), I22+K24+M22*$AC22/100) -> 8.794996842 | J24: 10.19804572 | L24: =L22+K24 -> 0.05333862664 | M24: =I24-L24 -> 8.741658215 | N24: =N$8*(N$70/N$8)^(($A24-2019)/31) -> 2.828021092 | O24: =IF($AC22>0,O22+Q24+$AF24/100*(N24/$Z24*$AE24)+(1-$AF24/100)*(O22*$AD24/100), O22+Q24+S22*$AC22/100) -> 10.77783483 | P24: 3.811087145 | R24: =R22+Q24 -> 1.182842534 | S24: =O24-R24 -> 9.594992297 | T24: =T$8*(T$70/T$8)^(($A24-2019)/31) -> 3.240087434 | U24: =IF($AC22>0,U22+W24+$AF24/100*(T24/$Z24*$AE24)+(1-$AF24/100)*(U22*$AD24/100), U22+W24+Y22*$AC22/100) -> 1.478517496 | V24: 0.4563202463 | X24: =X22+W24 -> 1.669237492 | Y24: =U24-X24 -> -0.1907199961 | Z24: =B24+H24+N24+T24 -> 7.293032976 | AA24: =U24+O24+I24+C24 -> 25.94868989 | AB24: =AA24/Z24 -> 3.558010772 | AC24: =Bsp.länder!Y18 -> -5.678522741 | AD24: =Bsp.länder!Z18 -> -4.781592461 | AE24: =Bsp.länder!AA18 -> -1.303693012 | AF24: =Bsp.länder!AB18 -> 62.748517 | AG24: 0 | AH24: mit Handel
A25: 2028 | B25: =B26 -> 0.3640987906 | C25: =C26-E26 -> 4.645227977 | D25: 12.75815272 | F25: =F26-E26 -> 0.4575813475 | G25: =G26 -> 4.187646629 | H25: =H26 -> 0.8639850128 | I25: =I26-K26 -> 8.298599792 | J25: 9.605027482 | L25: =L26-K26 -> 0.05333862664 | M25: =M26 -> 8.245261166 | N25: =N26 -> 2.835699476 | O25: =O26-Q26 -> 10.23298101 | P25: 3.608626759 | R25: =R26-Q26 -> 1.182842534 | S25: =S26 -> 9.050138477 | T25: =T26 -> 3.27845944 | U25: =U26-W26 -> 1.489347574 | V25: 0.4542827512 | X25: =X26-W26 -> 1.669237492 | Y25: =Y26 -> -0.1798899177 | Z25: 7.34224272 | AA25: 24.66615635 | AB25: 3.359485282 | AC25: -5.92471941 | AD25: -4.934835051 | AG25: 0 | AH25: ohne Handel für Grafik
A26: 2028 | B26: =B$8*(B$70/B$8)^(($A26-2019)/31) -> 0.3640987906 | C26: =IF($AC24>0,C24+E26+$AF26/100*(B26/$Z26*$AE26)+(1-$AF26/100)*(C24*$AD26/100), C24+E26+G24*$AC24/100) -> 4.645227977 | D26: 12.75815272 | F26: =F24+E26 -> 0.4575813475 | G26: =C26-F26 -> 4.187646629 | H26: =H$8*(H$70/H$8)^(($A26-2019)/31) -> 0.8639850128 | I26: =IF($AC24>0,I24+K26+$AF26/100*(H26/$Z26*$AE26)+(1-$AF26/100)*(I24*$AD26/100), I24+K26+M24*$AC24/100) -> 8.298599792 | J26: 9.605027482 | L26: =L24+K26 -> 0.05333862664 | M26: =I26-L26 -> 8.245261166 | N26: =N$8*(N$70/N$8)^(($A26-2019)/31) -> 2.835699476 | O26: =IF($AC24>0,O24+Q26+$AF26/100*(N26/$Z26*$AE26)+(1-$AF26/100)*(O24*$AD26/100), O24+Q26+S24*$AC24/100) -> 10.23298101 | P26: 3.608626759 | R26: =R24+Q26 -> 1.182842534 | S26: =O26-R26 -> 9.050138477 | T26: =T$8*(T$70/T$8)^(($A26-2019)/31) -> 3.27845944 | U26: =IF($AC24>0,U24+W26+$AF26/100*(T26/$Z26*$AE26)+(1-$AF26/100)*(U24*$AD26/100), U24+W26+Y24*$AC24/100) -> 1.489347574 | V26: 0.4542827512 | X26: =X24+W26 -> 1.669237492 | Y26: =U26-X26 -> -0.1798899177 | Z26: =B26+H26+N26+T26 -> 7.34224272 | AA26: =U26+O26+I26+C26 -> 24.66615635 | AB26: =AA26/Z26 -> 3.359485282 | AC26: =Bsp.länder!Y19 -> -5.92471941 | AD26: =Bsp.länder!Z19 -> -4.934835051 | AE26: =Bsp.länder!AA19 -> -1.281139242 | AF26: =Bsp.länder!AB19 -> 81.5730721 | AG26: 0 | AH26: mit Handel
A27: 2029 | B27: =B28 -> 0.3656999698 | C27: =C28-E28 -> 4.397121664 | D27: 12.02385023 | F27: =F28-E28 -> 0.4575813475 | G27: =G28 -> 3.939540316 | H27: =H28 -> 0.8655530378 | I27: =I28-K28 -> 7.810091204 | J27: 9.023238164 | L27: =L28-K28 -> 0.05333862664 | M27: =M28 -> 7.756752577 | N27: =N28 -> 2.843398708 | O27: =O28-Q28 -> 9.6967857 | P27: 3.410279984 | R27: =R28-Q28 -> 1.182842534 | S27: =S28 -> 8.513943166 | T27: =T28 -> 3.317285883 | U27: =U28-W28 -> 1.500005547 | V27: 0.452178558 | X27: =X28-W28 -> 1.669237492 | Y27: =Y28 -> -0.1692319449 | Z27: 7.391937598 | AA27: 23.40400411 | AB27: 3.166152826 | AC27: -6.203196892 | AD27: -5.108509986 | AG27: 0 | AH27: ohne Handel für Grafik
A28: 2029 | B28: =B$8*(B$70/B$8)^(($A28-2019)/31) -> 0.3656999698 | C28: =IF($AC26>0,C26+E28+$AF28/100*(B28/$Z28*$AE28)+(1-$AF28/100)*(C26*$AD28/100), C26+E28+G26*$AC26/100) -> 4.397121664 | D28: 12.02385023 | F28: =F26+E28 -> 0.4575813475 | G28: =C28-F28 -> 3.939540316 | H28: =H$8*(H$70/H$8)^(($A28-2019)/31) -> 0.8655530378 | I28: =IF($AC26>0,I26+K28+$AF28/100*(H28/$Z28*$AE28)+(1-$AF28/100)*(I26*$AD28/100), I26+K28+M26*$AC26/100) -> 7.810091204 | J28: 9.023238164 | L28: =L26+K28 -> 0.05333862664 | M28: =I28-L28 -> 7.756752577 | N28: =N$8*(N$70/N$8)^(($A28-2019)/31) -> 2.843398708 | O28: =IF($AC26>0,O26+Q28+$AF28/100*(N28/$Z28*$AE28)+(1-$AF28/100)*(O26*$AD28/100), O26+Q28+S26*$AC26/100) -> 9.6967857 | P28: 3.410279984 | R28: =R26+Q28 -> 1.182842534 | S28: =O28-R28 -> 8.513943166 | T28: =T$8*(T$70/T$8)^(($A28-2019)/31) -> 3.317285883 | U28: =IF($AC26>0,U26+W28+$AF28/100*(T28/$Z28*$AE28)+(1-$AF28/100)*(U26*$AD28/100), U26+W28+Y26*$AC26/100) -> 1.500005547 | V28: 0.452178558 | X28: =X26+W28 -> 1.669237492 | Y28: =U28-X28 -> -0.1692319449 | Z28: =B28+H28+N28+T28 -> 7.391937598 | AA28: =U28+O28+I28+C28 -> 23.40400411 | AB28: =AA28/Z28 -> 3.166152826 | AC28: =Bsp.länder!Y20 -> -6.203196892 | AD28: =Bsp.länder!Z20 -> -5.108509986 | AE28: =Bsp.länder!AA20 -> -1.260780102 | AF28: =Bsp.länder!AB20 -> 100 | AG28: 0 | AH28: mit Handel
A29: 2030 | B29: =B30 -> 0.3673081903 | C29: =C30-E30 -> 4.152744221 | D29: 11.30588517 | F29: =F30-E30 -> 0.4575813475 | G29: =G30 -> 3.695162874 | H29: =H30 -> 0.8671239086 | I29: =I30-K30 -> 7.328924569 | J29: 8.451992266 | L29: =L30-K30 -> 0.05333862664 | M29: =M30 -> 7.275585942 | N29: =N30 -> 2.851118844 | O29: =O30-Q30 -> 9.168649042 | P29: 3.215807388 | R29: =R30-Q30 -> 1.182842534 | S29: =S30 -> 7.985806508 | T29: =T30 -> 3.356572143 | U29: =U30-W30 -> 1.510503338 | V29: 0.4500136668 | X29: =X30-W30 -> 1.669237492 | Y29: =Y30 -> -0.1587341541 | Z29: 7.442123085 | AA29: 22.16082117 | AB29: 2.977755261 | AC29: -6.516142275 | AD29: -5.302617266 | AG29: 0 | AH29: ohne Handel für Grafik
A30: 2030 | B30: =B$8*(B$70/B$8)^(($A30-2019)/31) -> 0.3673081903 | C30: =IF($AC28>0,C28+E30+$AF30/100*(B30/$Z30*$AE30)+(1-$AF30/100)*(C28*$AD30/100), C28+E30+G28*$AC28/100) -> 4.152744221 | D30: 11.30588517 | F30: =F28+E30 -> 0.4575813475 | G30: =C30-F30 -> 3.695162874 | H30: =H$8*(H$70/H$8)^(($A30-2019)/31) -> 0.8671239086 | I30: =IF($AC28>0,I28+K30+$AF30/100*(H30/$Z30*$AE30)+(1-$AF30/100)*(I28*$AD30/100), I28+K30+M28*$AC28/100) -> 7.328924569 | J30: 8.451992266 | L30: =L28+K30 -> 0.05333862664 | M30: =I30-L30 -> 7.275585942 | N30: =N$8*(N$70/N$8)^(($A30-2019)/31) -> 2.851118844 | O30: =IF($AC28>0,O28+Q30+$AF30/100*(N30/$Z30*$AE30)+(1-$AF30/100)*(O28*$AD30/100), O28+Q30+S28*$AC28/100) -> 9.768649042 | P30: 3.426251088 | Q30: 0.6 | R30: =R28+Q30 -> 1.782842534 | S30: =O30-R30 -> 7.985806508 | T30: =T$8*(T$70/T$8)^(($A30-2019)/31) -> 3.356572143 | U30: =IF($AC28>0,U28+W30+$AF30/100*(T30/$Z30*$AE30)+(1-$AF30/100)*(U28*$AD30/100), U28+W30+Y28*$AC28/100) -> 0.9105033378 | V30: 0.2712598744 | W30: -0.6 | X30: =X28+W30 -> 1.069237492 | Y30: =U30-X30 -> -0.1587341541 | Z30: =B30+H30+N30+T30 -> 7.442123085 | AA30: =U30+O30+I30+C30 -> 22.16082117 | AB30: =AA30/Z30 -> 2.977755261 | AC30: =Bsp.länder!Y21 -> -6.516142275 | AD30: =Bsp.länder!Z21 -> -5.302617266 | AE30: =Bsp.länder!AA21 -> -1.24183143 | AF30: =Bsp.länder!AB21 -> 100 | AG30: 0 | AH30: mit Handel
A31: 2031 | B31: =B32 -> 0.3689234833 | C31: =C32-E32 -> 3.911962151 | D31: 10.60372226 | F31: =F32-E32 -> 0.4575813475 | G31: =G32 -> 3.454380804 | H31: =H32 -> 0.8686976302 | I31: =I32-K32 -> 6.854837037 | J31: 7.890935579 | L31: =L32-K32 -> 0.05333862664 | M31: =M32 -> 6.801498411 | N31: =N32 -> 2.858859941 | O31: =O32-Q32 -> 9.248282528 | P31: 3.234954744 | R31: =R32-Q32 -> 1.782842534 | S31: =S32 -> 7.465439994 | T31: =T32 -> 3.396323665 | U31: =U32-W32 -> 0.9208466811 | V31: 0.2711304257 | X31: =X32-W32 -> 1.069237492 | Y31: =Y32 -> -0.1483908108 | Z31: 7.49280472 | AA31: 20.9359284 | AB31: 2.794137734 | AC31: -6.866258638 | AD31: -5.517156892 | AG31: 0 | AH31: ohne Handel für Grafik
A32: 2031 | B32: =B$8*(B$70/B$8)^(($A32-2019)/31) -> 0.3689234833 | C32: =IF($AC30>0,C30+E32+$AF32/100*(B32/$Z32*$AE32)+(1-$AF32/100)*(C30*$AD32/100), C30+E32+G30*$AC30/100) -> 3.911962151 | D32: 10.60372226 | F32: =F30+E32 -> 0.4575813475 | G32: =C32-F32 -> 3.454380804 | H32: =H$8*(H$70/H$8)^(($A32-2019)/31) -> 0.8686976302 | I32: =IF($AC30>0,I30+K32+$AF32/100*(H32/$Z32*$AE32)+(1-$AF32/100)*(I30*$AD32/100), I30+K32+M30*$AC30/100) -> 6.854837037 | J32: 7.890935579 | L32: =L30+K32 -> 0.05333862664 | M32: =I32-L32 -> 6.801498411 | N32: =N$8*(N$70/N$8)^(($A32-2019)/31) -> 2.858859941 | O32: =IF($AC30>0,O30+Q32+$AF32/100*(N32/$Z32*$AE32)+(1-$AF32/100)*(O30*$AD32/100), O30+Q32+S30*$AC30/100) -> 9.248282528 | P32: 3.234954744 | R32: =R30+Q32 -> 1.782842534 | S32: =O32-R32 -> 7.465439994 | T32: =T$8*(T$70/T$8)^(($A32-2019)/31) -> 3.396323665 | U32: =IF($AC30>0,U30+W32+$AF32/100*(T32/$Z32*$AE32)+(1-$AF32/100)*(U30*$AD32/100), U30+W32+Y30*$AC30/100) -> 0.9208466811 | V32: 0.2711304257 | X32: =X30+W32 -> 1.069237492 | Y32: =U32-X32 -> -0.1483908108 | Z32: =B32+H32+N32+T32 -> 7.49280472 | AA32: =U32+O32+I32+C32 -> 20.9359284 | AB32: =AA32/Z32 -> 2.794137734 | AC32: =Bsp.länder!Y22 -> -6.866258638 | AD32: =Bsp.länder!Z22 -> -5.517156892 | AE32: =Bsp.länder!AA22 -> -1.223561141 | AF32: =Bsp.länder!AB22 -> 100 | AG32: 0 | AH32: mit Handel
A33: 2032 | B33: =B34 -> 0.3705458797 | C33: =C34-E34 -> 3.674775431 | D33: 9.917194152 | F33: =F34-E34 -> 0.4575813475 | G33: =G34 -> 3.217194083 | H33: =H34 -> 0.870274208 | I33: =I34-K34 -> 6.387828565 | J33: 7.340018245 | L33: =L34-K34 -> 0.05333862664 | M33: =M34 -> 6.334489939 | N33: =N34 -> 2.866622056 | O33: =O34-Q34 -> 8.73568611 | P33: 3.047379787 | R33: =R34-Q34 -> 1.782842534 | S33: =S34 -> 6.952843576 | T33: =T34 -> 3.436545961 | U33: =U34-W34 -> 0.931035578 | V33: 0.2709219049 | X33: =X34-W34 -> 1.069237492 | Y33: =Y34 -> -0.1382019139 | Z33: 7.543988105 | AA33: 19.72932568 | AB33: 2.615238175 | AC33: -7.256918222 | AD33: -5.752128864 | AG33: 0 | AH33: ohne Handel für Grafik
A34: 2032 | B34: =B$8*(B$70/B$8)^(($A34-2019)/31) -> 0.3705458797 | C34: =IF($AC32>0,C32+E34+$AF34/100*(B34/$Z34*$AE34)+(1-$AF34/100)*(C32*$AD34/100), C32+E34+G32*$AC32/100) -> 3.674775431 | D34: 9.917194152 | F34: =F32+E34 -> 0.4575813475 | G34: =C34-F34 -> 3.217194083 | H34: =H$8*(H$70/H$8)^(($A34-2019)/31) -> 0.870274208 | I34: =IF($AC32>0,I32+K34+$AF34/100*(H34/$Z34*$AE34)+(1-$AF34/100)*(I32*$AD34/100), I32+K34+M32*$AC32/100) -> 6.387828565 | J34: 7.340018245 | L34: =L32+K34 -> 0.05333862664 | M34: =I34-L34 -> 6.334489939 | N34: =N$8*(N$70/N$8)^(($A34-2019)/31) -> 2.866622056 | O34: =IF($AC32>0,O32+Q34+$AF34/100*(N34/$Z34*$AE34)+(1-$AF34/100)*(O32*$AD34/100), O32+Q34+S32*$AC32/100) -> 8.73568611 | P34: 3.047379787 | R34: =R32+Q34 -> 1.782842534 | S34: =O34-R34 -> 6.952843576 | T34: =T$8*(T$70/T$8)^(($A34-2019)/31) -> 3.436545961 | U34: =IF($AC32>0,U32+W34+$AF34/100*(T34/$Z34*$AE34)+(1-$AF34/100)*(U32*$AD34/100), U32+W34+Y32*$AC32/100) -> 0.931035578 | V34: 0.2709219049 | X34: =X32+W34 -> 1.069237492 | Y34: =U34-X34 -> -0.1382019139 | Z34: =B34+H34+N34+T34 -> 7.543988105 | AA34: =U34+O34+I34+C34 -> 19.72932568 | AB34: =AA34/Z34 -> 2.615238175 | AC34: =Bsp.länder!Y23 -> -7.256918222 | AD34: =Bsp.länder!Z23 -> -5.752128864 | AE34: =Bsp.länder!AA23 -> -1.205290967 | AF34: =Bsp.länder!AB23 -> 100 | AG34: 0 | AH34: mit Handel
A35: 2033 | B35: =B36 -> 0.3721754109 | C35: =C36-E36 -> 3.441306287 | D35: 9.246463326 | F35: =F36-E36 -> 0.4575813475 | G35: =G36 -> 2.98372494 | H35: =H36 -> 0.8718536471 | I35: =I36-K36 -> 5.928139811 | J35: 6.799466665 | L35: =L36-K36 -> 0.05333862664 | M35: =M36 -> 5.874801184 | N35: =N36 -> 2.874405246 | O35: =O36-Q36 -> 8.231123938 | P35: 2.863592025 | R35: =R36-Q36 -> 1.782842534 | S35: =S36 -> 6.448281404 | T35: =T36 -> 3.477244605 | U35: =U36-W36 -> 0.9410647778 | V35: 0.2706351968 | X35: =X36-W36 -> 1.069237492 | Y35: =Y36 -> -0.1281727141 | Z35: 7.595678909 | AA35: 18.54163481 | AB35: 2.441076701 | AC35: -7.692370592 | AD35: -6.00753318 | AG35: 0 | AH35: ohne Handel für Grafik
A36: 2033 | B36: =B$8*(B$70/B$8)^(($A36-2019)/31) -> 0.3721754109 | C36: =IF($AC34>0,C34+E36+$AF36/100*(B36/$Z36*$AE36)+(1-$AF36/100)*(C34*$AD36/100), C34+E36+G34*$AC34/100) -> 3.441306287 | D36: 9.246463326 | F36: =F34+E36 -> 0.4575813475 | G36: =C36-F36 -> 2.98372494 | H36: =H$8*(H$70/H$8)^(($A36-2019)/31) -> 0.8718536471 | I36: =IF($AC34>0,I34+K36+$AF36/100*(H36/$Z36*$AE36)+(1-$AF36/100)*(I34*$AD36/100), I34+K36+M34*$AC34/100) -> 5.928139811 | J36: 6.799466665 | L36: =L34+K36 -> 0.05333862664 | M36: =I36-L36 -> 5.874801184 | N36: =N$8*(N$70/N$8)^(($A36-2019)/31) -> 2.874405246 | O36: =IF($AC34>0,O34+Q36+$AF36/100*(N36/$Z36*$AE36)+(1-$AF36/100)*(O34*$AD36/100), O34+Q36+S34*$AC34/100) -> 8.231123938 | P36: 2.863592025 | R36: =R34+Q36 -> 1.782842534 | S36: =O36-R36 -> 6.448281404 | T36: =T$8*(T$70/T$8)^(($A36-2019)/31) -> 3.477244605 | U36: =IF($AC34>0,U34+W36+$AF36/100*(T36/$Z36*$AE36)+(1-$AF36/100)*(U34*$AD36/100), U34+W36+Y34*$AC34/100) -> 0.9410647778 | V36: 0.2706351968 | X36: =X34+W36 -> 1.069237492 | Y36: =U36-X36 -> -0.1281727141 | Z36: =B36+H36+N36+T36 -> 7.595678909 | AA36: =U36+O36+I36+C36 -> 18.54163481 | AB36: =AA36/Z36 -> 2.441076701 | AC36: =Bsp.länder!Y24 -> -7.692370592 | AD36: =Bsp.länder!Z24 -> -6.00753318 | AE36: =Bsp.länder!AA24 -> -1.186399684 | AF36: =Bsp.länder!AB24 -> 100 | AG36: 0 | AH36: mit Handel
A37: 2034 | B37: =B38 -> 0.3738121081 | C37: =C38-E38 -> 3.211787107 | D37: 8.591982543 | F37: =F38-E38 -> 0.4575813475 | G37: =G38 -> 2.75420576 | H37: =H38 -> 0.8734359527 | I37: =I38-K38 -> 5.476228332 | J37: 6.269753741 | L37: =L38-K38 -> 0.05333862664 | M37: =M38 -> 5.422889705 | N37: =N38 -> 2.882209568 | O37: =O38-Q38 -> 7.735098235 | P37: 2.683739004 | R37: =R38-Q38 -> 1.782842534 | S37: =S38 -> 5.952255701 | T37: =T38 -> 3.518425239 | U37: =U38-W38 -> 0.950924298 | V37: 0.2702698604 | X37: =X38-W38 -> 1.069237492 | Y37: =Y38 -> -0.1183131939 | Z37: 7.647882867 | AA37: 17.37403797 | AB37: 2.271744779 | AC37: -8.178029974 | AD37: -6.283369842 | AG37: 0 | AH37: ohne Handel für Grafik
A38: 2034 | B38: =B$8*(B$70/B$8)^(($A38-2019)/31) -> 0.3738121081 | C38: =IF($AC36>0,C36+E38+$AF38/100*(B38/$Z38*$AE38)+(1-$AF38/100)*(C36*$AD38/100), C36+E38+G36*$AC36/100) -> 3.211787107 | D38: 8.591982543 | F38: =F36+E38 -> 0.4575813475 | G38: =C38-F38 -> 2.75420576 | H38: =H$8*(H$70/H$8)^(($A38-2019)/31) -> 0.8734359527 | I38: =IF($AC36>0,I36+K38+$AF38/100*(H38/$Z38*$AE38)+(1-$AF38/100)*(I36*$AD38/100), I36+K38+M36*$AC36/100) -> 5.476228332 | J38: 6.269753741 | L38: =L36+K38 -> 0.05333862664 | M38: =I38-L38 -> 5.422889705 | N38: =N$8*(N$70/N$8)^(($A38-2019)/31) -> 2.882209568 | O38: =IF($AC36>0,O36+Q38+$AF38/100*(N38/$Z38*$AE38)+(1-$AF38/100)*(O36*$AD38/100), O36+Q38+S36*$AC36/100) -> 7.735098235 | P38: 2.683739004 | R38: =R36+Q38 -> 1.782842534 | S38: =O38-R38 -> 5.952255701 | T38: =T$8*(T$70/T$8)^(($A38-2019)/31) -> 3.518425239 | U38: =IF($AC36>0,U36+W38+$AF38/100*(T38/$Z38*$AE38)+(1-$AF38/100)*(U36*$AD38/100), U36+W38+Y36*$AC36/100) -> 0.950924298 | V38: 0.2702698604 | X38: =X36+W38 -> 1.069237492 | Y38: =U38-X38 -> -0.1183131939 | Z38: =B38+H38+N38+T38 -> 7.647882867 | AA38: =U38+O38+I38+C38 -> 17.37403797 | AB38: =AA38/Z38 -> 2.271744779 | AC38: =Bsp.länder!Y25 -> -8.178029974 | AD38: =Bsp.länder!Z25 -> -6.283369842 | AE38: =Bsp.länder!AA25 -> -1.166327498 | AF38: =Bsp.länder!AB25 -> 100 | AG38: 0 | AH38: mit Handel
A39: 2035 | B39: =B40 -> 0.375456003 | C39: =C40-E40 -> 2.986547335 | D39: 7.954453547 | F39: =F40-E40 -> 0.4575813475 | G39: =G40 -> 2.528965987 | H39: =H40 -> 0.87502113 | I39: =I40-K40 -> 5.032742787 | J39: 5.75156715 | L39: =L40-K40 -> 0.05333862664 | M39: =M40 -> 4.97940416 | N39: =N40 -> 2.890035079 | O39: =O40-Q40 -> 7.24832098 | P39: 2.5080391 | R39: =R40-Q40 -> 1.782842534 | S39: =S40 -> 5.465478446 | T39: =T40 -> 3.56009357 | U39: =U40-W40 -> 0.9605999865 | V39: 0.2698243649 | X39: =X40-W40 -> 1.069237492 | Y39: =Y40 -> -0.1086375054 | Z39: 7.700605783 | AA39: 16.22821109 | AB39: 2.107394086 | AC39: -8.72087888 | AD39: -6.579638849 | AG39: 0 | AH39: ohne Handel für Grafik
A40: 2035 | B40: =B$8*(B$70/B$8)^(($A40-2019)/31) -> 0.375456003 | C40: =IF($AC38>0,C38+E40+$AF40/100*(B40/$Z40*$AE40)+(1-$AF40/100)*(C38*$AD40/100), C38+E40+G38*$AC38/100) -> 2.986547335 | D40: =C40/B40 -> 7.954453547 | F40: =F38+E40 -> 0.4575813475 | G40: =C40-F40 -> 2.528965987 | H40: =H$8*(H$70/H$8)^(($A40-2019)/31) -> 0.87502113 | I40: =IF($AC38>0,I38+K40+$AF40/100*(H40/$Z40*$AE40)+(1-$AF40/100)*(I38*$AD40/100), I38+K40+M38*$AC38/100) -> 5.032742787 | J40: =I40/H40 -> 5.75156715 | L40: =L38+K40 -> 0.05333862664 | M40: =I40-L40 -> 4.97940416 | N40: =N$8*(N$70/N$8)^(($A40-2019)/31) -> 2.890035079 | O40: =IF($AC38>0,O38+Q40+$AF40/100*(N40/$Z40*$AE40)+(1-$AF40/100)*(O38*$AD40/100), O38+Q40+S38*$AC38/100) -> 7.24832098 | P40: =O40/N40 -> 2.5080391 | R40: =R38+Q40 -> 1.782842534 | S40: =O40-R40 -> 5.465478446 | T40: =T$8*(T$70/T$8)^(($A40-2019)/31) -> 3.56009357 | U40: =IF($AC38>0,U38+W40+$AF40/100*(T40/$Z40*$AE40)+(1-$AF40/100)*(U38*$AD40/100), U38+W40+Y38*$AC38/100) -> 0.9605999865 | V40: =U40/T40 -> 0.2698243649 | X40: =X38+W40 -> 1.069237492 | Y40: =U40-X40 -> -0.1086375054 | Z40: =B40+H40+N40+T40 -> 7.700605783 | AA40: =U40+O40+I40+C40 -> 16.22821109 | AB40: =AA40/Z40 -> 2.107394086 | AC40: =Bsp.länder!Y26 -> -8.72087888 | AD40: =Bsp.länder!Z26 -> -6.579638849 | AE40: =Bsp.länder!AA26 -> -1.14458121 | AF40: =Bsp.länder!AB26 -> 100 | AG40: 0 | AH40: mit Handel
A41: 2036 | B41: =B42 -> 0.3771071272 | C41: =C42-E42 -> 2.765999274 | D41: 7.334783871 | F41: =F42-E42 -> 0.4575813475 | G41: =G42 -> 2.308417927 | H41: =H42 -> 0.8766091841 | I41: =I42-K42 -> 4.598494981 | J41: 5.2457755 | L41: =L42-K42 -> 0.05333862664 | M41: =M42 -> 4.545156354 | N41: =N42 -> 2.897881838 | O41: =O42-Q42 -> 6.771683224 | P41: 2.336769959 | R41: =R42-Q42 -> 1.782842534 | S41: =S42 -> 4.98884069 | T41: =T42 -> 3.602255375 | U41: =U42-W42 -> 0.9700741317 | V41: 0.2692963243 | X41: =X42-W42 -> 1.069237492 | Y41: =Y42 -> -0.09916336016 | Z41: 7.753853525 | AA41: 15.10625161 | AB41: 1.948225042 | AC41: -9.330046307 | AD41: -6.896340202 | AG41: 0 | AH41: ohne Handel für Grafik
A42: 2036 | B42: =B$8*(B$70/B$8)^(($A42-2019)/31) -> 0.3771071272 | C42: =IF($AC40>0,C40+E42+$AF42/100*(B42/$Z42*$AE42)+(1-$AF42/100)*(C40*$AD42/100), C40+E42+G40*$AC40/100) -> 2.765999274 | D42: 7.334783871 | F42: =F40+E42 -> 0.4575813475 | G42: =C42-F42 -> 2.308417927 | H42: =H$8*(H$70/H$8)^(($A42-2019)/31) -> 0.8766091841 | I42: =IF($AC40>0,I40+K42+$AF42/100*(H42/$Z42*$AE42)+(1-$AF42/100)*(I40*$AD42/100), I40+K42+M40*$AC40/100) -> 4.598494981 | J42: 5.2457755 | L42: =L40+K42 -> 0.05333862664 | M42: =I42-L42 -> 4.545156354 | N42: =N$8*(N$70/N$8)^(($A42-2019)/31) -> 2.897881838 | O42: =IF($AC40>0,O40+Q42+$AF42/100*(N42/$Z42*$AE42)+(1-$AF42/100)*(O40*$AD42/100), O40+Q42+S40*$AC40/100) -> 6.771683224 | P42: 2.336769959 | R42: =R40+Q42 -> 1.782842534 | S42: =O42-R42 -> 4.98884069 | T42: =T$8*(T$70/T$8)^(($A42-2019)/31) -> 3.602255375 | U42: =IF($AC40>0,U40+W42+$AF42/100*(T42/$Z42*$AE42)+(1-$AF42/100)*(U40*$AD42/100), U40+W42+Y40*$AC40/100) -> 0.9700741317 | V42: 0.2692963243 | X42: =X40+W42 -> 1.069237492 | Y42: =U42-X42 -> -0.09916336016 | Z42: =B42+H42+N42+T42 -> 7.753853525 | AA42: =U42+O42+I42+C42 -> 15.10625161 | AB42: =AA42/Z42 -> 1.948225042 | AC42: =Bsp.länder!Y27 -> -9.330046307 | AD42: =Bsp.länder!Z27 -> -6.896340202 | AE42: =Bsp.länder!AA27 -> -1.120739749 | AF42: =Bsp.länder!AB27 -> 100 | AG42: 0 | AH42: mit Handel
A43: 2037 | B43: =B44 -> 0.3787655124 | C43: =C44-E44 -> 2.550622813 | D43: 6.734041852 | F43: =F44-E44 -> 0.4575813475 | G43: =G44 -> 2.093041465 | H43: =H44 -> 0.8782001204 | I43: =I44-K44 -> 4.174429788 | J43: 4.753392412 | L43: =L44-K44 -> 0.05333862664 | M43: =M44 -> 4.121091162 | N43: =N44 -> 2.905749902 | O43: =O44-Q44 -> 6.306222078 | P43: 2.170256316 | R43: =R44-Q44 -> 1.782842534 | S43: =S44 -> 4.523379544 | T43: =T44 -> 3.644916498 | U43: =U44-W44 -> 0.9793261191 | V43: 0.268682731 | X43: =X44-W44 -> 1.069237492 | Y43: =Y44 -> -0.08991137274 | Z43: 7.807632033 | AA43: 14.0106008 | AB43: 1.794475039 | AC43: -10.01765467 | AD43: -7.2334739 | AG43: 0 | AH43: ohne Handel für Grafik
A44: 2037 | B44: =B$8*(B$70/B$8)^(($A44-2019)/31) -> 0.3787655124 | C44: =IF($AC42>0,C42+E44+$AF44/100*(B44/$Z44*$AE44)+(1-$AF44/100)*(C42*$AD44/100), C42+E44+G42*$AC42/100) -> 2.550622813 | D44: 6.734041852 | F44: =F42+E44 -> 0.4575813475 | G44: =C44-F44 -> 2.093041465 | H44: =H$8*(H$70/H$8)^(($A44-2019)/31) -> 0.8782001204 | I44: =IF($AC42>0,I42+K44+$AF44/100*(H44/$Z44*$AE44)+(1-$AF44/100)*(I42*$AD44/100), I42+K44+M42*$AC42/100) -> 4.174429788 | J44: 4.753392412 | L44: =L42+K44 -> 0.05333862664 | M44: =I44-L44 -> 4.121091162 | N44: =N$8*(N$70/N$8)^(($A44-2019)/31) -> 2.905749902 | O44: =IF($AC42>0,O42+Q44+$AF44/100*(N44/$Z44*$AE44)+(1-$AF44/100)*(O42*$AD44/100), O42+Q44+S42*$AC42/100) -> 6.306222078 | P44: 2.170256316 | R44: =R42+Q44 -> 1.782842534 | S44: =O44-R44 -> 4.523379544 | T44: =T$8*(T$70/T$8)^(($A44-2019)/31) -> 3.644916498 | U44: =IF($AC42>0,U42+W44+$AF44/100*(T44/$Z44*$AE44)+(1-$AF44/100)*(U42*$AD44/100), U42+W44+Y42*$AC42/100) -> 0.9793261191 | V44: 0.268682731 | X44: =X42+W44 -> 1.069237492 | Y44: =U44-X44 -> -0.08991137274 | Z44: =B44+H44+N44+T44 -> 7.807632033 | AA44: =U44+O44+I44+C44 -> 14.0106008 | AB44: =AA44/Z44 -> 1.794475039 | AC44: =Bsp.länder!Y28 -> -10.01765467 | AD44: =Bsp.länder!Z28 -> -7.2334739 | AE44: =Bsp.länder!AA28 -> -1.094459687 | AF44: =Bsp.länder!AB28 -> 100 | AG44: 0 | AH44: mit Handel
A45: 2038 | B45: =B46 -> 0.3804311907 | C45: =C46-E46 -> 2.340949147 | D45: 6.153410141 | F45: =F46-E46 -> 0.4575813475 | G45: =G46 -> 1.883367799 | H45: =H46 -> 0.8797939441 | I45: =I46-K46 -> 3.761593107 | J45: 4.275538758 | L45: =L46-K46 -> 0.05333862664 | M45: =M46 -> 3.70825448 | N45: =N46 -> 2.913639328 | O45: =O46-Q46 -> 5.853085535 | P45: 2.008857266 | R45: =R46-Q46 -> 1.782842534 | S45: =S46 -> 4.070243002 | T45: =T46 -> 3.688082852 | U45: =U46-W46 -> 0.98833313 | V45: 0.2679801864 | X45: =X46-W46 -> 1.069237492 | Y45: =Y46 -> -0.08090436191 | Z45: 7.861947315 | AA45: 12.94396092 | AB45: 1.646406469 | AC45: -10.80009238 | AD45: -7.591039943 | AG45: 0 | AH45: ohne Handel für Grafik
A46: 2038 | B46: =B$8*(B$70/B$8)^(($A46-2019)/31) -> 0.3804311907 | C46: =IF($AC44>0,C44+E46+$AF46/100*(B46/$Z46*$AE46)+(1-$AF46/100)*(C44*$AD46/100), C44+E46+G44*$AC44/100) -> 2.340949147 | D46: 6.153410141 | F46: =F44+E46 -> 0.4575813475 | G46: =C46-F46 -> 1.883367799 | H46: =H$8*(H$70/H$8)^(($A46-2019)/31) -> 0.8797939441 | I46: =IF($AC44>0,I44+K46+$AF46/100*(H46/$Z46*$AE46)+(1-$AF46/100)*(I44*$AD46/100), I44+K46+M44*$AC44/100) -> 3.761593107 | J46: 4.275538758 | L46: =L44+K46 -> 0.05333862664 | M46: =I46-L46 -> 3.70825448 | N46: =N$8*(N$70/N$8)^(($A46-2019)/31) -> 2.913639328 | O46: =IF($AC44>0,O44+Q46+$AF46/100*(N46/$Z46*$AE46)+(1-$AF46/100)*(O44*$AD46/100), O44+Q46+S44*$AC44/100) -> 5.853085535 | P46: 2.008857266 | R46: =R44+Q46 -> 1.782842534 | S46: =O46-R46 -> 4.070243002 | T46: =T$8*(T$70/T$8)^(($A46-2019)/31) -> 3.688082852 | U46: =IF($AC44>0,U44+W46+$AF46/100*(T46/$Z46*$AE46)+(1-$AF46/100)*(U44*$AD46/100), U44+W46+Y44*$AC44/100) -> 0.98833313 | V46: 0.2679801864 | X46: =X44+W46 -> 1.069237492 | Y46: =U46-X46 -> -0.08090436191 | Z46: =B46+H46+N46+T46 -> 7.861947315 | AA46: =U46+O46+I46+C46 -> 12.94396092 | AB46: =AA46/Z46 -> 1.646406469 | AC46: =Bsp.länder!Y29 -> -10.80009238 | AD46: =Bsp.länder!Z29 -> -7.591039943 | AE46: =Bsp.länder!AA29 -> -1.065480291 | AF46: =Bsp.länder!AB29 -> 100 | AG46: 0 | AH46: mit Handel
A47: 2039 | B47: =B48 -> 0.382104194 | C47: =C48-E48 -> 2.137543684 | D47: 5.594138243 | F47: =F48-E48 -> 0.4575813475 | G47: =G48 -> 1.679962337 | H47: =H48 -> 0.8813906603 | I47: =I48-K48 -> 3.361098197 | J47: 3.813403464 | L47: =L48-K48 -> 0.05333862664 | M47: =M48 -> 3.307759571 | N47: =N48 -> 2.921550175 | O47: =O48-Q48 -> 5.413495531 | P47: 1.852953127 | R47: =R48-Q48 -> 1.782842534 | S47: =S48 -> 3.630652997 | T47: =T48 -> 3.73176042 | U47: =U48-W48 -> 0.9970708758 | V47: 0.2671851254 | X47: =X48-W48 -> 1.069237492 | Y47: =Y48 -> -0.07216661608 | Z47: 7.916805449 | AA47: 11.90920829 | AB47: 1.504294676 | AC47: -11.69998286 | AD47: -7.969038332 | AG47: 0 | AH47: ohne Handel für Grafik
A48: 2039 | B48: =B$8*(B$70/B$8)^(($A48-2019)/31) -> 0.382104194 | C48: =IF($AC46>0,C46+E48+$AF48/100*(B48/$Z48*$AE48)+(1-$AF48/100)*(C46*$AD48/100), C46+E48+G46*$AC46/100) -> 2.137543684 | D48: 5.594138243 | F48: =F46+E48 -> 0.4575813475 | G48: =C48-F48 -> 1.679962337 | H48: =H$8*(H$70/H$8)^(($A48-2019)/31) -> 0.8813906603 | I48: =IF($AC46>0,I46+K48+$AF48/100*(H48/$Z48*$AE48)+(1-$AF48/100)*(I46*$AD48/100), I46+K48+M46*$AC46/100) -> 3.361098197 | J48: 3.813403464 | L48: =L46+K48 -> 0.05333862664 | M48: =I48-L48 -> 3.307759571 | N48: =N$8*(N$70/N$8)^(($A48-2019)/31) -> 2.921550175 | O48: =IF($AC46>0,O46+Q48+$AF48/100*(N48/$Z48*$AE48)+(1-$AF48/100)*(O46*$AD48/100), O46+Q48+S46*$AC46/100) -> 5.413495531 | P48: 1.852953127 | R48: =R46+Q48 -> 1.782842534 | S48: =O48-R48 -> 3.630652997 | T48: =T$8*(T$70/T$8)^(($A48-2019)/31) -> 3.73176042 | U48: =IF($AC46>0,U46+W48+$AF48/100*(T48/$Z48*$AE48)+(1-$AF48/100)*(U46*$AD48/100), U46+W48+Y46*$AC46/100) -> 0.9970708758 | V48: 0.2671851254 | X48: =X46+W48 -> 1.069237492 | Y48: =U48-X48 -> -0.07216661608 | Z48: =B48+H48+N48+T48 -> 7.916805449 | AA48: =U48+O48+I48+C48 -> 11.90920829 | AB48: =AA48/Z48 -> 1.504294676 | AC48: =Bsp.länder!Y30 -> -11.69998286 | AD48: =Bsp.länder!Z30 -> -7.969038332 | AE48: =Bsp.länder!AA30 -> -1.033627708 | AF48: =Bsp.länder!AB30 -> 100 | AG48: 0 | AH48: mit Handel
A49: 2040 | B49: =B50 -> 0.3837845546 | C49: =C50-E50 -> 1.940988379 | D49: 5.057494774 | F49: =F50-E50 -> 0.4575813475 | G49: =G50 -> 1.483407032 | H49: =H50 -> 0.8829902743 | I49: =I50-K50 -> 2.974090895 | J49: 3.368203457 | L49: =L50-K50 -> 0.05333862664 | M49: =M50 -> 2.920752268 | N49: =N50 -> 2.9294825 | O49: =O50-Q50 -> 4.988709753 | P49: 1.702932089 | R49: =R50-Q50 -> 1.782842534 | S49: =S50 -> 3.205867219 | T49: =T50 -> 3.775955257 | U49: =U50-W50 -> 1.005514358 | V49: 0.2662940339 | X49: =X50-W50 -> 1.069237492 | Y49: =Y50 -> -0.06372313437 | Z49: 7.972212587 | AA49: 10.90930338 | AB49: 1.368416016 | AC49: -12.74933759 | AD49: -8.367469066 | AG49: 0 | AH49: ohne Handel für Grafik
A50: 2040 | B50: =B$8*(B$70/B$8)^(($A50-2019)/31) -> 0.3837845546 | C50: =IF($AC48>0,C48+E50+$AF50/100*(B50/$Z50*$AE50)+(1-$AF50/100)*(C48*$AD50/100), C48+E50+G48*$AC48/100) -> 1.940988379 | D50: 5.057494774 | F50: =F48+E50 -> 0.4575813475 | G50: =C50-F50 -> 1.483407032 | H50: =H$8*(H$70/H$8)^(($A50-2019)/31) -> 0.8829902743 | I50: =IF($AC48>0,I48+K50+$AF50/100*(H50/$Z50*$AE50)+(1-$AF50/100)*(I48*$AD50/100), I48+K50+M48*$AC48/100) -> 2.974090895 | J50: 3.368203457 | L50: =L48+K50 -> 0.05333862664 | M50: =I50-L50 -> 2.920752268 | N50: =N$8*(N$70/N$8)^(($A50-2019)/31) -> 2.9294825 | O50: =IF($AC48>0,O48+Q50+$AF50/100*(N50/$Z50*$AE50)+(1-$AF50/100)*(O48*$AD50/100), O48+Q50+S48*$AC48/100) -> 4.988709753 | P50: 1.702932089 | R50: =R48+Q50 -> 1.782842534 | S50: =O50-R50 -> 3.205867219 | T50: =T$8*(T$70/T$8)^(($A50-2019)/31) -> 3.775955257 | U50: =IF($AC48>0,U48+W50+$AF50/100*(T50/$Z50*$AE50)+(1-$AF50/100)*(U48*$AD50/100), U48+W50+Y48*$AC48/100) -> 1.005514358 | V50: 0.2662940339 | X50: =X48+W50 -> 1.069237492 | Y50: =U50-X50 -> -0.06372313437 | Z50: =B50+H50+N50+T50 -> 7.972212587 | AA50: =U50+O50+I50+C50 -> 10.90930338 | AB50: =AA50/Z50 -> 1.368416016 | AC50: =Bsp.länder!Y31 -> -12.74933759 | AD50: =Bsp.länder!Z31 -> -8.367469066 | AE50: =Bsp.länder!AA31 -> -0.9988178673 | AF50: =Bsp.länder!AB31 -> 100 | AG50: 0 | AH50: mit Handel
A51: 2041 | B51: =B52 -> 0.3854723048 | C51: =C52-E52 -> 1.751863809 | D51: 4.544720301 | F51: =F52-E52 -> 0.4575813475 | G51: =G52 -> 1.294282461 | H51: =H52 -> 0.8845927915 | I51: =I52-K52 -> 2.601714328 | J51: 2.941143488 | L51: =L52-K52 -> 0.05333862664 | M51: =M52 -> 2.548375701 | N51: =N52 -> 2.937436363 | O51: =O52-Q52 -> 4.579982919 | P51: 1.559176899 | R51: =R52-Q52 -> 1.782842534 | S51: =S52 -> 2.797140385 | T51: =T52 -> 3.820673489 | U51: =U52-W52 -> 1.013638635 | V51: 0.2653036534 | X51: =X52-W52 -> 1.069237492 | Y51: =Y52 -> -0.05559885685 | Z51: 8.028174949 | AA51: 9.947199691 | AB51: 1.239036239 | AC51: -13.99481332 | AD51: -8.786332145 | AG51: 0 | AH51: ohne Handel für Grafik
A52: 2041 | B52: =B$8*(B$70/B$8)^(($A52-2019)/31) -> 0.3854723048 | C52: =IF($AC50>0,C50+E52+$AF52/100*(B52/$Z52*$AE52)+(1-$AF52/100)*(C50*$AD52/100), C50+E52+G50*$AC50/100) -> 1.751863809 | D52: 4.544720301 | F52: =F50+E52 -> 0.4575813475 | G52: =C52-F52 -> 1.294282461 | H52: =H$8*(H$70/H$8)^(($A52-2019)/31) -> 0.8845927915 | I52: =IF($AC50>0,I50+K52+$AF52/100*(H52/$Z52*$AE52)+(1-$AF52/100)*(I50*$AD52/100), I50+K52+M50*$AC50/100) -> 2.601714328 | J52: 2.941143488 | L52: =L50+K52 -> 0.05333862664 | M52: =I52-L52 -> 2.548375701 | N52: =N$8*(N$70/N$8)^(($A52-2019)/31) -> 2.937436363 | O52: =IF($AC50>0,O50+Q52+$AF52/100*(N52/$Z52*$AE52)+(1-$AF52/100)*(O50*$AD52/100), O50+Q52+S50*$AC50/100) -> 4.579982919 | P52: 1.559176899 | R52: =R50+Q52 -> 1.782842534 | S52: =O52-R52 -> 2.797140385 | T52: =T$8*(T$70/T$8)^(($A52-2019)/31) -> 3.820673489 | U52: =IF($AC50>0,U50+W52+$AF52/100*(T52/$Z52*$AE52)+(1-$AF52/100)*(U50*$AD52/100), U50+W52+Y50*$AC50/100) -> 1.013638635 | V52: 0.2653036534 | X52: =X50+W52 -> 1.069237492 | Y52: =U52-X52 -> -0.05559885685 | Z52: =B52+H52+N52+T52 -> 8.028174949 | AA52: =U52+O52+I52+C52 -> 9.947199691 | AB52: =AA52/Z52 -> 1.239036239 | AC52: =Bsp.länder!Y32 -> -13.99481332 | AD52: =Bsp.länder!Z32 -> -8.786332145 | AE52: =Bsp.länder!AA32 -> -0.9610577515 | AF52: =Bsp.länder!AB32 -> 100 | AG52: 0 | AH52: mit Handel
A53: 2042 | B53: =B54 -> 0.3871674771 | C53: =C54-E54 -> 1.570731395 | D53: 4.056981764 | F53: =F54-E54 -> 0.4575813475 | G53: =G54 -> 1.113150047 | H53: =H54 -> 0.886198217 | I53: =I54-K54 -> 2.245073906 | J53: 2.53337669 | L53: =L54-K54 -> 0.05333862664 | M53: =M54 -> 2.191735279 | N53: =N54 -> 2.945411822 | O53: =O54-Q54 -> 4.188528344 | P53: 1.422051855 | R53: =R54-Q54 -> 1.782842534 | S53: =S54 -> 2.40568581 | T53: =T54 -> 3.865921314 | U53: =U54-W54 -> 1.021419591 | V53: 0.2642111694 | X53: =X54-W54 -> 1.069237492 | Y53: =Y54 -> -0.04781790063 | Z53: 8.08469883 | AA53: 9.025753235 | AB53: 1.116399439 | AC53: -15.50691343 | AD53: -9.225627569 | AG53: 0 | AH53: ohne Handel für Grafik
A54: 2042 | B54: =B$8*(B$70/B$8)^(($A54-2019)/31) -> 0.3871674771 | C54: =IF($AC52>0,C52+E54+$AF54/100*(B54/$Z54*$AE54)+(1-$AF54/100)*(C52*$AD54/100), C52+E54+G52*$AC52/100) -> 1.570731395 | D54: 4.056981764 | F54: =F52+E54 -> 0.4575813475 | G54: =C54-F54 -> 1.113150047 | H54: =H$8*(H$70/H$8)^(($A54-2019)/31) -> 0.886198217 | I54: =IF($AC52>0,I52+K54+$AF54/100*(H54/$Z54*$AE54)+(1-$AF54/100)*(I52*$AD54/100), I52+K54+M52*$AC52/100) -> 2.245073906 | J54: 2.53337669 | L54: =L52+K54 -> 0.05333862664 | M54: =I54-L54 -> 2.191735279 | N54: =N$8*(N$70/N$8)^(($A54-2019)/31) -> 2.945411822 | O54: =IF($AC52>0,O52+Q54+$AF54/100*(N54/$Z54*$AE54)+(1-$AF54/100)*(O52*$AD54/100), O52+Q54+S52*$AC52/100) -> 4.188528344 | P54: 1.422051855 | R54: =R52+Q54 -> 1.782842534 | S54: =O54-R54 -> 2.40568581 | T54: =T$8*(T$70/T$8)^(($A54-2019)/31) -> 3.865921314 | U54: =IF($AC52>0,U52+W54+$AF54/100*(T54/$Z54*$AE54)+(1-$AF54/100)*(U52*$AD54/100), U52+W54+Y52*$AC52/100) -> 1.021419591 | V54: 0.2642111694 | X54: =X52+W54 -> 1.069237492 | Y54: =U54-X54 -> -0.04781790063 | Z54: =B54+H54+N54+T54 -> 8.08469883 | AA54: =U54+O54+I54+C54 -> 9.025753235 | AB54: =AA54/Z54 -> 1.116399439 | AC54: =Bsp.länder!Y33 -> -15.50691343 | AD54: =Bsp.länder!Z33 -> -9.225627569 | AE54: =Bsp.länder!AA33 -> -0.9204447133 | AF54: =Bsp.länder!AB33 -> 100 | AG54: 0 | AH54: mit Handel
A55: 2043 | B55: =B56 -> 0.3888701043 | C55: =C56-E56 -> 1.39811618 | D55: 3.595329559 | F55: =F56-E56 -> 0.4575813475 | G55: =G56 -> 0.9405348329 | H55: =H56 -> 0.8878065562 | I55: =I56-K56 -> 1.905203414 | J55: 2.145966822 | L55: =L56-K56 -> 0.05333862664 | M55: =M56 -> 1.851864787 | N55: =N56 -> 2.953408934 | O55: =O56-Q56 -> 3.815480728 | P55: 1.291890427 | R55: =R56-Q56 -> 1.782842534 | S55: =S56 -> 2.032638194 | T55: =T56 -> 3.911705004 | U55: =U56-W56 -> 1.028834672 | V55: 0.2630143813 | X55: =X56-W56 -> 1.069237492 | Y55: =Y56 -> -0.04040282018 | Z55: 8.141790599 | AA55: 8.147634994 | AB55: 1.000717827 | AC55: -17.39707399 | AD55: -9.685355339 | AG55: 0 | AH55: ohne Handel für Grafik
A56: 2043 | B56: =B$8*(B$70/B$8)^(($A56-2019)/31) -> 0.3888701043 | C56: =IF($AC54>0,C54+E56+$AF56/100*(B56/$Z56*$AE56)+(1-$AF56/100)*(C54*$AD56/100), C54+E56+G54*$AC54/100) -> 1.39811618 | D56: 3.595329559 | F56: =F54+E56 -> 0.4575813475 | G56: =C56-F56 -> 0.9405348329 | H56: =H$8*(H$70/H$8)^(($A56-2019)/31) -> 0.8878065562 | I56: =IF($AC54>0,I54+K56+$AF56/100*(H56/$Z56*$AE56)+(1-$AF56/100)*(I54*$AD56/100), I54+K56+M54*$AC54/100) -> 1.905203414 | J56: 2.145966822 | L56: =L54+K56 -> 0.05333862664 | M56: =I56-L56 -> 1.851864787 | N56: =N$8*(N$70/N$8)^(($A56-2019)/31) -> 2.953408934 | O56: =IF($AC54>0,O54+Q56+$AF56/100*(N56/$Z56*$AE56)+(1-$AF56/100)*(O54*$AD56/100), O54+Q56+S54*$AC54/100) -> 3.815480728 | P56: 1.291890427 | R56: =R54+Q56 -> 1.782842534 | S56: =O56-R56 -> 2.032638194 | T56: =T$8*(T$70/T$8)^(($A56-2019)/31) -> 3.911705004 | U56: =IF($AC54>0,U54+W56+$AF56/100*(T56/$Z56*$AE56)+(1-$AF56/100)*(U54*$AD56/100), U54+W56+Y54*$AC54/100) -> 1.028834672 | V56: 0.2630143813 | X56: =X54+W56 -> 1.069237492 | Y56: =U56-X56 -> -0.04040282018 | Z56: =B56+H56+N56+T56 -> 8.141790599 | AA56: =U56+O56+I56+C56 -> 8.147634994 | AB56: =AA56/Z56 -> 1.000717827 | AC56: =Bsp.länder!Y34 -> -17.39707399 | AD56: =Bsp.länder!Z34 -> -9.685355339 | AE56: =Bsp.länder!AA34 -> -0.8771636036 | AF56: =Bsp.länder!AB34 -> 100 | AG56: 0 | AH56: mit Handel
A57: 2044 | B57: =B58 -> 0.390580219 | C57: =C58-E58 -> 1.23449064 | D57: 3.160658374 | F57: =F58-E58 -> 0.4575813475 | G57: =G58 -> 0.7769092922 | H57: =H58 -> 0.8894178143 | I57: =I58-K58 -> 1.583033127 | J57: 1.779853181 | L57: =L58-K58 -> 0.05333862664 | M57: =M58 -> 1.5296945 | N57: =N58 -> 2.96142776 | O57: =O58-Q58 -> 3.461861157 | P57: 1.168983827 | R57: =R58-Q58 -> 1.782842534 | S57: =S58 -> 1.679018623 | T57: =T58 -> 3.958030906 | U57: =U58-W58 -> 1.03586358 | V57: 0.2617118473 | X57: =X58-W58 -> 1.069237492 | Y57: =Y58 -> -0.03337391166 | Z57: 8.199456699 | AA57: 7.315248504 | AB57: 0.8921625874 | AC57: -19.85182452 | AD57: -10.16551545 | AG57: 0 | AH57: ohne Handel für Grafik
A58: 2044 | B58: =B$8*(B$70/B$8)^(($A58-2019)/31) -> 0.390580219 | C58: =IF($AC56>0,C56+E58+$AF58/100*(B58/$Z58*$AE58)+(1-$AF58/100)*(C56*$AD58/100), C56+E58+G56*$AC56/100) -> 1.23449064 | D58: 3.160658374 | F58: =F56+E58 -> 0.4575813475 | G58: =C58-F58 -> 0.7769092922 | H58: =H$8*(H$70/H$8)^(($A58-2019)/31) -> 0.8894178143 | I58: =IF($AC56>0,I56+K58+$AF58/100*(H58/$Z58*$AE58)+(1-$AF58/100)*(I56*$AD58/100), I56+K58+M56*$AC56/100) -> 1.583033127 | J58: 1.779853181 | L58: =L56+K58 -> 0.05333862664 | M58: =I58-L58 -> 1.5296945 | N58: =N$8*(N$70/N$8)^(($A58-2019)/31) -> 2.96142776 | O58: =IF($AC56>0,O56+Q58+$AF58/100*(N58/$Z58*$AE58)+(1-$AF58/100)*(O56*$AD58/100), O56+Q58+S56*$AC56/100) -> 3.461861157 | P58: 1.168983827 | R58: =R56+Q58 -> 1.782842534 | S58: =O58-R58 -> 1.679018623 | T58: =T$8*(T$70/T$8)^(($A58-2019)/31) -> 3.958030906 | U58: =IF($AC56>0,U56+W58+$AF58/100*(T58/$Z58*$AE58)+(1-$AF58/100)*(U56*$AD58/100), U56+W58+Y56*$AC56/100) -> 1.03586358 | V58: 0.2617118473 | X58: =X56+W58 -> 1.069237492 | Y58: =U58-X58 -> -0.03337391166 | Z58: =B58+H58+N58+T58 -> 8.199456699 | AA58: =U58+O58+I58+C58 -> 7.315248504 | AB58: =AA58/Z58 -> 0.8921625874 | AC58: =Bsp.länder!Y35 -> -19.85182452 | AD58: =Bsp.länder!Z35 -> -10.16551545 | AE58: =Bsp.länder!AA35 -> -0.8314815686 | AF58: =Bsp.länder!AB35 -> 100 | AG58: 0 | AH58: mit Handel
A59: 2045 | B59: =B60 -> 0.3922978542 | C59: =C60-E60 -> 1.08025997 | D59: 2.753672901 | F59: =F60-E60 -> 0.4575813475 | G59: =G60 -> 0.6226786228 | H59: =H60 -> 0.8910319967 | I59: =I60-K60 -> 1.279360859 | J59: 1.435819211 | L59: =L60-K60 -> 0.05333862664 | M59: =M60 -> 1.226022232 | N59: =N60 -> 2.969468358 | O59: =O60-Q60 -> 3.128545326 | P59: 1.053570858 | R59: =R60-Q60 -> 1.782842534 | S59: =S60 -> 1.345702793 | T59: =T60 -> 4.00490544 | U59: =U60-W60 -> 1.042488911 | V59: 0.2603030025 | X59: =X60-W60 -> 1.069237492 | Y59: =Y60 -> -0.02674858128 | Z59: 8.257703648 | AA59: 6.530655066 | AB59: 0.7908560714 | AC59: -23.20790084 | AD59: -10.66610792 | AG59: 0 | AH59: ohne Handel für Grafik
A60: 2045 | B60: =B$8*(B$70/B$8)^(($A60-2019)/31) -> 0.3922978542 | C60: =IF($AC58>0,C58+E60+$AF60/100*(B60/$Z60*$AE60)+(1-$AF60/100)*(C58*$AD60/100), C58+E60+G58*$AC58/100) -> 1.08025997 | D60: 2.753672901 | F60: =F58+E60 -> 0.4575813475 | G60: =C60-F60 -> 0.6226786228 | H60: =H$8*(H$70/H$8)^(($A60-2019)/31) -> 0.8910319967 | I60: =IF($AC58>0,I58+K60+$AF60/100*(H60/$Z60*$AE60)+(1-$AF60/100)*(I58*$AD60/100), I58+K60+M58*$AC58/100) -> 1.279360859 | J60: 1.435819211 | L60: =L58+K60 -> 0.05333862664 | M60: =I60-L60 -> 1.226022232 | N60: =N$8*(N$70/N$8)^(($A60-2019)/31) -> 2.969468358 | O60: =IF($AC58>0,O58+Q60+$AF60/100*(N60/$Z60*$AE60)+(1-$AF60/100)*(O58*$AD60/100), O58+Q60+S58*$AC58/100) -> 3.128545326 | P60: 1.053570858 | R60: =R58+Q60 -> 1.782842534 | S60: =O60-R60 -> 1.345702793 | T60: =T$8*(T$70/T$8)^(($A60-2019)/31) -> 4.00490544 | U60: =IF($AC58>0,U58+W60+$AF60/100*(T60/$Z60*$AE60)+(1-$AF60/100)*(U58*$AD60/100), U58+W60+Y58*$AC58/100) -> 1.042488911 | V60: 0.2603030025 | X60: =X58+W60 -> 1.069237492 | Y60: =U60-X60 -> -0.02674858128 | Z60: =B60+H60+N60+T60 -> 8.257703648 | AA60: =U60+O60+I60+C60 -> 6.530655066 | AB60: =AA60/Z60 -> 0.7908560714 | AC60: =Bsp.länder!Y36 -> -23.20790084 | AD60: =Bsp.länder!Z36 -> -10.66610792 | AE60: =Bsp.länder!AA36 -> -0.7837404742 | AF60: =Bsp.länder!AB36 -> 100 | AG60: 0 | AH60: mit Handel
A61: 2046 | B61: =B62 -> 0.3940230429 | C61: =C62-E62 -> 0.935749333 | D61: 2.374859415 | F61: =F62-E62 -> 0.4575813475 | G61: =G62 -> 0.4781679855 | H61: =H62 -> 0.8926491086 | I61: =I62-K62 -> 0.9948268348 | J61: 1.114465724 | L61: =L62-K62 -> 0.05333862664 | M61: =M62 -> 0.9414882082 | N61: =N62 -> 2.977530786 | O61: =O62-Q62 -> 2.816235957 | P61: 0.9458293328 | R61: =R62-Q62 -> 1.782842534 | S61: =S62 -> 1.033393423 | T61: =T62 -> 4.052335104 | U61: =U62-W62 -> 1.048696695 | V61: 0.2587882462 | X61: =X62-W62 -> 1.069237492 | Y61: =Y62 -> -0.02054079706 | Z61: 8.316538042 | AA61: 5.79550882 | AB61: 0.6968655455 | AC61: -28.13987873 | AD61: -11.18713272 | AG61: 0 | AH61: ohne Handel für Grafik
A62: 2046 | B62: =B$8*(B$70/B$8)^(($A62-2019)/31) -> 0.3940230429 | C62: =IF($AC60>0,C60+E62+$AF62/100*(B62/$Z62*$AE62)+(1-$AF62/100)*(C60*$AD62/100), C60+E62+G60*$AC60/100) -> 0.935749333 | D62: 2.374859415 | F62: =F60+E62 -> 0.4575813475 | G62: =C62-F62 -> 0.4781679855 | H62: =H$8*(H$70/H$8)^(($A62-2019)/31) -> 0.8926491086 | I62: =IF($AC60>0,I60+K62+$AF62/100*(H62/$Z62*$AE62)+(1-$AF62/100)*(I60*$AD62/100), I60+K62+M60*$AC60/100) -> 0.9948268348 | J62: 1.114465724 | L62: =L60+K62 -> 0.05333862664 | M62: =I62-L62 -> 0.9414882082 | N62: =N$8*(N$70/N$8)^(($A62-2019)/31) -> 2.977530786 | O62: =IF($AC60>0,O60+Q62+$AF62/100*(N62/$Z62*$AE62)+(1-$AF62/100)*(O60*$AD62/100), O60+Q62+S60*$AC60/100) -> 2.816235957 | P62: 0.9458293328 | R62: =R60+Q62 -> 1.782842534 | S62: =O62-R62 -> 1.033393423 | T62: =T$8*(T$70/T$8)^(($A62-2019)/31) -> 4.052335104 | U62: =IF($AC60>0,U60+W62+$AF62/100*(T62/$Z62*$AE62)+(1-$AF62/100)*(U60*$AD62/100), U60+W62+Y60*$AC60/100) -> 1.048696695 | V62: 0.2587882462 | X62: =X60+W62 -> 1.069237492 | Y62: =U62-X62 -> -0.02054079706 | Z62: =B62+H62+N62+T62 -> 8.316538042 | AA62: =U62+O62+I62+C62 -> 5.79550882 | AB62: =AA62/Z62 -> 0.6968655455 | AC62: =Bsp.länder!Y37 -> -28.13987873 | AD62: =Bsp.länder!Z37 -> -11.18713272 | AE62: =Bsp.länder!AA37 -> -0.7343470391 | AF62: =Bsp.länder!AB37 -> 100 | AG62: 0 | AH62: mit Handel
A63: 2047 | B63: =B64 -> 0.3957558184 | C63: =C64-E64 -> 0.8011934418 | D63: 2.024464087 | F63: =F64-E64 -> 0.4575813475 | G63: =G64 -> 0.3436120942 | H63: =H64 -> 0.8942691553 | I63: =I64-K64 -> 0.7298931948 | J63: 0.8161896119 | L63: =L64-K64 -> 0.05333862664 | M63: =M64 -> 0.6765545682 | N63: =N64 -> 2.985615105 | O63: =O64-Q64 -> 2.525440301 | P63: 0.8458693474 | R63: =R64-Q64 -> 1.782842534 | S63: =S64 -> 0.7425977669 | T63: =T64 -> 4.100326473 | U63: =U64-W64 -> 1.05447685 | V63: 0.2571689979 | X63: =X64-W64 -> 1.069237492 | Y63: =Y64 -> -0.01476064168 | Z63: 8.375966552 | AA63: 5.111003788 | AB63: 0.6101986864 | AC63: -36.22241168 | AD63: -11.72858987 | AG63: 0 | AH63: ohne Handel für Grafik
A64: 2047 | B64: =B$8*(B$70/B$8)^(($A64-2019)/31) -> 0.3957558184 | C64: =IF($AC62>0,C62+E64+$AF64/100*(B64/$Z64*$AE64)+(1-$AF64/100)*(C62*$AD64/100), C62+E64+G62*$AC62/100) -> 0.8011934418 | D64: 2.024464087 | F64: =F62+E64 -> 0.4575813475 | G64: =C64-F64 -> 0.3436120942 | H64: =H$8*(H$70/H$8)^(($A64-2019)/31) -> 0.8942691553 | I64: =IF($AC62>0,I62+K64+$AF64/100*(H64/$Z64*$AE64)+(1-$AF64/100)*(I62*$AD64/100), I62+K64+M62*$AC62/100) -> 0.7298931948 | J64: 0.8161896119 | L64: =L62+K64 -> 0.05333862664 | M64: =I64-L64 -> 0.6765545682 | N64: =N$8*(N$70/N$8)^(($A64-2019)/31) -> 2.985615105 | O64: =IF($AC62>0,O62+Q64+$AF64/100*(N64/$Z64*$AE64)+(1-$AF64/100)*(O62*$AD64/100), O62+Q64+S62*$AC62/100) -> 2.525440301 | P64: 0.8458693474 | R64: =R62+Q64 -> 1.782842534 | S64: =O64-R64 -> 0.7425977669 | T64: =T$8*(T$70/T$8)^(($A64-2019)/31) -> 4.100326473 | U64: =IF($AC62>0,U62+W64+$AF64/100*(T64/$Z64*$AE64)+(1-$AF64/100)*(U62*$AD64/100), U62+W64+Y62*$AC62/100) -> 1.05447685 | V64: 0.2571689979 | X64: =X62+W64 -> 1.069237492 | Y64: =U64-X64 -> -0.01476064168 | Z64: =B64+H64+N64+T64 -> 8.375966552 | AA64: =U64+O64+I64+C64 -> 5.111003788 | AB64: =AA64/Z64 -> 0.6101986864 | AC64: =Bsp.länder!Y38 -> -36.22241168 | AD64: =Bsp.länder!Z38 -> -11.72858987 | AE64: =Bsp.länder!AA38 -> -0.6837608785 | AF64: =Bsp.länder!AB38 -> 100 | AG64: 0 | AH64: mit Handel
A65: 2048 | B65: =B66 -> 0.3974962141 | C65: =C66-E66 -> 0.6767288544 | D65: 1.702478742 | F65: =F66-E66 -> 0.4575813475 | G65: =G66 -> 0.2191475069 | H65: =H66 -> 0.8958921422 | I65: =I66-K66 -> 0.4848288138 | J65: 0.5411687311 | L65: =L66-K66 -> 0.05333862664 | M65: =M66 -> 0.4314901872 | N65: =N66 -> 2.993721374 | O65: =O66-Q66 -> 2.256453481 | P65: 0.7537286202 | R65: =R66-Q66 -> 1.782842534 | S65: =S66 -> 0.4736109466 | T65: =T66 -> 4.148886198 | U65: =U66-W66 -> 1.059823511 | V65: 0.2554477178 | X65: =X66-W66 -> 1.069237492 | Y65: =Y66 -> -0.009413981282 | Z65: 8.435995929 | AA65: 4.477834659 | AB65: 0.5308009507 | AC65: -52.17473445 | AD65: -12.29047937 | AG65: 0 | AH65: ohne Handel für Grafik
A66: 2048 | B66: =B$8*(B$70/B$8)^(($A66-2019)/31) -> 0.3974962141 | C66: =IF($AC64>0,C64+E66+$AF66/100*(B66/$Z66*$AE66)+(1-$AF66/100)*(C64*$AD66/100), C64+E66+G64*$AC64/100) -> 0.6767288544 | D66: 1.702478742 | F66: =F64+E66 -> 0.4575813475 | G66: =C66-F66 -> 0.2191475069 | H66: =H$8*(H$70/H$8)^(($A66-2019)/31) -> 0.8958921422 | I66: =IF($AC64>0,I64+K66+$AF66/100*(H66/$Z66*$AE66)+(1-$AF66/100)*(I64*$AD66/100), I64+K66+M64*$AC64/100) -> 0.4848288138 | J66: 0.5411687311 | L66: =L64+K66 -> 0.05333862664 | M66: =I66-L66 -> 0.4314901872 | N66: =N$8*(N$70/N$8)^(($A66-2019)/31) -> 2.993721374 | O66: =IF($AC64>0,O64+Q66+$AF66/100*(N66/$Z66*$AE66)+(1-$AF66/100)*(O64*$AD66/100), O64+Q66+S64*$AC64/100) -> 2.256453481 | P66: 0.7537286202 | R66: =R64+Q66 -> 1.782842534 | S66: =O66-R66 -> 0.4736109466 | T66: =T$8*(T$70/T$8)^(($A66-2019)/31) -> 4.148886198 | U66: =IF($AC64>0,U64+W66+$AF66/100*(T66/$Z66*$AE66)+(1-$AF66/100)*(U64*$AD66/100), U64+W66+Y64*$AC64/100) -> 1.059823511 | V66: 0.2554477178 | X66: =X64+W66 -> 1.069237492 | Y66: =U66-X66 -> -0.009413981282 | Z66: =B66+H66+N66+T66 -> 8.435995929 | AA66: =U66+O66+I66+C66 -> 4.477834659 | AB66: =AA66/Z66 -> 0.5308009507 | AC66: =Bsp.länder!Y39 -> -52.17473445 | AD66: =Bsp.länder!Z39 -> -12.29047937 | AE66: =Bsp.länder!AA39 -> -0.6324807842 | AF66: =Bsp.länder!AB39 -> 100 | AG66: 0 | AH66: mit Handel
A67: 2049 | B67: =B68 -> 0.3992442634 | C67: =C68-E68 -> 0.5623892246 | D67: 1.408634453 | F67: =F68-E68 -> 0.4575813475 | G67: =G68 -> 0.1048078771 | H67: =H68 -> 0.8975180747 | I67: =I68-K68 -> 0.2596999545 | J67: 0.2893534535 | L67: =L68-K68 -> 0.05333862664 | M67: =M68 -> 0.2063613278 | N67: =N68 -> 3.001849653 | O67: =O68-Q68 -> 2.009348227 | P67: 0.6693700416 | R67: =R68-Q68 -> 1.782842534 | S67: =S68 -> 0.2265056929 | T67: =T68 -> 4.198021011 | U67: =U68-W68 -> 1.06473523 | V67: 0.2536278946 | X67: =X68-W68 -> 1.069237492 | Y67: =Y68 -> -0.004502261547 | Z67: 8.496633001 | AA67: 3.896172636 | AB67: 0.4585548929 | AC67: -99.5016356 | AD67: -12.87280121 | AG67: 0 | AH67: ohne Handel für Grafik
A68: 2049 | B68: =B$8*(B$70/B$8)^(($A68-2019)/31) -> 0.3992442634 | C68: =IF($AC66>0,C66+E68+$AF68/100*(B68/$Z68*$AE68)+(1-$AF68/100)*(C66*$AD68/100), C66+E68+G66*$AC66/100) -> 0.5623892246 | D68: 1.408634453 | F68: =F66+E68 -> 0.4575813475 | G68: =C68-F68 -> 0.1048078771 | H68: =H$8*(H$70/H$8)^(($A68-2019)/31) -> 0.8975180747 | I68: =IF($AC66>0,I66+K68+$AF68/100*(H68/$Z68*$AE68)+(1-$AF68/100)*(I66*$AD68/100), I66+K68+M66*$AC66/100) -> 0.2596999545 | J68: 0.2893534535 | L68: =L66+K68 -> 0.05333862664 | M68: =I68-L68 -> 0.2063613278 | N68: =N$8*(N$70/N$8)^(($A68-2019)/31) -> 3.001849653 | O68: =IF($AC66>0,O66+Q68+$AF68/100*(N68/$Z68*$AE68)+(1-$AF68/100)*(O66*$AD68/100), O66+Q68+S66*$AC66/100) -> 2.009348227 | P68: 0.6693700416 | R68: =R66+Q68 -> 1.782842534 | S68: =O68-R68 -> 0.2265056929 | T68: =T$8*(T$70/T$8)^(($A68-2019)/31) -> 4.198021011 | U68: =IF($AC66>0,U66+W68+$AF68/100*(T68/$Z68*$AE68)+(1-$AF68/100)*(U66*$AD68/100), U66+W68+Y66*$AC66/100) -> 1.06473523 | V68: 0.2536278946 | X68: =X66+W68 -> 1.069237492 | Y68: =U68-X68 -> -0.004502261547 | Z68: =B68+H68+N68+T68 -> 8.496633001 | AA68: =U68+O68+I68+C68 -> 3.896172636 | AB68: =AA68/Z68 -> 0.4585548929 | AC68: =Bsp.länder!Y40 -> -99.5016356 | AD68: =Bsp.länder!Z40 -> -12.87280121 | AE68: =Bsp.länder!AA40 -> -0.5810296746 | AF68: =Bsp.länder!AB40 -> 100 | AG68: 0 | AH68: mit Handel
A69: 2050 | B69: =B70 -> 0.401 | C69: =C70-E70 -> 0.4581036727 | D69: 1.142403174 | F69: =F70-E70 -> 0.4575813475 | G69: =G70 -> 0.0005223251502 | H69: =H70 -> 0.899146958 | I69: =I70-K70 -> 0.05436705804 | J69: 0.06046515261 | L69: =L70-K70 -> 0.05333862664 | M69: =M70 -> 0.001028431398 | N69: =N70 -> 3.01 | O69: =O70-Q70 -> 1.783971358 | P69: 0.5926815142 | R69: =R70-Q70 -> 1.782842534 | S69: =S70 -> 0.001128823742 | T69: =T70 -> 4.247737722 | U69: =U70-W70 -> 1.069215054 | V69: 0.2517140003 | X69: =X70-W70 -> 1.069237492 | Y69: =Y70 -> -2.243766884e-05 | Z69: =Z70 -> 8.55788468 | AA69: =AA70 -> 3.365657143 | AB69: =AB70 -> 0.3932814321 | AG69: 0 | AH69: ohne Handel für Grafik
A70: 2050 | B70: =Ausgangsdaten!E91 -> 0.401 | C70: =IF($AC68>0,C68+E70+$AF70/100*(B70/$Z70*$AE70)+(1-$AF70/100)*(C68*$AD70/100), C68+E70+G68*$AC68/100) -> 0.4581036727 | D70: 1.142403174 | F70: =F68+E70 -> 0.4575813475 | G70: =C70-F70 -> 0.0005223251502 | H70: =Ausgangsdaten!E94 -> 0.899146958 | I70: =IF($AC68>0,I68+K70+$AF70/100*(H70/$Z70*$AE70)+(1-$AF70/100)*(I68*$AD70/100), I68+K70+M68*$AC68/100) -> 0.05436705804 | J70: 0.06046515261 | L70: =L68+K70 -> 0.05333862664 | M70: =I70-L70 -> 0.001028431398 | N70: =Ausgangsdaten!E97 -> 3.01 | O70: =IF($AC68>0,O68+Q70+$AF70/100*(N70/$Z70*$AE70)+(1-$AF70/100)*(O68*$AD70/100), O68+Q70+S68*$AC68/100) -> 1.783971358 | P70: 0.5926815142 | R70: =R68+Q70 -> 1.782842534 | S70: =O70-R70 -> 0.001128823742 | T70: =Ausgangsdaten!E100 -> 4.247737722 | U70: =IF($AC68>0,U68+W70+$AF70/100*(T70/$Z70*$AE70)+(1-$AF70/100)*(U68*$AD70/100), U68+W70+Y68*$AC68/100) -> 1.069215054 | V70: 0.2517140003 | X70: =X68+W70 -> 1.069237492 | Y70: =U70-X70 -> -2.243766884e-05 | Z70: =B70+H70+N70+T70 -> 8.55788468 | AA70: =U70+O70+I70+C70 -> 3.365657143 | AB70: =AA70/Z70 -> 0.3932814321 | AD70: =Bsp.länder!Z41 -> -13.4755554 | AE70: =Bsp.länder!AA41 -> -0.5299387486 | AF70: =Bsp.länder!AB41 -> 100 | AG70: 0 | AH70: mit Handel
A71: ∑ | C71: =SUMIF($AH9:$AH70,"mit Handel",C9:C70) -> 98.73618054 | I71: =SUMIF($AH9:$AH70,"mit Handel",I9:I70) -> 169.9117563 | O71: =SUMIF($AH9:$AH70,"mit Handel",O9:O70) -> 233.2926666 | U71: =SUMIF($AH9:$AH70,"mit Handel",U9:U70) -> 35.4884999 | AA71: =SUMIF($AH9:$AH70,"mit Handel",AA9:AA70) -> 537.4291033
A73: Hinweis: ausgeblendete Zeilen dienen lediglich der korrekten Darstellung in den Grafiken. | X73: Ausgangsdaten | AA73: =ROUND(Ausgangsdaten!L58,0) -> 538
X74: Summe Länder | AA74: =C71+I71+O71+U71 -> 537.4291033
X75: Kontrollsumme | AA75: =AA71-AA74 -> 0

Sheet Em.pfade mEH
D33: Ausgangsdaten | E33: Zielwertsuche

Sheet pro Kopf mEH
D30: Ausgangsdaten | E30: Zielwertsuche

Sheet S1
A1: Szenario 1 | C1: Jährlich gleichbleibender Reduktionssatz | H1: Register Zielwertsuche | L1: Werte aus dem Register "Ausgangsdaten"
L2: Werte aus dem Register "Zielwertsuche"
A3: Konstanter jährlicher Reduktionssatz RSt; veränderbarer Wert Zielwertsuche | H3: =Zielwertsuche!C12 -> -0.0539905068 | L3: =IF(OR(P6<>H5,P8<>H6),"Mindestens ein Ziel wird nicht eingehalten","Alle Ziele werden eingehalten") -> Mindestens ein Ziel wird nicht eingehalten
A5: Budget 2020 - 2050 in Mrd. t | H5: =ROUND(Ausgangsdaten!L58,0) -> 538 | L5: Werte aus Szenario
A6: CO2-Emissionen im Jahr 2050 in Mrd. t (ZM) | F6: =CONCATENATE("(",(1-Ausgangsdaten!H14)*100," % der Emissionen in 1990)") -> (15 % der Emissionen in 1990) | H6: =ROUND(Ausgangsdaten!E70,1) -> 3.4 | L6: Summe CO2-Emissionen 2020 - 2050 in Mrd. t | P6: =ROUND(B42,0) -> 538
A8: Jahr | B8: CO2-Emissionen in Mrd. t | C8: abzubau-ende Menge in Mrd. t | D8: Verände- rungs- satz | E8: absolute Veränderung gegenüber Vorjahr in Mrd. t | F8: relative Veränderung gegenüber Vorjahr | G8: relative Veränderung gegenüber 1990 | H8: relative Veränderung gegenüber 2019 | I8: relative Veränderung gegenüber 2013 | J8: Anteil Verteilung pro Kopf mit der Regensburger Formel | L8: CO2-Emissionen in 2050 in Mrd. t | P8: =ROUND(B41,1) -> 6.7
A9: t | B9: E2019 = Plan-2019; Et = max (ZM;Et-1 * (1+RSt)) | C9: AMt = Et - ZM | D9: VSt = wenn (Et = ZM; -100%; (Et+1 - Et) / AMt) | E9: Et - Et-1 | F9: RSt | G9: =CONCATENATE("1990 = ",Ausgangsdaten!H12," Mrd. t") -> 1990 = 22,42 Mrd. t | I9: =IF(Ausgangsdaten!$K$14=Ausgangsdaten!$B$121,Ausgangsdaten!$G$36,Ausgangsdaten!$G$37) -> 33.60104395 | J9: Kt = (EBJ - Et) / (EBJ - ZM) | O9: Et gerundet auf eine Stelle
A10: 2019 | B10: =Ausgangsdaten!$L$62 -> 37.39723029 | C10: =B10-$H$6 -> 33.99723029 | D10: =IF(OR(B10=H$6,B11=0),-1,(B11-B10)/(B10-H$6)) -> -0.05938999734 | G10: =(B10-Ausgangsdaten!H12)/Ausgangsdaten!H12 -> 0.6680298968 | I10: =(B10-I9)/I9 -> 0.112978226 | O10: =ROUND(B10,1) -> 37.4
A11: 2020 | B11: =MAX($H$6,B10*(1+$H$3)) -> 35.37813487 | C11: 31.97813487 | D11: =IF(B11=H$6,-1,(B12-B11)/(B11-H$6)) -> -0.05973092049 | E11: =B11-B10 -> -2.019095416 | F11: =IF(B11=0,0,E11/B10) -> -0.0539905068 | G11: =(B11-Ausgangsdaten!$H$12)/Ausgangsdaten!$H$12 -> 0.5779721173 | H11: =(B11-$B$10)/$B$10 -> -0.0539905068 | I11: =(B11-$I$9)/$I$9 -> 0.05288796753 | J11: =($B$10-B11)/($B$10-$H$6) -> 0.05938999734 | O11: =ROUND(B11,1) -> 35.4
A12: =A11+1 -> 2021 | B12: =MAX($H$6,B11*(1+$H$3)) -> 33.46805144 | C12: 30.06805144 | D12: -0.06009558227 | E12: -1.910083431 | F12: =E12/B11 -> -0.0539905068 | G12: =(B12-Ausgangsdaten!$H$12)/Ausgangsdaten!$H$12 -> 0.492776603 | H12: =(B12-$B$10)/$B$10 -> -0.1050660388 | I12: =(B12-$I$9)/$I$9 -> -0.003957987449 | J12: =($B$10-B12)/($B$10-$H$6) -> 0.1155734986 | O12: 33.5
A13: 2022 | B13: 31.66109438 | C13: 28.26109438 | D13: -0.06048592841 | E13: -1.806957059 | F13: -0.0539905068 | G13: =(B13-Ausgangsdaten!$H$12)/Ausgangsdaten!$H$12 -> 0.4121808376 | H13: -0.1533839769 | I13: -0.05773480051 | J13: 0.1687236242 | O13: 31.7
A14: 2023 | B14: 29.95169585 | C14: 26.55169585 | D14: -0.06090410374 | E14: -1.709398532 | F14: -0.0539905068 | G14: =(B14-Ausgangsdaten!$H$12)/Ausgangsdaten!$H$12 -> 0.3359364785 | H14: -0.1990932051 | I14: -0.1086081762 | J14: 0.2190041476 | O14: 30
A15: 2024 | B15: 28.33458861 | C15: 24.93458861 | D15: -0.061352478 | E15: -1.617107239 | F15: -0.0539905068 | G15: =(B15-Ausgangsdaten!$H$12)/Ausgangsdaten!$H$12 -> 0.263808591 | H15: -0.2423345688 | I15: -0.1567348725 | J15: 0.26657 | O15: 28.3
A16: 2025 | B16: 26.80478981 | C16: 23.40478981 | D16: -0.06183367586 | E16: -1.529798799 | F16: -0.0539905068 | G16: =(B16-Ausgangsdaten!$H$12)/Ausgangsdaten!$H$12 -> 0.1955749247 | H16: -0.2832413094 | I16: -0.2022631841 | J16: 0.3115677479 | O16: 26.8
A17: 2026 | B17: 25.35758562 | C17: 21.95758562 | D17: -0.06235061189 | E17: -1.447204187 | F17: -0.0539905068 | G17: =(B17-Ausgangsdaten!$H$12)/Ausgangsdaten!$H$12 -> 0.1310252286 | H17: -0.3219394744 | I17: -0.2453333991 | J17: 0.3541360446 | O17: 25.4
A18: 2027 | B18: 23.98851672 | C18: 20.58851672 | D18: -0.06290653148 | E18: -1.369068899 | F18: -0.0539905068 | G18: =(B18-Ausgangsdaten!$H$12)/Ausgangsdaten!$H$12 -> 0.06996060325 | H18: -0.3585483058 | I18: -0.2860782313 | J18: 0.3944060575 | O18: 24
A19: 2028 | B19: 22.69336455 | C19: 19.29336455 | D19: -0.06350505895 | E19: -1.295152175 | F19: -0.0539905068 | G19: =(B19-Ausgangsdaten!$H$12)/Ausgangsdaten!$H$12 -> 0.01219288802 | H19: -0.3931806079 | I19: -0.3246232295 | J19: 0.4325018719 | O19: 22.7
A20: 2029 | B20: 21.4681383 | C20: 18.0681383 | D20: -0.06415025432 | E20: -1.225226253 | F20: -0.0539905068 | G20: =(B20-Ausgangsdaten!$H$12)/Ausgangsdaten!$H$12 -> -0.04245591899 | H20: -0.4259430944 | I20: -0.3610871636 | J20: 0.4685408739 | O20: 21.5
A21: 2030 | B21: 20.30906263 | C21: 16.90906263 | D21: -0.06484668063 | E21: -1.159075667 | F21: -0.0539905068 | G21: =(B21-Ausgangsdaten!$H$12)/Ausgangsdaten!$H$12 -> -0.09415420921 | H21: -0.4569367177 | I21: -0.3955823914 | J21: 0.502634112 | O21: 20.3
A22: 2031 | B22: 19.21256605 | C22: 15.81256605 | D22: -0.06559948429 | E22: -1.096496584 | F22: -0.0539905068 | G22: =(B22-Ausgangsdaten!$H$12)/Ausgangsdaten!$H$12 -> -0.1430612825 | H22: -0.4862569795 | I22: -0.4282152044 | J22: 0.5348866389 | O22: 19.2
A23: 2032 | B23: 18.17526987 | C23: 14.77526987 | D23: -0.06641449126 | E23: -1.037296178 | F23: -0.0539905068 | G23: =(B23-Ausgangsdaten!$H$12)/Ausgangsdaten!$H$12 -> -0.1893278382 | H23: -0.5139942256 | I23: -0.4590861553 | J23: 0.5653978356 | O23: 18.2
A24: 2033 | B24: 17.19397784 | C24: 13.79397784 | D24: -0.06729832311 | E24: -0.9812920315 | F24: -0.0539905068 | G24: =(B24-Ausgangsdaten!$H$12)/Ausgangsdaten!$H$12 -> -0.2330964391 | H24: -0.5402339236 | I24: -0.4882903679 | J24: 0.5942617172 | O24: 17.2
A25: 2034 | B25: 16.26566626 | C25: 12.86566626 | D25: -0.06825853766 | E25: -0.9283115774 | F25: -0.0539905068 | G25: =(B25-Ausgangsdaten!$H$12)/Ausgangsdaten!$H$12 -> -0.274501951 | H25: -0.5650569271 | I25: -0.5159178303 | J25: 0.6215672233 | O25: 16.3
A26: 2035 | B26: 15.38747469 | C26: 11.98747469 | D26: -0.06930380071 | E26: -0.8781915648 | F26: -0.0539905068 | G26: =(B26-Ausgangsdaten!$H$12)/Ausgangsdaten!$H$12 -> -0.3136719583 | H26: -0.588539724 | I26: -0.542053672 | J26: 0.6473984912 | O26: 15.4
A27: 2036 | B27: 14.55669714 | C27: 11.15669714 | D27: -0.07044409705 | E27: -0.8307775572 | F27: -0.0539905068 | G27: =(B27-Ausgangsdaten!$H$12)/Ausgangsdaten!$H$12 -> -0.3507271571 | H27: -0.6107546729 | I27: -0.5667784263 | J27: 0.6718351159 | O27: 14.6
A28: 2037 | B28: 13.77077368 | C28: 10.37077368 | D28: -0.07169099172 | E28: -0.7859234558 | F28: -0.0539905068 | G28: =(B28-Ausgangsdaten!$H$12)/Ausgangsdaten!$H$12 -> -0.385781727 | H28: -0.6317702254 | I28: -0.5901682786 | J28: 0.6949523948 | O28: 13.8
A29: 2038 | B29: 13.02728263 | C29: 9.627282631 | D29: -0.07305795607 | E29: -0.7434910501 | F29: -0.0539905068 | G29: =(B29-Ausgangsdaten!$H$12)/Ausgangsdaten!$H$12 -> -0.4189436828 | H29: -0.6516511375 | I29: -0.612295301 | J29: 0.7168215602 | O29: 13
A30: 2039 | B30: 12.32393304 | C30: 8.923933039 | D30: -0.07456077804 | E30: -0.7033495915 | F30: -0.0539905068 | G30: =(B30-Ausgangsdaten!$H$12)/Ausgangsdaten!$H$12 -> -0.4503152079 | H30: -0.6704586691 | I30: -0.6332276742 | J30: 0.7375099982 | O30: 12.3
A31: 2040 | B31: 11.65855765 | C31: 8.258557649 | D31: -0.07621808345 | E31: -0.6653753906 | F31: -0.0539905068 | G31: =(B31-Ausgangsdaten!$H$12)/Ausgangsdaten!$H$12 -> -0.4799929684 | H31: -0.6882507726 | I31: -0.6530298979 | J31: 0.757081457 | O31: 11.7
A32: 2041 | B32: 11.02910621 | C32: 7.629106213 | D32: -0.07805200471 | E32: -0.6294514361 | F32: -0.0539905068 | G32: =(B32-Ausgangsdaten!$H$12)/Ausgangsdaten!$H$12 -> -0.5080684116 | H32: -0.7050822714 | I32: -0.6717629896 | J32: 0.7755962427 | O32: 11
A33: 2042 | B33: 10.43363918 | C33: 7.033639179 | D33: -0.08008904818 | E33: -0.595467034 | F33: -0.0539905068 | G33: =(B33-Ausgangsdaten!$H$12)/Ausgangsdaten!$H$12 -> -0.5346280473 | H33: -0.721005029 | I33: -0.6894846721 | J33: 0.7931114059 | O33: 10.4
A34: 2043 | B34: 9.870321712 | C34: 6.470321712 | D34: -0.08236123261 | E34: -0.5633174671 | F34: -0.0539905068 | G34: =(B34-Ausgangsdaten!$H$12)/Ausgangsdaten!$H$12 -> -0.5597537149 | H34: -0.7360681089 | I34: -0.7062495521 | J34: 0.8096809164 | O34: 9.9
A35: 2044 | B35: 9.33741804 | C35: 5.93741804 | D35: -0.08490760274 | E35: -0.5329036715 | F35: -0.0539905068 | G35: =(B35-Ausgangsdaten!$H$12)/Ausgangsdaten!$H$12 -> -0.583522835 | H35: -0.7503179255 | I35: -0.7221092876 | J35: 0.8253558308 | O35: 9.3
A36: 2045 | B36: 8.833286108 | C36: 5.433286108 | D36: -0.08777627098 | E36: -0.5041319322 | F36: -0.0539905068 | G36: =(B36-Ausgangsdaten!$H$12)/Ausgangsdaten!$H$12 -> -0.6060086482 | H36: -0.7637983872 | I36: -0.737112748 | J36: 0.8401844485 | O36: 8.8
A37: 2046 | B37: 8.356372514 | C37: 4.956372514 | D37: -0.09102721513 | E37: -0.4769135937 | F37: -0.0539905068 | G37: =(B37-Ausgangsdaten!$H$12)/Ausgangsdaten!$H$12 -> -0.6272804409 | H37: -0.776551032 | I37: -0.751306164 | J37: 0.8542124617 | O37: 8.4
A38: 2047 | B38: 7.905207727 | C38: 4.505207727 | D38: -0.09473618031 | E38: -0.4511647871 | F38: -0.0539905068 | G38: =(B38-Ausgangsdaten!$H$12)/Ausgangsdaten!$H$12 -> -0.6474037588 | H38: -0.788615155 | I38: -0.7647332702 | J38: 0.8674830953 | O38: 7.9
A39: 2048 | B39: 7.478401555 | C39: 4.078401555 | D39: -0.09900022952 | E39: -0.4268061716 | F39: -0.0539905068 | G39: =(B39-Ausgangsdaten!$H$12)/Ausgangsdaten!$H$12 -> -0.6664406086 | H39: -0.8000279299 | I39: -0.7774354402 | J39: 0.8800372407 | O39: 7.5
A40: 2049 | B40: 7.074638865 | C40: 3.674638865 | D40: -0.1039458167 | E40: -0.4037626901 | F40: -0.0539905068 | G40: =(B40-Ausgangsdaten!$H$12)/Ausgangsdaten!$H$12 -> -0.6844496492 | H40: -0.8108245233 | I40: -0.7894518136 | J40: 0.8919135814 | O40: 7.1
A41: 2050 | B41: 6.692675528 | C41: 3.292675528 | E41: -0.3819633378 | F41: -0.0539905068 | G41: =(B41-Ausgangsdaten!$H$12)/Ausgangsdaten!$H$12 -> -0.7014863725 | H41: -0.8210382032 | I41: -0.8008194169 | J41: 0.9031487124 | O41: 6.7
A42: Gesamt | B42: =SUM(B11:B41) -> 537.9982891

Sheet S2
A1: Szenario 2 | C1: Die jährlichen Reduktionssätze werden mit dem Eskalationsfaktor ES_RS ermittelt, der wiederum mit der Zielwertsuche so bestimmt wird, dass er das Budget einhält. | L1: Werte aus dem Register "Ausgangsdaten"
L2: Werte aus dem Register "Zielwertsuche"
A3: Register Zielwertsuche | L3: =IF(OR(M6<>H5,M8<>H6),"Mindestens ein Ziel wird nicht eingehalten","Alle Ziele werden eingehalten") -> Alle Ziele werden eingehalten
A5: Budget 2020 - 2050 in Mrd. t | H5: =ROUND(Ausgangsdaten!L58,0) -> 538 | L5: Werte aus Szenario
A6: CO2-Emissionen im Jahr 2050 in Mrd. t (ZM) | F6: =CONCATENATE("(",(1-Ausgangsdaten!H14)*100," % der Emissionen in 1990)") -> (15 % der Emissionen in 1990) | H6: =ROUND(Ausgangsdaten!E70,1) -> 3.4 | L6: Summe CO2-Emissionen 2020 - 2050 in Mrd. t | M6: =ROUND(B44,0) -> 538
A7: Reduktionssatz für 2020 (RS20); Vorgabewert Register "Zielwertsuche" | H7: =Zielwertsuche!D9 -> -0.03716
A8: Eskalationssatz auf RS_t (ES_RS); veränderbarer Wert "Zielwertsuche" | H8: =Zielwertsuche!D12 -> 0.04224082673 | L8: CO2-Emissionen in 2050 in Mrd. t | M8: =ROUND(B43,1) -> 3.4
A10: Jahr | B10: CO2-Emissionen in Mrd. t | C10: Basis für Verände-rungs- satz in Mrd. t | D10: Verände- rungs- satz | E10: absolute Veränderung gegenüber Vorjahr in Mrd. t | F10: relative Veränderung gegenüber Vorjahr | H10: relative Veränderung gegenüber 1990 | I10: relative Veränderung gegenüber 2019 | J10: relative Veränderung gegenüber 2013 | K10: Anteil Verteilung pro Kopf mit der Regensburger Formel
A11: t | B11: E2019 = Plan-2019; Et = Et-1 * (1 + RSt) | C11: AMt = Et - ZM | D11: VSt = wenn (Et = ZM; -100%; (Et+1 - Et) / AMt) | E11: Et - Et-1 | F11: RSt = RSt-1 * (1+ESRS) | G11: tats. RSt | H11: =CONCATENATE("1990 = ",Ausgangsdaten!H12," Mrd. t") -> 1990 = 22,42 Mrd. t | J11: =IF(Ausgangsdaten!$K$14=Ausgangsdaten!$B$121,Ausgangsdaten!$G$36,Ausgangsdaten!$G$37) -> 33.60104395 | K11: Kt = (EBJ - Et) / (EBJ - ZM) | O11: Et gerundet auf eine Stelle
A12: 2019 | B12: =Ausgangsdaten!$L$62 -> 37.39723029 | C12: =B12-$H$6 -> 33.99723029 | D12: =IF(B12=$H$6,-1,(B13-B12)/(B12-$H$6)) -> -0.04087630274 | H12: =(B12-Ausgangsdaten!H12)/Ausgangsdaten!H12 -> 0.6680298968 | J12: =(B12-J11)/J11 -> 0.112978226 | O12: =ROUND(B12,1) -> 37.4
A13: 2020 | B13: =MAX($H$6,B12*(1+F13)) -> 36.00754921 | C13: 32.60754921 | D13: =IF(B13=$H$6,-1,(B14-B13)/(B13-$H$6)) -> -0.0427680246 | E13: =B13-B12 -> -1.389681077 | F13: =H7 -> -0.03716 | G13: =B13/B12-1 -> -0.03716 | H13: =(B13-Ausgangsdaten!$H$12)/Ausgangsdaten!$H$12 -> 0.6060459059 | I13: =(B13-$B$12)/$B$12 -> -0.03716 | J13: =(B13-$J$11)/$J$11 -> 0.07161995513 | K13: =($B$12-B13)/($B$12-$H$6) -> 0.04087630274 | O13: =ROUND(B13,1) -> 36
A14: =A13+1 -> 2021 | B14: =MAX($H$6,B13*(1+F14)) -> 34.61298874 | C14: 31.21298874 | D14: -0.04476263187 | E14: =B14-B13 -> -1.394560467 | F14: =MAX(-1,F13*(1+$H$8)) -> -0.03872966912 | G14: =B14/B13-1 -> -0.03872966912 | H14: =(B14-Ausgangsdaten!$H$12)/Ausgangsdaten!$H$12 -> 0.5438442793 | I14: -0.07445047462 | J14: =(B14-$J$11)/$J$11 -> 0.03011646885 | K14: =($B$12-B14)/($B$12-$H$6) -> 0.08189612862 | O14: 34.6
A15: 2022 | B15: 33.21581322 | C15: 29.81581322 | D15: -0.0468681898 | E15: -1.397175525 | F15: =MAX(-1,F14*(1+$H$8)) -> -0.04036564236 | G15: -0.04036564236 | H15: =(B15-Ausgangsdaten!$H$12)/Ausgangsdaten!$H$12 -> 0.4815260133 | I15: -0.1118108757 | J15: -0.01146484413 | K15: 0.1229928742 | O15: 33.2
A16: 2023 | B16: 31.81840002 | C16: 28.41840002 | D16: -0.04909381087 | E16: -1.397413193 | F16: -0.04207072047 | G16: -0.04207072047 | H16: =(B16-Ausgangsdaten!$H$12)/Ausgangsdaten!$H$12 -> 0.4191971465 | I16: -0.1491776321 | J16: -0.05305323034 | K16: 0.1640966107 | O16: 31.8
A17: 2024 | B17: 30.42323247 | C17: 27.02323247 | D17: -0.05144985686 | E17: -1.395167556 | F17: -0.04384782248 | G17: -0.04384782248 | H17: =(B17-Ausgangsdaten!$H$12)/Ausgangsdaten!$H$12 -> 0.356968442 | I17: -0.1864843403 | J17: -0.0945747842 | K17: 0.2051342936 | O17: 30.4
A18: 2025 | B18: 29.03289103 | C18: 25.63289103 | D18: -0.05394819099 | E18: -1.390341443 | F18: -0.04569999075 | G18: -0.04569999075 | H18: =(B18-Ausgangsdaten!$H$12)/Ausgangsdaten!$H$12 -> 0.2949549967 | I18: -0.2236619984 | J18: -0.1359527082 | K18: 0.2460300204 | O18: 29
A19: 2026 | B19: 27.65004293 | C19: 24.25004293 | D19: -0.05660249475 | E19: -1.382848101 | F19: -0.04763039615 | G19: -0.04763039615 | H19: =(B19-Ausgangsdaten!$H$12)/Ausgangsdaten!$H$12 -> 0.2332757772 | I19: -0.260639285 | J19: -0.177107623 | K19: 0.2867053368 | O19: 27.7
A20: 2027 | B20: 26.27743 | C20: 22.87743 | D20: -0.05942866973 | E20: -1.372612927 | F20: -0.04964234346 | G20: -0.04964234346 | H20: =(B20-Ausgangsdaten!$H$12)/Ausgangsdaten!$H$12 -> 0.1720530775 | I20: -0.2973428835 | J20: -0.217957929 | K20: 0.3270795943 | O20: 26.3
A21: 2028 | B21: 24.91785477 | C21: 21.51785477 | D21: -0.06244535171 | E21: -1.359575232 | F21: -0.05173927708 | G21: -0.05173927708 | H21: =(B21-Ausgangsdaten!$H$12)/Ausgangsdaten!$H$12 -> 0.1114118986 | I21: -0.3336978548 | J21: -0.2584202204 | K21: 0.3670703588 | O21: 24.9
A22: 2029 | B22: 23.57416476 | C22: 20.17416476 | D22: -0.06567457488 | E22: -1.343690009 | F22: -0.05392478692 | G22: -0.05392478692 | H22: =(B22-Ausgangsdaten!$H$12)/Ausgangsdaten!$H$12 -> 0.05147924877 | I22: -0.369628056 | J22: -0.298409752 | K22: 0.4065938729 | O22: 23.6
A23: 2030 | B23: 22.24923506 | C23: 18.84923506 | D23: -0.06914263947 | E23: -1.324929694 | F23: -0.0562026145 | G23: -0.0562026145 | H23: =(B23-Ausgangsdaten!$H$12)/Ausgangsdaten!$H$12 -> -0.007616634106 | I23: -0.4050566073 | J23: -0.3378409582 | K23: 0.445565568 | O23: 22.2
A24: 2031 | B24: 20.9459492 | C24: 17.5459492 | D24: -0.07288125796 | E24: -1.303285864 | F24: -0.0585766594 | G24: -0.0585766594 | H24: =(B24-Ausgangsdaten!$H$12)/Ausgangsdaten!$H$12 -> -0.06574713653 | I24: -0.4399064038 | J24: -0.3766280229 | K24: 0.483900628 | O24: 20.9
A25: 2032 | B25: 19.66717835 | C25: 16.26717835 | D25: -0.07692908929 | E25: -1.27877085 | F25: -0.06105098592 | G25: -0.06105098592 | H25: =(B25-Ausgangsdaten!$H$12)/Ausgangsdaten!$H$12 -> -0.1227841949 | I25: -0.4741006701 | J25: -0.4146854967 | K25: 0.5215145995 | O25: 19.7
A26: 2033 | B26: 18.41575913 | C26: 15.01575913 | D26: -0.08133382134 | E26: -1.251419216 | F26: -0.06362983004 | G26: -0.06362983004 | H26: =(B26-Ausgangsdaten!$H$12)/Ausgangsdaten!$H$12 -> -0.1786012875 | I26: -0.507563555 | J26: -0.4519289591 | K26: 0.5583240456 | O26: 18.4
A27: 2034 | B27: 17.19447006 | C27: 13.79447006 | D27: -0.08615504236 | E27: -1.221289071 | F27: -0.06631760667 | G27: -0.06631760667 | H27: =(B27-Ausgangsdaten!$H$12)/Ausgangsdaten!$H$12 -> -0.2330744843 | I27: -0.5402207615 | J27: -0.4882757188 | K27: 0.5942472388 | O27: 17.2
A28: 2035 | B28: 16.00600691 | C28: 12.60600691 | D28: -0.09146827031 | E28: -1.188463153 | F28: -0.0691189172 | G28: -0.0691189172 | H28: =(B28-Ausgangsdaten!$H$12)/Ausgangsdaten!$H$12 -> -0.2860835455 | I28: -0.5720002046 | J28: -0.523645547 | K28: 0.6292048851 | O28: 16
A29: 2036 | B29: 14.85295726 | C29: 11.45295726 | D29: -0.0973707197 | E29: -1.153049648 | F29: -0.07203855741 | G29: -0.07203855741 | H29: =(B29-Ausgangsdaten!$H$12)/Ausgangsdaten!$H$12 -> -0.337513057 | I29: -0.6028326925 | J29: -0.5579614346 | K29: 0.6631208729 | O29: 14.9
A30: 2037 | B30: 13.73777457 | C30: 10.33777457 | D30: -0.1039897414 | E30: -1.115182691 | F30: -0.07508152563 | G30: -0.07508152563 | H30: =(B30-Ausgangsdaten!$H$12)/Ausgangsdaten!$H$12 -> -0.3872535874 | I30: -0.6326526198 | J30: -0.5911503645 | K30: 0.695923036 | O30: 13.7
A31: 2038 | B31: 12.66275207 | C31: 9.262752067 | D31: -0.1114954938 | E31: -1.075022504 | F31: -0.07825303134 | G31: -0.07825303134 | H31: =(B31-Ausgangsdaten!$H$12)/Ausgangsdaten!$H$12 -> -0.4352028516 | I31: -0.6613986659 | J31: -0.6231440878 | K31: 0.7275439208 | O31: 12.7
A32: 2039 | B32: 11.62999695 | C32: 8.229996951 | D32: -0.1201205354 | E32: -1.032755116 | F32: -0.08155850408 | G32: -0.08155850408 | H32: =(B32-Ausgangsdaten!$H$12)/Ausgangsdaten!$H$12 -> -0.4812668621 | I32: -0.6890144842 | J32: -0.6538798923 | K32: 0.7579215459 | O32: 11.6
A33: 2040 | B33: 10.64140531 | C33: 7.241405311 | D33: -0.1301911739 | E33: -0.9885916404 | F33: -0.08500360272 | G33: -0.08500360272 | H33: =(B33-Ausgangsdaten!$H$12)/Ausgangsdaten!$H$12 -> -0.5253610477 | I33: -0.7154493734 | J33: -0.6833013484 | K33: 0.7870001394 | O33: 10.6
A34: 2041 | B34: 9.698638252 | C34: 6.298638252 | D34: -0.1421796989 | E34: -0.9427670582 | F34: -0.08859422517 | G34: -0.08859422517 | H34: =(B34-Ausgangsdaten!$H$12)/Ausgangsdaten!$H$12 -> -0.5674113179 | I34: -0.7406589157 | J34: -0.7113590201 | K34: 0.8147308413 | O34: 9.7
A35: 2042 | B35: 8.803099762 | C35: 5.403099762 | D35: -0.1567957238 | E35: -0.8955384903 | F35: -0.09233651849 | G35: -0.09233651849 | H35: =(B35-Ausgangsdaten!$H$12)/Ausgangsdaten!$H$12 -> -0.6073550508 | I35: -0.7646055685 | J35: -0.7380111232 | K35: 0.8410723545 | O35: 8.8
A36: 2043 | B36: 7.955916824 | C36: 4.555916824 | D36: -0.1751556318 | E36: -0.8471829379 | F36: -0.09623688936 | G36: -0.09623688936 | H36: =(B36-Ausgangsdaten!$H$12)/Ausgangsdaten!$H$12 -> -0.6451419793 | I36: -0.7872591964 | J36: -0.7632241178 | K36: 0.8659915297 | O36: 8
A37: 2044 | B37: 7.157922335 | C37: 3.757922335 | D37: -0.1991209343 | E37: -0.7979944897 | F37: -0.1003020151 | G37: -0.1003020151 | H37: =(B37-Ausgangsdaten!$H$12)/Ausgangsdaten!$H$12 -> -0.6807349539 | I37: -0.8085975277 | J37: -0.7869732159 | K37: 0.889463868 | O37: 7.2
A38: 2045 | B38: 6.409641328 | C38: 3.009641328 | D38: -0.232041042 | E38: -0.7482810063 | F38: -0.1045388552 | G38: -0.1045388552 | H38: =(B38-Ausgangsdaten!$H$12)/Ausgangsdaten!$H$12 -> -0.7141105563 | I38: -0.828606523 | J38: -0.809242792 | K38: 0.9114739259 | O38: 6.4
A39: 2046 | B39: 5.711281018 | C39: 2.311281018 | D39: -0.2806045311 | E39: -0.6983603099 | F39: -0.1089546628 | G39: -0.1089546628 | H39: =(B39-Ausgangsdaten!$H$12)/Ausgangsdaten!$H$12 -> -0.7452595442 | I39: -0.8472806415 | J39: -0.8300266793 | K39: 0.9320156084 | O39: 5.7
A40: 2047 | B40: 5.062725092 | C40: 1.662725092 | D40: -0.3603677173 | E40: -0.6485559265 | F40: -0.1135569979 | G40: -0.1135569979 | H40: =(B40-Ausgangsdaten!$H$12)/Ausgangsdaten!$H$12 -> -0.7741871056 | I40: -0.8646229934 | J40: -0.8493283393 | K40: 0.9510923367 | O40: 5.1
A41: 2048 | B41: 4.463532646 | C41: 1.063532646 | D41: -0.51769975 | E41: -0.5991924459 | F41: -0.1183537393 | G41: -0.1183537393 | H41: =(B41-Ausgangsdaten!$H$12)/Ausgangsdaten!$H$12 -> -0.8009129061 | I41: -0.8806453683 | J41: -0.8671608938 | K41: 0.9687170797 | O41: 4.5
A42: 2049 | B42: 3.912942061 | C42: 0.512942061 | D42: -0.9807385613 | E42: -0.550590585 | F42: -0.1233530991 | G42: -0.1233530991 | H42: =(B42-Ausgangsdaten!$H$12)/Ausgangsdaten!$H$12 -> -0.8254709161 | I42: -0.8953681321 | J42: -0.8835470092 | K42: 0.9849122397 | O42: 3.9
A43: 2050 | B43: 3.409880002 | C43: 0.009880002081 | E43: -0.5030620589 | F43: -0.128563636 | G43: -0.128563636 | H43: =(B43-Ausgangsdaten!$H$12)/Ausgangsdaten!$H$12 -> -0.8479090097 | I43: -0.9088199854 | J43: -0.8985186291 | K43: 0.999709388 | O43: 3.4
A44: Gesamt | B44: =SUM(B13:B43) -> 538.1194313

Sheet S3
A1: Szenario 3 | C1: Linearer Anstieg des jährlichen Reduktionssatzes RSt. Im Register "Zielwertsuche" wird der Reduktionssatz 2020 (RS20) vorgegeben und der jährlich gleichbleibende Abschlag, der das Budget einhält, über eine Zielwertsuche bestimmt. | L1: Werte aus dem Register "Ausgangsdaten"
L2: Werte aus dem Register "Zielwertsuche"
A3: Register Zielwertsuche | L3: =IF(OR(M6<>H5,M8<>H6),"Mindestens ein Ziel wird nicht eingehalten","Alle Ziele werden eingehalten") -> Alle Ziele werden eingehalten
A5: Budget 2020 - 2050 in Mrd. t | H5: =ROUND(Ausgangsdaten!L58,0) -> 538 | L5: Werte aus Szenario
A6: CO2-Emissionen im Jahr 2050 in Mrd. t (ZM) | F6: =CONCATENATE("(",(1-Ausgangsdaten!H14)*100," % der Emissionen in 1990)") -> (15 % der Emissionen in 1990) | H6: =ROUND(Ausgangsdaten!E70,1) -> 3.4 | L6: Summe CO2-Emissionen 2020 - 2050 in Mrd. t | M6: =ROUND(B44,0) -> 538
A7: Reduktionssatz für 2020 (RS20); Vorgabewert Register "Zielwertsuche" | H7: =Zielwertsuche!E9 -> -0.0309
A8: Jährlicher Abschlag (A) auf RSt; veränderb. Wert Zielwertsuche | H8: =Zielwertsuche!E12 -> -0.002876670915 | L8: CO2-Emissionen in 2050 in Mrd. t | M8: =ROUND(B43,1) -> 3.4
A10: Jahr | B10: CO2-Emissionen in Mrd. t | C10: abzubau-ende Menge in Mrd. t | D10: Verände- rungs- satz | E10: absolute Veränderung gegenüber Vorjahr in Mrd. t | F10: relative Veränderung gegenüber Vorjahr | H10: relative Veränderung gegenüber 1990 | I10: relative Veränderung gegenüber 2019 | J10: relative Veränderung gegenüber 2013 | K10: Anteil Verteilung pro Kopf mit der Regensburger Formel
A11: t | B11: E2019 = Plan-2019; Et = max (ZM; Et-1 * (1 + RSt)) | C11: AMt = Et - ZM | D11: VSt = wenn (Et = ZM; -100%; (Et+1 - Et) / AMt) | E11: Et - Et-1 | F11: RSt = RSt-1 + A | G11: tats. RSt | H11: =CONCATENATE("1990 = ",Ausgangsdaten!H12," Mrd. t") -> 1990 = 22,42 Mrd. t | J11: =IF(Ausgangsdaten!$K$14=Ausgangsdaten!$B$121,Ausgangsdaten!$G$36,Ausgangsdaten!$G$37) -> 33.60104395 | K11: Kt = (EBJ - Et) / (EBJ - ZM) | O11: Et gerundet auf eine Stelle
A12: 2019 | B12: =Ausgangsdaten!$L$62 -> 37.39723029 | C12: =B12-$H$6 -> 33.99723029 | D12: =IF(B12=$H$6,-1,(B13-B12)/(B12-$H$6)) -> -0.03399025174 | H12: =(B12-Ausgangsdaten!H12)/Ausgangsdaten!H12 -> 0.6680298968 | J12: =(B12-J11)/J11 -> 0.112978226 | O12: =ROUND(B12,1) -> 37.4
A13: 2020 | B13: =MAX($H$6,B12*(1+F13)) -> 36.24165587 | C13: 32.84165587 | D13: =IF(B13=$H$6,-1,(B14-B13)/(B13-$H$6)) -> -0.03727347027 | E13: =B13-B12 -> -1.155574416 | F13: =H7 -> -0.0309 | G13: =B13/B12-1 -> -0.0309 | H13: =(B13-Ausgangsdaten!$H$12)/Ausgangsdaten!$H$12 -> 0.616487773 | I13: =(B13-$B$12)/$B$12 -> -0.0309 | J13: =(B13-$J$11)/$J$11 -> 0.07858719883 | K13: =($B$12-B13)/($B$12-$H$6) -> 0.03399025174 | O13: =ROUND(B13,1) -> 36.2
A14: =A13+1 -> 2021 | B14: =MAX($H$6,B13*(1+F14)) -> 35.01753339 | C14: 31.61753339 | D14: -0.04059486885 | E14: -1.224122484 | F14: =F13+$H$8 -> -0.03377667091 | G14: =B14/B13-1 -> -0.03377667091 | H14: =(B14-Ausgangsdaten!$H$12)/Ausgangsdaten!$H$12 -> 0.5618881975 | I14: -0.06363297178 | J14: =(B14-$J$11)/$J$11 -> 0.04215611396 | K14: =($B$12-B14)/($B$12-$H$6) -> 0.06999678737 | O14: 35
A15: 2022 | B15: 33.73402377 | C15: 30.33402377 | D15: -0.04396074849 | E15: -1.283509621 | F15: =F14+$H$8 -> -0.03665334183 | G15: -0.03665334183 | H15: =(B15-Ausgangsdaten!$H$12)/Ausgangsdaten!$H$12 -> 0.5046397755 | I15: -0.09795395255 | J15: 0.003957609675 | K15: 0.1077501458 | O15: 33.7
A16: 2023 | B16: 32.40051738 | C16: 29.00051738 | D16: -0.04737841305 | E16: -1.333506389 | F16: -0.03953001274 | G16: -0.03953001274 | H16: =(B16-Ausgangsdaten!$H$12)/Ausgangsdaten!$H$12 -> 0.445161346 | I16: -0.1336118443 | J16: -0.03572884743 | K16: 0.1469741172 | O16: 32.4
A17: 2024 | B17: 31.02651889 | C17: 27.62651889 | D17: -0.0508563841 | E17: -1.373998491 | F17: -0.04240668366 | G17: -0.04240668366 | H17: =(B17-Ausgangsdaten!$H$12)/Ausgangsdaten!$H$12 -> 0.3838768459 | I17: -0.1703524927 | J17: -0.07662038916 | K17: 0.1873891299 | O17: 31
A18: 2025 | B18: 29.62153403 | C18: 26.22153403 | D18: -0.05440466726 | E18: -1.404984856 | F18: -0.04528335457 | G18: -0.04528335457 | H18: =(B18-Ausgangsdaten!$H$12)/Ausgangsdaten!$H$12 -> 0.32121026 | I18: -0.207921715 | J18: -0.1184341155 | K18: 0.2287155804 | O18: 29.6
A19: 2026 | B19: 28.1949602 | C19: 24.7949602 | D19: -0.05803508504 | E19: -1.426573834 | F19: -0.04816002549 | G19: -0.04816002549 | H19: =(B19-Ausgangsdaten!$H$12)/Ausgangsdaten!$H$12 -> 0.2575807402 | I19: -0.2460682254 | J19: -0.160890351 | K19: 0.2706770526 | O19: 28.2
A20: 2027 | B20: 26.75598257 | C20: 23.35598257 | D20: -0.0617616969 | E20: -1.438977624 | F20: -0.0510366964 | G20: -0.0510366964 | H20: =(B20-Ausgangsdaten!$H$12)/Ausgangsdaten!$H$12 -> 0.1933979738 | I20: -0.2845464125 | J20: -0.2037157354 | K20: 0.3130033719 | O20: 26.8
A21: 2028 | B21: 25.31347746 | C21: 21.91347746 | D21: -0.06560133395 | E21: -1.442505116 | F21: -0.05391336732 | G21: -0.05391336732 | H21: =(B21-Ausgangsdaten!$H$12)/Ausgangsdaten!$H$12 -> 0.1290578705 | I21: -0.3231189245 | J21: -0.2466461014 | K21: 0.3554334494 | O21: 25.3
A22: 2029 | B22: 23.8759241 | C22: 20.4759241 | D22: -0.06957428695 | E22: -1.437553353 | F22: -0.05679003823 | G22: -0.05679003823 | H22: =(B22-Ausgangsdaten!$H$12)/Ausgangsdaten!$H$12 -> 0.06493863083 | I22: -0.3615590267 | J22: -0.2894290981 | K22: 0.3977178749 | O22: 23.9
A23: 2030 | B23: 22.45132628 | C23: 19.05132628 | D23: -0.07370520098 | E23: -1.424597819 | F23: -0.05966670915 | G23: -0.05966670915 | H23: =(B23-Ausgangsdaten!$H$12)/Ausgangsdaten!$H$12 -> 0.001397247284 | I23: -0.3996526986 | J23: -0.3318265254 | K23: 0.4396212243 | O23: 22.5
A24: 2031 | B24: 21.04714445 | C24: 17.64714445 | D24: -0.07802425298 | E24: -1.404181833 | F24: -0.06254338006 | G24: -0.06254338006 | H24: =(B24-Ausgangsdaten!$H$12)/Ausgangsdaten!$H$12 -> -0.06123352135 | I24: -0.437200448 | J24: -0.373616353 | K24: 0.4809240546 | O24: 21
A25: 2032 | B25: 19.67023919 | C25: 16.27023919 | D25: -0.08256872194 | E25: -1.376905263 | F25: -0.06542005098 | G25: -0.06542005098 | H25: =(B25-Ausgangsdaten!$H$12)/Ausgangsdaten!$H$12 -> -0.1226476722 | I25: -0.4740188234 | J25: -0.4145944031 | K25: 0.5214245675 | O25: 19.7
A26: 2033 | B26: 18.32682633 | C26: 14.92682633 | D26: -0.08738511325 | E26: -1.343412855 | F26: -0.06829672189 | G26: -0.06829672189 | H26: =(B26-Ausgangsdaten!$H$12)/Ausgangsdaten!$H$12 -> -0.1825679602 | I26: -0.5099416135 | J26: -0.4545756864 | K26: 0.5609399293 | O26: 18.3
A27: 2034 | B27: 17.02244392 | C27: 13.62244392 | D27: -0.092532079 | E27: -1.30438241 | F27: -0.07117339281 | G27: -0.07117339281 | H27: =(B27-Ausgangsdaten!$H$12)/Ausgangsdaten!$H$12 -> -0.2407473718 | I27: -0.5448207316 | J27: -0.4933953853 | K27: 0.5993072433 | O27: 17
A28: 2035 | B28: 15.76193087 | C28: 12.36193087 | D28: -0.09808450526 | E28: -1.260513057 | F28: -0.07405006372 | G28: -0.07405006372 | H28: =(B28-Ausgangsdaten!$H$12)/Ausgangsdaten!$H$12 -> -0.2969700773 | I28: -0.5785267854 | J28: -0.5309094893 | K28: 0.6363841771 | O28: 15.8
A29: 2036 | B29: 14.54941699 | C29: 11.14941699 | D29: -0.1041393488 | E29: -1.212513873 | F29: -0.07692673464 | G29: -0.07692673464 | H29: =(B29-Ausgangsdaten!$H$12)/Ausgangsdaten!$H$12 -> -0.3510518736 | I29: -0.6109493435 | J29: -0.5669950905 | K29: 0.6720492552 | O29: 14.5
A30: 2037 | B30: 13.38832397 | C30: 9.988323968 | D30: -0.1108241636 | E30: -1.161093025 | F30: -0.07980340555 | G30: -0.07980340555 | H30: =(B30-Ausgangsdaten!$H$12)/Ausgangsdaten!$H$12 -> -0.4028401441 | I30: -0.6419969109 | J30: -0.6015503569 | K30: 0.7062018322 | O30: 13.4
A31: 2038 | B31: 12.28137632 | C31: 8.881376319 | D31: -0.118309885 | E31: -1.106947649 | F31: -0.08268007647 | G31: -0.08268007647 | H31: =(B31-Ausgangsdaten!$H$12)/Ausgangsdaten!$H$12 -> -0.4522133667 | I31: -0.6715966336 | J31: -0.6344942039 | K31: 0.7387617684 | O31: 12.3
A32: 2039 | B32: 11.23062171 | C32: 7.830621708 | D32: -0.1268305767 | E32: -1.050754611 | F32: -0.08555674738 | G32: -0.08555674738 | H32: =(B32-Ausgangsdaten!$H$12)/Ausgangsdaten!$H$12 -> -0.4990802093 | I32: -0.6996937575 | J32: -0.665765691 | K32: 0.7696688336 | O32: 11.2
A33: 2040 | B33: 10.23745944 | C33: 6.83745944 | D33: -0.1367150099 | E33: -0.9931622672 | F33: -0.0884334183 | G33: -0.0884334183 | H33: =(B33-Ausgangsdaten!$H$12)/Ausgangsdaten!$H$12 -> -0.5433782587 | I33: -0.7262508651 | J33: -0.6953231734 | K33: 0.7988818682 | O33: 10.2
A34: 2041 | B34: 9.302676106 | C34: 5.902676106 | D34: -0.1484392684 | E34: -0.9347833348 | F34: -0.09131008921 | G34: -0.09131008921 | H34: =(B34-Ausgangsdaten!$H$12)/Ausgangsdaten!$H$12 -> -0.5850724306 | I34: -0.751246923 | J34: -0.7231432416 | K34: 0.8263777356 | O34: 9.3
A35: 2042 | B35: 8.426487183 | C35: 5.026487183 | D35: -0.1627187592 | E35: -0.8761889229 | F35: -0.09418676013 | G35: -0.09418676013 | H35: =(B35-Ausgangsdaten!$H$12)/Ausgangsdaten!$H$12 -> -0.6241531141 | I35: -0.7746761694 | J35: -0.7492194827 | K35: 0.8521500975 | O35: 8.4
A36: 2043 | B36: 7.608583425 | C36: 4.208583425 | D36: -0.1806789902 | E36: -0.8179037576 | F36: -0.09706343104 | G36: -0.09706343104 | H36: =(B36-Ausgangsdaten!$H$12)/Ausgangsdaten!$H$12 -> -0.6606341024 | I36: -0.7965468735 | J36: -0.7735611002 | K36: 0.8762080502 | O36: 7.6
A37: 2044 | B37: 6.848180822 | C37: 3.448180822 | D37: -0.2041969051 | E37: -0.7604026032 | F37: -0.09994010196 | G37: -0.09994010196 | H37: =(B37-Ausgangsdaten!$H$12)/Ausgangsdaten!$H$12 -> -0.6945503648 | I37: -0.8168799997 | J37: -0.7961914269 | K37: 0.8985746547 | O37: 6.8
A38: 2045 | B38: 6.14407297 | C38: 2.74407297 | D38: -0.2366512255 | E38: -0.7041078521 | F38: -0.1028167729 | G38: -0.1028167729 | H38: =(B38-Ausgangsdaten!$H$12)/Ausgangsdaten!$H$12 -> -0.7259557105 | I38: -0.8357078072 | J38: -0.8171463667 | K38: 0.9192853963 | O38: 6.1
A39: 2046 | B39: 5.494684739 | C39: 2.094684739 | D39: -0.2847963425 | E39: -0.649388231 | F39: -0.1056934438 | G39: -0.1056934438 | H39: =(B39-Ausgangsdaten!$H$12)/Ausgangsdaten!$H$12 -> -0.7549203952 | I39: -0.8530724148 | J39: -0.8364727969 | K39: 0.9383866062 | O39: 5.5
A40: 2047 | B40: 4.898126186 | C40: 1.498126186 | D40: -0.3643754605 | E40: -0.5965585523 | F40: -0.1085701147 | G40: -0.1085701147 | H40: =(B40-Ausgangsdaten!$H$12)/Ausgangsdaten!$H$12 -> -0.781528716 | I40: -0.8690243596 | J40: -0.8542269641 | K40: 0.9559338754 | O40: 4.9
A41: 2048 | B41: 4.352245767 | C41: 0.9522457673 | D41: -0.522516137 | E41: -0.545880419 | F41: -0.1114467856 | G41: -0.1114467856 | H41: =(B41-Ausgangsdaten!$H$12)/Ausgangsdaten!$H$12 -> -0.8058766384 | I41: -0.8836211737 | J41: -0.8704729004 | K41: 0.9719904898 | O41: 4.4
A42: 2049 | B42: 3.854681987 | C42: 0.4546819875 | D42: -0.9935938362 | E42: -0.4975637798 | F42: -0.1143234565 | G42: -0.1143234565 | H42: =(B42-Ausgangsdaten!$H$12)/Ausgangsdaten!$H$12 -> -0.8280694921 | I42: -0.8969260034 | J42: -0.8852808861 | K42: 0.9866259109 | O42: 3.9
A43: 2050 | B43: 3.402912767 | C43: 0.002912767292 | E43: -0.4517692202 | F43: -0.1172001274 | G43: -0.1172001274 | H43: =(B43-Ausgangsdaten!$H$12)/Ausgangsdaten!$H$12 -> -0.8482197695 | I43: -0.9090062889 | J43: -0.8987259809 | K43: 0.9999143234 | O43: 3.4
A44: Gesamt | B44: =SUM(B13:B43) -> 538.4818891

Sheet S4
A1: Szenario 4 | C1: Quadratischer Ansatz für RS_t (s. Formel)
A2: Register Zielwertsuche
A4: Budget 2020 - 2050 in Mrd. t | H4: =ROUND(Ausgangsdaten!L58,0) -> 538 | L4: =IF(OR(P13<>H4,P15<>H5),"Mindestens ein Ziel wird nicht eingehalten","Alle Ziele werden eingehalten") -> Alle Ziele werden eingehalten
A5: CO2-Emissionen im Jahr 2050 in Mrd. t (ZM) | F5: =CONCATENATE("(",(1-Ausgangsdaten!H14)*100," % der Emissionen in 1990)") -> (15 % der Emissionen in 1990) | H5: =ROUND(Ausgangsdaten!E70,1) -> 3.4 | L5: Werte aus dem Register "Ausgangsdaten"
A6: Reduktionssatz für 2020 (RS20); Vorgabewert Register "Zielwertsuche" | H6: =Zielwertsuche!F9 -> -0.04281 | L6: Werte aus dem Register "Zielwertsuche"
A7: Parameter a der Parabel; veränderbarer Wert Zielwertsuche | H7: =Zielwertsuche!F13 -> -0.0001021617266
A9: Jahr | B9: CO2-Emissionen in Mrd. t | C9: abzubau-ende Menge in Mrd. t | D9: Verände- rungs- satz | E9: absolute Veränderung gegenüber Vorjahr in Mrd. t | F9: relative Veränderung gegenüber Vorjahr | H9: relative Veränderung gegenüber 1990 | I9: relative Veränderung gegenüber 2019 | J9: relative Veränderung gegenüber 2013 | K9: Anteil Verteilung pro Kopf mit der Regensburger Formel
A10: t | B10: E2019 = Plan-2019; Et = max (ZM; Et-1 * (1 + RSt)) | C10: AMt = Et - ZM | D10: VSt = wenn (Et = ZM; -100%; (Et+1 - Et) / AMt) | E10: Et - Et-1 | F10: siehe Formel rechts für RS_t | G10: tats. RSt | H10: =CONCATENATE("1990 = ",Ausgangsdaten!H12," Mrd. t") -> 1990 = 22,42 Mrd. t | J10: =IF(Ausgangsdaten!$K$14=Ausgangsdaten!$B$121,Ausgangsdaten!$G$36,Ausgangsdaten!$G$37) -> 33.60104395 | K10: Kt = (EBJ - Et) / (EBJ - ZM) | R10: Et gerundet auf eine Stelle
A11: 2019 | B11: =Ausgangsdaten!$L$62 -> 37.39723029 | C11: =B11-$H$5 -> 33.99723029 | D11: =IF(B11=H$5,-1,(B12-B11)/(B11-H$5)) -> -0.04709134877 | H11: =(B11-Ausgangsdaten!H12)/Ausgangsdaten!H12 -> 0.6680298968 | J11: =(B11-J10)/J10 -> 0.112978226 | R11: =ROUND(B11,1) -> 37.4
A12: 2020 | B12: =MAX($H$5,B11*(1+F12)) -> 35.79625486 | C12: 32.39625486 | D12: =IF(B12=H$5,-1,(B13-B12)/(B12-H$5)) -> -0.04741581039 | E12: =B12-B11 -> -1.600975429 | F12: =$H$7*(A12-2020)^2+$H$6 -> -0.04281 | G12: =B12/B11-1 -> -0.04281 | H12: =(B12-Ausgangsdaten!$H$12)/Ausgangsdaten!$H$12 -> 0.5966215369 | I12: =(B12-$B$11)/$B$11 -> -0.04281 | J12: =(B12-$J$10)/$J$10 -> 0.06533162816 | K12: =($B$11-B12)/($B$11-$H$5) -> 0.04709134877 | M12: Werte aus Szenario | R12: 35.8
A13: =A12+1 -> 2021 | B13: =MAX($H$5,B12*(1+F13)) -> 34.26016018 | C13: 30.86016018 | D13: -0.04798023591 | E13: -1.536094678 | F13: =$H$7*(A13-2020)^2+$H$6 -> -0.04291216173 | G13: =B13/B12-1 -> -0.04291216173 | H13: =(B13-Ausgangsdaten!$H$12)/Ausgangsdaten!$H$12 -> 0.5281070553 | I13: -0.08388509208 | J13: =(B13-$J$10)/$J$10 -> 0.01961594504 | K13: 0.09227428469 | M13: Summe CO2-Emissionen 2020 - 2050 in Mrd. t | P13: =ROUND(B43,0) -> 538 | R13: 34.3
A14: 2022 | B14: 32.77948241 | C14: 29.37948241 | D14: -0.04879013519 | E14: -1.480677766 | F14: -0.04321864691 | G14: -0.04321864691 | H14: =(B14-Ausgangsdaten!$H$12)/Ausgangsdaten!$H$12 -> 0.4620643361 | I14: -0.1234783388 | J14: -0.02445047647 | K14: 0.1358271787 | R14: 32.8
A15: 2023 | B15: 31.3460535 | C15: 27.9460535 | D15: -0.04985184837 | E15: -1.433428919 | F15: -0.04372945554 | G15: -0.04372945554 | H15: =(B15-Ausgangsdaten!$H$12)/Ausgangsdaten!$H$12 -> 0.3981290587 | I15: -0.1618081538 | J15: -0.06711072599 | K15: 0.1779902874 | M15: CO2-Emissionen in 2050 in Mrd. t | P15: =ROUND(B42,1) -> 3.4 | R15: 31.3
A16: 2024 | B16: 29.95289107 | C16: 26.55289107 | D16: -0.05117274198 | E16: -1.393162421 | F16: -0.04444458763 | G16: -0.04444458763 | H16: =(B16-Ausgangsdaten!$H$12)/Ausgangsdaten!$H$12 -> 0.3359897892 | I16: -0.1990612448 | J16: -0.1085726051 | K16: 0.218968991 | R16: 30
